Workbook

Sheet טיימר עבודות
P2: התחלה | Q2: סוף
O3: יעד דינמי | P3: 2024-03-03 | Q3: 2024-03-04 | R3: עבודה | S3: שעות | T3: שכר | U3: אחוזים | V3: יעד
P4: 08:00:00 | Q4: 02:00:00 | R4: כל העבודות | S4: =IF(OR(P3="",Q3=""),"", IF(SUMIFS(טבלה1[שעות],טבלה1[תאריך ושעה],">="&P3+P4,טבלה1[תאריך ושעה],"<"&Q3+Q4,טבלה1[שם העבודה],IF(טבלה4[[#This Row],[עבודה]]="כל העבודות","<>""",טבלה4[[#This Row],[עבודה]]))=0,"", SUMIFS(טבלה1[שעות],טבלה1[תאריך ושעה],">="&P3+P4,טבלה1[תאריך ושעה],"<"&Q3+Q4,טבלה1[שם העבודה],IF(טבלה4[[#This Row],[עבודה]]="כל העבודות","<>""",טבלה4[[#This Row],[עבודה]])))) -> 0.2660416667 | T4: =IF('טיימר עבודות'!$S4="","", IF(SUMIFS(טבלה1[שכר],טבלה1[תאריך ושעה],">="&P3+P4,טבלה1[תאריך ושעה],"<"&Q3+Q4,טבלה1[שם העבודה],IF(טבלה4[[#This Row],[עבודה]]="כל העבודות","<>""",טבלה4[[#This Row],[עבודה]]))=0,"", SUMIFS(טבלה1[שכר],טבלה1[תאריך ושעה],">="&P3+P4,טבלה1[תאריך ושעה],"<"&Q3+Q4,טבלה1[שם העבודה],IF(טבלה4[[#This Row],[עבודה]]="כל העבודות","<>""",טבלה4[[#This Row],[עבודה]])))) -> 308.5666667 | U4: =IF(OR(טבלה4[[#This Row],[שכר]]="",טבלה4[[#This Row],[יעד]]=""),"", IF(טבלה4[[#This Row],[שכר]]>=טבלה4[[#This Row],[יעד]],"הגעת ליעד!", טבלה4[[#This Row],[שכר]]/טבלה4[[#This Row],[יעד]])) -> הגעת ליעד! | V4: 300
O5: יעדים קבועים | P5: =" יומי: " & TEXT(TODAY(),"dd/mm/yyyy") -> יומי: 06/04/2024 | R5: כל העבודות | S5: =IF(SUMIFS(טבלה1[שעות],טבלה1[תאריך],"="&(TODAY()),טבלה1[שם העבודה],IF(טבלה4[[#This Row],[עבודה]]="כל העבודות","<>""",טבלה4[[#This Row],[עבודה]]))=0,"", SUMIFS(טבלה1[שעות],טבלה1[תאריך],"="&(TODAY()),טבלה1[שם העבודה],IF(טבלה4[[#This Row],[עבודה]]="כל העבודות","<>""",טבלה4[[#This Row],[עבודה]]))) ->  | T5: =IF(SUMIFS(טבלה1[שכר],טבלה1[תאריך],"="&(TODAY()),טבלה1[שם העבודה],IF(טבלה4[[#This Row],[עבודה]]="כל העבודות","<>""",טבלה4[[#This Row],[עבודה]]))=0,"", SUMIFS(טבלה1[שכר],טבלה1[תאריך],"="&(TODAY()),טבלה1[שם העבודה],IF(טבלה4[[#This Row],[עבודה]]="כל העבודות","<>""",טבלה4[[#This Row],[עבודה]]))) ->  | U5: =IF(OR(טבלה4[[#This Row],[שכר]]="",טבלה4[[#This Row],[יעד]]=""),"", IF(טבלה4[[#This Row],[שכר]]>=טבלה4[[#This Row],[יעד]],"הגעת ליעד!", טבלה4[[#This Row],[שכר]]/טבלה4[[#This Row],[יעד]])) ->  | V5: 300
P6: =" שבועי: שבוע " & TEXT(WEEKNUM(TODAY()),0)& " (" & YEAR(TODAY())& ")" -> שבועי: שבוע 14 (2024) | R6: כל העבודות | S6: =IF(SUMIFS(טבלה1[שעות],טבלה1[תאריך],">="&(TODAY())-WEEKDAY(TODAY())+1,טבלה1[תאריך],"<="&(TODAY())-WEEKDAY(TODAY())+7,טבלה1[שם העבודה],IF(טבלה4[[#This Row],[עבודה]]="כל העבודות","<>""",טבלה4[[#This Row],[עבודה]]))=0,"", SUMIFS(טבלה1[שעות],טבלה1[תאריך],">="&(TODAY())-WEEKDAY(TODAY())+1,טבלה1[תאריך],"<="&(TODAY())-WEEKDAY(TODAY())+7,טבלה1[שם העבודה],IF(טבלה4[[#This Row],[עבודה]]="כל העבודות","<>""",טבלה4[[#This Row],[עבודה]]))) ->  | T6: =IF(SUMIFS(טבלה1[שכר],טבלה1[תאריך],">="&(TODAY())-WEEKDAY(TODAY())+1,טבלה1[תאריך],"<="&(TODAY())-WEEKDAY(TODAY())+7,טבלה1[שם העבודה],IF(טבלה4[[#This Row],[עבודה]]="כל העבודות","<>""",טבלה4[[#This Row],[עבודה]]))=0,"", SUMIFS(טבלה1[שכר],טבלה1[תאריך],">="&(TODAY())-WEEKDAY(TODAY())+1,טבלה1[תאריך],"<="&(TODAY())-WEEKDAY(TODAY())+7,טבלה1[שם העבודה],IF(טבלה4[[#This Row],[עבודה]]="כל העבודות","<>""",טבלה4[[#This Row],[עבודה]]))) ->  | U6: =IF(OR(טבלה4[[#This Row],[שכר]]="",טבלה4[[#This Row],[יעד]]=""),"", IF(טבלה4[[#This Row],[שכר]]>=טבלה4[[#This Row],[יעד]],"הגעת ליעד!", טבלה4[[#This Row],[שכר]]/טבלה4[[#This Row],[יעד]])) ->  | V6: 1250
P7: =" חודשי: חודש " & TEXT(MONTH(TODAY()),0) & " (" & YEAR(TODAY())& ")" -> חודשי: חודש 4 (2024) | R7: כל העבודות | S7: =IF(SUMIFS(טבלה1[שעות],טבלה1[תאריך], ">="&DATE(YEAR(TODAY()),MONTH(TODAY()),1),טבלה1[תאריך], "<="&EOMONTH(TODAY(),0),טבלה1[שם העבודה],IF(טבלה4[[#This Row],[עבודה]]="כל העבודות","<>""",טבלה4[[#This Row],[עבודה]]))=0,"", SUMIFS(טבלה1[שעות],טבלה1[תאריך], ">="&DATE(YEAR(TODAY()),MONTH(TODAY()),1),טבלה1[תאריך], "<="&EOMONTH(TODAY(),0),טבלה1[שם העבודה],IF(טבלה4[[#This Row],[עבודה]]="כל העבודות","<>""",טבלה4[[#This Row],[עבודה]]))) ->  | T7: =IF(SUMIFS(טבלה1[שכר],טבלה1[תאריך], ">="&DATE(YEAR(TODAY()),MONTH(TODAY()),1),טבלה1[תאריך], "<="&EOMONTH(TODAY(),0),טבלה1[שם העבודה],IF(טבלה4[[#This Row],[עבודה]]="כל העבודות","<>""",טבלה4[[#This Row],[עבודה]]))=0,"", SUMIFS(טבלה1[שכר],טבלה1[תאריך], ">="&DATE(YEAR(TODAY()),MONTH(TODAY()),1),טבלה1[תאריך], "<="&EOMONTH(TODAY(),0),טבלה1[שם העבודה],IF(טבלה4[[#This Row],[עבודה]]="כל העבודות","<>""",טבלה4[[#This Row],[עבודה]]))) ->  | U7: =IF(OR(טבלה4[[#This Row],[שכר]]="",טבלה4[[#This Row],[יעד]]=""),"", IF(טבלה4[[#This Row],[שכר]]>=טבלה4[[#This Row],[יעד]],"הגעת ליעד!", טבלה4[[#This Row],[שכר]]/טבלה4[[#This Row],[יעד]])) ->  | V7: 5000
P8: סך הכל: | R8: כל העבודות | S8: =IF(SUMIFS(טבלה1[שעות],טבלה1[שם העבודה],IF(טבלה4[[#This Row],[עבודה]]="כל העבודות","<>""",טבלה4[[#This Row],[עבודה]]))=0,"", SUMIFS(טבלה1[שעות],טבלה1[שם העבודה],IF(טבלה4[[#This Row],[עבודה]]="כל העבודות","<>""",טבלה4[[#This Row],[עבודה]]))) -> 3.637118056 | T8: =IF(SUMIFS(טבלה1[שכר],טבלה1[שם העבודה],IF(טבלה4[[#This Row],[עבודה]]="כל העבודות","<>""",טבלה4[[#This Row],[עבודה]]))=0,"", SUMIFS(טבלה1[שכר],טבלה1[שם העבודה],IF(טבלה4[[#This Row],[עבודה]]="כל העבודות","<>""",טבלה4[[#This Row],[עבודה]]))) -> 4554.696254 | U8: =IF(OR(טבלה4[[#This Row],[שכר]]="",טבלה4[[#This Row],[יעד]]=""),"", IF(טבלה4[[#This Row],[שכר]]>=טבלה4[[#This Row],[יעד]],"הגעת ליעד!", טבלה4[[#This Row],[שכר]]/טבלה4[[#This Row],[יעד]])) -> 0.4554696254 | V8: 10000 | AM8: אימות נתונים | AN8: חודשים ושנים
AM9: עבודות
B10: עמודה2 | C10: יום | D10: תאריך | E10: התחלה | F10: שם העבודה | G10: סיום | H10: הוספת דקות | I10: הפחתת דקות | J10: שעות | K10: שכר | L10: תאריך ושעה | M10: הערות | O10: שמות העבודות | P10: שכר לשעה | Q10: מטבע | R10: עבודות | S10: שעות | T10: שכר בשקלים | U10: שכר בדולרים | V10: הערות | AM10: כל העבודות
B11: =IF(AND(טבלה1[[#This Row],[תאריך]]="",טבלה1[[#This Row],[התחלה]]="",טבלה1[[#This Row],[שם העבודה]]=""),"",ROW()-10) -> 1 | C11: =IF(טבלה1[[#This Row],[תאריך]]="","",IF(TEXT(טבלה1[[#This Row],[תאריך]],"DDD")="שבת","מוצ""ש",TEXT(טבלה1[[#This Row],[תאריך]],"DDD"))) -> יום ג | D11: 2024-02-27 | E11: 10:06:05 | F11: עיון במקורות | G11: 12:56:31 | H11: 20 | I11: 2 | J11: =IF(IF(AND(טבלה1[[#This Row],[התחלה]]="",טבלה1[[#This Row],[סיום]]<>""),"",IF(AND(טבלה1[[#This Row],[התחלה]]<>"",טבלה1[[#This Row],[סיום]]=""), SUM(MOD(NOW(),1)-טבלה1[[#This Row],[התחלה]]+(MOD(NOW(),1)<טבלה1[[#This Row],[התחלה]]),TIME(,טבלה1[[#This Row],[הוספת דקות]],),-TIME(,טבלה1[[#This Row],[הפחתת דקות]],)), SUM(טבלה1[[#This Row],[סיום]]-טבלה1[[#This Row],[התחלה]]+(טבלה1[[#This Row],[סיום]]<טבלה1[[#This Row],[התחלה]]),TIME(,טבלה1[[#This Row],[הוספת דקות]],),-TIME(,טבלה1[[#This Row],[הפחתת דקות]],))))<=0,"", IF(AND(טבלה1[[#This Row],[התחלה]]="",טבלה1[[#This Row],[סיום]]<>""),"",IF(AND(טבלה1[[#This Row],[התחלה]]<>"",טבלה1[[#This Row],[סיום]]=""), SUM(MOD(NOW(),1)-טבלה1[[#This Row],[התחלה]]+(MOD(NOW(),1)<טבלה1[[#This Row],[התחלה]]),TIME(,טבלה1[[#This Row],[הוספת דקות]],),-TIME(,טבלה1[[#This Row],[הפחתת דקות]],)), SUM(טבלה1[[#This Row],[סיום]]-טבלה1[[#This Row],[התחלה]]+(טבלה1[[#This Row],[סיום]]<טבלה1[[#This Row],[התחלה]]),TIME(,טבלה1[[#This Row],[הוספת דקות]],),-TIME(,טבלה1[[#This Row],[הפחתת דקות]],))))) -> 0.1308564815 | K11: =IF('טיימר עבודות'!$J11="","", IFERROR(IF(IF(VLOOKUP('טיימר עבודות'!$F11,טבלה2[],3,FALSE)="$", VLOOKUP(טבלה1[[#This Row],[שם העבודה]],טבלה2[#All],2,FALSE)*טבלה1[[#This Row],[שעות]]*24*שער, VLOOKUP(טבלה1[[#This Row],[שם העבודה]],טבלה2[#All],2,FALSE)*טבלה1[[#This Row],[שעות]]*24)=0,"", IF(VLOOKUP('טיימר עבודות'!$F11,טבלה2[],3,FALSE)="$", VLOOKUP(טבלה1[[#This Row],[שם העבודה]],טבלה2[#All],2,FALSE)*טבלה1[[#This Row],[שעות]]*24*שער, VLOOKUP(טבלה1[[#This Row],[שם העבודה]],טבלה2[#All],2,FALSE)*טבלה1[[#This Row],[שעות]]*24)),"")) -> 149.550115 | L11: =IF(טבלה1[[#This Row],[תאריך]]="","",טבלה1[[#This Row],[תאריך]]+טבלה1[[#This Row],[התחלה]]) -> 2024-02-27T10:06:05 | O11: עיון במקורות | P11: 13 | Q11: $ | R11: =IF(OR(טבלה2[[#This Row],[שמות העבודות]]="",COUNTIF(עבודות,טבלה2[[#This Row],[שמות העבודות]])=0),"",COUNTIF(עבודות,טבלה2[[#This Row],[שמות העבודות]])) -> 9 | S11: =IF(O11="","", IFERROR(IF(SUMIFS('טיימר עבודות'!$J$11:$J$160,'טיימר עבודות'!$F$11:$F$160,O11)=0,"", SUMIFS('טיימר עבודות'!$J$11:$J$160,'טיימר עבודות'!$F$11:$F$160,O11)),"")) -> 0.6734375 | T11: =IFERROR(IF(OR(טבלה2[[#This Row],[שכר לשעה]]="",טבלה2[[#This Row],[שעות]]=""),"", IF(IF(OR(טבלה2[[#This Row],[מטבע]]="₪",טבלה2[[#This Row],[מטבע]]=""),טבלה2[[#This Row],[שכר לשעה]]*טבלה2[[#This Row],[שעות]]*24, IF(טבלה2[[#This Row],[מטבע]]="$",טבלה2[[#This Row],[שכר לשעה]]*טבלה2[[#This Row],[שעות]]*24*שער,""))=0,"", IF(OR(טבלה2[[#This Row],[מטבע]]="₪",טבלה2[[#This Row],[מטבע]]=""),טבלה2[[#This Row],[שכר לשעה]]*טבלה2[[#This Row],[שעות]]*24, IF(טבלה2[[#This Row],[מטבע]]="$",טבלה2[[#This Row],[שכר לשעה]]*טבלה2[[#This Row],[שעות]]*24*שער,"")))),"") -> 769.6420875 | U11: =IFERROR(IF(OR(טבלה2[[#This Row],[שכר לשעה]]="",טבלה2[[#This Row],[שעות]]=""),"", IF(IF(טבלה2[[#This Row],[מטבע]]="$",טבלה2[[#This Row],[שכר לשעה]]*טבלה2[[#This Row],[שעות]]*24, IF(OR(טבלה2[[#This Row],[מטבע]]="₪",טבלה2[[#This Row],[מטבע]]=""),טבלה2[[#This Row],[שכר לשעה]]*טבלה2[[#This Row],[שעות]]*24/שער,""))=0,"", IF(טבלה2[[#This Row],[מטבע]]="$",טבלה2[[#This Row],[שכר לשעה]]*טבלה2[[#This Row],[שעות]]*24, IF(OR(טבלה2[[#This Row],[מטבע]]="₪",טבלה2[[#This Row],[מטבע]]=""),טבלה2[[#This Row],[שכר לשעה]]*טבלה2[[#This Row],[שעות]]*24/שער,"")))),"") -> 210.1125 | AL11: שמירה אוטומטית | AM11: =IF(טבלה2[[#This Row],[שמות העבודות]]="","",טבלה2[[#This Row],[שמות העבודות]]) -> עיון במקורות | AN11: 1
B12: =IF(AND(טבלה1[[#This Row],[תאריך]]="",טבלה1[[#This Row],[התחלה]]="",טבלה1[[#This Row],[שם העבודה]]=""),"",ROW()-10) -> 2 | C12: =IF(טבלה1[[#This Row],[תאריך]]="","",IF(TEXT(טבלה1[[#This Row],[תאריך]],"DDD")="שבת","מוצ""ש",TEXT(טבלה1[[#This Row],[תאריך]],"DDD"))) -> יום ג | D12: 2024-02-27 | E12: 17:10:51 | F12: הגהה ודקדוק | G12: 20:43:31 | J12: =IF(IF(AND(טבלה1[[#This Row],[התחלה]]="",טבלה1[[#This Row],[סיום]]<>""),"",IF(AND(טבלה1[[#This Row],[התחלה]]<>"",טבלה1[[#This Row],[סיום]]=""), SUM(MOD(NOW(),1)-טבלה1[[#This Row],[התחלה]]+(MOD(NOW(),1)<טבלה1[[#This Row],[התחלה]]),TIME(,טבלה1[[#This Row],[הוספת דקות]],),-TIME(,טבלה1[[#This Row],[הפחתת דקות]],)), SUM(טבלה1[[#This Row],[סיום]]-טבלה1[[#This Row],[התחלה]]+(טבלה1[[#This Row],[סיום]]<טבלה1[[#This Row],[התחלה]]),TIME(,טבלה1[[#This Row],[הוספת דקות]],),-TIME(,טבלה1[[#This Row],[הפחתת דקות]],))))<=0,"", IF(AND(טבלה1[[#This Row],[התחלה]]="",טבלה1[[#This Row],[סיום]]<>""),"",IF(AND(טבלה1[[#This Row],[התחלה]]<>"",טבלה1[[#This Row],[סיום]]=""), SUM(MOD(NOW(),1)-טבלה1[[#This Row],[התחלה]]+(MOD(NOW(),1)<טבלה1[[#This Row],[התחלה]]),TIME(,טבלה1[[#This Row],[הוספת דקות]],),-TIME(,טבלה1[[#This Row],[הפחתת דקות]],)), SUM(טבלה1[[#This Row],[סיום]]-טבלה1[[#This Row],[התחלה]]+(טבלה1[[#This Row],[סיום]]<טבלה1[[#This Row],[התחלה]]),TIME(,טבלה1[[#This Row],[הוספת דקות]],),-TIME(,טבלה1[[#This Row],[הפחתת דקות]],))))) -> 0.1476851852 | K12: =IF('טיימר עבודות'!$J12="","", IFERROR(IF(IF(VLOOKUP('טיימר עבודות'!$F12,טבלה2[],3,FALSE)="$", VLOOKUP(טבלה1[[#This Row],[שם העבודה]],טבלה2[#All],2,FALSE)*טבלה1[[#This Row],[שעות]]*24*שער, VLOOKUP(טבלה1[[#This Row],[שם העבודה]],טבלה2[#All],2,FALSE)*טבלה1[[#This Row],[שעות]]*24)=0,"", IF(VLOOKUP('טיימר עבודות'!$F12,טבלה2[],3,FALSE)="$", VLOOKUP(טבלה1[[#This Row],[שם העבודה]],טבלה2[#All],2,FALSE)*טבלה1[[#This Row],[שעות]]*24*שער, VLOOKUP(טבלה1[[#This Row],[שם העבודה]],טבלה2[#All],2,FALSE)*טבלה1[[#This Row],[שעות]]*24)),"")) -> 177.2222222 | L12: =IF(טבלה1[[#This Row],[תאריך]]="","",טבלה1[[#This Row],[תאריך]]+טבלה1[[#This Row],[התחלה]]) -> 2024-02-27T17:10:51 | O12: הגהה ודקדוק | P12: 50 | Q12: ₪ | R12: =IF(OR(טבלה2[[#This Row],[שמות העבודות]]="",COUNTIF(עבודות,טבלה2[[#This Row],[שמות העבודות]])=0),"",COUNTIF(עבודות,טבלה2[[#This Row],[שמות העבודות]])) -> 6 | S12: =IF(O12="","", IFERROR(IF(SUMIFS('טיימר עבודות'!$J$11:$J$160,'טיימר עבודות'!$F$11:$F$160,O12)=0,"", SUMIFS('טיימר עבודות'!$J$11:$J$160,'טיימר עבודות'!$F$11:$F$160,O12)),"")) -> 0.7269444444 | T12: =IFERROR(IF(OR(טבלה2[[#This Row],[שכר לשעה]]="",טבלה2[[#This Row],[שעות]]=""),"", IF(IF(OR(טבלה2[[#This Row],[מטבע]]="₪",טבלה2[[#This Row],[מטבע]]=""),טבלה2[[#This Row],[שכר לשעה]]*טבלה2[[#This Row],[שעות]]*24, IF(טבלה2[[#This Row],[מטבע]]="$",טבלה2[[#This Row],[שכר לשעה]]*טבלה2[[#This Row],[שעות]]*24*שער,""))=0,"", IF(OR(טבלה2[[#This Row],[מטבע]]="₪",טבלה2[[#This Row],[מטבע]]=""),טבלה2[[#This Row],[שכר לשעה]]*טבלה2[[#This Row],[שעות]]*24, IF(טבלה2[[#This Row],[מטבע]]="$",טבלה2[[#This Row],[שכר לשעה]]*טבלה2[[#This Row],[שעות]]*24*שער,"")))),"") -> 872.3333333 | U12: =IFERROR(IF(OR(טבלה2[[#This Row],[שכר לשעה]]="",טבלה2[[#This Row],[שעות]]=""),"", IF(IF(טבלה2[[#This Row],[מטבע]]="$",טבלה2[[#This Row],[שכר לשעה]]*טבלה2[[#This Row],[שעות]]*24, IF(OR(טבלה2[[#This Row],[מטבע]]="₪",טבלה2[[#This Row],[מטבע]]=""),טבלה2[[#This Row],[שכר לשעה]]*טבלה2[[#This Row],[שעות]]*24/שער,""))=0,"", IF(טבלה2[[#This Row],[מטבע]]="$",טבלה2[[#This Row],[שכר לשעה]]*טבלה2[[#This Row],[שעות]]*24, IF(OR(טבלה2[[#This Row],[מטבע]]="₪",טבלה2[[#This Row],[מטבע]]=""),טבלה2[[#This Row],[שכר לשעה]]*טבלה2[[#This Row],[שעות]]*24/שער,"")))),"") -> 238.1472381 | AL12: FALSE | AM12: =IF(טבלה2[[#This Row],[שמות העבודות]]="","",טבלה2[[#This Row],[שמות העבודות]]) -> הגהה ודקדוק | AN12: 2
B13: =IF(AND(טבלה1[[#This Row],[תאריך]]="",טבלה1[[#This Row],[התחלה]]="",טבלה1[[#This Row],[שם העבודה]]=""),"",ROW()-10) -> 3 | C13: =IF(טבלה1[[#This Row],[תאריך]]="","",IF(TEXT(טבלה1[[#This Row],[תאריך]],"DDD")="שבת","מוצ""ש",TEXT(טבלה1[[#This Row],[תאריך]],"DDD"))) -> יום ד | D13: 2024-02-28 | E13: 10:06:05 | F13: ניקוד | G13: 12:56:31 | H13: 25 | J13: =IF(IF(AND(טבלה1[[#This Row],[התחלה]]="",טבלה1[[#This Row],[סיום]]<>""),"",IF(AND(טבלה1[[#This Row],[התחלה]]<>"",טבלה1[[#This Row],[סיום]]=""), SUM(MOD(NOW(),1)-טבלה1[[#This Row],[התחלה]]+(MOD(NOW(),1)<טבלה1[[#This Row],[התחלה]]),TIME(,טבלה1[[#This Row],[הוספת דקות]],),-TIME(,טבלה1[[#This Row],[הפחתת דקות]],)), SUM(טבלה1[[#This Row],[סיום]]-טבלה1[[#This Row],[התחלה]]+(טבלה1[[#This Row],[סיום]]<טבלה1[[#This Row],[התחלה]]),TIME(,טבלה1[[#This Row],[הוספת דקות]],),-TIME(,טבלה1[[#This Row],[הפחתת דקות]],))))<=0,"", IF(AND(טבלה1[[#This Row],[התחלה]]="",טבלה1[[#This Row],[סיום]]<>""),"",IF(AND(טבלה1[[#This Row],[התחלה]]<>"",טבלה1[[#This Row],[סיום]]=""), SUM(MOD(NOW(),1)-טבלה1[[#This Row],[התחלה]]+(MOD(NOW(),1)<טבלה1[[#This Row],[התחלה]]),TIME(,טבלה1[[#This Row],[הוספת דקות]],),-TIME(,טבלה1[[#This Row],[הפחתת דקות]],)), SUM(טבלה1[[#This Row],[סיום]]-טבלה1[[#This Row],[התחלה]]+(טבלה1[[#This Row],[סיום]]<טבלה1[[#This Row],[התחלה]]),TIME(,טבלה1[[#This Row],[הוספת דקות]],),-TIME(,טבלה1[[#This Row],[הפחתת דקות]],))))) -> 0.1357175926 | K13: =IF('טיימר עבודות'!$J13="","", IFERROR(IF(IF(VLOOKUP('טיימר עבודות'!$F13,טבלה2[],3,FALSE)="$", VLOOKUP(טבלה1[[#This Row],[שם העבודה]],טבלה2[#All],2,FALSE)*טבלה1[[#This Row],[שעות]]*24*שער, VLOOKUP(טבלה1[[#This Row],[שם העבודה]],טבלה2[#All],2,FALSE)*טבלה1[[#This Row],[שעות]]*24)=0,"", IF(VLOOKUP('טיימר עבודות'!$F13,טבלה2[],3,FALSE)="$", VLOOKUP(טבלה1[[#This Row],[שם העבודה]],טבלה2[#All],2,FALSE)*טבלה1[[#This Row],[שעות]]*24*שער, VLOOKUP(טבלה1[[#This Row],[שם העבודה]],טבלה2[#All],2,FALSE)*טבלה1[[#This Row],[שעות]]*24)),"")) -> 211.7194444 | L13: =IF(טבלה1[[#This Row],[תאריך]]="","",טבלה1[[#This Row],[תאריך]]+טבלה1[[#This Row],[התחלה]]) -> 2024-02-28T10:06:05 | O13: ניקוד | P13: 65 | Q13: ₪ | R13: =IF(OR(טבלה2[[#This Row],[שמות העבודות]]="",COUNTIF(עבודות,טבלה2[[#This Row],[שמות העבודות]])=0),"",COUNTIF(עבודות,טבלה2[[#This Row],[שמות העבודות]])) -> 6 | S13: =IF(O13="","", IFERROR(IF(SUMIFS('טיימר עבודות'!$J$11:$J$160,'טיימר עבודות'!$F$11:$F$160,O13)=0,"", SUMIFS('טיימר עבודות'!$J$11:$J$160,'טיימר עבודות'!$F$11:$F$160,O13)),"")) -> 0.8095138889 | T13: =IFERROR(IF(OR(טבלה2[[#This Row],[שכר לשעה]]="",טבלה2[[#This Row],[שעות]]=""),"", IF(IF(OR(טבלה2[[#This Row],[מטבע]]="₪",טבלה2[[#This Row],[מטבע]]=""),טבלה2[[#This Row],[שכר לשעה]]*טבלה2[[#This Row],[שעות]]*24, IF(טבלה2[[#This Row],[מטבע]]="$",טבלה2[[#This Row],[שכר לשעה]]*טבלה2[[#This Row],[שעות]]*24*שער,""))=0,"", IF(OR(טבלה2[[#This Row],[מטבע]]="₪",טבלה2[[#This Row],[מטבע]]=""),טבלה2[[#This Row],[שכר לשעה]]*טבלה2[[#This Row],[שעות]]*24, IF(טבלה2[[#This Row],[מטבע]]="$",טבלה2[[#This Row],[שכר לשעה]]*טבלה2[[#This Row],[שעות]]*24*שער,"")))),"") -> 1262.841667 | U13: =IFERROR(IF(OR(טבלה2[[#This Row],[שכר לשעה]]="",טבלה2[[#This Row],[שעות]]=""),"", IF(IF(טבלה2[[#This Row],[מטבע]]="$",טבלה2[[#This Row],[שכר לשעה]]*טבלה2[[#This Row],[שעות]]*24, IF(OR(טבלה2[[#This Row],[מטבע]]="₪",טבלה2[[#This Row],[מטבע]]=""),טבלה2[[#This Row],[שכר לשעה]]*טבלה2[[#This Row],[שעות]]*24/שער,""))=0,"", IF(טבלה2[[#This Row],[מטבע]]="$",טבלה2[[#This Row],[שכר לשעה]]*טבלה2[[#This Row],[שעות]]*24, IF(OR(טבלה2[[#This Row],[מטבע]]="₪",טבלה2[[#This Row],[מטבע]]=""),טבלה2[[#This Row],[שכר לשעה]]*טבלה2[[#This Row],[שעות]]*24/שער,"")))),"") -> 344.7561198 | AL13: עבודה נבחרת | AM13: =IF(טבלה2[[#This Row],[שמות העבודות]]="","",טבלה2[[#This Row],[שמות העבודות]]) -> ניקוד | AN13: 3
B14: =IF(AND(טבלה1[[#This Row],[תאריך]]="",טבלה1[[#This Row],[התחלה]]="",טבלה1[[#This Row],[שם העבודה]]=""),"",ROW()-10) -> 4 | C14: =IF(טבלה1[[#This Row],[תאריך]]="","",IF(TEXT(טבלה1[[#This Row],[תאריך]],"DDD")="שבת","מוצ""ש",TEXT(טבלה1[[#This Row],[תאריך]],"DDD"))) -> יום ד | D14: 2024-02-28 | E14: 19:12:15 | F14: מכון תורה | G14: 20:43:31 | H14: 20 | J14: =IF(IF(AND(טבלה1[[#This Row],[התחלה]]="",טבלה1[[#This Row],[סיום]]<>""),"",IF(AND(טבלה1[[#This Row],[התחלה]]<>"",טבלה1[[#This Row],[סיום]]=""), SUM(MOD(NOW(),1)-טבלה1[[#This Row],[התחלה]]+(MOD(NOW(),1)<טבלה1[[#This Row],[התחלה]]),TIME(,טבלה1[[#This Row],[הוספת דקות]],),-TIME(,טבלה1[[#This Row],[הפחתת דקות]],)), SUM(טבלה1[[#This Row],[סיום]]-טבלה1[[#This Row],[התחלה]]+(טבלה1[[#This Row],[סיום]]<טבלה1[[#This Row],[התחלה]]),TIME(,טבלה1[[#This Row],[הוספת דקות]],),-TIME(,טבלה1[[#This Row],[הפחתת דקות]],))))<=0,"", IF(AND(טבלה1[[#This Row],[התחלה]]="",טבלה1[[#This Row],[סיום]]<>""),"",IF(AND(טבלה1[[#This Row],[התחלה]]<>"",טבלה1[[#This Row],[סיום]]=""), SUM(MOD(NOW(),1)-טבלה1[[#This Row],[התחלה]]+(MOD(NOW(),1)<טבלה1[[#This Row],[התחלה]]),TIME(,טבלה1[[#This Row],[הוספת דקות]],),-TIME(,טבלה1[[#This Row],[הפחתת דקות]],)), SUM(טבלה1[[#This Row],[סיום]]-טבלה1[[#This Row],[התחלה]]+(טבלה1[[#This Row],[סיום]]<טבלה1[[#This Row],[התחלה]]),TIME(,טבלה1[[#This Row],[הוספת דקות]],),-TIME(,טבלה1[[#This Row],[הפחתת דקות]],))))) -> 0.07726851852 | K14: =IF('טיימר עבודות'!$J14="","", IFERROR(IF(IF(VLOOKUP('טיימר עבודות'!$F14,טבלה2[],3,FALSE)="$", VLOOKUP(טבלה1[[#This Row],[שם העבודה]],טבלה2[#All],2,FALSE)*טבלה1[[#This Row],[שעות]]*24*שער, VLOOKUP(טבלה1[[#This Row],[שם העבודה]],טבלה2[#All],2,FALSE)*טבלה1[[#This Row],[שעות]]*24)=0,"", IF(VLOOKUP('טיימר עבודות'!$F14,טבלה2[],3,FALSE)="$", VLOOKUP(טבלה1[[#This Row],[שם העבודה]],טבלה2[#All],2,FALSE)*טבלה1[[#This Row],[שעות]]*24*שער, VLOOKUP(טבלה1[[#This Row],[שם העבודה]],טבלה2[#All],2,FALSE)*טבלה1[[#This Row],[שעות]]*24)),"")) -> 74.17777778 | L14: =IF(טבלה1[[#This Row],[תאריך]]="","",טבלה1[[#This Row],[תאריך]]+טבלה1[[#This Row],[התחלה]]) -> 2024-02-28T19:12:15 | O14: מכון תורה | P14: 40 | R14: =IF(OR(טבלה2[[#This Row],[שמות העבודות]]="",COUNTIF(עבודות,טבלה2[[#This Row],[שמות העבודות]])=0),"",COUNTIF(עבודות,טבלה2[[#This Row],[שמות העבודות]])) -> 6 | S14: =IF(O14="","", IFERROR(IF(SUMIFS('טיימר עבודות'!$J$11:$J$160,'טיימר עבודות'!$F$11:$F$160,O14)=0,"", SUMIFS('טיימר עבודות'!$J$11:$J$160,'טיימר עבודות'!$F$11:$F$160,O14)),"")) -> 0.650150463 | T14: =IFERROR(IF(OR(טבלה2[[#This Row],[שכר לשעה]]="",טבלה2[[#This Row],[שעות]]=""),"", IF(IF(OR(טבלה2[[#This Row],[מטבע]]="₪",טבלה2[[#This Row],[מטבע]]=""),טבלה2[[#This Row],[שכר לשעה]]*טבלה2[[#This Row],[שעות]]*24, IF(טבלה2[[#This Row],[מטבע]]="$",טבלה2[[#This Row],[שכר לשעה]]*טבלה2[[#This Row],[שעות]]*24*שער,""))=0,"", IF(OR(טבלה2[[#This Row],[מטבע]]="₪",טבלה2[[#This Row],[מטבע]]=""),טבלה2[[#This Row],[שכר לשעה]]*טבלה2[[#This Row],[שעות]]*24, IF(טבלה2[[#This Row],[מטבע]]="$",טבלה2[[#This Row],[שכר לשעה]]*טבלה2[[#This Row],[שעות]]*24*שער,"")))),"") -> 624.1444444 | U14: =IFERROR(IF(OR(טבלה2[[#This Row],[שכר לשעה]]="",טבלה2[[#This Row],[שעות]]=""),"", IF(IF(טבלה2[[#This Row],[מטבע]]="$",טבלה2[[#This Row],[שכר לשעה]]*טבלה2[[#This Row],[שעות]]*24, IF(OR(טבלה2[[#This Row],[מטבע]]="₪",טבלה2[[#This Row],[מטבע]]=""),טבלה2[[#This Row],[שכר לשעה]]*טבלה2[[#This Row],[שעות]]*24/שער,""))=0,"", IF(טבלה2[[#This Row],[מטבע]]="$",טבלה2[[#This Row],[שכר לשעה]]*טבלה2[[#This Row],[שעות]]*24, IF(OR(טבלה2[[#This Row],[מטבע]]="₪",טבלה2[[#This Row],[מטבע]]=""),טבלה2[[#This Row],[שכר לשעה]]*טבלה2[[#This Row],[שעות]]*24/שער,"")))),"") -> 170.3916037 | AL14: עיון במקורות | AM14: =IF(טבלה2[[#This Row],[שמות העבודות]]="","",טבלה2[[#This Row],[שמות העבודות]]) -> מכון תורה | AN14: 4
B15: =IF(AND(טבלה1[[#This Row],[תאריך]]="",טבלה1[[#This Row],[התחלה]]="",טבלה1[[#This Row],[שם העבודה]]=""),"",ROW()-10) -> 5 | C15: =IF(טבלה1[[#This Row],[תאריך]]="","",IF(TEXT(טבלה1[[#This Row],[תאריך]],"DDD")="שבת","מוצ""ש",TEXT(טבלה1[[#This Row],[תאריך]],"DDD"))) -> יום ה | D15: 2024-02-29 | E15: 10:06:05 | F15: עימוד | G15: 12:56:31 | H15: 20 | J15: =IF(IF(AND(טבלה1[[#This Row],[התחלה]]="",טבלה1[[#This Row],[סיום]]<>""),"",IF(AND(טבלה1[[#This Row],[התחלה]]<>"",טבלה1[[#This Row],[סיום]]=""), SUM(MOD(NOW(),1)-טבלה1[[#This Row],[התחלה]]+(MOD(NOW(),1)<טבלה1[[#This Row],[התחלה]]),TIME(,טבלה1[[#This Row],[הוספת דקות]],),-TIME(,טבלה1[[#This Row],[הפחתת דקות]],)), SUM(טבלה1[[#This Row],[סיום]]-טבלה1[[#This Row],[התחלה]]+(טבלה1[[#This Row],[סיום]]<טבלה1[[#This Row],[התחלה]]),TIME(,טבלה1[[#This Row],[הוספת דקות]],),-TIME(,טבלה1[[#This Row],[הפחתת דקות]],))))<=0,"", IF(AND(טבלה1[[#This Row],[התחלה]]="",טבלה1[[#This Row],[סיום]]<>""),"",IF(AND(טבלה1[[#This Row],[התחלה]]<>"",טבלה1[[#This Row],[סיום]]=""), SUM(MOD(NOW(),1)-טבלה1[[#This Row],[התחלה]]+(MOD(NOW(),1)<טבלה1[[#This Row],[התחלה]]),TIME(,טבלה1[[#This Row],[הוספת דקות]],),-TIME(,טבלה1[[#This Row],[הפחתת דקות]],)), SUM(טבלה1[[#This Row],[סיום]]-טבלה1[[#This Row],[התחלה]]+(טבלה1[[#This Row],[סיום]]<טבלה1[[#This Row],[התחלה]]),TIME(,טבלה1[[#This Row],[הוספת דקות]],),-TIME(,טבלה1[[#This Row],[הפחתת דקות]],))))) -> 0.1322453704 | K15: =IF('טיימר עבודות'!$J15="","", IFERROR(IF(IF(VLOOKUP('טיימר עבודות'!$F15,טבלה2[],3,FALSE)="$", VLOOKUP(טבלה1[[#This Row],[שם העבודה]],טבלה2[#All],2,FALSE)*טבלה1[[#This Row],[שעות]]*24*שער, VLOOKUP(טבלה1[[#This Row],[שם העבודה]],טבלה2[#All],2,FALSE)*טבלה1[[#This Row],[שעות]]*24)=0,"", IF(VLOOKUP('טיימר עבודות'!$F15,טבלה2[],3,FALSE)="$", VLOOKUP(טבלה1[[#This Row],[שם העבודה]],טבלה2[#All],2,FALSE)*טבלה1[[#This Row],[שעות]]*24*שער, VLOOKUP(טבלה1[[#This Row],[שם העבודה]],טבלה2[#All],2,FALSE)*טבלה1[[#This Row],[שעות]]*24)),"")) -> 174.5638889 | L15: =IF(טבלה1[[#This Row],[תאריך]]="","",טבלה1[[#This Row],[תאריך]]+טבלה1[[#This Row],[התחלה]]) -> 2024-02-29T10:06:05 | O15: עימוד | P15: 55 | R15: =IF(OR(טבלה2[[#This Row],[שמות העבודות]]="",COUNTIF(עבודות,טבלה2[[#This Row],[שמות העבודות]])=0),"",COUNTIF(עבודות,טבלה2[[#This Row],[שמות העבודות]])) -> 7 | S15: =IF(O15="","", IFERROR(IF(SUMIFS('טיימר עבודות'!$J$11:$J$160,'טיימר עבודות'!$F$11:$F$160,O15)=0,"", SUMIFS('טיימר עבודות'!$J$11:$J$160,'טיימר עבודות'!$F$11:$F$160,O15)),"")) -> 0.7770717593 | T15: =IFERROR(IF(OR(טבלה2[[#This Row],[שכר לשעה]]="",טבלה2[[#This Row],[שעות]]=""),"", IF(IF(OR(טבלה2[[#This Row],[מטבע]]="₪",טבלה2[[#This Row],[מטבע]]=""),טבלה2[[#This Row],[שכר לשעה]]*טבלה2[[#This Row],[שעות]]*24, IF(טבלה2[[#This Row],[מטבע]]="$",טבלה2[[#This Row],[שכר לשעה]]*טבלה2[[#This Row],[שעות]]*24*שער,""))=0,"", IF(OR(טבלה2[[#This Row],[מטבע]]="₪",טבלה2[[#This Row],[מטבע]]=""),טבלה2[[#This Row],[שכר לשעה]]*טבלה2[[#This Row],[שעות]]*24, IF(טבלה2[[#This Row],[מטבע]]="$",טבלה2[[#This Row],[שכר לשעה]]*טבלה2[[#This Row],[שעות]]*24*שער,"")))),"") -> 1025.734722 | U15: =IFERROR(IF(OR(טבלה2[[#This Row],[שכר לשעה]]="",טבלה2[[#This Row],[שעות]]=""),"", IF(IF(טבלה2[[#This Row],[מטבע]]="$",טבלה2[[#This Row],[שכר לשעה]]*טבלה2[[#This Row],[שעות]]*24, IF(OR(טבלה2[[#This Row],[מטבע]]="₪",טבלה2[[#This Row],[מטבע]]=""),טבלה2[[#This Row],[שכר לשעה]]*טבלה2[[#This Row],[שעות]]*24/שער,""))=0,"", IF(טבלה2[[#This Row],[מטבע]]="$",טבלה2[[#This Row],[שכר לשעה]]*טבלה2[[#This Row],[שעות]]*24, IF(OR(טבלה2[[#This Row],[מטבע]]="₪",טבלה2[[#This Row],[מטבע]]=""),טבלה2[[#This Row],[שכר לשעה]]*טבלה2[[#This Row],[שעות]]*24/שער,"")))),"") -> 280.0258592 | AL15: שם עבודה נבחרת | AM15: =IF(טבלה2[[#This Row],[שמות העבודות]]="","",טבלה2[[#This Row],[שמות העבודות]]) -> עימוד | AN15: 5
B16: =IF(AND(טבלה1[[#This Row],[תאריך]]="",טבלה1[[#This Row],[התחלה]]="",טבלה1[[#This Row],[שם העבודה]]=""),"",ROW()-10) -> 6 | C16: =IF(טבלה1[[#This Row],[תאריך]]="","",IF(TEXT(טבלה1[[#This Row],[תאריך]],"DDD")="שבת","מוצ""ש",TEXT(טבלה1[[#This Row],[תאריך]],"DDD"))) -> יום ה | D16: 2024-02-29 | E16: 17:10:51 | F16: עיון במקורות | G16: 20:43:31 | J16: =IF(IF(AND(טבלה1[[#This Row],[התחלה]]="",טבלה1[[#This Row],[סיום]]<>""),"",IF(AND(טבלה1[[#This Row],[התחלה]]<>"",טבלה1[[#This Row],[סיום]]=""), SUM(MOD(NOW(),1)-טבלה1[[#This Row],[התחלה]]+(MOD(NOW(),1)<טבלה1[[#This Row],[התחלה]]),TIME(,טבלה1[[#This Row],[הוספת דקות]],),-TIME(,טבלה1[[#This Row],[הפחתת דקות]],)), SUM(טבלה1[[#This Row],[סיום]]-טבלה1[[#This Row],[התחלה]]+(טבלה1[[#This Row],[סיום]]<טבלה1[[#This Row],[התחלה]]),TIME(,טבלה1[[#This Row],[הוספת דקות]],),-TIME(,טבלה1[[#This Row],[הפחתת דקות]],))))<=0,"", IF(AND(טבלה1[[#This Row],[התחלה]]="",טבלה1[[#This Row],[סיום]]<>""),"",IF(AND(טבלה1[[#This Row],[התחלה]]<>"",טבלה1[[#This Row],[סיום]]=""), SUM(MOD(NOW(),1)-טבלה1[[#This Row],[התחלה]]+(MOD(NOW(),1)<טבלה1[[#This Row],[התחלה]]),TIME(,טבלה1[[#This Row],[הוספת דקות]],),-TIME(,טבלה1[[#This Row],[הפחתת דקות]],)), SUM(טבלה1[[#This Row],[סיום]]-טבלה1[[#This Row],[התחלה]]+(טבלה1[[#This Row],[סיום]]<טבלה1[[#This Row],[התחלה]]),TIME(,טבלה1[[#This Row],[הוספת דקות]],),-TIME(,טבלה1[[#This Row],[הפחתת דקות]],))))) -> 0.1476851852 | K16: =IF('טיימר עבודות'!$J16="","", IFERROR(IF(IF(VLOOKUP('טיימר עבודות'!$F16,טבלה2[],3,FALSE)="$", VLOOKUP(טבלה1[[#This Row],[שם העבודה]],טבלה2[#All],2,FALSE)*טבלה1[[#This Row],[שעות]]*24*שער, VLOOKUP(טבלה1[[#This Row],[שם העבודה]],טבלה2[#All],2,FALSE)*טבלה1[[#This Row],[שעות]]*24)=0,"", IF(VLOOKUP('טיימר עבודות'!$F16,טבלה2[],3,FALSE)="$", VLOOKUP(טבלה1[[#This Row],[שם העבודה]],טבלה2[#All],2,FALSE)*טבלה1[[#This Row],[שעות]]*24*שער, VLOOKUP(טבלה1[[#This Row],[שם העבודה]],טבלה2[#All],2,FALSE)*טבלה1[[#This Row],[שעות]]*24)),"")) -> 168.7829 | L16: =IF(טבלה1[[#This Row],[תאריך]]="","",טבלה1[[#This Row],[תאריך]]+טבלה1[[#This Row],[התחלה]]) -> 2024-02-29T17:10:51 | R16: =IF(OR(טבלה2[[#This Row],[שמות העבודות]]="",COUNTIF(עבודות,טבלה2[[#This Row],[שמות העבודות]])=0),"",COUNTIF(עבודות,טבלה2[[#This Row],[שמות העבודות]])) ->  | S16: =IF(O16="","", IFERROR(IF(SUMIFS('טיימר עבודות'!$J$11:$J$160,'טיימר עבודות'!$F$11:$F$160,O16)=0,"", SUMIFS('טיימר עבודות'!$J$11:$J$160,'טיימר עבודות'!$F$11:$F$160,O16)),"")) ->  | T16: =IFERROR(IF(OR(טבלה2[[#This Row],[שכר לשעה]]="",טבלה2[[#This Row],[שעות]]=""),"", IF(IF(OR(טבלה2[[#This Row],[מטבע]]="₪",טבלה2[[#This Row],[מטבע]]=""),טבלה2[[#This Row],[שכר לשעה]]*טבלה2[[#This Row],[שעות]]*24, IF(טבלה2[[#This Row],[מטבע]]="$",טבלה2[[#This Row],[שכר לשעה]]*טבלה2[[#This Row],[שעות]]*24*שער,""))=0,"", IF(OR(טבלה2[[#This Row],[מטבע]]="₪",טבלה2[[#This Row],[מטבע]]=""),טבלה2[[#This Row],[שכר לשעה]]*טבלה2[[#This Row],[שעות]]*24, IF(טבלה2[[#This Row],[מטבע]]="$",טבלה2[[#This Row],[שכר לשעה]]*טבלה2[[#This Row],[שעות]]*24*שער,"")))),"") ->  | U16: =IFERROR(IF(OR(טבלה2[[#This Row],[שכר לשעה]]="",טבלה2[[#This Row],[שעות]]=""),"", IF(IF(טבלה2[[#This Row],[מטבע]]="$",טבלה2[[#This Row],[שכר לשעה]]*טבלה2[[#This Row],[שעות]]*24, IF(OR(טבלה2[[#This Row],[מטבע]]="₪",טבלה2[[#This Row],[מטבע]]=""),טבלה2[[#This Row],[שכר לשעה]]*טבלה2[[#This Row],[שעות]]*24/שער,""))=0,"", IF(טבלה2[[#This Row],[מטבע]]="$",טבלה2[[#This Row],[שכר לשעה]]*טבלה2[[#This Row],[שעות]]*24, IF(OR(טבלה2[[#This Row],[מטבע]]="₪",טבלה2[[#This Row],[מטבע]]=""),טבלה2[[#This Row],[שכר לשעה]]*טבלה2[[#This Row],[שעות]]*24/שער,"")))),"") ->  | AL16: =IF(AL14="","",AL14) -> עיון במקורות | AM16: =IF(טבלה2[[#This Row],[שמות העבודות]]="","",טבלה2[[#This Row],[שמות העבודות]]) ->  | AN16: 6
B17: =IF(AND(טבלה1[[#This Row],[תאריך]]="",טבלה1[[#This Row],[התחלה]]="",טבלה1[[#This Row],[שם העבודה]]=""),"",ROW()-10) -> 7 | C17: =IF(טבלה1[[#This Row],[תאריך]]="","",IF(TEXT(טבלה1[[#This Row],[תאריך]],"DDD")="שבת","מוצ""ש",TEXT(טבלה1[[#This Row],[תאריך]],"DDD"))) -> יום ו | D17: 2024-03-01 | E17: 10:13:35 | F17: הגהה ודקדוק | G17: 12:14:07 | J17: =IF(IF(AND(טבלה1[[#This Row],[התחלה]]="",טבלה1[[#This Row],[סיום]]<>""),"",IF(AND(טבלה1[[#This Row],[התחלה]]<>"",טבלה1[[#This Row],[סיום]]=""), SUM(MOD(NOW(),1)-טבלה1[[#This Row],[התחלה]]+(MOD(NOW(),1)<טבלה1[[#This Row],[התחלה]]),TIME(,טבלה1[[#This Row],[הוספת דקות]],),-TIME(,טבלה1[[#This Row],[הפחתת דקות]],)), SUM(טבלה1[[#This Row],[סיום]]-טבלה1[[#This Row],[התחלה]]+(טבלה1[[#This Row],[סיום]]<טבלה1[[#This Row],[התחלה]]),TIME(,טבלה1[[#This Row],[הוספת דקות]],),-TIME(,טבלה1[[#This Row],[הפחתת דקות]],))))<=0,"", IF(AND(טבלה1[[#This Row],[התחלה]]="",טבלה1[[#This Row],[סיום]]<>""),"",IF(AND(טבלה1[[#This Row],[התחלה]]<>"",טבלה1[[#This Row],[סיום]]=""), SUM(MOD(NOW(),1)-טבלה1[[#This Row],[התחלה]]+(MOD(NOW(),1)<טבלה1[[#This Row],[התחלה]]),TIME(,טבלה1[[#This Row],[הוספת דקות]],),-TIME(,טבלה1[[#This Row],[הפחתת דקות]],)), SUM(טבלה1[[#This Row],[סיום]]-טבלה1[[#This Row],[התחלה]]+(טבלה1[[#This Row],[סיום]]<טבלה1[[#This Row],[התחלה]]),TIME(,טבלה1[[#This Row],[הוספת דקות]],),-TIME(,טבלה1[[#This Row],[הפחתת דקות]],))))) -> 0.0837037037 | K17: =IF('טיימר עבודות'!$J17="","", IFERROR(IF(IF(VLOOKUP('טיימר עבודות'!$F17,טבלה2[],3,FALSE)="$", VLOOKUP(טבלה1[[#This Row],[שם העבודה]],טבלה2[#All],2,FALSE)*טבלה1[[#This Row],[שעות]]*24*שער, VLOOKUP(טבלה1[[#This Row],[שם העבודה]],טבלה2[#All],2,FALSE)*טבלה1[[#This Row],[שעות]]*24)=0,"", IF(VLOOKUP('טיימר עבודות'!$F17,טבלה2[],3,FALSE)="$", VLOOKUP(טבלה1[[#This Row],[שם העבודה]],טבלה2[#All],2,FALSE)*טבלה1[[#This Row],[שעות]]*24*שער, VLOOKUP(טבלה1[[#This Row],[שם העבודה]],טבלה2[#All],2,FALSE)*טבלה1[[#This Row],[שעות]]*24)),"")) -> 100.4444444 | L17: =IF(טבלה1[[#This Row],[תאריך]]="","",טבלה1[[#This Row],[תאריך]]+טבלה1[[#This Row],[התחלה]]) -> 2024-03-01T10:13:35 | R17: =IF(OR(טבלה2[[#This Row],[שמות העבודות]]="",COUNTIF(עבודות,טבלה2[[#This Row],[שמות העבודות]])=0),"",COUNTIF(עבודות,טבלה2[[#This Row],[שמות העבודות]])) ->  | S17: =IF(O17="","", IFERROR(IF(SUMIFS('טיימר עבודות'!$J$11:$J$160,'טיימר עבודות'!$F$11:$F$160,O17)=0,"", SUMIFS('טיימר עבודות'!$J$11:$J$160,'טיימר עבודות'!$F$11:$F$160,O17)),"")) ->  | T17: =IFERROR(IF(OR(טבלה2[[#This Row],[שכר לשעה]]="",טבלה2[[#This Row],[שעות]]=""),"", IF(IF(OR(טבלה2[[#This Row],[מטבע]]="₪",טבלה2[[#This Row],[מטבע]]=""),טבלה2[[#This Row],[שכר לשעה]]*טבלה2[[#This Row],[שעות]]*24, IF(טבלה2[[#This Row],[מטבע]]="$",טבלה2[[#This Row],[שכר לשעה]]*טבלה2[[#This Row],[שעות]]*24*שער,""))=0,"", IF(OR(טבלה2[[#This Row],[מטבע]]="₪",טבלה2[[#This Row],[מטבע]]=""),טבלה2[[#This Row],[שכר לשעה]]*טבלה2[[#This Row],[שעות]]*24, IF(טבלה2[[#This Row],[מטבע]]="$",טבלה2[[#This Row],[שכר לשעה]]*טבלה2[[#This Row],[שעות]]*24*שער,"")))),"") ->  | U17: =IFERROR(IF(OR(טבלה2[[#This Row],[שכר לשעה]]="",טבלה2[[#This Row],[שעות]]=""),"", IF(IF(טבלה2[[#This Row],[מטבע]]="$",טבלה2[[#This Row],[שכר לשעה]]*טבלה2[[#This Row],[שעות]]*24, IF(OR(טבלה2[[#This Row],[מטבע]]="₪",טבלה2[[#This Row],[מטבע]]=""),טבלה2[[#This Row],[שכר לשעה]]*טבלה2[[#This Row],[שעות]]*24/שער,""))=0,"", IF(טבלה2[[#This Row],[מטבע]]="$",טבלה2[[#This Row],[שכר לשעה]]*טבלה2[[#This Row],[שעות]]*24, IF(OR(טבלה2[[#This Row],[מטבע]]="₪",טבלה2[[#This Row],[מטבע]]=""),טבלה2[[#This Row],[שכר לשעה]]*טבלה2[[#This Row],[שעות]]*24/שער,"")))),"") ->  | AL17: שכר לעבודה נבחרת | AM17: =IF(טבלה2[[#This Row],[שמות העבודות]]="","",טבלה2[[#This Row],[שמות העבודות]]) ->  | AN17: 7
B18: =IF(AND(טבלה1[[#This Row],[תאריך]]="",טבלה1[[#This Row],[התחלה]]="",טבלה1[[#This Row],[שם העבודה]]=""),"",ROW()-10) -> 8 | C18: =IF(טבלה1[[#This Row],[תאריך]]="","",IF(TEXT(טבלה1[[#This Row],[תאריך]],"DDD")="שבת","מוצ""ש",TEXT(טבלה1[[#This Row],[תאריך]],"DDD"))) -> מוצ"ש | D18: 2024-03-02 | E18: 19:12:15 | F18: ניקוד | G18: 23:29:06 | I18: 15 | J18: =IF(IF(AND(טבלה1[[#This Row],[התחלה]]="",טבלה1[[#This Row],[סיום]]<>""),"",IF(AND(טבלה1[[#This Row],[התחלה]]<>"",טבלה1[[#This Row],[סיום]]=""), SUM(MOD(NOW(),1)-טבלה1[[#This Row],[התחלה]]+(MOD(NOW(),1)<טבלה1[[#This Row],[התחלה]]),TIME(,טבלה1[[#This Row],[הוספת דקות]],),-TIME(,טבלה1[[#This Row],[הפחתת דקות]],)), SUM(טבלה1[[#This Row],[סיום]]-טבלה1[[#This Row],[התחלה]]+(טבלה1[[#This Row],[סיום]]<טבלה1[[#This Row],[התחלה]]),TIME(,טבלה1[[#This Row],[הוספת דקות]],),-TIME(,טבלה1[[#This Row],[הפחתת דקות]],))))<=0,"", IF(AND(טבלה1[[#This Row],[התחלה]]="",טבלה1[[#This Row],[סיום]]<>""),"",IF(AND(טבלה1[[#This Row],[התחלה]]<>"",טבלה1[[#This Row],[סיום]]=""), SUM(MOD(NOW(),1)-טבלה1[[#This Row],[התחלה]]+(MOD(NOW(),1)<טבלה1[[#This Row],[התחלה]]),TIME(,טבלה1[[#This Row],[הוספת דקות]],),-TIME(,טבלה1[[#This Row],[הפחתת דקות]],)), SUM(טבלה1[[#This Row],[סיום]]-טבלה1[[#This Row],[התחלה]]+(טבלה1[[#This Row],[סיום]]<טבלה1[[#This Row],[התחלה]]),TIME(,טבלה1[[#This Row],[הוספת דקות]],),-TIME(,טבלה1[[#This Row],[הפחתת דקות]],))))) -> 0.1679513889 | K18: =IF('טיימר עבודות'!$J18="","", IFERROR(IF(IF(VLOOKUP('טיימר עבודות'!$F18,טבלה2[],3,FALSE)="$", VLOOKUP(טבלה1[[#This Row],[שם העבודה]],טבלה2[#All],2,FALSE)*טבלה1[[#This Row],[שעות]]*24*שער, VLOOKUP(טבלה1[[#This Row],[שם העבודה]],טבלה2[#All],2,FALSE)*טבלה1[[#This Row],[שעות]]*24)=0,"", IF(VLOOKUP('טיימר עבודות'!$F18,טבלה2[],3,FALSE)="$", VLOOKUP(טבלה1[[#This Row],[שם העבודה]],טבלה2[#All],2,FALSE)*טבלה1[[#This Row],[שעות]]*24*שער, VLOOKUP(טבלה1[[#This Row],[שם העבודה]],טבלה2[#All],2,FALSE)*טבלה1[[#This Row],[שעות]]*24)),"")) -> 262.0041667 | L18: =IF(טבלה1[[#This Row],[תאריך]]="","",טבלה1[[#This Row],[תאריך]]+טבלה1[[#This Row],[התחלה]]) -> 2024-03-02T19:12:15 | R18: =IF(OR(טבלה2[[#This Row],[שמות העבודות]]="",COUNTIF(עבודות,טבלה2[[#This Row],[שמות העבודות]])=0),"",COUNTIF(עבודות,טבלה2[[#This Row],[שמות העבודות]])) ->  | S18: =IF(O18="","", IFERROR(IF(SUMIFS('טיימר עבודות'!$J$11:$J$160,'טיימר עבודות'!$F$11:$F$160,O18)=0,"", SUMIFS('טיימר עבודות'!$J$11:$J$160,'טיימר עבודות'!$F$11:$F$160,O18)),"")) ->  | T18: =IFERROR(IF(OR(טבלה2[[#This Row],[שכר לשעה]]="",טבלה2[[#This Row],[שעות]]=""),"", IF(IF(OR(טבלה2[[#This Row],[מטבע]]="₪",טבלה2[[#This Row],[מטבע]]=""),טבלה2[[#This Row],[שכר לשעה]]*טבלה2[[#This Row],[שעות]]*24, IF(טבלה2[[#This Row],[מטבע]]="$",טבלה2[[#This Row],[שכר לשעה]]*טבלה2[[#This Row],[שעות]]*24*שער,""))=0,"", IF(OR(טבלה2[[#This Row],[מטבע]]="₪",טבלה2[[#This Row],[מטבע]]=""),טבלה2[[#This Row],[שכר לשעה]]*טבלה2[[#This Row],[שעות]]*24, IF(טבלה2[[#This Row],[מטבע]]="$",טבלה2[[#This Row],[שכר לשעה]]*טבלה2[[#This Row],[שעות]]*24*שער,"")))),"") ->  | U18: =IFERROR(IF(OR(טבלה2[[#This Row],[שכר לשעה]]="",טבלה2[[#This Row],[שעות]]=""),"", IF(IF(טבלה2[[#This Row],[מטבע]]="$",טבלה2[[#This Row],[שכר לשעה]]*טבלה2[[#This Row],[שעות]]*24, IF(OR(טבלה2[[#This Row],[מטבע]]="₪",טבלה2[[#This Row],[מטבע]]=""),טבלה2[[#This Row],[שכר לשעה]]*טבלה2[[#This Row],[שעות]]*24/שער,""))=0,"", IF(טבלה2[[#This Row],[מטבע]]="$",טבלה2[[#This Row],[שכר לשעה]]*טבלה2[[#This Row],[שעות]]*24, IF(OR(טבלה2[[#This Row],[מטבע]]="₪",טבלה2[[#This Row],[מטבע]]=""),טבלה2[[#This Row],[שכר לשעה]]*טבלה2[[#This Row],[שעות]]*24/שער,"")))),"") ->  | AL18: =VLOOKUP(שם_העבודה,טבלה2[],2,FALSE) -> 13 | AM18: =IF(טבלה2[[#This Row],[שמות העבודות]]="","",טבלה2[[#This Row],[שמות העבודות]]) ->  | AN18: 8
B19: =IF(AND(טבלה1[[#This Row],[תאריך]]="",טבלה1[[#This Row],[התחלה]]="",טבלה1[[#This Row],[שם העבודה]]=""),"",ROW()-10) -> 9 | C19: =IF(טבלה1[[#This Row],[תאריך]]="","",IF(TEXT(טבלה1[[#This Row],[תאריך]],"DDD")="שבת","מוצ""ש",TEXT(טבלה1[[#This Row],[תאריך]],"DDD"))) -> יום א | D19: 2024-03-03 | E19: 10:06:05 | F19: מכון תורה | G19: 12:56:31 | J19: =IF(IF(AND(טבלה1[[#This Row],[התחלה]]="",טבלה1[[#This Row],[סיום]]<>""),"",IF(AND(טבלה1[[#This Row],[התחלה]]<>"",טבלה1[[#This Row],[סיום]]=""), SUM(MOD(NOW(),1)-טבלה1[[#This Row],[התחלה]]+(MOD(NOW(),1)<טבלה1[[#This Row],[התחלה]]),TIME(,טבלה1[[#This Row],[הוספת דקות]],),-TIME(,טבלה1[[#This Row],[הפחתת דקות]],)), SUM(טבלה1[[#This Row],[סיום]]-טבלה1[[#This Row],[התחלה]]+(טבלה1[[#This Row],[סיום]]<טבלה1[[#This Row],[התחלה]]),TIME(,טבלה1[[#This Row],[הוספת דקות]],),-TIME(,טבלה1[[#This Row],[הפחתת דקות]],))))<=0,"", IF(AND(טבלה1[[#This Row],[התחלה]]="",טבלה1[[#This Row],[סיום]]<>""),"",IF(AND(טבלה1[[#This Row],[התחלה]]<>"",טבלה1[[#This Row],[סיום]]=""), SUM(MOD(NOW(),1)-טבלה1[[#This Row],[התחלה]]+(MOD(NOW(),1)<טבלה1[[#This Row],[התחלה]]),TIME(,טבלה1[[#This Row],[הוספת דקות]],),-TIME(,טבלה1[[#This Row],[הפחתת דקות]],)), SUM(טבלה1[[#This Row],[סיום]]-טבלה1[[#This Row],[התחלה]]+(טבלה1[[#This Row],[סיום]]<טבלה1[[#This Row],[התחלה]]),TIME(,טבלה1[[#This Row],[הוספת דקות]],),-TIME(,טבלה1[[#This Row],[הפחתת דקות]],))))) -> 0.1183564815 | K19: =IF('טיימר עבודות'!$J19="","", IFERROR(IF(IF(VLOOKUP('טיימר עבודות'!$F19,טבלה2[],3,FALSE)="$", VLOOKUP(טבלה1[[#This Row],[שם העבודה]],טבלה2[#All],2,FALSE)*טבלה1[[#This Row],[שעות]]*24*שער, VLOOKUP(טבלה1[[#This Row],[שם העבודה]],טבלה2[#All],2,FALSE)*טבלה1[[#This Row],[שעות]]*24)=0,"", IF(VLOOKUP('טיימר עבודות'!$F19,טבלה2[],3,FALSE)="$", VLOOKUP(טבלה1[[#This Row],[שם העבודה]],טבלה2[#All],2,FALSE)*טבלה1[[#This Row],[שעות]]*24*שער, VLOOKUP(טבלה1[[#This Row],[שם העבודה]],טבלה2[#All],2,FALSE)*טבלה1[[#This Row],[שעות]]*24)),"")) -> 113.6222222 | L19: =IF(טבלה1[[#This Row],[תאריך]]="","",טבלה1[[#This Row],[תאריך]]+טבלה1[[#This Row],[התחלה]]) -> 2024-03-03T10:06:05 | R19: =IF(OR(טבלה2[[#This Row],[שמות העבודות]]="",COUNTIF(עבודות,טבלה2[[#This Row],[שמות העבודות]])=0),"",COUNTIF(עבודות,טבלה2[[#This Row],[שמות העבודות]])) ->  | S19: =IF(O19="","", IFERROR(IF(SUMIFS('טיימר עבודות'!$J$11:$J$160,'טיימר עבודות'!$F$11:$F$160,O19)=0,"", SUMIFS('טיימר עבודות'!$J$11:$J$160,'טיימר עבודות'!$F$11:$F$160,O19)),"")) ->  | T19: =IFERROR(IF(OR(טבלה2[[#This Row],[שכר לשעה]]="",טבלה2[[#This Row],[שעות]]=""),"", IF(IF(OR(טבלה2[[#This Row],[מטבע]]="₪",טבלה2[[#This Row],[מטבע]]=""),טבלה2[[#This Row],[שכר לשעה]]*טבלה2[[#This Row],[שעות]]*24, IF(טבלה2[[#This Row],[מטבע]]="$",טבלה2[[#This Row],[שכר לשעה]]*טבלה2[[#This Row],[שעות]]*24*שער,""))=0,"", IF(OR(טבלה2[[#This Row],[מטבע]]="₪",טבלה2[[#This Row],[מטבע]]=""),טבלה2[[#This Row],[שכר לשעה]]*טבלה2[[#This Row],[שעות]]*24, IF(טבלה2[[#This Row],[מטבע]]="$",טבלה2[[#This Row],[שכר לשעה]]*טבלה2[[#This Row],[שעות]]*24*שער,"")))),"") ->  | U19: =IFERROR(IF(OR(טבלה2[[#This Row],[שכר לשעה]]="",טבלה2[[#This Row],[שעות]]=""),"", IF(IF(טבלה2[[#This Row],[מטבע]]="$",טבלה2[[#This Row],[שכר לשעה]]*טבלה2[[#This Row],[שעות]]*24, IF(OR(טבלה2[[#This Row],[מטבע]]="₪",טבלה2[[#This Row],[מטבע]]=""),טבלה2[[#This Row],[שכר לשעה]]*טבלה2[[#This Row],[שעות]]*24/שער,""))=0,"", IF(טבלה2[[#This Row],[מטבע]]="$",טבלה2[[#This Row],[שכר לשעה]]*טבלה2[[#This Row],[שעות]]*24, IF(OR(טבלה2[[#This Row],[מטבע]]="₪",טבלה2[[#This Row],[מטבע]]=""),טבלה2[[#This Row],[שכר לשעה]]*טבלה2[[#This Row],[שעות]]*24/שער,"")))),"") ->  | AL19: הקלקה כפולה | AM19: =IF(טבלה2[[#This Row],[שמות העבודות]]="","",טבלה2[[#This Row],[שמות העבודות]]) ->  | AN19: 9
B20: =IF(AND(טבלה1[[#This Row],[תאריך]]="",טבלה1[[#This Row],[התחלה]]="",טבלה1[[#This Row],[שם העבודה]]=""),"",ROW()-10) -> 10 | C20: =IF(טבלה1[[#This Row],[תאריך]]="","",IF(TEXT(טבלה1[[#This Row],[תאריך]],"DDD")="שבת","מוצ""ש",TEXT(טבלה1[[#This Row],[תאריך]],"DDD"))) -> יום א | D20: 2024-03-03 | E20: 17:10:51 | F20: עימוד | G20: 20:43:31 | J20: =IF(IF(AND(טבלה1[[#This Row],[התחלה]]="",טבלה1[[#This Row],[סיום]]<>""),"",IF(AND(טבלה1[[#This Row],[התחלה]]<>"",טבלה1[[#This Row],[סיום]]=""), SUM(MOD(NOW(),1)-טבלה1[[#This Row],[התחלה]]+(MOD(NOW(),1)<טבלה1[[#This Row],[התחלה]]),TIME(,טבלה1[[#This Row],[הוספת דקות]],),-TIME(,טבלה1[[#This Row],[הפחתת דקות]],)), SUM(טבלה1[[#This Row],[סיום]]-טבלה1[[#This Row],[התחלה]]+(טבלה1[[#This Row],[סיום]]<טבלה1[[#This Row],[התחלה]]),TIME(,טבלה1[[#This Row],[הוספת דקות]],),-TIME(,טבלה1[[#This Row],[הפחתת דקות]],))))<=0,"", IF(AND(טבלה1[[#This Row],[התחלה]]="",טבלה1[[#This Row],[סיום]]<>""),"",IF(AND(טבלה1[[#This Row],[התחלה]]<>"",טבלה1[[#This Row],[סיום]]=""), SUM(MOD(NOW(),1)-טבלה1[[#This Row],[התחלה]]+(MOD(NOW(),1)<טבלה1[[#This Row],[התחלה]]),TIME(,טבלה1[[#This Row],[הוספת דקות]],),-TIME(,טבלה1[[#This Row],[הפחתת דקות]],)), SUM(טבלה1[[#This Row],[סיום]]-טבלה1[[#This Row],[התחלה]]+(טבלה1[[#This Row],[סיום]]<טבלה1[[#This Row],[התחלה]]),TIME(,טבלה1[[#This Row],[הוספת דקות]],),-TIME(,טבלה1[[#This Row],[הפחתת דקות]],))))) -> 0.1476851852 | K20: =IF('טיימר עבודות'!$J20="","", IFERROR(IF(IF(VLOOKUP('טיימר עבודות'!$F20,טבלה2[],3,FALSE)="$", VLOOKUP(טבלה1[[#This Row],[שם העבודה]],טבלה2[#All],2,FALSE)*טבלה1[[#This Row],[שעות]]*24*שער, VLOOKUP(טבלה1[[#This Row],[שם העבודה]],טבלה2[#All],2,FALSE)*טבלה1[[#This Row],[שעות]]*24)=0,"", IF(VLOOKUP('טיימר עבודות'!$F20,טבלה2[],3,FALSE)="$", VLOOKUP(טבלה1[[#This Row],[שם העבודה]],טבלה2[#All],2,FALSE)*טבלה1[[#This Row],[שעות]]*24*שער, VLOOKUP(טבלה1[[#This Row],[שם העבודה]],טבלה2[#All],2,FALSE)*טבלה1[[#This Row],[שעות]]*24)),"")) -> 194.9444444 | L20: =IF(טבלה1[[#This Row],[תאריך]]="","",טבלה1[[#This Row],[תאריך]]+טבלה1[[#This Row],[התחלה]]) -> 2024-03-03T17:10:51 | R20: =IF(OR(טבלה2[[#This Row],[שמות העבודות]]="",COUNTIF(עבודות,טבלה2[[#This Row],[שמות העבודות]])=0),"",COUNTIF(עבודות,טבלה2[[#This Row],[שמות העבודות]])) ->  | S20: =IF(O20="","", IFERROR(IF(SUMIFS('טיימר עבודות'!$J$11:$J$160,'טיימר עבודות'!$F$11:$F$160,O20)=0,"", SUMIFS('טיימר עבודות'!$J$11:$J$160,'טיימר עבודות'!$F$11:$F$160,O20)),"")) ->  | T20: =IFERROR(IF(OR(טבלה2[[#This Row],[שכר לשעה]]="",טבלה2[[#This Row],[שעות]]=""),"", IF(IF(OR(טבלה2[[#This Row],[מטבע]]="₪",טבלה2[[#This Row],[מטבע]]=""),טבלה2[[#This Row],[שכר לשעה]]*טבלה2[[#This Row],[שעות]]*24, IF(טבלה2[[#This Row],[מטבע]]="$",טבלה2[[#This Row],[שכר לשעה]]*טבלה2[[#This Row],[שעות]]*24*שער,""))=0,"", IF(OR(טבלה2[[#This Row],[מטבע]]="₪",טבלה2[[#This Row],[מטבע]]=""),טבלה2[[#This Row],[שכר לשעה]]*טבלה2[[#This Row],[שעות]]*24, IF(טבלה2[[#This Row],[מטבע]]="$",טבלה2[[#This Row],[שכר לשעה]]*טבלה2[[#This Row],[שעות]]*24*שער,"")))),"") ->  | U20: =IFERROR(IF(OR(טבלה2[[#This Row],[שכר לשעה]]="",טבלה2[[#This Row],[שעות]]=""),"", IF(IF(טבלה2[[#This Row],[מטבע]]="$",טבלה2[[#This Row],[שכר לשעה]]*טבלה2[[#This Row],[שעות]]*24, IF(OR(טבלה2[[#This Row],[מטבע]]="₪",טבלה2[[#This Row],[מטבע]]=""),טבלה2[[#This Row],[שכר לשעה]]*טבלה2[[#This Row],[שעות]]*24/שער,""))=0,"", IF(טבלה2[[#This Row],[מטבע]]="$",טבלה2[[#This Row],[שכר לשעה]]*טבלה2[[#This Row],[שעות]]*24, IF(OR(טבלה2[[#This Row],[מטבע]]="₪",טבלה2[[#This Row],[מטבע]]=""),טבלה2[[#This Row],[שכר לשעה]]*טבלה2[[#This Row],[שעות]]*24/שער,"")))),"") ->  | AL20: TRUE | AM20: =IF(טבלה2[[#This Row],[שמות העבודות]]="","",טבלה2[[#This Row],[שמות העבודות]]) ->  | AN20: 10
B21: =IF(AND(טבלה1[[#This Row],[תאריך]]="",טבלה1[[#This Row],[התחלה]]="",טבלה1[[#This Row],[שם העבודה]]=""),"",ROW()-10) -> 11 | C21: =IF(טבלה1[[#This Row],[תאריך]]="","",IF(TEXT(טבלה1[[#This Row],[תאריך]],"DDD")="שבת","מוצ""ש",TEXT(טבלה1[[#This Row],[תאריך]],"DDD"))) -> יום ב | D21: 2024-03-04 | E21: 10:13:35 | F21: עיון במקורות | G21: 12:14:07 | H21: 40 | J21: =IF(IF(AND(טבלה1[[#This Row],[התחלה]]="",טבלה1[[#This Row],[סיום]]<>""),"",IF(AND(טבלה1[[#This Row],[התחלה]]<>"",טבלה1[[#This Row],[סיום]]=""), SUM(MOD(NOW(),1)-טבלה1[[#This Row],[התחלה]]+(MOD(NOW(),1)<טבלה1[[#This Row],[התחלה]]),TIME(,טבלה1[[#This Row],[הוספת דקות]],),-TIME(,טבלה1[[#This Row],[הפחתת דקות]],)), SUM(טבלה1[[#This Row],[סיום]]-טבלה1[[#This Row],[התחלה]]+(טבלה1[[#This Row],[סיום]]<טבלה1[[#This Row],[התחלה]]),TIME(,טבלה1[[#This Row],[הוספת דקות]],),-TIME(,טבלה1[[#This Row],[הפחתת דקות]],))))<=0,"", IF(AND(טבלה1[[#This Row],[התחלה]]="",טבלה1[[#This Row],[סיום]]<>""),"",IF(AND(טבלה1[[#This Row],[התחלה]]<>"",טבלה1[[#This Row],[סיום]]=""), SUM(MOD(NOW(),1)-טבלה1[[#This Row],[התחלה]]+(MOD(NOW(),1)<טבלה1[[#This Row],[התחלה]]),TIME(,טבלה1[[#This Row],[הוספת דקות]],),-TIME(,טבלה1[[#This Row],[הפחתת דקות]],)), SUM(טבלה1[[#This Row],[סיום]]-טבלה1[[#This Row],[התחלה]]+(טבלה1[[#This Row],[סיום]]<טבלה1[[#This Row],[התחלה]]),TIME(,טבלה1[[#This Row],[הוספת דקות]],),-TIME(,טבלה1[[#This Row],[הפחתת דקות]],))))) -> 0.1114814815 | K21: =IF('טיימר עבודות'!$J21="","", IFERROR(IF(IF(VLOOKUP('טיימר עבודות'!$F21,טבלה2[],3,FALSE)="$", VLOOKUP(טבלה1[[#This Row],[שם העבודה]],טבלה2[#All],2,FALSE)*טבלה1[[#This Row],[שעות]]*24*שער, VLOOKUP(טבלה1[[#This Row],[שם העבודה]],טבלה2[#All],2,FALSE)*טבלה1[[#This Row],[שעות]]*24)=0,"", IF(VLOOKUP('טיימר עבודות'!$F21,טבלה2[],3,FALSE)="$", VLOOKUP(טבלה1[[#This Row],[שם העבודה]],טבלה2[#All],2,FALSE)*טבלה1[[#This Row],[שעות]]*24*שער, VLOOKUP(טבלה1[[#This Row],[שם העבודה]],טבלה2[#All],2,FALSE)*טבלה1[[#This Row],[שעות]]*24)),"")) -> 127.40728 | L21: =IF(טבלה1[[#This Row],[תאריך]]="","",טבלה1[[#This Row],[תאריך]]+טבלה1[[#This Row],[התחלה]]) -> 2024-03-04T10:13:35 | R21: =IF(OR(טבלה2[[#This Row],[שמות העבודות]]="",COUNTIF(עבודות,טבלה2[[#This Row],[שמות העבודות]])=0),"",COUNTIF(עבודות,טבלה2[[#This Row],[שמות העבודות]])) ->  | S21: =IF(O21="","", IFERROR(IF(SUMIFS('טיימר עבודות'!$J$11:$J$160,'טיימר עבודות'!$F$11:$F$160,O21)=0,"", SUMIFS('טיימר עבודות'!$J$11:$J$160,'טיימר עבודות'!$F$11:$F$160,O21)),"")) ->  | T21: =IFERROR(IF(OR(טבלה2[[#This Row],[שכר לשעה]]="",טבלה2[[#This Row],[שעות]]=""),"", IF(IF(OR(טבלה2[[#This Row],[מטבע]]="₪",טבלה2[[#This Row],[מטבע]]=""),טבלה2[[#This Row],[שכר לשעה]]*טבלה2[[#This Row],[שעות]]*24, IF(טבלה2[[#This Row],[מטבע]]="$",טבלה2[[#This Row],[שכר לשעה]]*טבלה2[[#This Row],[שעות]]*24*שער,""))=0,"", IF(OR(טבלה2[[#This Row],[מטבע]]="₪",טבלה2[[#This Row],[מטבע]]=""),טבלה2[[#This Row],[שכר לשעה]]*טבלה2[[#This Row],[שעות]]*24, IF(טבלה2[[#This Row],[מטבע]]="$",טבלה2[[#This Row],[שכר לשעה]]*טבלה2[[#This Row],[שעות]]*24*שער,"")))),"") ->  | U21: =IFERROR(IF(OR(טבלה2[[#This Row],[שכר לשעה]]="",טבלה2[[#This Row],[שעות]]=""),"", IF(IF(טבלה2[[#This Row],[מטבע]]="$",טבלה2[[#This Row],[שכר לשעה]]*טבלה2[[#This Row],[שעות]]*24, IF(OR(טבלה2[[#This Row],[מטבע]]="₪",טבלה2[[#This Row],[מטבע]]=""),טבלה2[[#This Row],[שכר לשעה]]*טבלה2[[#This Row],[שעות]]*24/שער,""))=0,"", IF(טבלה2[[#This Row],[מטבע]]="$",טבלה2[[#This Row],[שכר לשעה]]*טבלה2[[#This Row],[שעות]]*24, IF(OR(טבלה2[[#This Row],[מטבע]]="₪",טבלה2[[#This Row],[מטבע]]=""),טבלה2[[#This Row],[שכר לשעה]]*טבלה2[[#This Row],[שעות]]*24/שער,"")))),"") ->  | AL21: עיצוב מותנה | AM21: =IF(טבלה2[[#This Row],[שמות העבודות]]="","",טבלה2[[#This Row],[שמות העבודות]]) ->  | AN21: 11
B22: =IF(AND(טבלה1[[#This Row],[תאריך]]="",טבלה1[[#This Row],[התחלה]]="",טבלה1[[#This Row],[שם העבודה]]=""),"",ROW()-10) -> 12 | C22: =IF(טבלה1[[#This Row],[תאריך]]="","",IF(TEXT(טבלה1[[#This Row],[תאריך]],"DDD")="שבת","מוצ""ש",TEXT(טבלה1[[#This Row],[תאריך]],"DDD"))) -> יום ב | D22: 2024-03-04 | E22: 17:12:15 | F22: הגהה ודקדוק | G22: 20:49:06 | J22: =IF(IF(AND(טבלה1[[#This Row],[התחלה]]="",טבלה1[[#This Row],[סיום]]<>""),"",IF(AND(טבלה1[[#This Row],[התחלה]]<>"",טבלה1[[#This Row],[סיום]]=""), SUM(MOD(NOW(),1)-טבלה1[[#This Row],[התחלה]]+(MOD(NOW(),1)<טבלה1[[#This Row],[התחלה]]),TIME(,טבלה1[[#This Row],[הוספת דקות]],),-TIME(,טבלה1[[#This Row],[הפחתת דקות]],)), SUM(טבלה1[[#This Row],[סיום]]-טבלה1[[#This Row],[התחלה]]+(טבלה1[[#This Row],[סיום]]<טבלה1[[#This Row],[התחלה]]),TIME(,טבלה1[[#This Row],[הוספת דקות]],),-TIME(,טבלה1[[#This Row],[הפחתת דקות]],))))<=0,"", IF(AND(טבלה1[[#This Row],[התחלה]]="",טבלה1[[#This Row],[סיום]]<>""),"",IF(AND(טבלה1[[#This Row],[התחלה]]<>"",טבלה1[[#This Row],[סיום]]=""), SUM(MOD(NOW(),1)-טבלה1[[#This Row],[התחלה]]+(MOD(NOW(),1)<טבלה1[[#This Row],[התחלה]]),TIME(,טבלה1[[#This Row],[הוספת דקות]],),-TIME(,טבלה1[[#This Row],[הפחתת דקות]],)), SUM(טבלה1[[#This Row],[סיום]]-טבלה1[[#This Row],[התחלה]]+(טבלה1[[#This Row],[סיום]]<טבלה1[[#This Row],[התחלה]]),TIME(,טבלה1[[#This Row],[הוספת דקות]],),-TIME(,טבלה1[[#This Row],[הפחתת דקות]],))))) -> 0.1505902778 | K22: =IF('טיימר עבודות'!$J22="","", IFERROR(IF(IF(VLOOKUP('טיימר עבודות'!$F22,טבלה2[],3,FALSE)="$", VLOOKUP(טבלה1[[#This Row],[שם העבודה]],טבלה2[#All],2,FALSE)*טבלה1[[#This Row],[שעות]]*24*שער, VLOOKUP(טבלה1[[#This Row],[שם העבודה]],טבלה2[#All],2,FALSE)*טבלה1[[#This Row],[שעות]]*24)=0,"", IF(VLOOKUP('טיימר עבודות'!$F22,טבלה2[],3,FALSE)="$", VLOOKUP(טבלה1[[#This Row],[שם העבודה]],טבלה2[#All],2,FALSE)*טבלה1[[#This Row],[שעות]]*24*שער, VLOOKUP(טבלה1[[#This Row],[שם העבודה]],טבלה2[#All],2,FALSE)*טבלה1[[#This Row],[שעות]]*24)),"")) -> 180.7083333 | L22: =IF(טבלה1[[#This Row],[תאריך]]="","",טבלה1[[#This Row],[תאריך]]+טבלה1[[#This Row],[התחלה]]) -> 2024-03-04T17:12:15 | R22: =IF(OR(טבלה2[[#This Row],[שמות העבודות]]="",COUNTIF(עבודות,טבלה2[[#This Row],[שמות העבודות]])=0),"",COUNTIF(עבודות,טבלה2[[#This Row],[שמות העבודות]])) ->  | S22: =IF(O22="","", IFERROR(IF(SUMIFS('טיימר עבודות'!$J$11:$J$160,'טיימר עבודות'!$F$11:$F$160,O22)=0,"", SUMIFS('טיימר עבודות'!$J$11:$J$160,'טיימר עבודות'!$F$11:$F$160,O22)),"")) ->  | T22: =IFERROR(IF(OR(טבלה2[[#This Row],[שכר לשעה]]="",טבלה2[[#This Row],[שעות]]=""),"", IF(IF(OR(טבלה2[[#This Row],[מטבע]]="₪",טבלה2[[#This Row],[מטבע]]=""),טבלה2[[#This Row],[שכר לשעה]]*טבלה2[[#This Row],[שעות]]*24, IF(טבלה2[[#This Row],[מטבע]]="$",טבלה2[[#This Row],[שכר לשעה]]*טבלה2[[#This Row],[שעות]]*24*שער,""))=0,"", IF(OR(טבלה2[[#This Row],[מטבע]]="₪",טבלה2[[#This Row],[מטבע]]=""),טבלה2[[#This Row],[שכר לשעה]]*טבלה2[[#This Row],[שעות]]*24, IF(טבלה2[[#This Row],[מטבע]]="$",טבלה2[[#This Row],[שכר לשעה]]*טבלה2[[#This Row],[שעות]]*24*שער,"")))),"") ->  | U22: =IFERROR(IF(OR(טבלה2[[#This Row],[שכר לשעה]]="",טבלה2[[#This Row],[שעות]]=""),"", IF(IF(טבלה2[[#This Row],[מטבע]]="$",טבלה2[[#This Row],[שכר לשעה]]*טבלה2[[#This Row],[שעות]]*24, IF(OR(טבלה2[[#This Row],[מטבע]]="₪",טבלה2[[#This Row],[מטבע]]=""),טבלה2[[#This Row],[שכר לשעה]]*טבלה2[[#This Row],[שעות]]*24/שער,""))=0,"", IF(טבלה2[[#This Row],[מטבע]]="$",טבלה2[[#This Row],[שכר לשעה]]*טבלה2[[#This Row],[שעות]]*24, IF(OR(טבלה2[[#This Row],[מטבע]]="₪",טבלה2[[#This Row],[מטבע]]=""),טבלה2[[#This Row],[שכר לשעה]]*טבלה2[[#This Row],[שעות]]*24/שער,"")))),"") ->  | AL22: FALSE | AM22: =IF(טבלה2[[#This Row],[שמות העבודות]]="","",טבלה2[[#This Row],[שמות העבודות]]) ->  | AN22: 12
B23: =IF(AND(טבלה1[[#This Row],[תאריך]]="",טבלה1[[#This Row],[התחלה]]="",טבלה1[[#This Row],[שם העבודה]]=""),"",ROW()-10) -> 13 | C23: =IF(טבלה1[[#This Row],[תאריך]]="","",IF(TEXT(טבלה1[[#This Row],[תאריך]],"DDD")="שבת","מוצ""ש",TEXT(טבלה1[[#This Row],[תאריך]],"DDD"))) -> יום ג | D23: 2024-03-05 | E23: 10:06:05 | F23: ניקוד | G23: 12:56:31 | J23: =IF(IF(AND(טבלה1[[#This Row],[התחלה]]="",טבלה1[[#This Row],[סיום]]<>""),"",IF(AND(טבלה1[[#This Row],[התחלה]]<>"",טבלה1[[#This Row],[סיום]]=""), SUM(MOD(NOW(),1)-טבלה1[[#This Row],[התחלה]]+(MOD(NOW(),1)<טבלה1[[#This Row],[התחלה]]),TIME(,טבלה1[[#This Row],[הוספת דקות]],),-TIME(,טבלה1[[#This Row],[הפחתת דקות]],)), SUM(טבלה1[[#This Row],[סיום]]-טבלה1[[#This Row],[התחלה]]+(טבלה1[[#This Row],[סיום]]<טבלה1[[#This Row],[התחלה]]),TIME(,טבלה1[[#This Row],[הוספת דקות]],),-TIME(,טבלה1[[#This Row],[הפחתת דקות]],))))<=0,"", IF(AND(טבלה1[[#This Row],[התחלה]]="",טבלה1[[#This Row],[סיום]]<>""),"",IF(AND(טבלה1[[#This Row],[התחלה]]<>"",טבלה1[[#This Row],[סיום]]=""), SUM(MOD(NOW(),1)-טבלה1[[#This Row],[התחלה]]+(MOD(NOW(),1)<טבלה1[[#This Row],[התחלה]]),TIME(,טבלה1[[#This Row],[הוספת דקות]],),-TIME(,טבלה1[[#This Row],[הפחתת דקות]],)), SUM(טבלה1[[#This Row],[סיום]]-טבלה1[[#This Row],[התחלה]]+(טבלה1[[#This Row],[סיום]]<טבלה1[[#This Row],[התחלה]]),TIME(,טבלה1[[#This Row],[הוספת דקות]],),-TIME(,טבלה1[[#This Row],[הפחתת דקות]],))))) -> 0.1183564815 | K23: =IF('טיימר עבודות'!$J23="","", IFERROR(IF(IF(VLOOKUP('טיימר עבודות'!$F23,טבלה2[],3,FALSE)="$", VLOOKUP(טבלה1[[#This Row],[שם העבודה]],טבלה2[#All],2,FALSE)*טבלה1[[#This Row],[שעות]]*24*שער, VLOOKUP(טבלה1[[#This Row],[שם העבודה]],טבלה2[#All],2,FALSE)*טבלה1[[#This Row],[שעות]]*24)=0,"", IF(VLOOKUP('טיימר עבודות'!$F23,טבלה2[],3,FALSE)="$", VLOOKUP(טבלה1[[#This Row],[שם העבודה]],טבלה2[#All],2,FALSE)*טבלה1[[#This Row],[שעות]]*24*שער, VLOOKUP(טבלה1[[#This Row],[שם העבודה]],טבלה2[#All],2,FALSE)*טבלה1[[#This Row],[שעות]]*24)),"")) -> 184.6361111 | L23: =IF(טבלה1[[#This Row],[תאריך]]="","",טבלה1[[#This Row],[תאריך]]+טבלה1[[#This Row],[התחלה]]) -> 2024-03-05T10:06:05 | R23: =IF(OR(טבלה2[[#This Row],[שמות העבודות]]="",COUNTIF(עבודות,טבלה2[[#This Row],[שמות העבודות]])=0),"",COUNTIF(עבודות,טבלה2[[#This Row],[שמות העבודות]])) ->  | S23: =IF(O23="","", IFERROR(IF(SUMIFS('טיימר עבודות'!$J$11:$J$160,'טיימר עבודות'!$F$11:$F$160,O23)=0,"", SUMIFS('טיימר עבודות'!$J$11:$J$160,'טיימר עבודות'!$F$11:$F$160,O23)),"")) ->  | T23: =IFERROR(IF(OR(טבלה2[[#This Row],[שכר לשעה]]="",טבלה2[[#This Row],[שעות]]=""),"", IF(IF(OR(טבלה2[[#This Row],[מטבע]]="₪",טבלה2[[#This Row],[מטבע]]=""),טבלה2[[#This Row],[שכר לשעה]]*טבלה2[[#This Row],[שעות]]*24, IF(טבלה2[[#This Row],[מטבע]]="$",טבלה2[[#This Row],[שכר לשעה]]*טבלה2[[#This Row],[שעות]]*24*שער,""))=0,"", IF(OR(טבלה2[[#This Row],[מטבע]]="₪",טבלה2[[#This Row],[מטבע]]=""),טבלה2[[#This Row],[שכר לשעה]]*טבלה2[[#This Row],[שעות]]*24, IF(טבלה2[[#This Row],[מטבע]]="$",טבלה2[[#This Row],[שכר לשעה]]*טבלה2[[#This Row],[שעות]]*24*שער,"")))),"") ->  | U23: =IFERROR(IF(OR(טבלה2[[#This Row],[שכר לשעה]]="",טבלה2[[#This Row],[שעות]]=""),"", IF(IF(טבלה2[[#This Row],[מטבע]]="$",טבלה2[[#This Row],[שכר לשעה]]*טבלה2[[#This Row],[שעות]]*24, IF(OR(טבלה2[[#This Row],[מטבע]]="₪",טבלה2[[#This Row],[מטבע]]=""),טבלה2[[#This Row],[שכר לשעה]]*טבלה2[[#This Row],[שעות]]*24/שער,""))=0,"", IF(טבלה2[[#This Row],[מטבע]]="$",טבלה2[[#This Row],[שכר לשעה]]*טבלה2[[#This Row],[שעות]]*24, IF(OR(טבלה2[[#This Row],[מטבע]]="₪",טבלה2[[#This Row],[מטבע]]=""),טבלה2[[#This Row],[שכר לשעה]]*טבלה2[[#This Row],[שעות]]*24/שער,"")))),"") ->  | AL23: סיסמת הגיליון | AM23: =IF(טבלה2[[#This Row],[שמות העבודות]]="","",טבלה2[[#This Row],[שמות העבודות]]) -> 
B24: =IF(AND(טבלה1[[#This Row],[תאריך]]="",טבלה1[[#This Row],[התחלה]]="",טבלה1[[#This Row],[שם העבודה]]=""),"",ROW()-10) -> 14 | C24: =IF(טבלה1[[#This Row],[תאריך]]="","",IF(TEXT(טבלה1[[#This Row],[תאריך]],"DDD")="שבת","מוצ""ש",TEXT(טבלה1[[#This Row],[תאריך]],"DDD"))) -> יום ג | D24: 2024-03-05 | E24: 17:10:51 | F24: מכון תורה | G24: 20:43:31 | J24: =IF(IF(AND(טבלה1[[#This Row],[התחלה]]="",טבלה1[[#This Row],[סיום]]<>""),"",IF(AND(טבלה1[[#This Row],[התחלה]]<>"",טבלה1[[#This Row],[סיום]]=""), SUM(MOD(NOW(),1)-טבלה1[[#This Row],[התחלה]]+(MOD(NOW(),1)<טבלה1[[#This Row],[התחלה]]),TIME(,טבלה1[[#This Row],[הוספת דקות]],),-TIME(,טבלה1[[#This Row],[הפחתת דקות]],)), SUM(טבלה1[[#This Row],[סיום]]-טבלה1[[#This Row],[התחלה]]+(טבלה1[[#This Row],[סיום]]<טבלה1[[#This Row],[התחלה]]),TIME(,טבלה1[[#This Row],[הוספת דקות]],),-TIME(,טבלה1[[#This Row],[הפחתת דקות]],))))<=0,"", IF(AND(טבלה1[[#This Row],[התחלה]]="",טבלה1[[#This Row],[סיום]]<>""),"",IF(AND(טבלה1[[#This Row],[התחלה]]<>"",טבלה1[[#This Row],[סיום]]=""), SUM(MOD(NOW(),1)-טבלה1[[#This Row],[התחלה]]+(MOD(NOW(),1)<טבלה1[[#This Row],[התחלה]]),TIME(,טבלה1[[#This Row],[הוספת דקות]],),-TIME(,טבלה1[[#This Row],[הפחתת דקות]],)), SUM(טבלה1[[#This Row],[סיום]]-טבלה1[[#This Row],[התחלה]]+(טבלה1[[#This Row],[סיום]]<טבלה1[[#This Row],[התחלה]]),TIME(,טבלה1[[#This Row],[הוספת דקות]],),-TIME(,טבלה1[[#This Row],[הפחתת דקות]],))))) -> 0.1476851852 | K24: =IF('טיימר עבודות'!$J24="","", IFERROR(IF(IF(VLOOKUP('טיימר עבודות'!$F24,טבלה2[],3,FALSE)="$", VLOOKUP(טבלה1[[#This Row],[שם העבודה]],טבלה2[#All],2,FALSE)*טבלה1[[#This Row],[שעות]]*24*שער, VLOOKUP(טבלה1[[#This Row],[שם העבודה]],טבלה2[#All],2,FALSE)*טבלה1[[#This Row],[שעות]]*24)=0,"", IF(VLOOKUP('טיימר עבודות'!$F24,טבלה2[],3,FALSE)="$", VLOOKUP(טבלה1[[#This Row],[שם העבודה]],טבלה2[#All],2,FALSE)*טבלה1[[#This Row],[שעות]]*24*שער, VLOOKUP(טבלה1[[#This Row],[שם העבודה]],טבלה2[#All],2,FALSE)*טבלה1[[#This Row],[שעות]]*24)),"")) -> 141.7777778 | L24: =IF(טבלה1[[#This Row],[תאריך]]="","",טבלה1[[#This Row],[תאריך]]+טבלה1[[#This Row],[התחלה]]) -> 2024-03-05T17:10:51 | R24: =IF(OR(טבלה2[[#This Row],[שמות העבודות]]="",COUNTIF(עבודות,טבלה2[[#This Row],[שמות העבודות]])=0),"",COUNTIF(עבודות,טבלה2[[#This Row],[שמות העבודות]])) ->  | S24: =IF(O24="","", IFERROR(IF(SUMIFS('טיימר עבודות'!$J$11:$J$160,'טיימר עבודות'!$F$11:$F$160,O24)=0,"", SUMIFS('טיימר עבודות'!$J$11:$J$160,'טיימר עבודות'!$F$11:$F$160,O24)),"")) ->  | T24: =IFERROR(IF(OR(טבלה2[[#This Row],[שכר לשעה]]="",טבלה2[[#This Row],[שעות]]=""),"", IF(IF(OR(טבלה2[[#This Row],[מטבע]]="₪",טבלה2[[#This Row],[מטבע]]=""),טבלה2[[#This Row],[שכר לשעה]]*טבלה2[[#This Row],[שעות]]*24, IF(טבלה2[[#This Row],[מטבע]]="$",טבלה2[[#This Row],[שכר לשעה]]*טבלה2[[#This Row],[שעות]]*24*שער,""))=0,"", IF(OR(טבלה2[[#This Row],[מטבע]]="₪",טבלה2[[#This Row],[מטבע]]=""),טבלה2[[#This Row],[שכר לשעה]]*טבלה2[[#This Row],[שעות]]*24, IF(טבלה2[[#This Row],[מטבע]]="$",טבלה2[[#This Row],[שכר לשעה]]*טבלה2[[#This Row],[שעות]]*24*שער,"")))),"") ->  | U24: =IFERROR(IF(OR(טבלה2[[#This Row],[שכר לשעה]]="",טבלה2[[#This Row],[שעות]]=""),"", IF(IF(טבלה2[[#This Row],[מטבע]]="$",טבלה2[[#This Row],[שכר לשעה]]*טבלה2[[#This Row],[שעות]]*24, IF(OR(טבלה2[[#This Row],[מטבע]]="₪",טבלה2[[#This Row],[מטבע]]=""),טבלה2[[#This Row],[שכר לשעה]]*טבלה2[[#This Row],[שעות]]*24/שער,""))=0,"", IF(טבלה2[[#This Row],[מטבע]]="$",טבלה2[[#This Row],[שכר לשעה]]*טבלה2[[#This Row],[שעות]]*24, IF(OR(טבלה2[[#This Row],[מטבע]]="₪",טבלה2[[#This Row],[מטבע]]=""),טבלה2[[#This Row],[שכר לשעה]]*טבלה2[[#This Row],[שעות]]*24/שער,"")))),"") ->  | AL24: 1234 | AM24: =IF(טבלה2[[#This Row],[שמות העבודות]]="","",טבלה2[[#This Row],[שמות העבודות]]) ->  | AN24: 2024
B25: =IF(AND(טבלה1[[#This Row],[תאריך]]="",טבלה1[[#This Row],[התחלה]]="",טבלה1[[#This Row],[שם העבודה]]=""),"",ROW()-10) -> 15 | C25: =IF(טבלה1[[#This Row],[תאריך]]="","",IF(TEXT(טבלה1[[#This Row],[תאריך]],"DDD")="שבת","מוצ""ש",TEXT(טבלה1[[#This Row],[תאריך]],"DDD"))) -> יום ד | D25: 2024-03-06 | E25: 10:06:05 | F25: עימוד | G25: 12:56:31 | J25: =IF(IF(AND(טבלה1[[#This Row],[התחלה]]="",טבלה1[[#This Row],[סיום]]<>""),"",IF(AND(טבלה1[[#This Row],[התחלה]]<>"",טבלה1[[#This Row],[סיום]]=""), SUM(MOD(NOW(),1)-טבלה1[[#This Row],[התחלה]]+(MOD(NOW(),1)<טבלה1[[#This Row],[התחלה]]),TIME(,טבלה1[[#This Row],[הוספת דקות]],),-TIME(,טבלה1[[#This Row],[הפחתת דקות]],)), SUM(טבלה1[[#This Row],[סיום]]-טבלה1[[#This Row],[התחלה]]+(טבלה1[[#This Row],[סיום]]<טבלה1[[#This Row],[התחלה]]),TIME(,טבלה1[[#This Row],[הוספת דקות]],),-TIME(,טבלה1[[#This Row],[הפחתת דקות]],))))<=0,"", IF(AND(טבלה1[[#This Row],[התחלה]]="",טבלה1[[#This Row],[סיום]]<>""),"",IF(AND(טבלה1[[#This Row],[התחלה]]<>"",טבלה1[[#This Row],[סיום]]=""), SUM(MOD(NOW(),1)-טבלה1[[#This Row],[התחלה]]+(MOD(NOW(),1)<טבלה1[[#This Row],[התחלה]]),TIME(,טבלה1[[#This Row],[הוספת דקות]],),-TIME(,טבלה1[[#This Row],[הפחתת דקות]],)), SUM(טבלה1[[#This Row],[סיום]]-טבלה1[[#This Row],[התחלה]]+(טבלה1[[#This Row],[סיום]]<טבלה1[[#This Row],[התחלה]]),TIME(,טבלה1[[#This Row],[הוספת דקות]],),-TIME(,טבלה1[[#This Row],[הפחתת דקות]],))))) -> 0.1183564815 | K25: =IF('טיימר עבודות'!$J25="","", IFERROR(IF(IF(VLOOKUP('טיימר עבודות'!$F25,טבלה2[],3,FALSE)="$", VLOOKUP(טבלה1[[#This Row],[שם העבודה]],טבלה2[#All],2,FALSE)*טבלה1[[#This Row],[שעות]]*24*שער, VLOOKUP(טבלה1[[#This Row],[שם העבודה]],טבלה2[#All],2,FALSE)*טבלה1[[#This Row],[שעות]]*24)=0,"", IF(VLOOKUP('טיימר עבודות'!$F25,טבלה2[],3,FALSE)="$", VLOOKUP(טבלה1[[#This Row],[שם העבודה]],טבלה2[#All],2,FALSE)*טבלה1[[#This Row],[שעות]]*24*שער, VLOOKUP(טבלה1[[#This Row],[שם העבודה]],טבלה2[#All],2,FALSE)*טבלה1[[#This Row],[שעות]]*24)),"")) -> 156.2305556 | L25: =IF(טבלה1[[#This Row],[תאריך]]="","",טבלה1[[#This Row],[תאריך]]+טבלה1[[#This Row],[התחלה]]) -> 2024-03-06T10:06:05 | R25: =IF(OR(טבלה2[[#This Row],[שמות העבודות]]="",COUNTIF(עבודות,טבלה2[[#This Row],[שמות העבודות]])=0),"",COUNTIF(עבודות,טבלה2[[#This Row],[שמות העבודות]])) ->  | S25: =IF(O25="","", IFERROR(IF(SUMIFS('טיימר עבודות'!$J$11:$J$160,'טיימר עבודות'!$F$11:$F$160,O25)=0,"", SUMIFS('טיימר עבודות'!$J$11:$J$160,'טיימר עבודות'!$F$11:$F$160,O25)),"")) ->  | T25: =IFERROR(IF(OR(טבלה2[[#This Row],[שכר לשעה]]="",טבלה2[[#This Row],[שעות]]=""),"", IF(IF(OR(טבלה2[[#This Row],[מטבע]]="₪",טבלה2[[#This Row],[מטבע]]=""),טבלה2[[#This Row],[שכר לשעה]]*טבלה2[[#This Row],[שעות]]*24, IF(טבלה2[[#This Row],[מטבע]]="$",טבלה2[[#This Row],[שכר לשעה]]*טבלה2[[#This Row],[שעות]]*24*שער,""))=0,"", IF(OR(טבלה2[[#This Row],[מטבע]]="₪",טבלה2[[#This Row],[מטבע]]=""),טבלה2[[#This Row],[שכר לשעה]]*טבלה2[[#This Row],[שעות]]*24, IF(טבלה2[[#This Row],[מטבע]]="$",טבלה2[[#This Row],[שכר לשעה]]*טבלה2[[#This Row],[שעות]]*24*שער,"")))),"") ->  | U25: =IFERROR(IF(OR(טבלה2[[#This Row],[שכר לשעה]]="",טבלה2[[#This Row],[שעות]]=""),"", IF(IF(טבלה2[[#This Row],[מטבע]]="$",טבלה2[[#This Row],[שכר לשעה]]*טבלה2[[#This Row],[שעות]]*24, IF(OR(טבלה2[[#This Row],[מטבע]]="₪",טבלה2[[#This Row],[מטבע]]=""),טבלה2[[#This Row],[שכר לשעה]]*טבלה2[[#This Row],[שעות]]*24/שער,""))=0,"", IF(טבלה2[[#This Row],[מטבע]]="$",טבלה2[[#This Row],[שכר לשעה]]*טבלה2[[#This Row],[שעות]]*24, IF(OR(טבלה2[[#This Row],[מטבע]]="₪",טבלה2[[#This Row],[מטבע]]=""),טבלה2[[#This Row],[שכר לשעה]]*טבלה2[[#This Row],[שעות]]*24/שער,"")))),"") ->  | AM25: =IF(טבלה2[[#This Row],[שמות העבודות]]="","",טבלה2[[#This Row],[שמות העבודות]]) ->  | AN25: 2025
B26: =IF(AND(טבלה1[[#This Row],[תאריך]]="",טבלה1[[#This Row],[התחלה]]="",טבלה1[[#This Row],[שם העבודה]]=""),"",ROW()-10) -> 16 | C26: =IF(טבלה1[[#This Row],[תאריך]]="","",IF(TEXT(טבלה1[[#This Row],[תאריך]],"DDD")="שבת","מוצ""ש",TEXT(טבלה1[[#This Row],[תאריך]],"DDD"))) -> יום ד | D26: 2024-03-06 | E26: 19:12:15 | F26: עיון במקורות | G26: 20:43:31 | I26: 10 | J26: =IF(IF(AND(טבלה1[[#This Row],[התחלה]]="",טבלה1[[#This Row],[סיום]]<>""),"",IF(AND(טבלה1[[#This Row],[התחלה]]<>"",טבלה1[[#This Row],[סיום]]=""), SUM(MOD(NOW(),1)-טבלה1[[#This Row],[התחלה]]+(MOD(NOW(),1)<טבלה1[[#This Row],[התחלה]]),TIME(,טבלה1[[#This Row],[הוספת דקות]],),-TIME(,טבלה1[[#This Row],[הפחתת דקות]],)), SUM(טבלה1[[#This Row],[סיום]]-טבלה1[[#This Row],[התחלה]]+(טבלה1[[#This Row],[סיום]]<טבלה1[[#This Row],[התחלה]]),TIME(,טבלה1[[#This Row],[הוספת דקות]],),-TIME(,טבלה1[[#This Row],[הפחתת דקות]],))))<=0,"", IF(AND(טבלה1[[#This Row],[התחלה]]="",טבלה1[[#This Row],[סיום]]<>""),"",IF(AND(טבלה1[[#This Row],[התחלה]]<>"",טבלה1[[#This Row],[סיום]]=""), SUM(MOD(NOW(),1)-טבלה1[[#This Row],[התחלה]]+(MOD(NOW(),1)<טבלה1[[#This Row],[התחלה]]),TIME(,טבלה1[[#This Row],[הוספת דקות]],),-TIME(,טבלה1[[#This Row],[הפחתת דקות]],)), SUM(טבלה1[[#This Row],[סיום]]-טבלה1[[#This Row],[התחלה]]+(טבלה1[[#This Row],[סיום]]<טבלה1[[#This Row],[התחלה]]),TIME(,טבלה1[[#This Row],[הוספת דקות]],),-TIME(,טבלה1[[#This Row],[הפחתת דקות]],))))) -> 0.05643518519 | K26: =IF('טיימר עבודות'!$J26="","", IFERROR(IF(IF(VLOOKUP('טיימר עבודות'!$F26,טבלה2[],3,FALSE)="$", VLOOKUP(טבלה1[[#This Row],[שם העבודה]],טבלה2[#All],2,FALSE)*טבלה1[[#This Row],[שעות]]*24*שער, VLOOKUP(טבלה1[[#This Row],[שם העבודה]],טבלה2[#All],2,FALSE)*טבלה1[[#This Row],[שעות]]*24)=0,"", IF(VLOOKUP('טיימר עבודות'!$F26,טבלה2[],3,FALSE)="$", VLOOKUP(טבלה1[[#This Row],[שם העבודה]],טבלה2[#All],2,FALSE)*טבלה1[[#This Row],[שעות]]*24*שער, VLOOKUP(טבלה1[[#This Row],[שם העבודה]],טבלה2[#All],2,FALSE)*טבלה1[[#This Row],[שעות]]*24)),"")) -> 64.49729 | L26: =IF(טבלה1[[#This Row],[תאריך]]="","",טבלה1[[#This Row],[תאריך]]+טבלה1[[#This Row],[התחלה]]) -> 2024-03-06T19:12:15 | R26: =IF(OR(טבלה2[[#This Row],[שמות העבודות]]="",COUNTIF(עבודות,טבלה2[[#This Row],[שמות העבודות]])=0),"",COUNTIF(עבודות,טבלה2[[#This Row],[שמות העבודות]])) ->  | S26: =IF(O26="","", IFERROR(IF(SUMIFS('טיימר עבודות'!$J$11:$J$160,'טיימר עבודות'!$F$11:$F$160,O26)=0,"", SUMIFS('טיימר עבודות'!$J$11:$J$160,'טיימר עבודות'!$F$11:$F$160,O26)),"")) ->  | T26: =IFERROR(IF(OR(טבלה2[[#This Row],[שכר לשעה]]="",טבלה2[[#This Row],[שעות]]=""),"", IF(IF(OR(טבלה2[[#This Row],[מטבע]]="₪",טבלה2[[#This Row],[מטבע]]=""),טבלה2[[#This Row],[שכר לשעה]]*טבלה2[[#This Row],[שעות]]*24, IF(טבלה2[[#This Row],[מטבע]]="$",טבלה2[[#This Row],[שכר לשעה]]*טבלה2[[#This Row],[שעות]]*24*שער,""))=0,"", IF(OR(טבלה2[[#This Row],[מטבע]]="₪",טבלה2[[#This Row],[מטבע]]=""),טבלה2[[#This Row],[שכר לשעה]]*טבלה2[[#This Row],[שעות]]*24, IF(טבלה2[[#This Row],[מטבע]]="$",טבלה2[[#This Row],[שכר לשעה]]*טבלה2[[#This Row],[שעות]]*24*שער,"")))),"") ->  | U26: =IFERROR(IF(OR(טבלה2[[#This Row],[שכר לשעה]]="",טבלה2[[#This Row],[שעות]]=""),"", IF(IF(טבלה2[[#This Row],[מטבע]]="$",טבלה2[[#This Row],[שכר לשעה]]*טבלה2[[#This Row],[שעות]]*24, IF(OR(טבלה2[[#This Row],[מטבע]]="₪",טבלה2[[#This Row],[מטבע]]=""),טבלה2[[#This Row],[שכר לשעה]]*טבלה2[[#This Row],[שעות]]*24/שער,""))=0,"", IF(טבלה2[[#This Row],[מטבע]]="$",טבלה2[[#This Row],[שכר לשעה]]*טבלה2[[#This Row],[שעות]]*24, IF(OR(טבלה2[[#This Row],[מטבע]]="₪",טבלה2[[#This Row],[מטבע]]=""),טבלה2[[#This Row],[שכר לשעה]]*טבלה2[[#This Row],[שעות]]*24/שער,"")))),"") ->  | AM26: =IF(טבלה2[[#This Row],[שמות העבודות]]="","",טבלה2[[#This Row],[שמות העבודות]]) ->  | AN26: 2026
B27: =IF(AND(טבלה1[[#This Row],[תאריך]]="",טבלה1[[#This Row],[התחלה]]="",טבלה1[[#This Row],[שם העבודה]]=""),"",ROW()-10) -> 17 | C27: =IF(טבלה1[[#This Row],[תאריך]]="","",IF(TEXT(טבלה1[[#This Row],[תאריך]],"DDD")="שבת","מוצ""ש",TEXT(טבלה1[[#This Row],[תאריך]],"DDD"))) -> יום ה | D27: 2024-03-07 | E27: 10:06:05 | F27: הגהה ודקדוק | G27: 12:56:31 | J27: =IF(IF(AND(טבלה1[[#This Row],[התחלה]]="",טבלה1[[#This Row],[סיום]]<>""),"",IF(AND(טבלה1[[#This Row],[התחלה]]<>"",טבלה1[[#This Row],[סיום]]=""), SUM(MOD(NOW(),1)-טבלה1[[#This Row],[התחלה]]+(MOD(NOW(),1)<טבלה1[[#This Row],[התחלה]]),TIME(,טבלה1[[#This Row],[הוספת דקות]],),-TIME(,טבלה1[[#This Row],[הפחתת דקות]],)), SUM(טבלה1[[#This Row],[סיום]]-טבלה1[[#This Row],[התחלה]]+(טבלה1[[#This Row],[סיום]]<טבלה1[[#This Row],[התחלה]]),TIME(,טבלה1[[#This Row],[הוספת דקות]],),-TIME(,טבלה1[[#This Row],[הפחתת דקות]],))))<=0,"", IF(AND(טבלה1[[#This Row],[התחלה]]="",טבלה1[[#This Row],[סיום]]<>""),"",IF(AND(טבלה1[[#This Row],[התחלה]]<>"",טבלה1[[#This Row],[סיום]]=""), SUM(MOD(NOW(),1)-טבלה1[[#This Row],[התחלה]]+(MOD(NOW(),1)<טבלה1[[#This Row],[התחלה]]),TIME(,טבלה1[[#This Row],[הוספת דקות]],),-TIME(,טבלה1[[#This Row],[הפחתת דקות]],)), SUM(טבלה1[[#This Row],[סיום]]-טבלה1[[#This Row],[התחלה]]+(טבלה1[[#This Row],[סיום]]<טבלה1[[#This Row],[התחלה]]),TIME(,טבלה1[[#This Row],[הוספת דקות]],),-TIME(,טבלה1[[#This Row],[הפחתת דקות]],))))) -> 0.1183564815 | K27: =IF('טיימר עבודות'!$J27="","", IFERROR(IF(IF(VLOOKUP('טיימר עבודות'!$F27,טבלה2[],3,FALSE)="$", VLOOKUP(טבלה1[[#This Row],[שם העבודה]],טבלה2[#All],2,FALSE)*טבלה1[[#This Row],[שעות]]*24*שער, VLOOKUP(טבלה1[[#This Row],[שם העבודה]],טבלה2[#All],2,FALSE)*טבלה1[[#This Row],[שעות]]*24)=0,"", IF(VLOOKUP('טיימר עבודות'!$F27,טבלה2[],3,FALSE)="$", VLOOKUP(טבלה1[[#This Row],[שם העבודה]],טבלה2[#All],2,FALSE)*טבלה1[[#This Row],[שעות]]*24*שער, VLOOKUP(טבלה1[[#This Row],[שם העבודה]],טבלה2[#All],2,FALSE)*טבלה1[[#This Row],[שעות]]*24)),"")) -> 142.0277778 | L27: =IF(טבלה1[[#This Row],[תאריך]]="","",טבלה1[[#This Row],[תאריך]]+טבלה1[[#This Row],[התחלה]]) -> 2024-03-07T10:06:05 | R27: =IF(OR(טבלה2[[#This Row],[שמות העבודות]]="",COUNTIF(עבודות,טבלה2[[#This Row],[שמות העבודות]])=0),"",COUNTIF(עבודות,טבלה2[[#This Row],[שמות העבודות]])) ->  | S27: =IF(O27="","", IFERROR(IF(SUMIFS('טיימר עבודות'!$J$11:$J$160,'טיימר עבודות'!$F$11:$F$160,O27)=0,"", SUMIFS('טיימר עבודות'!$J$11:$J$160,'טיימר עבודות'!$F$11:$F$160,O27)),"")) ->  | T27: =IFERROR(IF(OR(טבלה2[[#This Row],[שכר לשעה]]="",טבלה2[[#This Row],[שעות]]=""),"", IF(IF(OR(טבלה2[[#This Row],[מטבע]]="₪",טבלה2[[#This Row],[מטבע]]=""),טבלה2[[#This Row],[שכר לשעה]]*טבלה2[[#This Row],[שעות]]*24, IF(טבלה2[[#This Row],[מטבע]]="$",טבלה2[[#This Row],[שכר לשעה]]*טבלה2[[#This Row],[שעות]]*24*שער,""))=0,"", IF(OR(טבלה2[[#This Row],[מטבע]]="₪",טבלה2[[#This Row],[מטבע]]=""),טבלה2[[#This Row],[שכר לשעה]]*טבלה2[[#This Row],[שעות]]*24, IF(טבלה2[[#This Row],[מטבע]]="$",טבלה2[[#This Row],[שכר לשעה]]*טבלה2[[#This Row],[שעות]]*24*שער,"")))),"") ->  | U27: =IFERROR(IF(OR(טבלה2[[#This Row],[שכר לשעה]]="",טבלה2[[#This Row],[שעות]]=""),"", IF(IF(טבלה2[[#This Row],[מטבע]]="$",טבלה2[[#This Row],[שכר לשעה]]*טבלה2[[#This Row],[שעות]]*24, IF(OR(טבלה2[[#This Row],[מטבע]]="₪",טבלה2[[#This Row],[מטבע]]=""),טבלה2[[#This Row],[שכר לשעה]]*טבלה2[[#This Row],[שעות]]*24/שער,""))=0,"", IF(טבלה2[[#This Row],[מטבע]]="$",טבלה2[[#This Row],[שכר לשעה]]*טבלה2[[#This Row],[שעות]]*24, IF(OR(טבלה2[[#This Row],[מטבע]]="₪",טבלה2[[#This Row],[מטבע]]=""),טבלה2[[#This Row],[שכר לשעה]]*טבלה2[[#This Row],[שעות]]*24/שער,"")))),"") ->  | AM27: =IF(טבלה2[[#This Row],[שמות העבודות]]="","",טבלה2[[#This Row],[שמות העבודות]]) ->  | AN27: 2027
B28: =IF(AND(טבלה1[[#This Row],[תאריך]]="",טבלה1[[#This Row],[התחלה]]="",טבלה1[[#This Row],[שם העבודה]]=""),"",ROW()-10) -> 18 | C28: =IF(טבלה1[[#This Row],[תאריך]]="","",IF(TEXT(טבלה1[[#This Row],[תאריך]],"DDD")="שבת","מוצ""ש",TEXT(טבלה1[[#This Row],[תאריך]],"DDD"))) -> יום ה | D28: 2024-03-07 | E28: 17:10:51 | F28: ניקוד | G28: 20:43:31 | J28: =IF(IF(AND(טבלה1[[#This Row],[התחלה]]="",טבלה1[[#This Row],[סיום]]<>""),"",IF(AND(טבלה1[[#This Row],[התחלה]]<>"",טבלה1[[#This Row],[סיום]]=""), SUM(MOD(NOW(),1)-טבלה1[[#This Row],[התחלה]]+(MOD(NOW(),1)<טבלה1[[#This Row],[התחלה]]),TIME(,טבלה1[[#This Row],[הוספת דקות]],),-TIME(,טבלה1[[#This Row],[הפחתת דקות]],)), SUM(טבלה1[[#This Row],[סיום]]-טבלה1[[#This Row],[התחלה]]+(טבלה1[[#This Row],[סיום]]<טבלה1[[#This Row],[התחלה]]),TIME(,טבלה1[[#This Row],[הוספת דקות]],),-TIME(,טבלה1[[#This Row],[הפחתת דקות]],))))<=0,"", IF(AND(טבלה1[[#This Row],[התחלה]]="",טבלה1[[#This Row],[סיום]]<>""),"",IF(AND(טבלה1[[#This Row],[התחלה]]<>"",טבלה1[[#This Row],[סיום]]=""), SUM(MOD(NOW(),1)-טבלה1[[#This Row],[התחלה]]+(MOD(NOW(),1)<טבלה1[[#This Row],[התחלה]]),TIME(,טבלה1[[#This Row],[הוספת דקות]],),-TIME(,טבלה1[[#This Row],[הפחתת דקות]],)), SUM(טבלה1[[#This Row],[סיום]]-טבלה1[[#This Row],[התחלה]]+(טבלה1[[#This Row],[סיום]]<טבלה1[[#This Row],[התחלה]]),TIME(,טבלה1[[#This Row],[הוספת דקות]],),-TIME(,טבלה1[[#This Row],[הפחתת דקות]],))))) -> 0.1476851852 | K28: =IF('טיימר עבודות'!$J28="","", IFERROR(IF(IF(VLOOKUP('טיימר עבודות'!$F28,טבלה2[],3,FALSE)="$", VLOOKUP(טבלה1[[#This Row],[שם העבודה]],טבלה2[#All],2,FALSE)*טבלה1[[#This Row],[שעות]]*24*שער, VLOOKUP(טבלה1[[#This Row],[שם העבודה]],טבלה2[#All],2,FALSE)*טבלה1[[#This Row],[שעות]]*24)=0,"", IF(VLOOKUP('טיימר עבודות'!$F28,טבלה2[],3,FALSE)="$", VLOOKUP(טבלה1[[#This Row],[שם העבודה]],טבלה2[#All],2,FALSE)*טבלה1[[#This Row],[שעות]]*24*שער, VLOOKUP(טבלה1[[#This Row],[שם העבודה]],טבלה2[#All],2,FALSE)*טבלה1[[#This Row],[שעות]]*24)),"")) -> 230.3888889 | L28: =IF(טבלה1[[#This Row],[תאריך]]="","",טבלה1[[#This Row],[תאריך]]+טבלה1[[#This Row],[התחלה]]) -> 2024-03-07T17:10:51 | R28: =IF(OR(טבלה2[[#This Row],[שמות העבודות]]="",COUNTIF(עבודות,טבלה2[[#This Row],[שמות העבודות]])=0),"",COUNTIF(עבודות,טבלה2[[#This Row],[שמות העבודות]])) ->  | S28: =IF(O28="","", IFERROR(IF(SUMIFS('טיימר עבודות'!$J$11:$J$160,'טיימר עבודות'!$F$11:$F$160,O28)=0,"", SUMIFS('טיימר עבודות'!$J$11:$J$160,'טיימר עבודות'!$F$11:$F$160,O28)),"")) ->  | T28: =IFERROR(IF(OR(טבלה2[[#This Row],[שכר לשעה]]="",טבלה2[[#This Row],[שעות]]=""),"", IF(IF(OR(טבלה2[[#This Row],[מטבע]]="₪",טבלה2[[#This Row],[מטבע]]=""),טבלה2[[#This Row],[שכר לשעה]]*טבלה2[[#This Row],[שעות]]*24, IF(טבלה2[[#This Row],[מטבע]]="$",טבלה2[[#This Row],[שכר לשעה]]*טבלה2[[#This Row],[שעות]]*24*שער,""))=0,"", IF(OR(טבלה2[[#This Row],[מטבע]]="₪",טבלה2[[#This Row],[מטבע]]=""),טבלה2[[#This Row],[שכר לשעה]]*טבלה2[[#This Row],[שעות]]*24, IF(טבלה2[[#This Row],[מטבע]]="$",טבלה2[[#This Row],[שכר לשעה]]*טבלה2[[#This Row],[שעות]]*24*שער,"")))),"") ->  | U28: =IFERROR(IF(OR(טבלה2[[#This Row],[שכר לשעה]]="",טבלה2[[#This Row],[שעות]]=""),"", IF(IF(טבלה2[[#This Row],[מטבע]]="$",טבלה2[[#This Row],[שכר לשעה]]*טבלה2[[#This Row],[שעות]]*24, IF(OR(טבלה2[[#This Row],[מטבע]]="₪",טבלה2[[#This Row],[מטבע]]=""),טבלה2[[#This Row],[שכר לשעה]]*טבלה2[[#This Row],[שעות]]*24/שער,""))=0,"", IF(טבלה2[[#This Row],[מטבע]]="$",טבלה2[[#This Row],[שכר לשעה]]*טבלה2[[#This Row],[שעות]]*24, IF(OR(טבלה2[[#This Row],[מטבע]]="₪",טבלה2[[#This Row],[מטבע]]=""),טבלה2[[#This Row],[שכר לשעה]]*טבלה2[[#This Row],[שעות]]*24/שער,"")))),"") ->  | AM28: =IF(טבלה2[[#This Row],[שמות העבודות]]="","",טבלה2[[#This Row],[שמות העבודות]]) ->  | AN28: 2028
B29: =IF(AND(טבלה1[[#This Row],[תאריך]]="",טבלה1[[#This Row],[התחלה]]="",טבלה1[[#This Row],[שם העבודה]]=""),"",ROW()-10) -> 19 | C29: =IF(טבלה1[[#This Row],[תאריך]]="","",IF(TEXT(טבלה1[[#This Row],[תאריך]],"DDD")="שבת","מוצ""ש",TEXT(טבלה1[[#This Row],[תאריך]],"DDD"))) -> יום ו | D29: 2024-03-08 | E29: 10:13:35 | F29: מכון תורה | G29: 12:14:07 | J29: =IF(IF(AND(טבלה1[[#This Row],[התחלה]]="",טבלה1[[#This Row],[סיום]]<>""),"",IF(AND(טבלה1[[#This Row],[התחלה]]<>"",טבלה1[[#This Row],[סיום]]=""), SUM(MOD(NOW(),1)-טבלה1[[#This Row],[התחלה]]+(MOD(NOW(),1)<טבלה1[[#This Row],[התחלה]]),TIME(,טבלה1[[#This Row],[הוספת דקות]],),-TIME(,טבלה1[[#This Row],[הפחתת דקות]],)), SUM(טבלה1[[#This Row],[סיום]]-טבלה1[[#This Row],[התחלה]]+(טבלה1[[#This Row],[סיום]]<טבלה1[[#This Row],[התחלה]]),TIME(,טבלה1[[#This Row],[הוספת דקות]],),-TIME(,טבלה1[[#This Row],[הפחתת דקות]],))))<=0,"", IF(AND(טבלה1[[#This Row],[התחלה]]="",טבלה1[[#This Row],[סיום]]<>""),"",IF(AND(טבלה1[[#This Row],[התחלה]]<>"",טבלה1[[#This Row],[סיום]]=""), SUM(MOD(NOW(),1)-טבלה1[[#This Row],[התחלה]]+(MOD(NOW(),1)<טבלה1[[#This Row],[התחלה]]),TIME(,טבלה1[[#This Row],[הוספת דקות]],),-TIME(,טבלה1[[#This Row],[הפחתת דקות]],)), SUM(טבלה1[[#This Row],[סיום]]-טבלה1[[#This Row],[התחלה]]+(טבלה1[[#This Row],[סיום]]<טבלה1[[#This Row],[התחלה]]),TIME(,טבלה1[[#This Row],[הוספת דקות]],),-TIME(,טבלה1[[#This Row],[הפחתת דקות]],))))) -> 0.0837037037 | K29: =IF('טיימר עבודות'!$J29="","", IFERROR(IF(IF(VLOOKUP('טיימר עבודות'!$F29,טבלה2[],3,FALSE)="$", VLOOKUP(טבלה1[[#This Row],[שם העבודה]],טבלה2[#All],2,FALSE)*טבלה1[[#This Row],[שעות]]*24*שער, VLOOKUP(טבלה1[[#This Row],[שם העבודה]],טבלה2[#All],2,FALSE)*טבלה1[[#This Row],[שעות]]*24)=0,"", IF(VLOOKUP('טיימר עבודות'!$F29,טבלה2[],3,FALSE)="$", VLOOKUP(טבלה1[[#This Row],[שם העבודה]],טבלה2[#All],2,FALSE)*טבלה1[[#This Row],[שעות]]*24*שער, VLOOKUP(טבלה1[[#This Row],[שם העבודה]],טבלה2[#All],2,FALSE)*טבלה1[[#This Row],[שעות]]*24)),"")) -> 80.35555556 | L29: =IF(טבלה1[[#This Row],[תאריך]]="","",טבלה1[[#This Row],[תאריך]]+טבלה1[[#This Row],[התחלה]]) -> 2024-03-08T10:13:35 | R29: =IF(OR(טבלה2[[#This Row],[שמות העבודות]]="",COUNTIF(עבודות,טבלה2[[#This Row],[שמות העבודות]])=0),"",COUNTIF(עבודות,טבלה2[[#This Row],[שמות העבודות]])) ->  | S29: =IF(O29="","", IFERROR(IF(SUMIFS('טיימר עבודות'!$J$11:$J$160,'טיימר עבודות'!$F$11:$F$160,O29)=0,"", SUMIFS('טיימר עבודות'!$J$11:$J$160,'טיימר עבודות'!$F$11:$F$160,O29)),"")) ->  | T29: =IFERROR(IF(OR(טבלה2[[#This Row],[שכר לשעה]]="",טבלה2[[#This Row],[שעות]]=""),"", IF(IF(OR(טבלה2[[#This Row],[מטבע]]="₪",טבלה2[[#This Row],[מטבע]]=""),טבלה2[[#This Row],[שכר לשעה]]*טבלה2[[#This Row],[שעות]]*24, IF(טבלה2[[#This Row],[מטבע]]="$",טבלה2[[#This Row],[שכר לשעה]]*טבלה2[[#This Row],[שעות]]*24*שער,""))=0,"", IF(OR(טבלה2[[#This Row],[מטבע]]="₪",טבלה2[[#This Row],[מטבע]]=""),טבלה2[[#This Row],[שכר לשעה]]*טבלה2[[#This Row],[שעות]]*24, IF(טבלה2[[#This Row],[מטבע]]="$",טבלה2[[#This Row],[שכר לשעה]]*טבלה2[[#This Row],[שעות]]*24*שער,"")))),"") ->  | U29: =IFERROR(IF(OR(טבלה2[[#This Row],[שכר לשעה]]="",טבלה2[[#This Row],[שעות]]=""),"", IF(IF(טבלה2[[#This Row],[מטבע]]="$",טבלה2[[#This Row],[שכר לשעה]]*טבלה2[[#This Row],[שעות]]*24, IF(OR(טבלה2[[#This Row],[מטבע]]="₪",טבלה2[[#This Row],[מטבע]]=""),טבלה2[[#This Row],[שכר לשעה]]*טבלה2[[#This Row],[שעות]]*24/שער,""))=0,"", IF(טבלה2[[#This Row],[מטבע]]="$",טבלה2[[#This Row],[שכר לשעה]]*טבלה2[[#This Row],[שעות]]*24, IF(OR(טבלה2[[#This Row],[מטבע]]="₪",טבלה2[[#This Row],[מטבע]]=""),טבלה2[[#This Row],[שכר לשעה]]*טבלה2[[#This Row],[שעות]]*24/שער,"")))),"") ->  | AM29: =IF(טבלה2[[#This Row],[שמות העבודות]]="","",טבלה2[[#This Row],[שמות העבודות]]) ->  | AN29: 2029
B30: =IF(AND(טבלה1[[#This Row],[תאריך]]="",טבלה1[[#This Row],[התחלה]]="",טבלה1[[#This Row],[שם העבודה]]=""),"",ROW()-10) -> 20 | C30: =IF(טבלה1[[#This Row],[תאריך]]="","",IF(TEXT(טבלה1[[#This Row],[תאריך]],"DDD")="שבת","מוצ""ש",TEXT(טבלה1[[#This Row],[תאריך]],"DDD"))) -> מוצ"ש | D30: 2024-03-09 | E30: 20:20:01 | F30: עימוד | G30: 23:55:48 | J30: =IF(IF(AND(טבלה1[[#This Row],[התחלה]]="",טבלה1[[#This Row],[סיום]]<>""),"",IF(AND(טבלה1[[#This Row],[התחלה]]<>"",טבלה1[[#This Row],[סיום]]=""), SUM(MOD(NOW(),1)-טבלה1[[#This Row],[התחלה]]+(MOD(NOW(),1)<טבלה1[[#This Row],[התחלה]]),TIME(,טבלה1[[#This Row],[הוספת דקות]],),-TIME(,טבלה1[[#This Row],[הפחתת דקות]],)), SUM(טבלה1[[#This Row],[סיום]]-טבלה1[[#This Row],[התחלה]]+(טבלה1[[#This Row],[סיום]]<טבלה1[[#This Row],[התחלה]]),TIME(,טבלה1[[#This Row],[הוספת דקות]],),-TIME(,טבלה1[[#This Row],[הפחתת דקות]],))))<=0,"", IF(AND(טבלה1[[#This Row],[התחלה]]="",טבלה1[[#This Row],[סיום]]<>""),"",IF(AND(טבלה1[[#This Row],[התחלה]]<>"",טבלה1[[#This Row],[סיום]]=""), SUM(MOD(NOW(),1)-טבלה1[[#This Row],[התחלה]]+(MOD(NOW(),1)<טבלה1[[#This Row],[התחלה]]),TIME(,טבלה1[[#This Row],[הוספת דקות]],),-TIME(,טבלה1[[#This Row],[הפחתת דקות]],)), SUM(טבלה1[[#This Row],[סיום]]-טבלה1[[#This Row],[התחלה]]+(טבלה1[[#This Row],[סיום]]<טבלה1[[#This Row],[התחלה]]),TIME(,טבלה1[[#This Row],[הוספת דקות]],),-TIME(,טבלה1[[#This Row],[הפחתת דקות]],))))) -> 0.149849537 | K30: =IF('טיימר עבודות'!$J30="","", IFERROR(IF(IF(VLOOKUP('טיימר עבודות'!$F30,טבלה2[],3,FALSE)="$", VLOOKUP(טבלה1[[#This Row],[שם העבודה]],טבלה2[#All],2,FALSE)*טבלה1[[#This Row],[שעות]]*24*שער, VLOOKUP(טבלה1[[#This Row],[שם העבודה]],טבלה2[#All],2,FALSE)*טבלה1[[#This Row],[שעות]]*24)=0,"", IF(VLOOKUP('טיימר עבודות'!$F30,טבלה2[],3,FALSE)="$", VLOOKUP(טבלה1[[#This Row],[שם העבודה]],טבלה2[#All],2,FALSE)*טבלה1[[#This Row],[שעות]]*24*שער, VLOOKUP(טבלה1[[#This Row],[שם העבודה]],טבלה2[#All],2,FALSE)*טבלה1[[#This Row],[שעות]]*24)),"")) -> 197.8013889 | L30: =IF(טבלה1[[#This Row],[תאריך]]="","",טבלה1[[#This Row],[תאריך]]+טבלה1[[#This Row],[התחלה]]) -> 2024-03-09T20:20:01 | R30: =IF(OR(טבלה2[[#This Row],[שמות העבודות]]="",COUNTIF(עבודות,טבלה2[[#This Row],[שמות העבודות]])=0),"",COUNTIF(עבודות,טבלה2[[#This Row],[שמות העבודות]])) ->  | S30: =IF(O30="","", IFERROR(IF(SUMIFS('טיימר עבודות'!$J$11:$J$160,'טיימר עבודות'!$F$11:$F$160,O30)=0,"", SUMIFS('טיימר עבודות'!$J$11:$J$160,'טיימר עבודות'!$F$11:$F$160,O30)),"")) ->  | T30: =IFERROR(IF(OR(טבלה2[[#This Row],[שכר לשעה]]="",טבלה2[[#This Row],[שעות]]=""),"", IF(IF(OR(טבלה2[[#This Row],[מטבע]]="₪",טבלה2[[#This Row],[מטבע]]=""),טבלה2[[#This Row],[שכר לשעה]]*טבלה2[[#This Row],[שעות]]*24, IF(טבלה2[[#This Row],[מטבע]]="$",טבלה2[[#This Row],[שכר לשעה]]*טבלה2[[#This Row],[שעות]]*24*שער,""))=0,"", IF(OR(טבלה2[[#This Row],[מטבע]]="₪",טבלה2[[#This Row],[מטבע]]=""),טבלה2[[#This Row],[שכר לשעה]]*טבלה2[[#This Row],[שעות]]*24, IF(טבלה2[[#This Row],[מטבע]]="$",טבלה2[[#This Row],[שכר לשעה]]*טבלה2[[#This Row],[שעות]]*24*שער,"")))),"") ->  | U30: =IFERROR(IF(OR(טבלה2[[#This Row],[שכר לשעה]]="",טבלה2[[#This Row],[שעות]]=""),"", IF(IF(טבלה2[[#This Row],[מטבע]]="$",טבלה2[[#This Row],[שכר לשעה]]*טבלה2[[#This Row],[שעות]]*24, IF(OR(טבלה2[[#This Row],[מטבע]]="₪",טבלה2[[#This Row],[מטבע]]=""),טבלה2[[#This Row],[שכר לשעה]]*טבלה2[[#This Row],[שעות]]*24/שער,""))=0,"", IF(טבלה2[[#This Row],[מטבע]]="$",טבלה2[[#This Row],[שכר לשעה]]*טבלה2[[#This Row],[שעות]]*24, IF(OR(טבלה2[[#This Row],[מטבע]]="₪",טבלה2[[#This Row],[מטבע]]=""),טבלה2[[#This Row],[שכר לשעה]]*טבלה2[[#This Row],[שעות]]*24/שער,"")))),"") ->  | AM30: =IF(טבלה2[[#This Row],[שמות העבודות]]="","",טבלה2[[#This Row],[שמות העבודות]]) ->  | AN30: 2030
B31: =IF(AND(טבלה1[[#This Row],[תאריך]]="",טבלה1[[#This Row],[התחלה]]="",טבלה1[[#This Row],[שם העבודה]]=""),"",ROW()-10) -> 21 | C31: =IF(טבלה1[[#This Row],[תאריך]]="","",IF(TEXT(טבלה1[[#This Row],[תאריך]],"DDD")="שבת","מוצ""ש",TEXT(טבלה1[[#This Row],[תאריך]],"DDD"))) -> יום א | D31: 2024-03-10 | E31: 10:13:35 | F31: עיון במקורות | G31: 12:14:07 | J31: =IF(IF(AND(טבלה1[[#This Row],[התחלה]]="",טבלה1[[#This Row],[סיום]]<>""),"",IF(AND(טבלה1[[#This Row],[התחלה]]<>"",טבלה1[[#This Row],[סיום]]=""), SUM(MOD(NOW(),1)-טבלה1[[#This Row],[התחלה]]+(MOD(NOW(),1)<טבלה1[[#This Row],[התחלה]]),TIME(,טבלה1[[#This Row],[הוספת דקות]],),-TIME(,טבלה1[[#This Row],[הפחתת דקות]],)), SUM(טבלה1[[#This Row],[סיום]]-טבלה1[[#This Row],[התחלה]]+(טבלה1[[#This Row],[סיום]]<טבלה1[[#This Row],[התחלה]]),TIME(,טבלה1[[#This Row],[הוספת דקות]],),-TIME(,טבלה1[[#This Row],[הפחתת דקות]],))))<=0,"", IF(AND(טבלה1[[#This Row],[התחלה]]="",טבלה1[[#This Row],[סיום]]<>""),"",IF(AND(טבלה1[[#This Row],[התחלה]]<>"",טבלה1[[#This Row],[סיום]]=""), SUM(MOD(NOW(),1)-טבלה1[[#This Row],[התחלה]]+(MOD(NOW(),1)<טבלה1[[#This Row],[התחלה]]),TIME(,טבלה1[[#This Row],[הוספת דקות]],),-TIME(,טבלה1[[#This Row],[הפחתת דקות]],)), SUM(טבלה1[[#This Row],[סיום]]-טבלה1[[#This Row],[התחלה]]+(טבלה1[[#This Row],[סיום]]<טבלה1[[#This Row],[התחלה]]),TIME(,טבלה1[[#This Row],[הוספת דקות]],),-TIME(,טבלה1[[#This Row],[הפחתת דקות]],))))) -> 0.0837037037 | K31: =IF('טיימר עבודות'!$J31="","", IFERROR(IF(IF(VLOOKUP('טיימר עבודות'!$F31,טבלה2[],3,FALSE)="$", VLOOKUP(טבלה1[[#This Row],[שם העבודה]],טבלה2[#All],2,FALSE)*טבלה1[[#This Row],[שעות]]*24*שער, VLOOKUP(טבלה1[[#This Row],[שם העבודה]],טבלה2[#All],2,FALSE)*טבלה1[[#This Row],[שעות]]*24)=0,"", IF(VLOOKUP('טיימר עבודות'!$F31,טבלה2[],3,FALSE)="$", VLOOKUP(טבלה1[[#This Row],[שם העבודה]],טבלה2[#All],2,FALSE)*טבלה1[[#This Row],[שעות]]*24*שער, VLOOKUP(טבלה1[[#This Row],[שם העבודה]],טבלה2[#All],2,FALSE)*טבלה1[[#This Row],[שעות]]*24)),"")) -> 95.66128 | L31: =IF(טבלה1[[#This Row],[תאריך]]="","",טבלה1[[#This Row],[תאריך]]+טבלה1[[#This Row],[התחלה]]) -> 2024-03-10T10:13:35 | R31: =IF(OR(טבלה2[[#This Row],[שמות העבודות]]="",COUNTIF(עבודות,טבלה2[[#This Row],[שמות העבודות]])=0),"",COUNTIF(עבודות,טבלה2[[#This Row],[שמות העבודות]])) ->  | S31: =IF(O31="","", IFERROR(IF(SUMIFS('טיימר עבודות'!$J$11:$J$160,'טיימר עבודות'!$F$11:$F$160,O31)=0,"", SUMIFS('טיימר עבודות'!$J$11:$J$160,'טיימר עבודות'!$F$11:$F$160,O31)),"")) ->  | T31: =IFERROR(IF(OR(טבלה2[[#This Row],[שכר לשעה]]="",טבלה2[[#This Row],[שעות]]=""),"", IF(IF(OR(טבלה2[[#This Row],[מטבע]]="₪",טבלה2[[#This Row],[מטבע]]=""),טבלה2[[#This Row],[שכר לשעה]]*טבלה2[[#This Row],[שעות]]*24, IF(טבלה2[[#This Row],[מטבע]]="$",טבלה2[[#This Row],[שכר לשעה]]*טבלה2[[#This Row],[שעות]]*24*שער,""))=0,"", IF(OR(טבלה2[[#This Row],[מטבע]]="₪",טבלה2[[#This Row],[מטבע]]=""),טבלה2[[#This Row],[שכר לשעה]]*טבלה2[[#This Row],[שעות]]*24, IF(טבלה2[[#This Row],[מטבע]]="$",טבלה2[[#This Row],[שכר לשעה]]*טבלה2[[#This Row],[שעות]]*24*שער,"")))),"") ->  | U31: =IFERROR(IF(OR(טבלה2[[#This Row],[שכר לשעה]]="",טבלה2[[#This Row],[שעות]]=""),"", IF(IF(טבלה2[[#This Row],[מטבע]]="$",טבלה2[[#This Row],[שכר לשעה]]*טבלה2[[#This Row],[שעות]]*24, IF(OR(טבלה2[[#This Row],[מטבע]]="₪",טבלה2[[#This Row],[מטבע]]=""),טבלה2[[#This Row],[שכר לשעה]]*טבלה2[[#This Row],[שעות]]*24/שער,""))=0,"", IF(טבלה2[[#This Row],[מטבע]]="$",טבלה2[[#This Row],[שכר לשעה]]*טבלה2[[#This Row],[שעות]]*24, IF(OR(טבלה2[[#This Row],[מטבע]]="₪",טבלה2[[#This Row],[מטבע]]=""),טבלה2[[#This Row],[שכר לשעה]]*טבלה2[[#This Row],[שעות]]*24/שער,"")))),"") ->  | AM31: =IF(טבלה2[[#This Row],[שמות העבודות]]="","",טבלה2[[#This Row],[שמות העבודות]]) ->  | AN31: 2031
B32: =IF(AND(טבלה1[[#This Row],[תאריך]]="",טבלה1[[#This Row],[התחלה]]="",טבלה1[[#This Row],[שם העבודה]]=""),"",ROW()-10) -> 22 | C32: =IF(טבלה1[[#This Row],[תאריך]]="","",IF(TEXT(טבלה1[[#This Row],[תאריך]],"DDD")="שבת","מוצ""ש",TEXT(טבלה1[[#This Row],[תאריך]],"DDD"))) -> יום א | D32: 2024-03-10 | E32: 20:20:01 | F32: הגהה ודקדוק | G32: 23:45:48 | J32: =IF(IF(AND(טבלה1[[#This Row],[התחלה]]="",טבלה1[[#This Row],[סיום]]<>""),"",IF(AND(טבלה1[[#This Row],[התחלה]]<>"",טבלה1[[#This Row],[סיום]]=""), SUM(MOD(NOW(),1)-טבלה1[[#This Row],[התחלה]]+(MOD(NOW(),1)<טבלה1[[#This Row],[התחלה]]),TIME(,טבלה1[[#This Row],[הוספת דקות]],),-TIME(,טבלה1[[#This Row],[הפחתת דקות]],)), SUM(טבלה1[[#This Row],[סיום]]-טבלה1[[#This Row],[התחלה]]+(טבלה1[[#This Row],[סיום]]<טבלה1[[#This Row],[התחלה]]),TIME(,טבלה1[[#This Row],[הוספת דקות]],),-TIME(,טבלה1[[#This Row],[הפחתת דקות]],))))<=0,"", IF(AND(טבלה1[[#This Row],[התחלה]]="",טבלה1[[#This Row],[סיום]]<>""),"",IF(AND(טבלה1[[#This Row],[התחלה]]<>"",טבלה1[[#This Row],[סיום]]=""), SUM(MOD(NOW(),1)-טבלה1[[#This Row],[התחלה]]+(MOD(NOW(),1)<טבלה1[[#This Row],[התחלה]]),TIME(,טבלה1[[#This Row],[הוספת דקות]],),-TIME(,טבלה1[[#This Row],[הפחתת דקות]],)), SUM(טבלה1[[#This Row],[סיום]]-טבלה1[[#This Row],[התחלה]]+(טבלה1[[#This Row],[סיום]]<טבלה1[[#This Row],[התחלה]]),TIME(,טבלה1[[#This Row],[הוספת דקות]],),-TIME(,טבלה1[[#This Row],[הפחתת דקות]],))))) -> 0.1429050926 | K32: =IF('טיימר עבודות'!$J32="","", IFERROR(IF(IF(VLOOKUP('טיימר עבודות'!$F32,טבלה2[],3,FALSE)="$", VLOOKUP(טבלה1[[#This Row],[שם העבודה]],טבלה2[#All],2,FALSE)*טבלה1[[#This Row],[שעות]]*24*שער, VLOOKUP(טבלה1[[#This Row],[שם העבודה]],טבלה2[#All],2,FALSE)*טבלה1[[#This Row],[שעות]]*24)=0,"", IF(VLOOKUP('טיימר עבודות'!$F32,טבלה2[],3,FALSE)="$", VLOOKUP(טבלה1[[#This Row],[שם העבודה]],טבלה2[#All],2,FALSE)*טבלה1[[#This Row],[שעות]]*24*שער, VLOOKUP(טבלה1[[#This Row],[שם העבודה]],טבלה2[#All],2,FALSE)*טבלה1[[#This Row],[שעות]]*24)),"")) -> 171.4861111 | L32: =IF(טבלה1[[#This Row],[תאריך]]="","",טבלה1[[#This Row],[תאריך]]+טבלה1[[#This Row],[התחלה]]) -> 2024-03-10T20:20:01 | R32: =IF(OR(טבלה2[[#This Row],[שמות העבודות]]="",COUNTIF(עבודות,טבלה2[[#This Row],[שמות העבודות]])=0),"",COUNTIF(עבודות,טבלה2[[#This Row],[שמות העבודות]])) ->  | S32: =IF(O32="","", IFERROR(IF(SUMIFS('טיימר עבודות'!$J$11:$J$160,'טיימר עבודות'!$F$11:$F$160,O32)=0,"", SUMIFS('טיימר עבודות'!$J$11:$J$160,'טיימר עבודות'!$F$11:$F$160,O32)),"")) ->  | T32: =IFERROR(IF(OR(טבלה2[[#This Row],[שכר לשעה]]="",טבלה2[[#This Row],[שעות]]=""),"", IF(IF(OR(טבלה2[[#This Row],[מטבע]]="₪",טבלה2[[#This Row],[מטבע]]=""),טבלה2[[#This Row],[שכר לשעה]]*טבלה2[[#This Row],[שעות]]*24, IF(טבלה2[[#This Row],[מטבע]]="$",טבלה2[[#This Row],[שכר לשעה]]*טבלה2[[#This Row],[שעות]]*24*שער,""))=0,"", IF(OR(טבלה2[[#This Row],[מטבע]]="₪",טבלה2[[#This Row],[מטבע]]=""),טבלה2[[#This Row],[שכר לשעה]]*טבלה2[[#This Row],[שעות]]*24, IF(טבלה2[[#This Row],[מטבע]]="$",טבלה2[[#This Row],[שכר לשעה]]*טבלה2[[#This Row],[שעות]]*24*שער,"")))),"") ->  | U32: =IFERROR(IF(OR(טבלה2[[#This Row],[שכר לשעה]]="",טבלה2[[#This Row],[שעות]]=""),"", IF(IF(טבלה2[[#This Row],[מטבע]]="$",טבלה2[[#This Row],[שכר לשעה]]*טבלה2[[#This Row],[שעות]]*24, IF(OR(טבלה2[[#This Row],[מטבע]]="₪",טבלה2[[#This Row],[מטבע]]=""),טבלה2[[#This Row],[שכר לשעה]]*טבלה2[[#This Row],[שעות]]*24/שער,""))=0,"", IF(טבלה2[[#This Row],[מטבע]]="$",טבלה2[[#This Row],[שכר לשעה]]*טבלה2[[#This Row],[שעות]]*24, IF(OR(טבלה2[[#This Row],[מטבע]]="₪",טבלה2[[#This Row],[מטבע]]=""),טבלה2[[#This Row],[שכר לשעה]]*טבלה2[[#This Row],[שעות]]*24/שער,"")))),"") ->  | AM32: =IF(טבלה2[[#This Row],[שמות העבודות]]="","",טבלה2[[#This Row],[שמות העבודות]]) ->  | AN32: 2032
B33: =IF(AND(טבלה1[[#This Row],[תאריך]]="",טבלה1[[#This Row],[התחלה]]="",טבלה1[[#This Row],[שם העבודה]]=""),"",ROW()-10) -> 23 | C33: =IF(טבלה1[[#This Row],[תאריך]]="","",IF(TEXT(טבלה1[[#This Row],[תאריך]],"DDD")="שבת","מוצ""ש",TEXT(טבלה1[[#This Row],[תאריך]],"DDD"))) -> יום ב | D33: 2024-03-11 | E33: 10:13:35 | F33: ניקוד | G33: 12:14:07 | H33: 19 | J33: =IF(IF(AND(טבלה1[[#This Row],[התחלה]]="",טבלה1[[#This Row],[סיום]]<>""),"",IF(AND(טבלה1[[#This Row],[התחלה]]<>"",טבלה1[[#This Row],[סיום]]=""), SUM(MOD(NOW(),1)-טבלה1[[#This Row],[התחלה]]+(MOD(NOW(),1)<טבלה1[[#This Row],[התחלה]]),TIME(,טבלה1[[#This Row],[הוספת דקות]],),-TIME(,טבלה1[[#This Row],[הפחתת דקות]],)), SUM(טבלה1[[#This Row],[סיום]]-טבלה1[[#This Row],[התחלה]]+(טבלה1[[#This Row],[סיום]]<טבלה1[[#This Row],[התחלה]]),TIME(,טבלה1[[#This Row],[הוספת דקות]],),-TIME(,טבלה1[[#This Row],[הפחתת דקות]],))))<=0,"", IF(AND(טבלה1[[#This Row],[התחלה]]="",טבלה1[[#This Row],[סיום]]<>""),"",IF(AND(טבלה1[[#This Row],[התחלה]]<>"",טבלה1[[#This Row],[סיום]]=""), SUM(MOD(NOW(),1)-טבלה1[[#This Row],[התחלה]]+(MOD(NOW(),1)<טבלה1[[#This Row],[התחלה]]),TIME(,טבלה1[[#This Row],[הוספת דקות]],),-TIME(,טבלה1[[#This Row],[הפחתת דקות]],)), SUM(טבלה1[[#This Row],[סיום]]-טבלה1[[#This Row],[התחלה]]+(טבלה1[[#This Row],[סיום]]<טבלה1[[#This Row],[התחלה]]),TIME(,טבלה1[[#This Row],[הוספת דקות]],),-TIME(,טבלה1[[#This Row],[הפחתת דקות]],))))) -> 0.09689814815 | K33: =IF('טיימר עבודות'!$J33="","", IFERROR(IF(IF(VLOOKUP('טיימר עבודות'!$F33,טבלה2[],3,FALSE)="$", VLOOKUP(טבלה1[[#This Row],[שם העבודה]],טבלה2[#All],2,FALSE)*טבלה1[[#This Row],[שעות]]*24*שער, VLOOKUP(טבלה1[[#This Row],[שם העבודה]],טבלה2[#All],2,FALSE)*טבלה1[[#This Row],[שעות]]*24)=0,"", IF(VLOOKUP('טיימר עבודות'!$F33,טבלה2[],3,FALSE)="$", VLOOKUP(טבלה1[[#This Row],[שם העבודה]],טבלה2[#All],2,FALSE)*טבלה1[[#This Row],[שעות]]*24*שער, VLOOKUP(טבלה1[[#This Row],[שם העבודה]],טבלה2[#All],2,FALSE)*טבלה1[[#This Row],[שעות]]*24)),"")) -> 151.1611111 | L33: =IF(טבלה1[[#This Row],[תאריך]]="","",טבלה1[[#This Row],[תאריך]]+טבלה1[[#This Row],[התחלה]]) -> 2024-03-11T10:13:35 | R33: =IF(OR(טבלה2[[#This Row],[שמות העבודות]]="",COUNTIF(עבודות,טבלה2[[#This Row],[שמות העבודות]])=0),"",COUNTIF(עבודות,טבלה2[[#This Row],[שמות העבודות]])) ->  | S33: =IF(O33="","", IFERROR(IF(SUMIFS('טיימר עבודות'!$J$11:$J$160,'טיימר עבודות'!$F$11:$F$160,O33)=0,"", SUMIFS('טיימר עבודות'!$J$11:$J$160,'טיימר עבודות'!$F$11:$F$160,O33)),"")) ->  | T33: =IFERROR(IF(OR(טבלה2[[#This Row],[שכר לשעה]]="",טבלה2[[#This Row],[שעות]]=""),"", IF(IF(OR(טבלה2[[#This Row],[מטבע]]="₪",טבלה2[[#This Row],[מטבע]]=""),טבלה2[[#This Row],[שכר לשעה]]*טבלה2[[#This Row],[שעות]]*24, IF(טבלה2[[#This Row],[מטבע]]="$",טבלה2[[#This Row],[שכר לשעה]]*טבלה2[[#This Row],[שעות]]*24*שער,""))=0,"", IF(OR(טבלה2[[#This Row],[מטבע]]="₪",טבלה2[[#This Row],[מטבע]]=""),טבלה2[[#This Row],[שכר לשעה]]*טבלה2[[#This Row],[שעות]]*24, IF(טבלה2[[#This Row],[מטבע]]="$",טבלה2[[#This Row],[שכר לשעה]]*טבלה2[[#This Row],[שעות]]*24*שער,"")))),"") ->  | U33: =IFERROR(IF(OR(טבלה2[[#This Row],[שכר לשעה]]="",טבלה2[[#This Row],[שעות]]=""),"", IF(IF(טבלה2[[#This Row],[מטבע]]="$",טבלה2[[#This Row],[שכר לשעה]]*טבלה2[[#This Row],[שעות]]*24, IF(OR(טבלה2[[#This Row],[מטבע]]="₪",טבלה2[[#This Row],[מטבע]]=""),טבלה2[[#This Row],[שכר לשעה]]*טבלה2[[#This Row],[שעות]]*24/שער,""))=0,"", IF(טבלה2[[#This Row],[מטבע]]="$",טבלה2[[#This Row],[שכר לשעה]]*טבלה2[[#This Row],[שעות]]*24, IF(OR(טבלה2[[#This Row],[מטבע]]="₪",טבלה2[[#This Row],[מטבע]]=""),טבלה2[[#This Row],[שכר לשעה]]*טבלה2[[#This Row],[שעות]]*24/שער,"")))),"") ->  | AM33: =IF(טבלה2[[#This Row],[שמות העבודות]]="","",טבלה2[[#This Row],[שמות העבודות]]) ->  | AN33: 2033
B34: =IF(AND(טבלה1[[#This Row],[תאריך]]="",טבלה1[[#This Row],[התחלה]]="",טבלה1[[#This Row],[שם העבודה]]=""),"",ROW()-10) -> 24 | C34: =IF(טבלה1[[#This Row],[תאריך]]="","",IF(TEXT(טבלה1[[#This Row],[תאריך]],"DDD")="שבת","מוצ""ש",TEXT(טבלה1[[#This Row],[תאריך]],"DDD"))) -> יום ב | D34: 2024-03-11 | E34: 20:20:01 | F34: מכון תורה | G34: 23:45:48 | I34: 5 | J34: =IF(IF(AND(טבלה1[[#This Row],[התחלה]]="",טבלה1[[#This Row],[סיום]]<>""),"",IF(AND(טבלה1[[#This Row],[התחלה]]<>"",טבלה1[[#This Row],[סיום]]=""), SUM(MOD(NOW(),1)-טבלה1[[#This Row],[התחלה]]+(MOD(NOW(),1)<טבלה1[[#This Row],[התחלה]]),TIME(,טבלה1[[#This Row],[הוספת דקות]],),-TIME(,טבלה1[[#This Row],[הפחתת דקות]],)), SUM(טבלה1[[#This Row],[סיום]]-טבלה1[[#This Row],[התחלה]]+(טבלה1[[#This Row],[סיום]]<טבלה1[[#This Row],[התחלה]]),TIME(,טבלה1[[#This Row],[הוספת דקות]],),-TIME(,טבלה1[[#This Row],[הפחתת דקות]],))))<=0,"", IF(AND(טבלה1[[#This Row],[התחלה]]="",טבלה1[[#This Row],[סיום]]<>""),"",IF(AND(טבלה1[[#This Row],[התחלה]]<>"",טבלה1[[#This Row],[סיום]]=""), SUM(MOD(NOW(),1)-טבלה1[[#This Row],[התחלה]]+(MOD(NOW(),1)<טבלה1[[#This Row],[התחלה]]),TIME(,טבלה1[[#This Row],[הוספת דקות]],),-TIME(,טבלה1[[#This Row],[הפחתת דקות]],)), SUM(טבלה1[[#This Row],[סיום]]-טבלה1[[#This Row],[התחלה]]+(טבלה1[[#This Row],[סיום]]<טבלה1[[#This Row],[התחלה]]),TIME(,טבלה1[[#This Row],[הוספת דקות]],),-TIME(,טבלה1[[#This Row],[הפחתת דקות]],))))) -> 0.1394328704 | K34: =IF('טיימר עבודות'!$J34="","", IFERROR(IF(IF(VLOOKUP('טיימר עבודות'!$F34,טבלה2[],3,FALSE)="$", VLOOKUP(טבלה1[[#This Row],[שם העבודה]],טבלה2[#All],2,FALSE)*טבלה1[[#This Row],[שעות]]*24*שער, VLOOKUP(טבלה1[[#This Row],[שם העבודה]],טבלה2[#All],2,FALSE)*טבלה1[[#This Row],[שעות]]*24)=0,"", IF(VLOOKUP('טיימר עבודות'!$F34,טבלה2[],3,FALSE)="$", VLOOKUP(טבלה1[[#This Row],[שם העבודה]],טבלה2[#All],2,FALSE)*טבלה1[[#This Row],[שעות]]*24*שער, VLOOKUP(טבלה1[[#This Row],[שם העבודה]],טבלה2[#All],2,FALSE)*טבלה1[[#This Row],[שעות]]*24)),"")) -> 133.8555556 | L34: =IF(טבלה1[[#This Row],[תאריך]]="","",טבלה1[[#This Row],[תאריך]]+טבלה1[[#This Row],[התחלה]]) -> 2024-03-11T20:20:01 | R34: =IF(OR(טבלה2[[#This Row],[שמות העבודות]]="",COUNTIF(עבודות,טבלה2[[#This Row],[שמות העבודות]])=0),"",COUNTIF(עבודות,טבלה2[[#This Row],[שמות העבודות]])) ->  | S34: =IF(O34="","", IFERROR(IF(SUMIFS('טיימר עבודות'!$J$11:$J$160,'טיימר עבודות'!$F$11:$F$160,O34)=0,"", SUMIFS('טיימר עבודות'!$J$11:$J$160,'טיימר עבודות'!$F$11:$F$160,O34)),"")) ->  | T34: =IFERROR(IF(OR(טבלה2[[#This Row],[שכר לשעה]]="",טבלה2[[#This Row],[שעות]]=""),"", IF(IF(OR(טבלה2[[#This Row],[מטבע]]="₪",טבלה2[[#This Row],[מטבע]]=""),טבלה2[[#This Row],[שכר לשעה]]*טבלה2[[#This Row],[שעות]]*24, IF(טבלה2[[#This Row],[מטבע]]="$",טבלה2[[#This Row],[שכר לשעה]]*טבלה2[[#This Row],[שעות]]*24*שער,""))=0,"", IF(OR(טבלה2[[#This Row],[מטבע]]="₪",טבלה2[[#This Row],[מטבע]]=""),טבלה2[[#This Row],[שכר לשעה]]*טבלה2[[#This Row],[שעות]]*24, IF(טבלה2[[#This Row],[מטבע]]="$",טבלה2[[#This Row],[שכר לשעה]]*טבלה2[[#This Row],[שעות]]*24*שער,"")))),"") ->  | U34: =IFERROR(IF(OR(טבלה2[[#This Row],[שכר לשעה]]="",טבלה2[[#This Row],[שעות]]=""),"", IF(IF(טבלה2[[#This Row],[מטבע]]="$",טבלה2[[#This Row],[שכר לשעה]]*טבלה2[[#This Row],[שעות]]*24, IF(OR(טבלה2[[#This Row],[מטבע]]="₪",טבלה2[[#This Row],[מטבע]]=""),טבלה2[[#This Row],[שכר לשעה]]*טבלה2[[#This Row],[שעות]]*24/שער,""))=0,"", IF(טבלה2[[#This Row],[מטבע]]="$",טבלה2[[#This Row],[שכר לשעה]]*טבלה2[[#This Row],[שעות]]*24, IF(OR(טבלה2[[#This Row],[מטבע]]="₪",טבלה2[[#This Row],[מטבע]]=""),טבלה2[[#This Row],[שכר לשעה]]*טבלה2[[#This Row],[שעות]]*24/שער,"")))),"") ->  | AM34: =IF(טבלה2[[#This Row],[שמות העבודות]]="","",טבלה2[[#This Row],[שמות העבודות]]) ->  | AN34: 2034
B35: =IF(AND(טבלה1[[#This Row],[תאריך]]="",טבלה1[[#This Row],[התחלה]]="",טבלה1[[#This Row],[שם העבודה]]=""),"",ROW()-10) -> 25 | C35: =IF(טבלה1[[#This Row],[תאריך]]="","",IF(TEXT(טבלה1[[#This Row],[תאריך]],"DDD")="שבת","מוצ""ש",TEXT(טבלה1[[#This Row],[תאריך]],"DDD"))) -> יום ג | D35: 2024-03-12 | E35: 10:13:35 | F35: עימוד | G35: 12:14:07 | J35: =IF(IF(AND(טבלה1[[#This Row],[התחלה]]="",טבלה1[[#This Row],[סיום]]<>""),"",IF(AND(טבלה1[[#This Row],[התחלה]]<>"",טבלה1[[#This Row],[סיום]]=""), SUM(MOD(NOW(),1)-טבלה1[[#This Row],[התחלה]]+(MOD(NOW(),1)<טבלה1[[#This Row],[התחלה]]),TIME(,טבלה1[[#This Row],[הוספת דקות]],),-TIME(,טבלה1[[#This Row],[הפחתת דקות]],)), SUM(טבלה1[[#This Row],[סיום]]-טבלה1[[#This Row],[התחלה]]+(טבלה1[[#This Row],[סיום]]<טבלה1[[#This Row],[התחלה]]),TIME(,טבלה1[[#This Row],[הוספת דקות]],),-TIME(,טבלה1[[#This Row],[הפחתת דקות]],))))<=0,"", IF(AND(טבלה1[[#This Row],[התחלה]]="",טבלה1[[#This Row],[סיום]]<>""),"",IF(AND(טבלה1[[#This Row],[התחלה]]<>"",טבלה1[[#This Row],[סיום]]=""), SUM(MOD(NOW(),1)-טבלה1[[#This Row],[התחלה]]+(MOD(NOW(),1)<טבלה1[[#This Row],[התחלה]]),TIME(,טבלה1[[#This Row],[הוספת דקות]],),-TIME(,טבלה1[[#This Row],[הפחתת דקות]],)), SUM(טבלה1[[#This Row],[סיום]]-טבלה1[[#This Row],[התחלה]]+(טבלה1[[#This Row],[סיום]]<טבלה1[[#This Row],[התחלה]]),TIME(,טבלה1[[#This Row],[הוספת דקות]],),-TIME(,טבלה1[[#This Row],[הפחתת דקות]],))))) -> 0.0837037037 | K35: =IF('טיימר עבודות'!$J35="","", IFERROR(IF(IF(VLOOKUP('טיימר עבודות'!$F35,טבלה2[],3,FALSE)="$", VLOOKUP(טבלה1[[#This Row],[שם העבודה]],טבלה2[#All],2,FALSE)*טבלה1[[#This Row],[שעות]]*24*שער, VLOOKUP(טבלה1[[#This Row],[שם העבודה]],טבלה2[#All],2,FALSE)*טבלה1[[#This Row],[שעות]]*24)=0,"", IF(VLOOKUP('טיימר עבודות'!$F35,טבלה2[],3,FALSE)="$", VLOOKUP(טבלה1[[#This Row],[שם העבודה]],טבלה2[#All],2,FALSE)*טבלה1[[#This Row],[שעות]]*24*שער, VLOOKUP(טבלה1[[#This Row],[שם העבודה]],טבלה2[#All],2,FALSE)*טבלה1[[#This Row],[שעות]]*24)),"")) -> 110.4888889 | L35: =IF(טבלה1[[#This Row],[תאריך]]="","",טבלה1[[#This Row],[תאריך]]+טבלה1[[#This Row],[התחלה]]) -> 2024-03-12T10:13:35 | R35: =IF(OR(טבלה2[[#This Row],[שמות העבודות]]="",COUNTIF(עבודות,טבלה2[[#This Row],[שמות העבודות]])=0),"",COUNTIF(עבודות,טבלה2[[#This Row],[שמות העבודות]])) ->  | S35: =IF(O35="","", IFERROR(IF(SUMIFS('טיימר עבודות'!$J$11:$J$160,'טיימר עבודות'!$F$11:$F$160,O35)=0,"", SUMIFS('טיימר עבודות'!$J$11:$J$160,'טיימר עבודות'!$F$11:$F$160,O35)),"")) ->  | T35: =IFERROR(IF(OR(טבלה2[[#This Row],[שכר לשעה]]="",טבלה2[[#This Row],[שעות]]=""),"", IF(IF(OR(טבלה2[[#This Row],[מטבע]]="₪",טבלה2[[#This Row],[מטבע]]=""),טבלה2[[#This Row],[שכר לשעה]]*טבלה2[[#This Row],[שעות]]*24, IF(טבלה2[[#This Row],[מטבע]]="$",טבלה2[[#This Row],[שכר לשעה]]*טבלה2[[#This Row],[שעות]]*24*שער,""))=0,"", IF(OR(טבלה2[[#This Row],[מטבע]]="₪",טבלה2[[#This Row],[מטבע]]=""),טבלה2[[#This Row],[שכר לשעה]]*טבלה2[[#This Row],[שעות]]*24, IF(טבלה2[[#This Row],[מטבע]]="$",טבלה2[[#This Row],[שכר לשעה]]*טבלה2[[#This Row],[שעות]]*24*שער,"")))),"") ->  | U35: =IFERROR(IF(OR(טבלה2[[#This Row],[שכר לשעה]]="",טבלה2[[#This Row],[שעות]]=""),"", IF(IF(טבלה2[[#This Row],[מטבע]]="$",טבלה2[[#This Row],[שכר לשעה]]*טבלה2[[#This Row],[שעות]]*24, IF(OR(טבלה2[[#This Row],[מטבע]]="₪",טבלה2[[#This Row],[מטבע]]=""),טבלה2[[#This Row],[שכר לשעה]]*טבלה2[[#This Row],[שעות]]*24/שער,""))=0,"", IF(טבלה2[[#This Row],[מטבע]]="$",טבלה2[[#This Row],[שכר לשעה]]*טבלה2[[#This Row],[שעות]]*24, IF(OR(טבלה2[[#This Row],[מטבע]]="₪",טבלה2[[#This Row],[מטבע]]=""),טבלה2[[#This Row],[שכר לשעה]]*טבלה2[[#This Row],[שעות]]*24/שער,"")))),"") ->  | AM35: =IF(טבלה2[[#This Row],[שמות העבודות]]="","",טבלה2[[#This Row],[שמות העבודות]]) ->  | AN35: 2035
B36: =IF(AND(טבלה1[[#This Row],[תאריך]]="",טבלה1[[#This Row],[התחלה]]="",טבלה1[[#This Row],[שם העבודה]]=""),"",ROW()-10) -> 26 | C36: =IF(טבלה1[[#This Row],[תאריך]]="","",IF(TEXT(טבלה1[[#This Row],[תאריך]],"DDD")="שבת","מוצ""ש",TEXT(טבלה1[[#This Row],[תאריך]],"DDD"))) -> יום ג | D36: 2024-03-12 | E36: 20:20:01 | F36: עיון במקורות | G36: 23:45:48 | J36: =IF(IF(AND(טבלה1[[#This Row],[התחלה]]="",טבלה1[[#This Row],[סיום]]<>""),"",IF(AND(טבלה1[[#This Row],[התחלה]]<>"",טבלה1[[#This Row],[סיום]]=""), SUM(MOD(NOW(),1)-טבלה1[[#This Row],[התחלה]]+(MOD(NOW(),1)<טבלה1[[#This Row],[התחלה]]),TIME(,טבלה1[[#This Row],[הוספת דקות]],),-TIME(,טבלה1[[#This Row],[הפחתת דקות]],)), SUM(טבלה1[[#This Row],[סיום]]-טבלה1[[#This Row],[התחלה]]+(טבלה1[[#This Row],[סיום]]<טבלה1[[#This Row],[התחלה]]),TIME(,טבלה1[[#This Row],[הוספת דקות]],),-TIME(,טבלה1[[#This Row],[הפחתת דקות]],))))<=0,"", IF(AND(טבלה1[[#This Row],[התחלה]]="",טבלה1[[#This Row],[סיום]]<>""),"",IF(AND(טבלה1[[#This Row],[התחלה]]<>"",טבלה1[[#This Row],[סיום]]=""), SUM(MOD(NOW(),1)-טבלה1[[#This Row],[התחלה]]+(MOD(NOW(),1)<טבלה1[[#This Row],[התחלה]]),TIME(,טבלה1[[#This Row],[הוספת דקות]],),-TIME(,טבלה1[[#This Row],[הפחתת דקות]],)), SUM(טבלה1[[#This Row],[סיום]]-טבלה1[[#This Row],[התחלה]]+(טבלה1[[#This Row],[סיום]]<טבלה1[[#This Row],[התחלה]]),TIME(,טבלה1[[#This Row],[הוספת דקות]],),-TIME(,טבלה1[[#This Row],[הפחתת דקות]],))))) -> 0.1429050926 | K36: =IF('טיימר עבודות'!$J36="","", IFERROR(IF(IF(VLOOKUP('טיימר עבודות'!$F36,טבלה2[],3,FALSE)="$", VLOOKUP(טבלה1[[#This Row],[שם העבודה]],טבלה2[#All],2,FALSE)*טבלה1[[#This Row],[שעות]]*24*שער, VLOOKUP(טבלה1[[#This Row],[שם העבודה]],טבלה2[#All],2,FALSE)*טבלה1[[#This Row],[שעות]]*24)=0,"", IF(VLOOKUP('טיימר עבודות'!$F36,טבלה2[],3,FALSE)="$", VLOOKUP(טבלה1[[#This Row],[שם העבודה]],טבלה2[#All],2,FALSE)*טבלה1[[#This Row],[שעות]]*24*שער, VLOOKUP(טבלה1[[#This Row],[שם העבודה]],טבלה2[#All],2,FALSE)*טבלה1[[#This Row],[שעות]]*24)),"")) -> 163.3199425 | L36: =IF(טבלה1[[#This Row],[תאריך]]="","",טבלה1[[#This Row],[תאריך]]+טבלה1[[#This Row],[התחלה]]) -> 2024-03-12T20:20:01 | R36: =IF(OR(טבלה2[[#This Row],[שמות העבודות]]="",COUNTIF(עבודות,טבלה2[[#This Row],[שמות העבודות]])=0),"",COUNTIF(עבודות,טבלה2[[#This Row],[שמות העבודות]])) ->  | S36: =IF(O36="","", IFERROR(IF(SUMIFS('טיימר עבודות'!$J$11:$J$160,'טיימר עבודות'!$F$11:$F$160,O36)=0,"", SUMIFS('טיימר עבודות'!$J$11:$J$160,'טיימר עבודות'!$F$11:$F$160,O36)),"")) ->  | T36: =IFERROR(IF(OR(טבלה2[[#This Row],[שכר לשעה]]="",טבלה2[[#This Row],[שעות]]=""),"", IF(IF(OR(טבלה2[[#This Row],[מטבע]]="₪",טבלה2[[#This Row],[מטבע]]=""),טבלה2[[#This Row],[שכר לשעה]]*טבלה2[[#This Row],[שעות]]*24, IF(טבלה2[[#This Row],[מטבע]]="$",טבלה2[[#This Row],[שכר לשעה]]*טבלה2[[#This Row],[שעות]]*24*שער,""))=0,"", IF(OR(טבלה2[[#This Row],[מטבע]]="₪",טבלה2[[#This Row],[מטבע]]=""),טבלה2[[#This Row],[שכר לשעה]]*טבלה2[[#This Row],[שעות]]*24, IF(טבלה2[[#This Row],[מטבע]]="$",טבלה2[[#This Row],[שכר לשעה]]*טבלה2[[#This Row],[שעות]]*24*שער,"")))),"") ->  | U36: =IFERROR(IF(OR(טבלה2[[#This Row],[שכר לשעה]]="",טבלה2[[#This Row],[שעות]]=""),"", IF(IF(טבלה2[[#This Row],[מטבע]]="$",טבלה2[[#This Row],[שכר לשעה]]*טבלה2[[#This Row],[שעות]]*24, IF(OR(טבלה2[[#This Row],[מטבע]]="₪",טבלה2[[#This Row],[מטבע]]=""),טבלה2[[#This Row],[שכר לשעה]]*טבלה2[[#This Row],[שעות]]*24/שער,""))=0,"", IF(טבלה2[[#This Row],[מטבע]]="$",טבלה2[[#This Row],[שכר לשעה]]*טבלה2[[#This Row],[שעות]]*24, IF(OR(טבלה2[[#This Row],[מטבע]]="₪",טבלה2[[#This Row],[מטבע]]=""),טבלה2[[#This Row],[שכר לשעה]]*טבלה2[[#This Row],[שעות]]*24/שער,"")))),"") ->  | AM36: =IF(טבלה2[[#This Row],[שמות העבודות]]="","",טבלה2[[#This Row],[שמות העבודות]]) ->  | AN36: 2036
B37: =IF(AND(טבלה1[[#This Row],[תאריך]]="",טבלה1[[#This Row],[התחלה]]="",טבלה1[[#This Row],[שם העבודה]]=""),"",ROW()-10) -> 27 | C37: =IF(טבלה1[[#This Row],[תאריך]]="","",IF(TEXT(טבלה1[[#This Row],[תאריך]],"DDD")="שבת","מוצ""ש",TEXT(טבלה1[[#This Row],[תאריך]],"DDD"))) -> יום ד | D37: 2024-03-13 | E37: 10:13:35 | F37: הגהה ודקדוק | G37: 12:14:07 | J37: =IF(IF(AND(טבלה1[[#This Row],[התחלה]]="",טבלה1[[#This Row],[סיום]]<>""),"",IF(AND(טבלה1[[#This Row],[התחלה]]<>"",טבלה1[[#This Row],[סיום]]=""), SUM(MOD(NOW(),1)-טבלה1[[#This Row],[התחלה]]+(MOD(NOW(),1)<טבלה1[[#This Row],[התחלה]]),TIME(,טבלה1[[#This Row],[הוספת דקות]],),-TIME(,טבלה1[[#This Row],[הפחתת דקות]],)), SUM(טבלה1[[#This Row],[סיום]]-טבלה1[[#This Row],[התחלה]]+(טבלה1[[#This Row],[סיום]]<טבלה1[[#This Row],[התחלה]]),TIME(,טבלה1[[#This Row],[הוספת דקות]],),-TIME(,טבלה1[[#This Row],[הפחתת דקות]],))))<=0,"", IF(AND(טבלה1[[#This Row],[התחלה]]="",טבלה1[[#This Row],[סיום]]<>""),"",IF(AND(טבלה1[[#This Row],[התחלה]]<>"",טבלה1[[#This Row],[סיום]]=""), SUM(MOD(NOW(),1)-טבלה1[[#This Row],[התחלה]]+(MOD(NOW(),1)<טבלה1[[#This Row],[התחלה]]),TIME(,טבלה1[[#This Row],[הוספת דקות]],),-TIME(,טבלה1[[#This Row],[הפחתת דקות]],)), SUM(טבלה1[[#This Row],[סיום]]-טבלה1[[#This Row],[התחלה]]+(טבלה1[[#This Row],[סיום]]<טבלה1[[#This Row],[התחלה]]),TIME(,טבלה1[[#This Row],[הוספת דקות]],),-TIME(,טבלה1[[#This Row],[הפחתת דקות]],))))) -> 0.0837037037 | K37: =IF('טיימר עבודות'!$J37="","", IFERROR(IF(IF(VLOOKUP('טיימר עבודות'!$F37,טבלה2[],3,FALSE)="$", VLOOKUP(טבלה1[[#This Row],[שם העבודה]],טבלה2[#All],2,FALSE)*טבלה1[[#This Row],[שעות]]*24*שער, VLOOKUP(טבלה1[[#This Row],[שם העבודה]],טבלה2[#All],2,FALSE)*טבלה1[[#This Row],[שעות]]*24)=0,"", IF(VLOOKUP('טיימר עבודות'!$F37,טבלה2[],3,FALSE)="$", VLOOKUP(טבלה1[[#This Row],[שם העבודה]],טבלה2[#All],2,FALSE)*טבלה1[[#This Row],[שעות]]*24*שער, VLOOKUP(טבלה1[[#This Row],[שם העבודה]],טבלה2[#All],2,FALSE)*טבלה1[[#This Row],[שעות]]*24)),"")) -> 100.4444444 | L37: =IF(טבלה1[[#This Row],[תאריך]]="","",טבלה1[[#This Row],[תאריך]]+טבלה1[[#This Row],[התחלה]]) -> 2024-03-13T10:13:35 | R37: =IF(OR(טבלה2[[#This Row],[שמות העבודות]]="",COUNTIF(עבודות,טבלה2[[#This Row],[שמות העבודות]])=0),"",COUNTIF(עבודות,טבלה2[[#This Row],[שמות העבודות]])) ->  | S37: =IF(O37="","", IFERROR(IF(SUMIFS('טיימר עבודות'!$J$11:$J$160,'טיימר עבודות'!$F$11:$F$160,O37)=0,"", SUMIFS('טיימר עבודות'!$J$11:$J$160,'טיימר עבודות'!$F$11:$F$160,O37)),"")) ->  | T37: =IFERROR(IF(OR(טבלה2[[#This Row],[שכר לשעה]]="",טבלה2[[#This Row],[שעות]]=""),"", IF(IF(OR(טבלה2[[#This Row],[מטבע]]="₪",טבלה2[[#This Row],[מטבע]]=""),טבלה2[[#This Row],[שכר לשעה]]*טבלה2[[#This Row],[שעות]]*24, IF(טבלה2[[#This Row],[מטבע]]="$",טבלה2[[#This Row],[שכר לשעה]]*טבלה2[[#This Row],[שעות]]*24*שער,""))=0,"", IF(OR(טבלה2[[#This Row],[מטבע]]="₪",טבלה2[[#This Row],[מטבע]]=""),טבלה2[[#This Row],[שכר לשעה]]*טבלה2[[#This Row],[שעות]]*24, IF(טבלה2[[#This Row],[מטבע]]="$",טבלה2[[#This Row],[שכר לשעה]]*טבלה2[[#This Row],[שעות]]*24*שער,"")))),"") ->  | U37: =IFERROR(IF(OR(טבלה2[[#This Row],[שכר לשעה]]="",טבלה2[[#This Row],[שעות]]=""),"", IF(IF(טבלה2[[#This Row],[מטבע]]="$",טבלה2[[#This Row],[שכר לשעה]]*טבלה2[[#This Row],[שעות]]*24, IF(OR(טבלה2[[#This Row],[מטבע]]="₪",טבלה2[[#This Row],[מטבע]]=""),טבלה2[[#This Row],[שכר לשעה]]*טבלה2[[#This Row],[שעות]]*24/שער,""))=0,"", IF(טבלה2[[#This Row],[מטבע]]="$",טבלה2[[#This Row],[שכר לשעה]]*טבלה2[[#This Row],[שעות]]*24, IF(OR(טבלה2[[#This Row],[מטבע]]="₪",טבלה2[[#This Row],[מטבע]]=""),טבלה2[[#This Row],[שכר לשעה]]*טבלה2[[#This Row],[שעות]]*24/שער,"")))),"") ->  | AM37: =IF(טבלה2[[#This Row],[שמות העבודות]]="","",טבלה2[[#This Row],[שמות העבודות]]) ->  | AN37: 2037
B38: =IF(AND(טבלה1[[#This Row],[תאריך]]="",טבלה1[[#This Row],[התחלה]]="",טבלה1[[#This Row],[שם העבודה]]=""),"",ROW()-10) -> 28 | C38: =IF(טבלה1[[#This Row],[תאריך]]="","",IF(TEXT(טבלה1[[#This Row],[תאריך]],"DDD")="שבת","מוצ""ש",TEXT(טבלה1[[#This Row],[תאריך]],"DDD"))) -> יום ד | D38: 2024-03-13 | E38: 20:20:01 | F38: ניקוד | G38: 23:45:48 | J38: =IF(IF(AND(טבלה1[[#This Row],[התחלה]]="",טבלה1[[#This Row],[סיום]]<>""),"",IF(AND(טבלה1[[#This Row],[התחלה]]<>"",טבלה1[[#This Row],[סיום]]=""), SUM(MOD(NOW(),1)-טבלה1[[#This Row],[התחלה]]+(MOD(NOW(),1)<טבלה1[[#This Row],[התחלה]]),TIME(,טבלה1[[#This Row],[הוספת דקות]],),-TIME(,טבלה1[[#This Row],[הפחתת דקות]],)), SUM(טבלה1[[#This Row],[סיום]]-טבלה1[[#This Row],[התחלה]]+(טבלה1[[#This Row],[סיום]]<טבלה1[[#This Row],[התחלה]]),TIME(,טבלה1[[#This Row],[הוספת דקות]],),-TIME(,טבלה1[[#This Row],[הפחתת דקות]],))))<=0,"", IF(AND(טבלה1[[#This Row],[התחלה]]="",טבלה1[[#This Row],[סיום]]<>""),"",IF(AND(טבלה1[[#This Row],[התחלה]]<>"",טבלה1[[#This Row],[סיום]]=""), SUM(MOD(NOW(),1)-טבלה1[[#This Row],[התחלה]]+(MOD(NOW(),1)<טבלה1[[#This Row],[התחלה]]),TIME(,טבלה1[[#This Row],[הוספת דקות]],),-TIME(,טבלה1[[#This Row],[הפחתת דקות]],)), SUM(טבלה1[[#This Row],[סיום]]-טבלה1[[#This Row],[התחלה]]+(טבלה1[[#This Row],[סיום]]<טבלה1[[#This Row],[התחלה]]),TIME(,טבלה1[[#This Row],[הוספת דקות]],),-TIME(,טבלה1[[#This Row],[הפחתת דקות]],))))) -> 0.1429050926 | K38: =IF('טיימר עבודות'!$J38="","", IFERROR(IF(IF(VLOOKUP('טיימר עבודות'!$F38,טבלה2[],3,FALSE)="$", VLOOKUP(טבלה1[[#This Row],[שם העבודה]],טבלה2[#All],2,FALSE)*טבלה1[[#This Row],[שעות]]*24*שער, VLOOKUP(טבלה1[[#This Row],[שם העבודה]],טבלה2[#All],2,FALSE)*טבלה1[[#This Row],[שעות]]*24)=0,"", IF(VLOOKUP('טיימר עבודות'!$F38,טבלה2[],3,FALSE)="$", VLOOKUP(טבלה1[[#This Row],[שם העבודה]],טבלה2[#All],2,FALSE)*טבלה1[[#This Row],[שעות]]*24*שער, VLOOKUP(טבלה1[[#This Row],[שם העבודה]],טבלה2[#All],2,FALSE)*טבלה1[[#This Row],[שעות]]*24)),"")) -> 222.9319444 | L38: =IF(טבלה1[[#This Row],[תאריך]]="","",טבלה1[[#This Row],[תאריך]]+טבלה1[[#This Row],[התחלה]]) -> 2024-03-13T20:20:01 | R38: =IF(OR(טבלה2[[#This Row],[שמות העבודות]]="",COUNTIF(עבודות,טבלה2[[#This Row],[שמות העבודות]])=0),"",COUNTIF(עבודות,טבלה2[[#This Row],[שמות העבודות]])) ->  | S38: =IF(O38="","", IFERROR(IF(SUMIFS('טיימר עבודות'!$J$11:$J$160,'טיימר עבודות'!$F$11:$F$160,O38)=0,"", SUMIFS('טיימר עבודות'!$J$11:$J$160,'טיימר עבודות'!$F$11:$F$160,O38)),"")) ->  | T38: =IFERROR(IF(OR(טבלה2[[#This Row],[שכר לשעה]]="",טבלה2[[#This Row],[שעות]]=""),"", IF(IF(OR(טבלה2[[#This Row],[מטבע]]="₪",טבלה2[[#This Row],[מטבע]]=""),טבלה2[[#This Row],[שכר לשעה]]*טבלה2[[#This Row],[שעות]]*24, IF(טבלה2[[#This Row],[מטבע]]="$",טבלה2[[#This Row],[שכר לשעה]]*טבלה2[[#This Row],[שעות]]*24*שער,""))=0,"", IF(OR(טבלה2[[#This Row],[מטבע]]="₪",טבלה2[[#This Row],[מטבע]]=""),טבלה2[[#This Row],[שכר לשעה]]*טבלה2[[#This Row],[שעות]]*24, IF(טבלה2[[#This Row],[מטבע]]="$",טבלה2[[#This Row],[שכר לשעה]]*טבלה2[[#This Row],[שעות]]*24*שער,"")))),"") ->  | U38: =IFERROR(IF(OR(טבלה2[[#This Row],[שכר לשעה]]="",טבלה2[[#This Row],[שעות]]=""),"", IF(IF(טבלה2[[#This Row],[מטבע]]="$",טבלה2[[#This Row],[שכר לשעה]]*טבלה2[[#This Row],[שעות]]*24, IF(OR(טבלה2[[#This Row],[מטבע]]="₪",טבלה2[[#This Row],[מטבע]]=""),טבלה2[[#This Row],[שכר לשעה]]*טבלה2[[#This Row],[שעות]]*24/שער,""))=0,"", IF(טבלה2[[#This Row],[מטבע]]="$",טבלה2[[#This Row],[שכר לשעה]]*טבלה2[[#This Row],[שעות]]*24, IF(OR(טבלה2[[#This Row],[מטבע]]="₪",טבלה2[[#This Row],[מטבע]]=""),טבלה2[[#This Row],[שכר לשעה]]*טבלה2[[#This Row],[שעות]]*24/שער,"")))),"") ->  | AM38: =IF(טבלה2[[#This Row],[שמות העבודות]]="","",טבלה2[[#This Row],[שמות העבודות]]) ->  | AN38: 2038
B39: =IF(AND(טבלה1[[#This Row],[תאריך]]="",טבלה1[[#This Row],[התחלה]]="",טבלה1[[#This Row],[שם העבודה]]=""),"",ROW()-10) -> 29 | C39: =IF(טבלה1[[#This Row],[תאריך]]="","",IF(TEXT(טבלה1[[#This Row],[תאריך]],"DDD")="שבת","מוצ""ש",TEXT(טבלה1[[#This Row],[תאריך]],"DDD"))) -> יום ה | D39: 2024-03-14 | E39: 10:13:35 | F39: מכון תורה | G39: 12:14:07 | J39: =IF(IF(AND(טבלה1[[#This Row],[התחלה]]="",טבלה1[[#This Row],[סיום]]<>""),"",IF(AND(טבלה1[[#This Row],[התחלה]]<>"",טבלה1[[#This Row],[סיום]]=""), SUM(MOD(NOW(),1)-טבלה1[[#This Row],[התחלה]]+(MOD(NOW(),1)<טבלה1[[#This Row],[התחלה]]),TIME(,טבלה1[[#This Row],[הוספת דקות]],),-TIME(,טבלה1[[#This Row],[הפחתת דקות]],)), SUM(טבלה1[[#This Row],[סיום]]-טבלה1[[#This Row],[התחלה]]+(טבלה1[[#This Row],[סיום]]<טבלה1[[#This Row],[התחלה]]),TIME(,טבלה1[[#This Row],[הוספת דקות]],),-TIME(,טבלה1[[#This Row],[הפחתת דקות]],))))<=0,"", IF(AND(טבלה1[[#This Row],[התחלה]]="",טבלה1[[#This Row],[סיום]]<>""),"",IF(AND(טבלה1[[#This Row],[התחלה]]<>"",טבלה1[[#This Row],[סיום]]=""), SUM(MOD(NOW(),1)-טבלה1[[#This Row],[התחלה]]+(MOD(NOW(),1)<טבלה1[[#This Row],[התחלה]]),TIME(,טבלה1[[#This Row],[הוספת דקות]],),-TIME(,טבלה1[[#This Row],[הפחתת דקות]],)), SUM(טבלה1[[#This Row],[סיום]]-טבלה1[[#This Row],[התחלה]]+(טבלה1[[#This Row],[סיום]]<טבלה1[[#This Row],[התחלה]]),TIME(,טבלה1[[#This Row],[הוספת דקות]],),-TIME(,טבלה1[[#This Row],[הפחתת דקות]],))))) -> 0.0837037037 | K39: =IF('טיימר עבודות'!$J39="","", IFERROR(IF(IF(VLOOKUP('טיימר עבודות'!$F39,טבלה2[],3,FALSE)="$", VLOOKUP(טבלה1[[#This Row],[שם העבודה]],טבלה2[#All],2,FALSE)*טבלה1[[#This Row],[שעות]]*24*שער, VLOOKUP(טבלה1[[#This Row],[שם העבודה]],טבלה2[#All],2,FALSE)*טבלה1[[#This Row],[שעות]]*24)=0,"", IF(VLOOKUP('טיימר עבודות'!$F39,טבלה2[],3,FALSE)="$", VLOOKUP(טבלה1[[#This Row],[שם העבודה]],טבלה2[#All],2,FALSE)*טבלה1[[#This Row],[שעות]]*24*שער, VLOOKUP(טבלה1[[#This Row],[שם העבודה]],טבלה2[#All],2,FALSE)*טבלה1[[#This Row],[שעות]]*24)),"")) -> 80.35555556 | L39: =IF(טבלה1[[#This Row],[תאריך]]="","",טבלה1[[#This Row],[תאריך]]+טבלה1[[#This Row],[התחלה]]) -> 2024-03-14T10:13:35 | R39: =IF(OR(טבלה2[[#This Row],[שמות העבודות]]="",COUNTIF(עבודות,טבלה2[[#This Row],[שמות העבודות]])=0),"",COUNTIF(עבודות,טבלה2[[#This Row],[שמות העבודות]])) ->  | S39: =IF(O39="","", IFERROR(IF(SUMIFS('טיימר עבודות'!$J$11:$J$160,'טיימר עבודות'!$F$11:$F$160,O39)=0,"", SUMIFS('טיימר עבודות'!$J$11:$J$160,'טיימר עבודות'!$F$11:$F$160,O39)),"")) ->  | T39: =IFERROR(IF(OR(טבלה2[[#This Row],[שכר לשעה]]="",טבלה2[[#This Row],[שעות]]=""),"", IF(IF(OR(טבלה2[[#This Row],[מטבע]]="₪",טבלה2[[#This Row],[מטבע]]=""),טבלה2[[#This Row],[שכר לשעה]]*טבלה2[[#This Row],[שעות]]*24, IF(טבלה2[[#This Row],[מטבע]]="$",טבלה2[[#This Row],[שכר לשעה]]*טבלה2[[#This Row],[שעות]]*24*שער,""))=0,"", IF(OR(טבלה2[[#This Row],[מטבע]]="₪",טבלה2[[#This Row],[מטבע]]=""),טבלה2[[#This Row],[שכר לשעה]]*טבלה2[[#This Row],[שעות]]*24, IF(טבלה2[[#This Row],[מטבע]]="$",טבלה2[[#This Row],[שכר לשעה]]*טבלה2[[#This Row],[שעות]]*24*שער,"")))),"") ->  | U39: =IFERROR(IF(OR(טבלה2[[#This Row],[שכר לשעה]]="",טבלה2[[#This Row],[שעות]]=""),"", IF(IF(טבלה2[[#This Row],[מטבע]]="$",טבלה2[[#This Row],[שכר לשעה]]*טבלה2[[#This Row],[שעות]]*24, IF(OR(טבלה2[[#This Row],[מטבע]]="₪",טבלה2[[#This Row],[מטבע]]=""),טבלה2[[#This Row],[שכר לשעה]]*טבלה2[[#This Row],[שעות]]*24/שער,""))=0,"", IF(טבלה2[[#This Row],[מטבע]]="$",טבלה2[[#This Row],[שכר לשעה]]*טבלה2[[#This Row],[שעות]]*24, IF(OR(טבלה2[[#This Row],[מטבע]]="₪",טבלה2[[#This Row],[מטבע]]=""),טבלה2[[#This Row],[שכר לשעה]]*טבלה2[[#This Row],[שעות]]*24/שער,"")))),"") ->  | AM39: =IF(טבלה2[[#This Row],[שמות העבודות]]="","",טבלה2[[#This Row],[שמות העבודות]]) ->  | AN39: 2039
B40: =IF(AND(טבלה1[[#This Row],[תאריך]]="",טבלה1[[#This Row],[התחלה]]="",טבלה1[[#This Row],[שם העבודה]]=""),"",ROW()-10) -> 30 | C40: =IF(טבלה1[[#This Row],[תאריך]]="","",IF(TEXT(טבלה1[[#This Row],[תאריך]],"DDD")="שבת","מוצ""ש",TEXT(טבלה1[[#This Row],[תאריך]],"DDD"))) -> יום ה | D40: 2024-03-14 | E40: 20:20:01 | F40: עימוד | G40: 23:45:48 | J40: =IF(IF(AND(טבלה1[[#This Row],[התחלה]]="",טבלה1[[#This Row],[סיום]]<>""),"",IF(AND(טבלה1[[#This Row],[התחלה]]<>"",טבלה1[[#This Row],[סיום]]=""), SUM(MOD(NOW(),1)-טבלה1[[#This Row],[התחלה]]+(MOD(NOW(),1)<טבלה1[[#This Row],[התחלה]]),TIME(,טבלה1[[#This Row],[הוספת דקות]],),-TIME(,טבלה1[[#This Row],[הפחתת דקות]],)), SUM(טבלה1[[#This Row],[סיום]]-טבלה1[[#This Row],[התחלה]]+(טבלה1[[#This Row],[סיום]]<טבלה1[[#This Row],[התחלה]]),TIME(,טבלה1[[#This Row],[הוספת דקות]],),-TIME(,טבלה1[[#This Row],[הפחתת דקות]],))))<=0,"", IF(AND(טבלה1[[#This Row],[התחלה]]="",טבלה1[[#This Row],[סיום]]<>""),"",IF(AND(טבלה1[[#This Row],[התחלה]]<>"",טבלה1[[#This Row],[סיום]]=""), SUM(MOD(NOW(),1)-טבלה1[[#This Row],[התחלה]]+(MOD(NOW(),1)<טבלה1[[#This Row],[התחלה]]),TIME(,טבלה1[[#This Row],[הוספת דקות]],),-TIME(,טבלה1[[#This Row],[הפחתת דקות]],)), SUM(טבלה1[[#This Row],[סיום]]-טבלה1[[#This Row],[התחלה]]+(טבלה1[[#This Row],[סיום]]<טבלה1[[#This Row],[התחלה]]),TIME(,טבלה1[[#This Row],[הוספת דקות]],),-TIME(,טבלה1[[#This Row],[הפחתת דקות]],))))) -> 0.1429050926 | K40: =IF('טיימר עבודות'!$J40="","", IFERROR(IF(IF(VLOOKUP('טיימר עבודות'!$F40,טבלה2[],3,FALSE)="$", VLOOKUP(טבלה1[[#This Row],[שם העבודה]],טבלה2[#All],2,FALSE)*טבלה1[[#This Row],[שעות]]*24*שער, VLOOKUP(טבלה1[[#This Row],[שם העבודה]],טבלה2[#All],2,FALSE)*טבלה1[[#This Row],[שעות]]*24)=0,"", IF(VLOOKUP('טיימר עבודות'!$F40,טבלה2[],3,FALSE)="$", VLOOKUP(טבלה1[[#This Row],[שם העבודה]],טבלה2[#All],2,FALSE)*טבלה1[[#This Row],[שעות]]*24*שער, VLOOKUP(טבלה1[[#This Row],[שם העבודה]],טבלה2[#All],2,FALSE)*טבלה1[[#This Row],[שעות]]*24)),"")) -> 188.6347222 | L40: =IF(טבלה1[[#This Row],[תאריך]]="","",טבלה1[[#This Row],[תאריך]]+טבלה1[[#This Row],[התחלה]]) -> 2024-03-14T20:20:01 | R40: =IF(OR(טבלה2[[#This Row],[שמות העבודות]]="",COUNTIF(עבודות,טבלה2[[#This Row],[שמות העבודות]])=0),"",COUNTIF(עבודות,טבלה2[[#This Row],[שמות העבודות]])) ->  | S40: =IF(O40="","", IFERROR(IF(SUMIFS('טיימר עבודות'!$J$11:$J$160,'טיימר עבודות'!$F$11:$F$160,O40)=0,"", SUMIFS('טיימר עבודות'!$J$11:$J$160,'טיימר עבודות'!$F$11:$F$160,O40)),"")) ->  | T40: =IFERROR(IF(OR(טבלה2[[#This Row],[שכר לשעה]]="",טבלה2[[#This Row],[שעות]]=""),"", IF(IF(OR(טבלה2[[#This Row],[מטבע]]="₪",טבלה2[[#This Row],[מטבע]]=""),טבלה2[[#This Row],[שכר לשעה]]*טבלה2[[#This Row],[שעות]]*24, IF(טבלה2[[#This Row],[מטבע]]="$",טבלה2[[#This Row],[שכר לשעה]]*טבלה2[[#This Row],[שעות]]*24*שער,""))=0,"", IF(OR(טבלה2[[#This Row],[מטבע]]="₪",טבלה2[[#This Row],[מטבע]]=""),טבלה2[[#This Row],[שכר לשעה]]*טבלה2[[#This Row],[שעות]]*24, IF(טבלה2[[#This Row],[מטבע]]="$",טבלה2[[#This Row],[שכר לשעה]]*טבלה2[[#This Row],[שעות]]*24*שער,"")))),"") ->  | U40: =IFERROR(IF(OR(טבלה2[[#This Row],[שכר לשעה]]="",טבלה2[[#This Row],[שעות]]=""),"", IF(IF(טבלה2[[#This Row],[מטבע]]="$",טבלה2[[#This Row],[שכר לשעה]]*טבלה2[[#This Row],[שעות]]*24, IF(OR(טבלה2[[#This Row],[מטבע]]="₪",טבלה2[[#This Row],[מטבע]]=""),טבלה2[[#This Row],[שכר לשעה]]*טבלה2[[#This Row],[שעות]]*24/שער,""))=0,"", IF(טבלה2[[#This Row],[מטבע]]="$",טבלה2[[#This Row],[שכר לשעה]]*טבלה2[[#This Row],[שעות]]*24, IF(OR(טבלה2[[#This Row],[מטבע]]="₪",טבלה2[[#This Row],[מטבע]]=""),טבלה2[[#This Row],[שכר לשעה]]*טבלה2[[#This Row],[שעות]]*24/שער,"")))),"") ->  | AM40: =IF(טבלה2[[#This Row],[שמות העבודות]]="","",טבלה2[[#This Row],[שמות העבודות]]) ->  | AN40: 2040
B41: =IF(AND(טבלה1[[#This Row],[תאריך]]="",טבלה1[[#This Row],[התחלה]]="",טבלה1[[#This Row],[שם העבודה]]=""),"",ROW()-10) -> 31 | C41: =IF(טבלה1[[#This Row],[תאריך]]="","",IF(TEXT(טבלה1[[#This Row],[תאריך]],"DDD")="שבת","מוצ""ש",TEXT(טבלה1[[#This Row],[תאריך]],"DDD"))) -> יום ו | D41: 2024-03-15 | E41: 14:40:09 | F41: עימוד | G41: 14:43:30 | J41: =IF(IF(AND(טבלה1[[#This Row],[התחלה]]="",טבלה1[[#This Row],[סיום]]<>""),"",IF(AND(טבלה1[[#This Row],[התחלה]]<>"",טבלה1[[#This Row],[סיום]]=""), SUM(MOD(NOW(),1)-טבלה1[[#This Row],[התחלה]]+(MOD(NOW(),1)<טבלה1[[#This Row],[התחלה]]),TIME(,טבלה1[[#This Row],[הוספת דקות]],),-TIME(,טבלה1[[#This Row],[הפחתת דקות]],)), SUM(טבלה1[[#This Row],[סיום]]-טבלה1[[#This Row],[התחלה]]+(טבלה1[[#This Row],[סיום]]<טבלה1[[#This Row],[התחלה]]),TIME(,טבלה1[[#This Row],[הוספת דקות]],),-TIME(,טבלה1[[#This Row],[הפחתת דקות]],))))<=0,"", IF(AND(טבלה1[[#This Row],[התחלה]]="",טבלה1[[#This Row],[סיום]]<>""),"",IF(AND(טבלה1[[#This Row],[התחלה]]<>"",טבלה1[[#This Row],[סיום]]=""), SUM(MOD(NOW(),1)-טבלה1[[#This Row],[התחלה]]+(MOD(NOW(),1)<טבלה1[[#This Row],[התחלה]]),TIME(,טבלה1[[#This Row],[הוספת דקות]],),-TIME(,טבלה1[[#This Row],[הפחתת דקות]],)), SUM(טבלה1[[#This Row],[סיום]]-טבלה1[[#This Row],[התחלה]]+(טבלה1[[#This Row],[סיום]]<טבלה1[[#This Row],[התחלה]]),TIME(,טבלה1[[#This Row],[הוספת דקות]],),-TIME(,טבלה1[[#This Row],[הפחתת דקות]],))))) -> 0.002326388889 | K41: =IF('טיימר עבודות'!$J41="","", IFERROR(IF(IF(VLOOKUP('טיימר עבודות'!$F41,טבלה2[],3,FALSE)="$", VLOOKUP(טבלה1[[#This Row],[שם העבודה]],טבלה2[#All],2,FALSE)*טבלה1[[#This Row],[שעות]]*24*שער, VLOOKUP(טבלה1[[#This Row],[שם העבודה]],טבלה2[#All],2,FALSE)*טבלה1[[#This Row],[שעות]]*24)=0,"", IF(VLOOKUP('טיימר עבודות'!$F41,טבלה2[],3,FALSE)="$", VLOOKUP(טבלה1[[#This Row],[שם העבודה]],טבלה2[#All],2,FALSE)*טבלה1[[#This Row],[שעות]]*24*שער, VLOOKUP(טבלה1[[#This Row],[שם העבודה]],טבלה2[#All],2,FALSE)*טבלה1[[#This Row],[שעות]]*24)),"")) -> 3.070833333 | L41: =IF(טבלה1[[#This Row],[תאריך]]="","",טבלה1[[#This Row],[תאריך]]+טבלה1[[#This Row],[התחלה]]) -> 2024-03-15T14:40:09 | AN41: 2041
B42: =IF(AND(טבלה1[[#This Row],[תאריך]]="",טבלה1[[#This Row],[התחלה]]="",טבלה1[[#This Row],[שם העבודה]]=""),"",ROW()-10) -> 32 | C42: =IF(טבלה1[[#This Row],[תאריך]]="","",IF(TEXT(טבלה1[[#This Row],[תאריך]],"DDD")="שבת","מוצ""ש",TEXT(טבלה1[[#This Row],[תאריך]],"DDD"))) -> מוצ"ש | D42: 2024-03-16 | E42: 14:46:46 | F42: עיון במקורות | G42: 14:47:13 | J42: =IF(IF(AND(טבלה1[[#This Row],[התחלה]]="",טבלה1[[#This Row],[סיום]]<>""),"",IF(AND(טבלה1[[#This Row],[התחלה]]<>"",טבלה1[[#This Row],[סיום]]=""), SUM(MOD(NOW(),1)-טבלה1[[#This Row],[התחלה]]+(MOD(NOW(),1)<טבלה1[[#This Row],[התחלה]]),TIME(,טבלה1[[#This Row],[הוספת דקות]],),-TIME(,טבלה1[[#This Row],[הפחתת דקות]],)), SUM(טבלה1[[#This Row],[סיום]]-טבלה1[[#This Row],[התחלה]]+(טבלה1[[#This Row],[סיום]]<טבלה1[[#This Row],[התחלה]]),TIME(,טבלה1[[#This Row],[הוספת דקות]],),-TIME(,טבלה1[[#This Row],[הפחתת דקות]],))))<=0,"", IF(AND(טבלה1[[#This Row],[התחלה]]="",טבלה1[[#This Row],[סיום]]<>""),"",IF(AND(טבלה1[[#This Row],[התחלה]]<>"",טבלה1[[#This Row],[סיום]]=""), SUM(MOD(NOW(),1)-טבלה1[[#This Row],[התחלה]]+(MOD(NOW(),1)<טבלה1[[#This Row],[התחלה]]),TIME(,טבלה1[[#This Row],[הוספת דקות]],),-TIME(,טבלה1[[#This Row],[הפחתת דקות]],)), SUM(טבלה1[[#This Row],[סיום]]-טבלה1[[#This Row],[התחלה]]+(טבלה1[[#This Row],[סיום]]<טבלה1[[#This Row],[התחלה]]),TIME(,טבלה1[[#This Row],[הוספת דקות]],),-TIME(,טבלה1[[#This Row],[הפחתת דקות]],))))) -> 0.0003125 | K42: =IF('טיימר עבודות'!$J42="","", IFERROR(IF(IF(VLOOKUP('טיימר עבודות'!$F42,טבלה2[],3,FALSE)="$", VLOOKUP(טבלה1[[#This Row],[שם העבודה]],טבלה2[#All],2,FALSE)*טבלה1[[#This Row],[שעות]]*24*שער, VLOOKUP(טבלה1[[#This Row],[שם העבודה]],טבלה2[#All],2,FALSE)*טבלה1[[#This Row],[שעות]]*24)=0,"", IF(VLOOKUP('טיימר עבודות'!$F42,טבלה2[],3,FALSE)="$", VLOOKUP(טבלה1[[#This Row],[שם העבודה]],טבלה2[#All],2,FALSE)*טבלה1[[#This Row],[שעות]]*24*שער, VLOOKUP(טבלה1[[#This Row],[שם העבודה]],טבלה2[#All],2,FALSE)*טבלה1[[#This Row],[שעות]]*24)),"")) -> 0.3571425 | L42: =IF(טבלה1[[#This Row],[תאריך]]="","",טבלה1[[#This Row],[תאריך]]+טבלה1[[#This Row],[התחלה]]) -> 2024-03-16T14:46:46 | AN42: 2042
B43: =IF(AND(טבלה1[[#This Row],[תאריך]]="",טבלה1[[#This Row],[התחלה]]="",טבלה1[[#This Row],[שם העבודה]]=""),"",ROW()-10) -> 33 | C43: =IF(טבלה1[[#This Row],[תאריך]]="","",IF(TEXT(טבלה1[[#This Row],[תאריך]],"DDD")="שבת","מוצ""ש",TEXT(טבלה1[[#This Row],[תאריך]],"DDD"))) -> מוצ"ש | D43: 2024-03-02 | E43: 19:34:01 | F43: עיון במקורות | G43: 19:34:04 | J43: =IF(IF(AND(טבלה1[[#This Row],[התחלה]]="",טבלה1[[#This Row],[סיום]]<>""),"",IF(AND(טבלה1[[#This Row],[התחלה]]<>"",טבלה1[[#This Row],[סיום]]=""), SUM(MOD(NOW(),1)-טבלה1[[#This Row],[התחלה]]+(MOD(NOW(),1)<טבלה1[[#This Row],[התחלה]]),TIME(,טבלה1[[#This Row],[הוספת דקות]],),-TIME(,טבלה1[[#This Row],[הפחתת דקות]],)), SUM(טבלה1[[#This Row],[סיום]]-טבלה1[[#This Row],[התחלה]]+(טבלה1[[#This Row],[סיום]]<טבלה1[[#This Row],[התחלה]]),TIME(,טבלה1[[#This Row],[הוספת דקות]],),-TIME(,טבלה1[[#This Row],[הפחתת דקות]],))))<=0,"", IF(AND(טבלה1[[#This Row],[התחלה]]="",טבלה1[[#This Row],[סיום]]<>""),"",IF(AND(טבלה1[[#This Row],[התחלה]]<>"",טבלה1[[#This Row],[סיום]]=""), SUM(MOD(NOW(),1)-טבלה1[[#This Row],[התחלה]]+(MOD(NOW(),1)<טבלה1[[#This Row],[התחלה]]),TIME(,טבלה1[[#This Row],[הוספת דקות]],),-TIME(,טבלה1[[#This Row],[הפחתת דקות]],)), SUM(טבלה1[[#This Row],[סיום]]-טבלה1[[#This Row],[התחלה]]+(טבלה1[[#This Row],[סיום]]<טבלה1[[#This Row],[התחלה]]),TIME(,טבלה1[[#This Row],[הוספת דקות]],),-TIME(,טבלה1[[#This Row],[הפחתת דקות]],))))) -> 3.472222222e-05 | K43: =IF('טיימר עבודות'!$J43="","", IFERROR(IF(IF(VLOOKUP('טיימר עבודות'!$F43,טבלה2[],3,FALSE)="$", VLOOKUP(טבלה1[[#This Row],[שם העבודה]],טבלה2[#All],2,FALSE)*טבלה1[[#This Row],[שעות]]*24*שער, VLOOKUP(טבלה1[[#This Row],[שם העבודה]],טבלה2[#All],2,FALSE)*טבלה1[[#This Row],[שעות]]*24)=0,"", IF(VLOOKUP('טיימר עבודות'!$F43,טבלה2[],3,FALSE)="$", VLOOKUP(טבלה1[[#This Row],[שם העבודה]],טבלה2[#All],2,FALSE)*טבלה1[[#This Row],[שעות]]*24*שער, VLOOKUP(טבלה1[[#This Row],[שם העבודה]],טבלה2[#All],2,FALSE)*טבלה1[[#This Row],[שעות]]*24)),"")) -> 0.0396825 | L43: =IF(טבלה1[[#This Row],[תאריך]]="","",טבלה1[[#This Row],[תאריך]]+טבלה1[[#This Row],[התחלה]]) -> 2024-03-02T19:34:01 | R43: עבודות לפי תווים / מילים | AM43: =$AM$46-3 -> 2024-04-03 | AN43: 2043
B44: =IF(AND(טבלה1[[#This Row],[תאריך]]="",טבלה1[[#This Row],[התחלה]]="",טבלה1[[#This Row],[שם העבודה]]=""),"",ROW()-10) -> 34 | C44: =IF(טבלה1[[#This Row],[תאריך]]="","",IF(TEXT(טבלה1[[#This Row],[תאריך]],"DDD")="שבת","מוצ""ש",TEXT(טבלה1[[#This Row],[תאריך]],"DDD"))) -> מוצ"ש | D44: 2024-03-02 | E44: 19:34:05 | F44: עיון במקורות | G44: 19:34:07 | J44: =IF(IF(AND(טבלה1[[#This Row],[התחלה]]="",טבלה1[[#This Row],[סיום]]<>""),"",IF(AND(טבלה1[[#This Row],[התחלה]]<>"",טבלה1[[#This Row],[סיום]]=""), SUM(MOD(NOW(),1)-טבלה1[[#This Row],[התחלה]]+(MOD(NOW(),1)<טבלה1[[#This Row],[התחלה]]),TIME(,טבלה1[[#This Row],[הוספת דקות]],),-TIME(,טבלה1[[#This Row],[הפחתת דקות]],)), SUM(טבלה1[[#This Row],[סיום]]-טבלה1[[#This Row],[התחלה]]+(טבלה1[[#This Row],[סיום]]<טבלה1[[#This Row],[התחלה]]),TIME(,טבלה1[[#This Row],[הוספת דקות]],),-TIME(,טבלה1[[#This Row],[הפחתת דקות]],))))<=0,"", IF(AND(טבלה1[[#This Row],[התחלה]]="",טבלה1[[#This Row],[סיום]]<>""),"",IF(AND(טבלה1[[#This Row],[התחלה]]<>"",טבלה1[[#This Row],[סיום]]=""), SUM(MOD(NOW(),1)-טבלה1[[#This Row],[התחלה]]+(MOD(NOW(),1)<טבלה1[[#This Row],[התחלה]]),TIME(,טבלה1[[#This Row],[הוספת דקות]],),-TIME(,טבלה1[[#This Row],[הפחתת דקות]],)), SUM(טבלה1[[#This Row],[סיום]]-טבלה1[[#This Row],[התחלה]]+(טבלה1[[#This Row],[סיום]]<טבלה1[[#This Row],[התחלה]]),TIME(,טבלה1[[#This Row],[הוספת דקות]],),-TIME(,טבלה1[[#This Row],[הפחתת דקות]],))))) -> 2.314814815e-05 | K44: =IF('טיימר עבודות'!$J44="","", IFERROR(IF(IF(VLOOKUP('טיימר עבודות'!$F44,טבלה2[],3,FALSE)="$", VLOOKUP(טבלה1[[#This Row],[שם העבודה]],טבלה2[#All],2,FALSE)*טבלה1[[#This Row],[שעות]]*24*שער, VLOOKUP(טבלה1[[#This Row],[שם העבודה]],טבלה2[#All],2,FALSE)*טבלה1[[#This Row],[שעות]]*24)=0,"", IF(VLOOKUP('טיימר עבודות'!$F44,טבלה2[],3,FALSE)="$", VLOOKUP(טבלה1[[#This Row],[שם העבודה]],טבלה2[#All],2,FALSE)*טבלה1[[#This Row],[שעות]]*24*שער, VLOOKUP(טבלה1[[#This Row],[שם העבודה]],טבלה2[#All],2,FALSE)*טבלה1[[#This Row],[שעות]]*24)),"")) -> 0.026455 | L44: =IF(טבלה1[[#This Row],[תאריך]]="","",טבלה1[[#This Row],[תאריך]]+טבלה1[[#This Row],[התחלה]]) -> 2024-03-02T19:34:05 | AM44: =$AM$46-2 -> 2024-04-04 | AN44: 2044
B45: =IF(AND(טבלה1[[#This Row],[תאריך]]="",טבלה1[[#This Row],[התחלה]]="",טבלה1[[#This Row],[שם העבודה]]=""),"",ROW()-10) ->  | C45: =IF(טבלה1[[#This Row],[תאריך]]="","",IF(TEXT(טבלה1[[#This Row],[תאריך]],"DDD")="שבת","מוצ""ש",TEXT(טבלה1[[#This Row],[תאריך]],"DDD"))) ->  | J45: =IF(IF(AND(טבלה1[[#This Row],[התחלה]]="",טבלה1[[#This Row],[סיום]]<>""),"",IF(AND(טבלה1[[#This Row],[התחלה]]<>"",טבלה1[[#This Row],[סיום]]=""), SUM(MOD(NOW(),1)-טבלה1[[#This Row],[התחלה]]+(MOD(NOW(),1)<טבלה1[[#This Row],[התחלה]]),TIME(,טבלה1[[#This Row],[הוספת דקות]],),-TIME(,טבלה1[[#This Row],[הפחתת דקות]],)), SUM(טבלה1[[#This Row],[סיום]]-טבלה1[[#This Row],[התחלה]]+(טבלה1[[#This Row],[סיום]]<טבלה1[[#This Row],[התחלה]]),TIME(,טבלה1[[#This Row],[הוספת דקות]],),-TIME(,טבלה1[[#This Row],[הפחתת דקות]],))))<=0,"", IF(AND(טבלה1[[#This Row],[התחלה]]="",טבלה1[[#This Row],[סיום]]<>""),"",IF(AND(טבלה1[[#This Row],[התחלה]]<>"",טבלה1[[#This Row],[סיום]]=""), SUM(MOD(NOW(),1)-טבלה1[[#This Row],[התחלה]]+(MOD(NOW(),1)<טבלה1[[#This Row],[התחלה]]),TIME(,טבלה1[[#This Row],[הוספת דקות]],),-TIME(,טבלה1[[#This Row],[הפחתת דקות]],)), SUM(טבלה1[[#This Row],[סיום]]-טבלה1[[#This Row],[התחלה]]+(טבלה1[[#This Row],[סיום]]<טבלה1[[#This Row],[התחלה]]),TIME(,טבלה1[[#This Row],[הוספת דקות]],),-TIME(,טבלה1[[#This Row],[הפחתת דקות]],))))) ->  | K45: =IF('טיימר עבודות'!$J45="","", IFERROR(IF(IF(VLOOKUP('טיימר עבודות'!$F45,טבלה2[],3,FALSE)="$", VLOOKUP(טבלה1[[#This Row],[שם העבודה]],טבלה2[#All],2,FALSE)*טבלה1[[#This Row],[שעות]]*24*שער, VLOOKUP(טבלה1[[#This Row],[שם העבודה]],טבלה2[#All],2,FALSE)*טבלה1[[#This Row],[שעות]]*24)=0,"", IF(VLOOKUP('טיימר עבודות'!$F45,טבלה2[],3,FALSE)="$", VLOOKUP(טבלה1[[#This Row],[שם העבודה]],טבלה2[#All],2,FALSE)*טבלה1[[#This Row],[שעות]]*24*שער, VLOOKUP(טבלה1[[#This Row],[שם העבודה]],טבלה2[#All],2,FALSE)*טבלה1[[#This Row],[שעות]]*24)),"")) ->  | L45: =IF(טבלה1[[#This Row],[תאריך]]="","",טבלה1[[#This Row],[תאריך]]+טבלה1[[#This Row],[התחלה]]) ->  | O45: שמות העבודות | P45: שכר לתווים | Q45: תווים | R45: עמודה1 | S45: תווים שהוקלדו | T45: שכר | U45: אחוזים | V45: יעד | AM45: =$AM$46-1 -> 2024-04-05 | AN45: 2045
B46: =IF(AND(טבלה1[[#This Row],[תאריך]]="",טבלה1[[#This Row],[התחלה]]="",טבלה1[[#This Row],[שם העבודה]]=""),"",ROW()-10) ->  | C46: =IF(טבלה1[[#This Row],[תאריך]]="","",IF(TEXT(טבלה1[[#This Row],[תאריך]],"DDD")="שבת","מוצ""ש",TEXT(טבלה1[[#This Row],[תאריך]],"DDD"))) ->  | J46: =IF(IF(AND(טבלה1[[#This Row],[התחלה]]="",טבלה1[[#This Row],[סיום]]<>""),"",IF(AND(טבלה1[[#This Row],[התחלה]]<>"",טבלה1[[#This Row],[סיום]]=""), SUM(MOD(NOW(),1)-טבלה1[[#This Row],[התחלה]]+(MOD(NOW(),1)<טבלה1[[#This Row],[התחלה]]),TIME(,טבלה1[[#This Row],[הוספת דקות]],),-TIME(,טבלה1[[#This Row],[הפחתת דקות]],)), SUM(טבלה1[[#This Row],[סיום]]-טבלה1[[#This Row],[התחלה]]+(טבלה1[[#This Row],[סיום]]<טבלה1[[#This Row],[התחלה]]),TIME(,טבלה1[[#This Row],[הוספת דקות]],),-TIME(,טבלה1[[#This Row],[הפחתת דקות]],))))<=0,"", IF(AND(טבלה1[[#This Row],[התחלה]]="",טבלה1[[#This Row],[סיום]]<>""),"",IF(AND(טבלה1[[#This Row],[התחלה]]<>"",טבלה1[[#This Row],[סיום]]=""), SUM(MOD(NOW(),1)-טבלה1[[#This Row],[התחלה]]+(MOD(NOW(),1)<טבלה1[[#This Row],[התחלה]]),TIME(,טבלה1[[#This Row],[הוספת דקות]],),-TIME(,טבלה1[[#This Row],[הפחתת דקות]],)), SUM(טבלה1[[#This Row],[סיום]]-טבלה1[[#This Row],[התחלה]]+(טבלה1[[#This Row],[סיום]]<טבלה1[[#This Row],[התחלה]]),TIME(,טבלה1[[#This Row],[הוספת דקות]],),-TIME(,טבלה1[[#This Row],[הפחתת דקות]],))))) ->  | K46: =IF('טיימר עבודות'!$J46="","", IFERROR(IF(IF(VLOOKUP('טיימר עבודות'!$F46,טבלה2[],3,FALSE)="$", VLOOKUP(טבלה1[[#This Row],[שם העבודה]],טבלה2[#All],2,FALSE)*טבלה1[[#This Row],[שעות]]*24*שער, VLOOKUP(טבלה1[[#This Row],[שם העבודה]],טבלה2[#All],2,FALSE)*טבלה1[[#This Row],[שעות]]*24)=0,"", IF(VLOOKUP('טיימר עבודות'!$F46,טבלה2[],3,FALSE)="$", VLOOKUP(טבלה1[[#This Row],[שם העבודה]],טבלה2[#All],2,FALSE)*טבלה1[[#This Row],[שעות]]*24*שער, VLOOKUP(טבלה1[[#This Row],[שם העבודה]],טבלה2[#All],2,FALSE)*טבלה1[[#This Row],[שעות]]*24)),"")) ->  | L46: =IF(טבלה1[[#This Row],[תאריך]]="","",טבלה1[[#This Row],[תאריך]]+טבלה1[[#This Row],[התחלה]]) ->  | O46: הקלדה | P46: 4.5 | Q46: 1000 | S46: 150000 | T46: =IF(OR(טבלה12[[#This Row],[תווים]]="",טבלה12[[#This Row],[שכר לתווים]]=""),"", IF(טבלה12[[#This Row],[תווים שהוקלדו]]/טבלה12[[#This Row],[תווים]]*טבלה12[[#This Row],[שכר לתווים]]=0,"", טבלה12[[#This Row],[תווים שהוקלדו]]/טבלה12[[#This Row],[תווים]]*טבלה12[[#This Row],[שכר לתווים]])) -> 675 | U46: =IF(OR(טבלה12[[#This Row],[שכר]]="",טבלה12[[#This Row],[יעד]]=""),"", IF(טבלה12[[#This Row],[שכר]]>=טבלה12[[#This Row],[יעד]],"הגעת ליעד!", טבלה12[[#This Row],[שכר]]/טבלה12[[#This Row],[יעד]])) -> 0.9642857143 | V46: 700 | AM46: =TODAY() -> 2024-04-06 | AN46: 2046
B47: =IF(AND(טבלה1[[#This Row],[תאריך]]="",טבלה1[[#This Row],[התחלה]]="",טבלה1[[#This Row],[שם העבודה]]=""),"",ROW()-10) ->  | C47: =IF(טבלה1[[#This Row],[תאריך]]="","",IF(TEXT(טבלה1[[#This Row],[תאריך]],"DDD")="שבת","מוצ""ש",TEXT(טבלה1[[#This Row],[תאריך]],"DDD"))) ->  | J47: =IF(IF(AND(טבלה1[[#This Row],[התחלה]]="",טבלה1[[#This Row],[סיום]]<>""),"",IF(AND(טבלה1[[#This Row],[התחלה]]<>"",טבלה1[[#This Row],[סיום]]=""), SUM(MOD(NOW(),1)-טבלה1[[#This Row],[התחלה]]+(MOD(NOW(),1)<טבלה1[[#This Row],[התחלה]]),TIME(,טבלה1[[#This Row],[הוספת דקות]],),-TIME(,טבלה1[[#This Row],[הפחתת דקות]],)), SUM(טבלה1[[#This Row],[סיום]]-טבלה1[[#This Row],[התחלה]]+(טבלה1[[#This Row],[סיום]]<טבלה1[[#This Row],[התחלה]]),TIME(,טבלה1[[#This Row],[הוספת דקות]],),-TIME(,טבלה1[[#This Row],[הפחתת דקות]],))))<=0,"", IF(AND(טבלה1[[#This Row],[התחלה]]="",טבלה1[[#This Row],[סיום]]<>""),"",IF(AND(טבלה1[[#This Row],[התחלה]]<>"",טבלה1[[#This Row],[סיום]]=""), SUM(MOD(NOW(),1)-טבלה1[[#This Row],[התחלה]]+(MOD(NOW(),1)<טבלה1[[#This Row],[התחלה]]),TIME(,טבלה1[[#This Row],[הוספת דקות]],),-TIME(,טבלה1[[#This Row],[הפחתת דקות]],)), SUM(טבלה1[[#This Row],[סיום]]-טבלה1[[#This Row],[התחלה]]+(טבלה1[[#This Row],[סיום]]<טבלה1[[#This Row],[התחלה]]),TIME(,טבלה1[[#This Row],[הוספת דקות]],),-TIME(,טבלה1[[#This Row],[הפחתת דקות]],))))) ->  | K47: =IF('טיימר עבודות'!$J47="","", IFERROR(IF(IF(VLOOKUP('טיימר עבודות'!$F47,טבלה2[],3,FALSE)="$", VLOOKUP(טבלה1[[#This Row],[שם העבודה]],טבלה2[#All],2,FALSE)*טבלה1[[#This Row],[שעות]]*24*שער, VLOOKUP(טבלה1[[#This Row],[שם העבודה]],טבלה2[#All],2,FALSE)*טבלה1[[#This Row],[שעות]]*24)=0,"", IF(VLOOKUP('טיימר עבודות'!$F47,טבלה2[],3,FALSE)="$", VLOOKUP(טבלה1[[#This Row],[שם העבודה]],טבלה2[#All],2,FALSE)*טבלה1[[#This Row],[שעות]]*24*שער, VLOOKUP(טבלה1[[#This Row],[שם העבודה]],טבלה2[#All],2,FALSE)*טבלה1[[#This Row],[שעות]]*24)),"")) ->  | L47: =IF(טבלה1[[#This Row],[תאריך]]="","",טבלה1[[#This Row],[תאריך]]+טבלה1[[#This Row],[התחלה]]) ->  | O47: הגהה | P47: 5 | Q47: 5 | S47: 5 | T47: =IF(OR(טבלה12[[#This Row],[תווים]]="",טבלה12[[#This Row],[שכר לתווים]]=""),"", IF(טבלה12[[#This Row],[תווים שהוקלדו]]/טבלה12[[#This Row],[תווים]]*טבלה12[[#This Row],[שכר לתווים]]=0,"", טבלה12[[#This Row],[תווים שהוקלדו]]/טבלה12[[#This Row],[תווים]]*טבלה12[[#This Row],[שכר לתווים]])) -> 5 | U47: =IF(OR(טבלה12[[#This Row],[שכר]]="",טבלה12[[#This Row],[יעד]]=""),"", IF(טבלה12[[#This Row],[שכר]]>=טבלה12[[#This Row],[יעד]],"הגעת ליעד!", טבלה12[[#This Row],[שכר]]/טבלה12[[#This Row],[יעד]])) ->  | AM47: =$AM$46+1 -> 2024-04-07 | AN47: 2047
B48: =IF(AND(טבלה1[[#This Row],[תאריך]]="",טבלה1[[#This Row],[התחלה]]="",טבלה1[[#This Row],[שם העבודה]]=""),"",ROW()-10) ->  | C48: =IF(טבלה1[[#This Row],[תאריך]]="","",IF(TEXT(טבלה1[[#This Row],[תאריך]],"DDD")="שבת","מוצ""ש",TEXT(טבלה1[[#This Row],[תאריך]],"DDD"))) ->  | J48: =IF(IF(AND(טבלה1[[#This Row],[התחלה]]="",טבלה1[[#This Row],[סיום]]<>""),"",IF(AND(טבלה1[[#This Row],[התחלה]]<>"",טבלה1[[#This Row],[סיום]]=""), SUM(MOD(NOW(),1)-טבלה1[[#This Row],[התחלה]]+(MOD(NOW(),1)<טבלה1[[#This Row],[התחלה]]),TIME(,טבלה1[[#This Row],[הוספת דקות]],),-TIME(,טבלה1[[#This Row],[הפחתת דקות]],)), SUM(טבלה1[[#This Row],[סיום]]-טבלה1[[#This Row],[התחלה]]+(טבלה1[[#This Row],[סיום]]<טבלה1[[#This Row],[התחלה]]),TIME(,טבלה1[[#This Row],[הוספת דקות]],),-TIME(,טבלה1[[#This Row],[הפחתת דקות]],))))<=0,"", IF(AND(טבלה1[[#This Row],[התחלה]]="",טבלה1[[#This Row],[סיום]]<>""),"",IF(AND(טבלה1[[#This Row],[התחלה]]<>"",טבלה1[[#This Row],[סיום]]=""), SUM(MOD(NOW(),1)-טבלה1[[#This Row],[התחלה]]+(MOD(NOW(),1)<טבלה1[[#This Row],[התחלה]]),TIME(,טבלה1[[#This Row],[הוספת דקות]],),-TIME(,טבלה1[[#This Row],[הפחתת דקות]],)), SUM(טבלה1[[#This Row],[סיום]]-טבלה1[[#This Row],[התחלה]]+(טבלה1[[#This Row],[סיום]]<טבלה1[[#This Row],[התחלה]]),TIME(,טבלה1[[#This Row],[הוספת דקות]],),-TIME(,טבלה1[[#This Row],[הפחתת דקות]],))))) ->  | K48: =IF('טיימר עבודות'!$J48="","", IFERROR(IF(IF(VLOOKUP('טיימר עבודות'!$F48,טבלה2[],3,FALSE)="$", VLOOKUP(טבלה1[[#This Row],[שם העבודה]],טבלה2[#All],2,FALSE)*טבלה1[[#This Row],[שעות]]*24*שער, VLOOKUP(טבלה1[[#This Row],[שם העבודה]],טבלה2[#All],2,FALSE)*טבלה1[[#This Row],[שעות]]*24)=0,"", IF(VLOOKUP('טיימר עבודות'!$F48,טבלה2[],3,FALSE)="$", VLOOKUP(טבלה1[[#This Row],[שם העבודה]],טבלה2[#All],2,FALSE)*טבלה1[[#This Row],[שעות]]*24*שער, VLOOKUP(טבלה1[[#This Row],[שם העבודה]],טבלה2[#All],2,FALSE)*טבלה1[[#This Row],[שעות]]*24)),"")) ->  | L48: =IF(טבלה1[[#This Row],[תאריך]]="","",טבלה1[[#This Row],[תאריך]]+טבלה1[[#This Row],[התחלה]]) ->  | T48: =IF(OR(טבלה12[[#This Row],[תווים]]="",טבלה12[[#This Row],[שכר לתווים]]=""),"", IF(טבלה12[[#This Row],[תווים שהוקלדו]]/טבלה12[[#This Row],[תווים]]*טבלה12[[#This Row],[שכר לתווים]]=0,"", טבלה12[[#This Row],[תווים שהוקלדו]]/טבלה12[[#This Row],[תווים]]*טבלה12[[#This Row],[שכר לתווים]])) ->  | U48: =IF(OR(טבלה12[[#This Row],[שכר]]="",טבלה12[[#This Row],[יעד]]=""),"", IF(טבלה12[[#This Row],[שכר]]>=טבלה12[[#This Row],[יעד]],"הגעת ליעד!", טבלה12[[#This Row],[שכר]]/טבלה12[[#This Row],[יעד]])) ->  | AM48: =$AM$46+2 -> 2024-04-08 | AN48: 2048
B49: =IF(AND(טבלה1[[#This Row],[תאריך]]="",טבלה1[[#This Row],[התחלה]]="",טבלה1[[#This Row],[שם העבודה]]=""),"",ROW()-10) ->  | C49: =IF(טבלה1[[#This Row],[תאריך]]="","",IF(TEXT(טבלה1[[#This Row],[תאריך]],"DDD")="שבת","מוצ""ש",TEXT(טבלה1[[#This Row],[תאריך]],"DDD"))) ->  | J49: =IF(IF(AND(טבלה1[[#This Row],[התחלה]]="",טבלה1[[#This Row],[סיום]]<>""),"",IF(AND(טבלה1[[#This Row],[התחלה]]<>"",טבלה1[[#This Row],[סיום]]=""), SUM(MOD(NOW(),1)-טבלה1[[#This Row],[התחלה]]+(MOD(NOW(),1)<טבלה1[[#This Row],[התחלה]]),TIME(,טבלה1[[#This Row],[הוספת דקות]],),-TIME(,טבלה1[[#This Row],[הפחתת דקות]],)), SUM(טבלה1[[#This Row],[סיום]]-טבלה1[[#This Row],[התחלה]]+(טבלה1[[#This Row],[סיום]]<טבלה1[[#This Row],[התחלה]]),TIME(,טבלה1[[#This Row],[הוספת דקות]],),-TIME(,טבלה1[[#This Row],[הפחתת דקות]],))))<=0,"", IF(AND(טבלה1[[#This Row],[התחלה]]="",טבלה1[[#This Row],[סיום]]<>""),"",IF(AND(טבלה1[[#This Row],[התחלה]]<>"",טבלה1[[#This Row],[סיום]]=""), SUM(MOD(NOW(),1)-טבלה1[[#This Row],[התחלה]]+(MOD(NOW(),1)<טבלה1[[#This Row],[התחלה]]),TIME(,טבלה1[[#This Row],[הוספת דקות]],),-TIME(,טבלה1[[#This Row],[הפחתת דקות]],)), SUM(טבלה1[[#This Row],[סיום]]-טבלה1[[#This Row],[התחלה]]+(טבלה1[[#This Row],[סיום]]<טבלה1[[#This Row],[התחלה]]),TIME(,טבלה1[[#This Row],[הוספת דקות]],),-TIME(,טבלה1[[#This Row],[הפחתת דקות]],))))) ->  | K49: =IF('טיימר עבודות'!$J49="","", IFERROR(IF(IF(VLOOKUP('טיימר עבודות'!$F49,טבלה2[],3,FALSE)="$", VLOOKUP(טבלה1[[#This Row],[שם העבודה]],טבלה2[#All],2,FALSE)*טבלה1[[#This Row],[שעות]]*24*שער, VLOOKUP(טבלה1[[#This Row],[שם העבודה]],טבלה2[#All],2,FALSE)*טבלה1[[#This Row],[שעות]]*24)=0,"", IF(VLOOKUP('טיימר עבודות'!$F49,טבלה2[],3,FALSE)="$", VLOOKUP(טבלה1[[#This Row],[שם העבודה]],טבלה2[#All],2,FALSE)*טבלה1[[#This Row],[שעות]]*24*שער, VLOOKUP(טבלה1[[#This Row],[שם העבודה]],טבלה2[#All],2,FALSE)*טבלה1[[#This Row],[שעות]]*24)),"")) ->  | L49: =IF(טבלה1[[#This Row],[תאריך]]="","",טבלה1[[#This Row],[תאריך]]+טבלה1[[#This Row],[התחלה]]) ->  | T49: =IF(OR(טבלה12[[#This Row],[תווים]]="",טבלה12[[#This Row],[שכר לתווים]]=""),"", IF(טבלה12[[#This Row],[תווים שהוקלדו]]/טבלה12[[#This Row],[תווים]]*טבלה12[[#This Row],[שכר לתווים]]=0,"", טבלה12[[#This Row],[תווים שהוקלדו]]/טבלה12[[#This Row],[תווים]]*טבלה12[[#This Row],[שכר לתווים]])) ->  | U49: =IF(OR(טבלה12[[#This Row],[שכר]]="",טבלה12[[#This Row],[יעד]]=""),"", IF(טבלה12[[#This Row],[שכר]]>=טבלה12[[#This Row],[יעד]],"הגעת ליעד!", טבלה12[[#This Row],[שכר]]/טבלה12[[#This Row],[יעד]])) ->  | AM49: =$AM$46+3 -> 2024-04-09 | AN49: 2049
B50: =IF(AND(טבלה1[[#This Row],[תאריך]]="",טבלה1[[#This Row],[התחלה]]="",טבלה1[[#This Row],[שם העבודה]]=""),"",ROW()-10) ->  | C50: =IF(טבלה1[[#This Row],[תאריך]]="","",IF(TEXT(טבלה1[[#This Row],[תאריך]],"DDD")="שבת","מוצ""ש",TEXT(טבלה1[[#This Row],[תאריך]],"DDD"))) ->  | J50: =IF(IF(AND(טבלה1[[#This Row],[התחלה]]="",טבלה1[[#This Row],[סיום]]<>""),"",IF(AND(טבלה1[[#This Row],[התחלה]]<>"",טבלה1[[#This Row],[סיום]]=""), SUM(MOD(NOW(),1)-טבלה1[[#This Row],[התחלה]]+(MOD(NOW(),1)<טבלה1[[#This Row],[התחלה]]),TIME(,טבלה1[[#This Row],[הוספת דקות]],),-TIME(,טבלה1[[#This Row],[הפחתת דקות]],)), SUM(טבלה1[[#This Row],[סיום]]-טבלה1[[#This Row],[התחלה]]+(טבלה1[[#This Row],[סיום]]<טבלה1[[#This Row],[התחלה]]),TIME(,טבלה1[[#This Row],[הוספת דקות]],),-TIME(,טבלה1[[#This Row],[הפחתת דקות]],))))<=0,"", IF(AND(טבלה1[[#This Row],[התחלה]]="",טבלה1[[#This Row],[סיום]]<>""),"",IF(AND(טבלה1[[#This Row],[התחלה]]<>"",טבלה1[[#This Row],[סיום]]=""), SUM(MOD(NOW(),1)-טבלה1[[#This Row],[התחלה]]+(MOD(NOW(),1)<טבלה1[[#This Row],[התחלה]]),TIME(,טבלה1[[#This Row],[הוספת דקות]],),-TIME(,טבלה1[[#This Row],[הפחתת דקות]],)), SUM(טבלה1[[#This Row],[סיום]]-טבלה1[[#This Row],[התחלה]]+(טבלה1[[#This Row],[סיום]]<טבלה1[[#This Row],[התחלה]]),TIME(,טבלה1[[#This Row],[הוספת דקות]],),-TIME(,טבלה1[[#This Row],[הפחתת דקות]],))))) ->  | K50: =IF('טיימר עבודות'!$J50="","", IFERROR(IF(IF(VLOOKUP('טיימר עבודות'!$F50,טבלה2[],3,FALSE)="$", VLOOKUP(טבלה1[[#This Row],[שם העבודה]],טבלה2[#All],2,FALSE)*טבלה1[[#This Row],[שעות]]*24*שער, VLOOKUP(טבלה1[[#This Row],[שם העבודה]],טבלה2[#All],2,FALSE)*טבלה1[[#This Row],[שעות]]*24)=0,"", IF(VLOOKUP('טיימר עבודות'!$F50,טבלה2[],3,FALSE)="$", VLOOKUP(טבלה1[[#This Row],[שם העבודה]],טבלה2[#All],2,FALSE)*טבלה1[[#This Row],[שעות]]*24*שער, VLOOKUP(טבלה1[[#This Row],[שם העבודה]],טבלה2[#All],2,FALSE)*טבלה1[[#This Row],[שעות]]*24)),"")) ->  | L50: =IF(טבלה1[[#This Row],[תאריך]]="","",טבלה1[[#This Row],[תאריך]]+טבלה1[[#This Row],[התחלה]]) ->  | T50: =IF(OR(טבלה12[[#This Row],[תווים]]="",טבלה12[[#This Row],[שכר לתווים]]=""),"", IF(טבלה12[[#This Row],[תווים שהוקלדו]]/טבלה12[[#This Row],[תווים]]*טבלה12[[#This Row],[שכר לתווים]]=0,"", טבלה12[[#This Row],[תווים שהוקלדו]]/טבלה12[[#This Row],[תווים]]*טבלה12[[#This Row],[שכר לתווים]])) ->  | U50: =IF(OR(טבלה12[[#This Row],[שכר]]="",טבלה12[[#This Row],[יעד]]=""),"", IF(טבלה12[[#This Row],[שכר]]>=טבלה12[[#This Row],[יעד]],"הגעת ליעד!", טבלה12[[#This Row],[שכר]]/טבלה12[[#This Row],[יעד]])) ->  | AM50: 00:00:00 | AN50: 2050
B51: =IF(AND(טבלה1[[#This Row],[תאריך]]="",טבלה1[[#This Row],[התחלה]]="",טבלה1[[#This Row],[שם העבודה]]=""),"",ROW()-10) ->  | C51: =IF(טבלה1[[#This Row],[תאריך]]="","",IF(TEXT(טבלה1[[#This Row],[תאריך]],"DDD")="שבת","מוצ""ש",TEXT(טבלה1[[#This Row],[תאריך]],"DDD"))) ->  | J51: =IF(IF(AND(טבלה1[[#This Row],[התחלה]]="",טבלה1[[#This Row],[סיום]]<>""),"",IF(AND(טבלה1[[#This Row],[התחלה]]<>"",טבלה1[[#This Row],[סיום]]=""), SUM(MOD(NOW(),1)-טבלה1[[#This Row],[התחלה]]+(MOD(NOW(),1)<טבלה1[[#This Row],[התחלה]]),TIME(,טבלה1[[#This Row],[הוספת דקות]],),-TIME(,טבלה1[[#This Row],[הפחתת דקות]],)), SUM(טבלה1[[#This Row],[סיום]]-טבלה1[[#This Row],[התחלה]]+(טבלה1[[#This Row],[סיום]]<טבלה1[[#This Row],[התחלה]]),TIME(,טבלה1[[#This Row],[הוספת דקות]],),-TIME(,טבלה1[[#This Row],[הפחתת דקות]],))))<=0,"", IF(AND(טבלה1[[#This Row],[התחלה]]="",טבלה1[[#This Row],[סיום]]<>""),"",IF(AND(טבלה1[[#This Row],[התחלה]]<>"",טבלה1[[#This Row],[סיום]]=""), SUM(MOD(NOW(),1)-טבלה1[[#This Row],[התחלה]]+(MOD(NOW(),1)<טבלה1[[#This Row],[התחלה]]),TIME(,טבלה1[[#This Row],[הוספת דקות]],),-TIME(,טבלה1[[#This Row],[הפחתת דקות]],)), SUM(טבלה1[[#This Row],[סיום]]-טבלה1[[#This Row],[התחלה]]+(טבלה1[[#This Row],[סיום]]<טבלה1[[#This Row],[התחלה]]),TIME(,טבלה1[[#This Row],[הוספת דקות]],),-TIME(,טבלה1[[#This Row],[הפחתת דקות]],))))) ->  | K51: =IF('טיימר עבודות'!$J51="","", IFERROR(IF(IF(VLOOKUP('טיימר עבודות'!$F51,טבלה2[],3,FALSE)="$", VLOOKUP(טבלה1[[#This Row],[שם העבודה]],טבלה2[#All],2,FALSE)*טבלה1[[#This Row],[שעות]]*24*שער, VLOOKUP(טבלה1[[#This Row],[שם העבודה]],טבלה2[#All],2,FALSE)*טבלה1[[#This Row],[שעות]]*24)=0,"", IF(VLOOKUP('טיימר עבודות'!$F51,טבלה2[],3,FALSE)="$", VLOOKUP(טבלה1[[#This Row],[שם העבודה]],טבלה2[#All],2,FALSE)*טבלה1[[#This Row],[שעות]]*24*שער, VLOOKUP(טבלה1[[#This Row],[שם העבודה]],טבלה2[#All],2,FALSE)*טבלה1[[#This Row],[שעות]]*24)),"")) ->  | L51: =IF(טבלה1[[#This Row],[תאריך]]="","",טבלה1[[#This Row],[תאריך]]+טבלה1[[#This Row],[התחלה]]) ->  | T51: =IF(OR(טבלה12[[#This Row],[תווים]]="",טבלה12[[#This Row],[שכר לתווים]]=""),"", IF(טבלה12[[#This Row],[תווים שהוקלדו]]/טבלה12[[#This Row],[תווים]]*טבלה12[[#This Row],[שכר לתווים]]=0,"", טבלה12[[#This Row],[תווים שהוקלדו]]/טבלה12[[#This Row],[תווים]]*טבלה12[[#This Row],[שכר לתווים]])) ->  | U51: =IF(OR(טבלה12[[#This Row],[שכר]]="",טבלה12[[#This Row],[יעד]]=""),"", IF(טבלה12[[#This Row],[שכר]]>=טבלה12[[#This Row],[יעד]],"הגעת ליעד!", טבלה12[[#This Row],[שכר]]/טבלה12[[#This Row],[יעד]])) ->  | AM51: 00:30:00 | AN51: 2051
B52: =IF(AND(טבלה1[[#This Row],[תאריך]]="",טבלה1[[#This Row],[התחלה]]="",טבלה1[[#This Row],[שם העבודה]]=""),"",ROW()-10) ->  | C52: =IF(טבלה1[[#This Row],[תאריך]]="","",IF(TEXT(טבלה1[[#This Row],[תאריך]],"DDD")="שבת","מוצ""ש",TEXT(טבלה1[[#This Row],[תאריך]],"DDD"))) ->  | J52: =IF(IF(AND(טבלה1[[#This Row],[התחלה]]="",טבלה1[[#This Row],[סיום]]<>""),"",IF(AND(טבלה1[[#This Row],[התחלה]]<>"",טבלה1[[#This Row],[סיום]]=""), SUM(MOD(NOW(),1)-טבלה1[[#This Row],[התחלה]]+(MOD(NOW(),1)<טבלה1[[#This Row],[התחלה]]),TIME(,טבלה1[[#This Row],[הוספת דקות]],),-TIME(,טבלה1[[#This Row],[הפחתת דקות]],)), SUM(טבלה1[[#This Row],[סיום]]-טבלה1[[#This Row],[התחלה]]+(טבלה1[[#This Row],[סיום]]<טבלה1[[#This Row],[התחלה]]),TIME(,טבלה1[[#This Row],[הוספת דקות]],),-TIME(,טבלה1[[#This Row],[הפחתת דקות]],))))<=0,"", IF(AND(טבלה1[[#This Row],[התחלה]]="",טבלה1[[#This Row],[סיום]]<>""),"",IF(AND(טבלה1[[#This Row],[התחלה]]<>"",טבלה1[[#This Row],[סיום]]=""), SUM(MOD(NOW(),1)-טבלה1[[#This Row],[התחלה]]+(MOD(NOW(),1)<טבלה1[[#This Row],[התחלה]]),TIME(,טבלה1[[#This Row],[הוספת דקות]],),-TIME(,טבלה1[[#This Row],[הפחתת דקות]],)), SUM(טבלה1[[#This Row],[סיום]]-טבלה1[[#This Row],[התחלה]]+(טבלה1[[#This Row],[סיום]]<טבלה1[[#This Row],[התחלה]]),TIME(,טבלה1[[#This Row],[הוספת דקות]],),-TIME(,טבלה1[[#This Row],[הפחתת דקות]],))))) ->  | K52: =IF('טיימר עבודות'!$J52="","", IFERROR(IF(IF(VLOOKUP('טיימר עבודות'!$F52,טבלה2[],3,FALSE)="$", VLOOKUP(טבלה1[[#This Row],[שם העבודה]],טבלה2[#All],2,FALSE)*טבלה1[[#This Row],[שעות]]*24*שער, VLOOKUP(טבלה1[[#This Row],[שם העבודה]],טבלה2[#All],2,FALSE)*טבלה1[[#This Row],[שעות]]*24)=0,"", IF(VLOOKUP('טיימר עבודות'!$F52,טבלה2[],3,FALSE)="$", VLOOKUP(טבלה1[[#This Row],[שם העבודה]],טבלה2[#All],2,FALSE)*טבלה1[[#This Row],[שעות]]*24*שער, VLOOKUP(טבלה1[[#This Row],[שם העבודה]],טבלה2[#All],2,FALSE)*טבלה1[[#This Row],[שעות]]*24)),"")) ->  | L52: =IF(טבלה1[[#This Row],[תאריך]]="","",טבלה1[[#This Row],[תאריך]]+טבלה1[[#This Row],[התחלה]]) ->  | T52: =IF(OR(טבלה12[[#This Row],[תווים]]="",טבלה12[[#This Row],[שכר לתווים]]=""),"", IF(טבלה12[[#This Row],[תווים שהוקלדו]]/טבלה12[[#This Row],[תווים]]*טבלה12[[#This Row],[שכר לתווים]]=0,"", טבלה12[[#This Row],[תווים שהוקלדו]]/טבלה12[[#This Row],[תווים]]*טבלה12[[#This Row],[שכר לתווים]])) ->  | U52: =IF(OR(טבלה12[[#This Row],[שכר]]="",טבלה12[[#This Row],[יעד]]=""),"", IF(טבלה12[[#This Row],[שכר]]>=טבלה12[[#This Row],[יעד]],"הגעת ליעד!", טבלה12[[#This Row],[שכר]]/טבלה12[[#This Row],[יעד]])) ->  | AM52: 01:00:00 | AN52: 2052
B53: =IF(AND(טבלה1[[#This Row],[תאריך]]="",טבלה1[[#This Row],[התחלה]]="",טבלה1[[#This Row],[שם העבודה]]=""),"",ROW()-10) ->  | C53: =IF(טבלה1[[#This Row],[תאריך]]="","",IF(TEXT(טבלה1[[#This Row],[תאריך]],"DDD")="שבת","מוצ""ש",TEXT(טבלה1[[#This Row],[תאריך]],"DDD"))) ->  | J53: =IF(IF(AND(טבלה1[[#This Row],[התחלה]]="",טבלה1[[#This Row],[סיום]]<>""),"",IF(AND(טבלה1[[#This Row],[התחלה]]<>"",טבלה1[[#This Row],[סיום]]=""), SUM(MOD(NOW(),1)-טבלה1[[#This Row],[התחלה]]+(MOD(NOW(),1)<טבלה1[[#This Row],[התחלה]]),TIME(,טבלה1[[#This Row],[הוספת דקות]],),-TIME(,טבלה1[[#This Row],[הפחתת דקות]],)), SUM(טבלה1[[#This Row],[סיום]]-טבלה1[[#This Row],[התחלה]]+(טבלה1[[#This Row],[סיום]]<טבלה1[[#This Row],[התחלה]]),TIME(,טבלה1[[#This Row],[הוספת דקות]],),-TIME(,טבלה1[[#This Row],[הפחתת דקות]],))))<=0,"", IF(AND(טבלה1[[#This Row],[התחלה]]="",טבלה1[[#This Row],[סיום]]<>""),"",IF(AND(טבלה1[[#This Row],[התחלה]]<>"",טבלה1[[#This Row],[סיום]]=""), SUM(MOD(NOW(),1)-טבלה1[[#This Row],[התחלה]]+(MOD(NOW(),1)<טבלה1[[#This Row],[התחלה]]),TIME(,טבלה1[[#This Row],[הוספת דקות]],),-TIME(,טבלה1[[#This Row],[הפחתת דקות]],)), SUM(טבלה1[[#This Row],[סיום]]-טבלה1[[#This Row],[התחלה]]+(טבלה1[[#This Row],[סיום]]<טבלה1[[#This Row],[התחלה]]),TIME(,טבלה1[[#This Row],[הוספת דקות]],),-TIME(,טבלה1[[#This Row],[הפחתת דקות]],))))) ->  | K53: =IF('טיימר עבודות'!$J53="","", IFERROR(IF(IF(VLOOKUP('טיימר עבודות'!$F53,טבלה2[],3,FALSE)="$", VLOOKUP(טבלה1[[#This Row],[שם העבודה]],טבלה2[#All],2,FALSE)*טבלה1[[#This Row],[שעות]]*24*שער, VLOOKUP(טבלה1[[#This Row],[שם העבודה]],טבלה2[#All],2,FALSE)*טבלה1[[#This Row],[שעות]]*24)=0,"", IF(VLOOKUP('טיימר עבודות'!$F53,טבלה2[],3,FALSE)="$", VLOOKUP(טבלה1[[#This Row],[שם העבודה]],טבלה2[#All],2,FALSE)*טבלה1[[#This Row],[שעות]]*24*שער, VLOOKUP(טבלה1[[#This Row],[שם העבודה]],טבלה2[#All],2,FALSE)*טבלה1[[#This Row],[שעות]]*24)),"")) ->  | L53: =IF(טבלה1[[#This Row],[תאריך]]="","",טבלה1[[#This Row],[תאריך]]+טבלה1[[#This Row],[התחלה]]) ->  | T53: =IF(OR(טבלה12[[#This Row],[תווים]]="",טבלה12[[#This Row],[שכר לתווים]]=""),"", IF(טבלה12[[#This Row],[תווים שהוקלדו]]/טבלה12[[#This Row],[תווים]]*טבלה12[[#This Row],[שכר לתווים]]=0,"", טבלה12[[#This Row],[תווים שהוקלדו]]/טבלה12[[#This Row],[תווים]]*טבלה12[[#This Row],[שכר לתווים]])) ->  | U53: =IF(OR(טבלה12[[#This Row],[שכר]]="",טבלה12[[#This Row],[יעד]]=""),"", IF(טבלה12[[#This Row],[שכר]]>=טבלה12[[#This Row],[יעד]],"הגעת ליעד!", טבלה12[[#This Row],[שכר]]/טבלה12[[#This Row],[יעד]])) ->  | AM53: 01:30:00 | AN53: 2053
B54: =IF(AND(טבלה1[[#This Row],[תאריך]]="",טבלה1[[#This Row],[התחלה]]="",טבלה1[[#This Row],[שם העבודה]]=""),"",ROW()-10) ->  | C54: =IF(טבלה1[[#This Row],[תאריך]]="","",IF(TEXT(טבלה1[[#This Row],[תאריך]],"DDD")="שבת","מוצ""ש",TEXT(טבלה1[[#This Row],[תאריך]],"DDD"))) ->  | J54: =IF(IF(AND(טבלה1[[#This Row],[התחלה]]="",טבלה1[[#This Row],[סיום]]<>""),"",IF(AND(טבלה1[[#This Row],[התחלה]]<>"",טבלה1[[#This Row],[סיום]]=""), SUM(MOD(NOW(),1)-טבלה1[[#This Row],[התחלה]]+(MOD(NOW(),1)<טבלה1[[#This Row],[התחלה]]),TIME(,טבלה1[[#This Row],[הוספת דקות]],),-TIME(,טבלה1[[#This Row],[הפחתת דקות]],)), SUM(טבלה1[[#This Row],[סיום]]-טבלה1[[#This Row],[התחלה]]+(טבלה1[[#This Row],[סיום]]<טבלה1[[#This Row],[התחלה]]),TIME(,טבלה1[[#This Row],[הוספת דקות]],),-TIME(,טבלה1[[#This Row],[הפחתת דקות]],))))<=0,"", IF(AND(טבלה1[[#This Row],[התחלה]]="",טבלה1[[#This Row],[סיום]]<>""),"",IF(AND(טבלה1[[#This Row],[התחלה]]<>"",טבלה1[[#This Row],[סיום]]=""), SUM(MOD(NOW(),1)-טבלה1[[#This Row],[התחלה]]+(MOD(NOW(),1)<טבלה1[[#This Row],[התחלה]]),TIME(,טבלה1[[#This Row],[הוספת דקות]],),-TIME(,טבלה1[[#This Row],[הפחתת דקות]],)), SUM(טבלה1[[#This Row],[סיום]]-טבלה1[[#This Row],[התחלה]]+(טבלה1[[#This Row],[סיום]]<טבלה1[[#This Row],[התחלה]]),TIME(,טבלה1[[#This Row],[הוספת דקות]],),-TIME(,טבלה1[[#This Row],[הפחתת דקות]],))))) ->  | K54: =IF('טיימר עבודות'!$J54="","", IFERROR(IF(IF(VLOOKUP('טיימר עבודות'!$F54,טבלה2[],3,FALSE)="$", VLOOKUP(טבלה1[[#This Row],[שם העבודה]],טבלה2[#All],2,FALSE)*טבלה1[[#This Row],[שעות]]*24*שער, VLOOKUP(טבלה1[[#This Row],[שם העבודה]],טבלה2[#All],2,FALSE)*טבלה1[[#This Row],[שעות]]*24)=0,"", IF(VLOOKUP('טיימר עבודות'!$F54,טבלה2[],3,FALSE)="$", VLOOKUP(טבלה1[[#This Row],[שם העבודה]],טבלה2[#All],2,FALSE)*טבלה1[[#This Row],[שעות]]*24*שער, VLOOKUP(טבלה1[[#This Row],[שם העבודה]],טבלה2[#All],2,FALSE)*טבלה1[[#This Row],[שעות]]*24)),"")) ->  | L54: =IF(טבלה1[[#This Row],[תאריך]]="","",טבלה1[[#This Row],[תאריך]]+טבלה1[[#This Row],[התחלה]]) ->  | T54: =IF(OR(טבלה12[[#This Row],[תווים]]="",טבלה12[[#This Row],[שכר לתווים]]=""),"", IF(טבלה12[[#This Row],[תווים שהוקלדו]]/טבלה12[[#This Row],[תווים]]*טבלה12[[#This Row],[שכר לתווים]]=0,"", טבלה12[[#This Row],[תווים שהוקלדו]]/טבלה12[[#This Row],[תווים]]*טבלה12[[#This Row],[שכר לתווים]])) ->  | U54: =IF(OR(טבלה12[[#This Row],[שכר]]="",טבלה12[[#This Row],[יעד]]=""),"", IF(טבלה12[[#This Row],[שכר]]>=טבלה12[[#This Row],[יעד]],"הגעת ליעד!", טבלה12[[#This Row],[שכר]]/טבלה12[[#This Row],[יעד]])) ->  | AM54: 02:00:00 | AN54: 2054
B55: =IF(AND(טבלה1[[#This Row],[תאריך]]="",טבלה1[[#This Row],[התחלה]]="",טבלה1[[#This Row],[שם העבודה]]=""),"",ROW()-10) ->  | C55: =IF(טבלה1[[#This Row],[תאריך]]="","",IF(TEXT(טבלה1[[#This Row],[תאריך]],"DDD")="שבת","מוצ""ש",TEXT(טבלה1[[#This Row],[תאריך]],"DDD"))) ->  | J55: =IF(IF(AND(טבלה1[[#This Row],[התחלה]]="",טבלה1[[#This Row],[סיום]]<>""),"",IF(AND(טבלה1[[#This Row],[התחלה]]<>"",טבלה1[[#This Row],[סיום]]=""), SUM(MOD(NOW(),1)-טבלה1[[#This Row],[התחלה]]+(MOD(NOW(),1)<טבלה1[[#This Row],[התחלה]]),TIME(,טבלה1[[#This Row],[הוספת דקות]],),-TIME(,טבלה1[[#This Row],[הפחתת דקות]],)), SUM(טבלה1[[#This Row],[סיום]]-טבלה1[[#This Row],[התחלה]]+(טבלה1[[#This Row],[סיום]]<טבלה1[[#This Row],[התחלה]]),TIME(,טבלה1[[#This Row],[הוספת דקות]],),-TIME(,טבלה1[[#This Row],[הפחתת דקות]],))))<=0,"", IF(AND(טבלה1[[#This Row],[התחלה]]="",טבלה1[[#This Row],[סיום]]<>""),"",IF(AND(טבלה1[[#This Row],[התחלה]]<>"",טבלה1[[#This Row],[סיום]]=""), SUM(MOD(NOW(),1)-טבלה1[[#This Row],[התחלה]]+(MOD(NOW(),1)<טבלה1[[#This Row],[התחלה]]),TIME(,טבלה1[[#This Row],[הוספת דקות]],),-TIME(,טבלה1[[#This Row],[הפחתת דקות]],)), SUM(טבלה1[[#This Row],[סיום]]-טבלה1[[#This Row],[התחלה]]+(טבלה1[[#This Row],[סיום]]<טבלה1[[#This Row],[התחלה]]),TIME(,טבלה1[[#This Row],[הוספת דקות]],),-TIME(,טבלה1[[#This Row],[הפחתת דקות]],))))) ->  | K55: =IF('טיימר עבודות'!$J55="","", IFERROR(IF(IF(VLOOKUP('טיימר עבודות'!$F55,טבלה2[],3,FALSE)="$", VLOOKUP(טבלה1[[#This Row],[שם העבודה]],טבלה2[#All],2,FALSE)*טבלה1[[#This Row],[שעות]]*24*שער, VLOOKUP(טבלה1[[#This Row],[שם העבודה]],טבלה2[#All],2,FALSE)*טבלה1[[#This Row],[שעות]]*24)=0,"", IF(VLOOKUP('טיימר עבודות'!$F55,טבלה2[],3,FALSE)="$", VLOOKUP(טבלה1[[#This Row],[שם העבודה]],טבלה2[#All],2,FALSE)*טבלה1[[#This Row],[שעות]]*24*שער, VLOOKUP(טבלה1[[#This Row],[שם העבודה]],טבלה2[#All],2,FALSE)*טבלה1[[#This Row],[שעות]]*24)),"")) ->  | L55: =IF(טבלה1[[#This Row],[תאריך]]="","",טבלה1[[#This Row],[תאריך]]+טבלה1[[#This Row],[התחלה]]) ->  | T55: =IF(OR(טבלה12[[#This Row],[תווים]]="",טבלה12[[#This Row],[שכר לתווים]]=""),"", IF(טבלה12[[#This Row],[תווים שהוקלדו]]/טבלה12[[#This Row],[תווים]]*טבלה12[[#This Row],[שכר לתווים]]=0,"", טבלה12[[#This Row],[תווים שהוקלדו]]/טבלה12[[#This Row],[תווים]]*טבלה12[[#This Row],[שכר לתווים]])) ->  | U55: =IF(OR(טבלה12[[#This Row],[שכר]]="",טבלה12[[#This Row],[יעד]]=""),"", IF(טבלה12[[#This Row],[שכר]]>=טבלה12[[#This Row],[יעד]],"הגעת ליעד!", טבלה12[[#This Row],[שכר]]/טבלה12[[#This Row],[יעד]])) ->  | AM55: 02:30:00 | AN55: 2055
B56: =IF(AND(טבלה1[[#This Row],[תאריך]]="",טבלה1[[#This Row],[התחלה]]="",טבלה1[[#This Row],[שם העבודה]]=""),"",ROW()-10) ->  | C56: =IF(טבלה1[[#This Row],[תאריך]]="","",IF(TEXT(טבלה1[[#This Row],[תאריך]],"DDD")="שבת","מוצ""ש",TEXT(טבלה1[[#This Row],[תאריך]],"DDD"))) ->  | J56: =IF(IF(AND(טבלה1[[#This Row],[התחלה]]="",טבלה1[[#This Row],[סיום]]<>""),"",IF(AND(טבלה1[[#This Row],[התחלה]]<>"",טבלה1[[#This Row],[סיום]]=""), SUM(MOD(NOW(),1)-טבלה1[[#This Row],[התחלה]]+(MOD(NOW(),1)<טבלה1[[#This Row],[התחלה]]),TIME(,טבלה1[[#This Row],[הוספת דקות]],),-TIME(,טבלה1[[#This Row],[הפחתת דקות]],)), SUM(טבלה1[[#This Row],[סיום]]-טבלה1[[#This Row],[התחלה]]+(טבלה1[[#This Row],[סיום]]<טבלה1[[#This Row],[התחלה]]),TIME(,טבלה1[[#This Row],[הוספת דקות]],),-TIME(,טבלה1[[#This Row],[הפחתת דקות]],))))<=0,"", IF(AND(טבלה1[[#This Row],[התחלה]]="",טבלה1[[#This Row],[סיום]]<>""),"",IF(AND(טבלה1[[#This Row],[התחלה]]<>"",טבלה1[[#This Row],[סיום]]=""), SUM(MOD(NOW(),1)-טבלה1[[#This Row],[התחלה]]+(MOD(NOW(),1)<טבלה1[[#This Row],[התחלה]]),TIME(,טבלה1[[#This Row],[הוספת דקות]],),-TIME(,טבלה1[[#This Row],[הפחתת דקות]],)), SUM(טבלה1[[#This Row],[סיום]]-טבלה1[[#This Row],[התחלה]]+(טבלה1[[#This Row],[סיום]]<טבלה1[[#This Row],[התחלה]]),TIME(,טבלה1[[#This Row],[הוספת דקות]],),-TIME(,טבלה1[[#This Row],[הפחתת דקות]],))))) ->  | K56: =IF('טיימר עבודות'!$J56="","", IFERROR(IF(IF(VLOOKUP('טיימר עבודות'!$F56,טבלה2[],3,FALSE)="$", VLOOKUP(טבלה1[[#This Row],[שם העבודה]],טבלה2[#All],2,FALSE)*טבלה1[[#This Row],[שעות]]*24*שער, VLOOKUP(טבלה1[[#This Row],[שם העבודה]],טבלה2[#All],2,FALSE)*טבלה1[[#This Row],[שעות]]*24)=0,"", IF(VLOOKUP('טיימר עבודות'!$F56,טבלה2[],3,FALSE)="$", VLOOKUP(טבלה1[[#This Row],[שם העבודה]],טבלה2[#All],2,FALSE)*טבלה1[[#This Row],[שעות]]*24*שער, VLOOKUP(טבלה1[[#This Row],[שם העבודה]],טבלה2[#All],2,FALSE)*טבלה1[[#This Row],[שעות]]*24)),"")) ->  | L56: =IF(טבלה1[[#This Row],[תאריך]]="","",טבלה1[[#This Row],[תאריך]]+טבלה1[[#This Row],[התחלה]]) ->  | T56: =IF(OR(טבלה12[[#This Row],[תווים]]="",טבלה12[[#This Row],[שכר לתווים]]=""),"", IF(טבלה12[[#This Row],[תווים שהוקלדו]]/טבלה12[[#This Row],[תווים]]*טבלה12[[#This Row],[שכר לתווים]]=0,"", טבלה12[[#This Row],[תווים שהוקלדו]]/טבלה12[[#This Row],[תווים]]*טבלה12[[#This Row],[שכר לתווים]])) ->  | U56: =IF(OR(טבלה12[[#This Row],[שכר]]="",טבלה12[[#This Row],[יעד]]=""),"", IF(טבלה12[[#This Row],[שכר]]>=טבלה12[[#This Row],[יעד]],"הגעת ליעד!", טבלה12[[#This Row],[שכר]]/טבלה12[[#This Row],[יעד]])) ->  | AM56: 03:00:00 | AN56: 2056
B57: =IF(AND(טבלה1[[#This Row],[תאריך]]="",טבלה1[[#This Row],[התחלה]]="",טבלה1[[#This Row],[שם העבודה]]=""),"",ROW()-10) ->  | C57: =IF(טבלה1[[#This Row],[תאריך]]="","",IF(TEXT(טבלה1[[#This Row],[תאריך]],"DDD")="שבת","מוצ""ש",TEXT(טבלה1[[#This Row],[תאריך]],"DDD"))) ->  | J57: =IF(IF(AND(טבלה1[[#This Row],[התחלה]]="",טבלה1[[#This Row],[סיום]]<>""),"",IF(AND(טבלה1[[#This Row],[התחלה]]<>"",טבלה1[[#This Row],[סיום]]=""), SUM(MOD(NOW(),1)-טבלה1[[#This Row],[התחלה]]+(MOD(NOW(),1)<טבלה1[[#This Row],[התחלה]]),TIME(,טבלה1[[#This Row],[הוספת דקות]],),-TIME(,טבלה1[[#This Row],[הפחתת דקות]],)), SUM(טבלה1[[#This Row],[סיום]]-טבלה1[[#This Row],[התחלה]]+(טבלה1[[#This Row],[סיום]]<טבלה1[[#This Row],[התחלה]]),TIME(,טבלה1[[#This Row],[הוספת דקות]],),-TIME(,טבלה1[[#This Row],[הפחתת דקות]],))))<=0,"", IF(AND(טבלה1[[#This Row],[התחלה]]="",טבלה1[[#This Row],[סיום]]<>""),"",IF(AND(טבלה1[[#This Row],[התחלה]]<>"",טבלה1[[#This Row],[סיום]]=""), SUM(MOD(NOW(),1)-טבלה1[[#This Row],[התחלה]]+(MOD(NOW(),1)<טבלה1[[#This Row],[התחלה]]),TIME(,טבלה1[[#This Row],[הוספת דקות]],),-TIME(,טבלה1[[#This Row],[הפחתת דקות]],)), SUM(טבלה1[[#This Row],[סיום]]-טבלה1[[#This Row],[התחלה]]+(טבלה1[[#This Row],[סיום]]<טבלה1[[#This Row],[התחלה]]),TIME(,טבלה1[[#This Row],[הוספת דקות]],),-TIME(,טבלה1[[#This Row],[הפחתת דקות]],))))) ->  | K57: =IF('טיימר עבודות'!$J57="","", IFERROR(IF(IF(VLOOKUP('טיימר עבודות'!$F57,טבלה2[],3,FALSE)="$", VLOOKUP(טבלה1[[#This Row],[שם העבודה]],טבלה2[#All],2,FALSE)*טבלה1[[#This Row],[שעות]]*24*שער, VLOOKUP(טבלה1[[#This Row],[שם העבודה]],טבלה2[#All],2,FALSE)*טבלה1[[#This Row],[שעות]]*24)=0,"", IF(VLOOKUP('טיימר עבודות'!$F57,טבלה2[],3,FALSE)="$", VLOOKUP(טבלה1[[#This Row],[שם העבודה]],טבלה2[#All],2,FALSE)*טבלה1[[#This Row],[שעות]]*24*שער, VLOOKUP(טבלה1[[#This Row],[שם העבודה]],טבלה2[#All],2,FALSE)*טבלה1[[#This Row],[שעות]]*24)),"")) ->  | L57: =IF(טבלה1[[#This Row],[תאריך]]="","",טבלה1[[#This Row],[תאריך]]+טבלה1[[#This Row],[התחלה]]) ->  | T57: =IF(OR(טבלה12[[#This Row],[תווים]]="",טבלה12[[#This Row],[שכר לתווים]]=""),"", IF(טבלה12[[#This Row],[תווים שהוקלדו]]/טבלה12[[#This Row],[תווים]]*טבלה12[[#This Row],[שכר לתווים]]=0,"", טבלה12[[#This Row],[תווים שהוקלדו]]/טבלה12[[#This Row],[תווים]]*טבלה12[[#This Row],[שכר לתווים]])) ->  | U57: =IF(OR(טבלה12[[#This Row],[שכר]]="",טבלה12[[#This Row],[יעד]]=""),"", IF(טבלה12[[#This Row],[שכר]]>=טבלה12[[#This Row],[יעד]],"הגעת ליעד!", טבלה12[[#This Row],[שכר]]/טבלה12[[#This Row],[יעד]])) ->  | AM57: 03:30:00 | AN57: 2057
B58: =IF(AND(טבלה1[[#This Row],[תאריך]]="",טבלה1[[#This Row],[התחלה]]="",טבלה1[[#This Row],[שם העבודה]]=""),"",ROW()-10) ->  | C58: =IF(טבלה1[[#This Row],[תאריך]]="","",IF(TEXT(טבלה1[[#This Row],[תאריך]],"DDD")="שבת","מוצ""ש",TEXT(טבלה1[[#This Row],[תאריך]],"DDD"))) ->  | J58: =IF(IF(AND(טבלה1[[#This Row],[התחלה]]="",טבלה1[[#This Row],[סיום]]<>""),"",IF(AND(טבלה1[[#This Row],[התחלה]]<>"",טבלה1[[#This Row],[סיום]]=""), SUM(MOD(NOW(),1)-טבלה1[[#This Row],[התחלה]]+(MOD(NOW(),1)<טבלה1[[#This Row],[התחלה]]),TIME(,טבלה1[[#This Row],[הוספת דקות]],),-TIME(,טבלה1[[#This Row],[הפחתת דקות]],)), SUM(טבלה1[[#This Row],[סיום]]-טבלה1[[#This Row],[התחלה]]+(טבלה1[[#This Row],[סיום]]<טבלה1[[#This Row],[התחלה]]),TIME(,טבלה1[[#This Row],[הוספת דקות]],),-TIME(,טבלה1[[#This Row],[הפחתת דקות]],))))<=0,"", IF(AND(טבלה1[[#This Row],[התחלה]]="",טבלה1[[#This Row],[סיום]]<>""),"",IF(AND(טבלה1[[#This Row],[התחלה]]<>"",טבלה1[[#This Row],[סיום]]=""), SUM(MOD(NOW(),1)-טבלה1[[#This Row],[התחלה]]+(MOD(NOW(),1)<טבלה1[[#This Row],[התחלה]]),TIME(,טבלה1[[#This Row],[הוספת דקות]],),-TIME(,טבלה1[[#This Row],[הפחתת דקות]],)), SUM(טבלה1[[#This Row],[סיום]]-טבלה1[[#This Row],[התחלה]]+(טבלה1[[#This Row],[סיום]]<טבלה1[[#This Row],[התחלה]]),TIME(,טבלה1[[#This Row],[הוספת דקות]],),-TIME(,טבלה1[[#This Row],[הפחתת דקות]],))))) ->  | K58: =IF('טיימר עבודות'!$J58="","", IFERROR(IF(IF(VLOOKUP('טיימר עבודות'!$F58,טבלה2[],3,FALSE)="$", VLOOKUP(טבלה1[[#This Row],[שם העבודה]],טבלה2[#All],2,FALSE)*טבלה1[[#This Row],[שעות]]*24*שער, VLOOKUP(טבלה1[[#This Row],[שם העבודה]],טבלה2[#All],2,FALSE)*טבלה1[[#This Row],[שעות]]*24)=0,"", IF(VLOOKUP('טיימר עבודות'!$F58,טבלה2[],3,FALSE)="$", VLOOKUP(טבלה1[[#This Row],[שם העבודה]],טבלה2[#All],2,FALSE)*טבלה1[[#This Row],[שעות]]*24*שער, VLOOKUP(טבלה1[[#This Row],[שם העבודה]],טבלה2[#All],2,FALSE)*טבלה1[[#This Row],[שעות]]*24)),"")) ->  | L58: =IF(טבלה1[[#This Row],[תאריך]]="","",טבלה1[[#This Row],[תאריך]]+טבלה1[[#This Row],[התחלה]]) ->  | T58: =IF(OR(טבלה12[[#This Row],[תווים]]="",טבלה12[[#This Row],[שכר לתווים]]=""),"", IF(טבלה12[[#This Row],[תווים שהוקלדו]]/טבלה12[[#This Row],[תווים]]*טבלה12[[#This Row],[שכר לתווים]]=0,"", טבלה12[[#This Row],[תווים שהוקלדו]]/טבלה12[[#This Row],[תווים]]*טבלה12[[#This Row],[שכר לתווים]])) ->  | U58: =IF(OR(טבלה12[[#This Row],[שכר]]="",טבלה12[[#This Row],[יעד]]=""),"", IF(טבלה12[[#This Row],[שכר]]>=טבלה12[[#This Row],[יעד]],"הגעת ליעד!", טבלה12[[#This Row],[שכר]]/טבלה12[[#This Row],[יעד]])) ->  | AM58: 04:00:00 | AN58: 2058
B59: =IF(AND(טבלה1[[#This Row],[תאריך]]="",טבלה1[[#This Row],[התחלה]]="",טבלה1[[#This Row],[שם העבודה]]=""),"",ROW()-10) ->  | C59: =IF(טבלה1[[#This Row],[תאריך]]="","",IF(TEXT(טבלה1[[#This Row],[תאריך]],"DDD")="שבת","מוצ""ש",TEXT(טבלה1[[#This Row],[תאריך]],"DDD"))) ->  | J59: =IF(IF(AND(טבלה1[[#This Row],[התחלה]]="",טבלה1[[#This Row],[סיום]]<>""),"",IF(AND(טבלה1[[#This Row],[התחלה]]<>"",טבלה1[[#This Row],[סיום]]=""), SUM(MOD(NOW(),1)-טבלה1[[#This Row],[התחלה]]+(MOD(NOW(),1)<טבלה1[[#This Row],[התחלה]]),TIME(,טבלה1[[#This Row],[הוספת דקות]],),-TIME(,טבלה1[[#This Row],[הפחתת דקות]],)), SUM(טבלה1[[#This Row],[סיום]]-טבלה1[[#This Row],[התחלה]]+(טבלה1[[#This Row],[סיום]]<טבלה1[[#This Row],[התחלה]]),TIME(,טבלה1[[#This Row],[הוספת דקות]],),-TIME(,טבלה1[[#This Row],[הפחתת דקות]],))))<=0,"", IF(AND(טבלה1[[#This Row],[התחלה]]="",טבלה1[[#This Row],[סיום]]<>""),"",IF(AND(טבלה1[[#This Row],[התחלה]]<>"",טבלה1[[#This Row],[סיום]]=""), SUM(MOD(NOW(),1)-טבלה1[[#This Row],[התחלה]]+(MOD(NOW(),1)<טבלה1[[#This Row],[התחלה]]),TIME(,טבלה1[[#This Row],[הוספת דקות]],),-TIME(,טבלה1[[#This Row],[הפחתת דקות]],)), SUM(טבלה1[[#This Row],[סיום]]-טבלה1[[#This Row],[התחלה]]+(טבלה1[[#This Row],[סיום]]<טבלה1[[#This Row],[התחלה]]),TIME(,טבלה1[[#This Row],[הוספת דקות]],),-TIME(,טבלה1[[#This Row],[הפחתת דקות]],))))) ->  | K59: =IF('טיימר עבודות'!$J59="","", IFERROR(IF(IF(VLOOKUP('טיימר עבודות'!$F59,טבלה2[],3,FALSE)="$", VLOOKUP(טבלה1[[#This Row],[שם העבודה]],טבלה2[#All],2,FALSE)*טבלה1[[#This Row],[שעות]]*24*שער, VLOOKUP(טבלה1[[#This Row],[שם העבודה]],טבלה2[#All],2,FALSE)*טבלה1[[#This Row],[שעות]]*24)=0,"", IF(VLOOKUP('טיימר עבודות'!$F59,טבלה2[],3,FALSE)="$", VLOOKUP(טבלה1[[#This Row],[שם העבודה]],טבלה2[#All],2,FALSE)*טבלה1[[#This Row],[שעות]]*24*שער, VLOOKUP(טבלה1[[#This Row],[שם העבודה]],טבלה2[#All],2,FALSE)*טבלה1[[#This Row],[שעות]]*24)),"")) ->  | L59: =IF(טבלה1[[#This Row],[תאריך]]="","",טבלה1[[#This Row],[תאריך]]+טבלה1[[#This Row],[התחלה]]) ->  | T59: =IF(OR(טבלה12[[#This Row],[תווים]]="",טבלה12[[#This Row],[שכר לתווים]]=""),"", IF(טבלה12[[#This Row],[תווים שהוקלדו]]/טבלה12[[#This Row],[תווים]]*טבלה12[[#This Row],[שכר לתווים]]=0,"", טבלה12[[#This Row],[תווים שהוקלדו]]/טבלה12[[#This Row],[תווים]]*טבלה12[[#This Row],[שכר לתווים]])) ->  | U59: =IF(OR(טבלה12[[#This Row],[שכר]]="",טבלה12[[#This Row],[יעד]]=""),"", IF(טבלה12[[#This Row],[שכר]]>=טבלה12[[#This Row],[יעד]],"הגעת ליעד!", טבלה12[[#This Row],[שכר]]/טבלה12[[#This Row],[יעד]])) ->  | AM59: 04:30:00 | AN59: 2059
B60: =IF(AND(טבלה1[[#This Row],[תאריך]]="",טבלה1[[#This Row],[התחלה]]="",טבלה1[[#This Row],[שם העבודה]]=""),"",ROW()-10) ->  | C60: =IF(טבלה1[[#This Row],[תאריך]]="","",IF(TEXT(טבלה1[[#This Row],[תאריך]],"DDD")="שבת","מוצ""ש",TEXT(טבלה1[[#This Row],[תאריך]],"DDD"))) ->  | J60: =IF(IF(AND(טבלה1[[#This Row],[התחלה]]="",טבלה1[[#This Row],[סיום]]<>""),"",IF(AND(טבלה1[[#This Row],[התחלה]]<>"",טבלה1[[#This Row],[סיום]]=""), SUM(MOD(NOW(),1)-טבלה1[[#This Row],[התחלה]]+(MOD(NOW(),1)<טבלה1[[#This Row],[התחלה]]),TIME(,טבלה1[[#This Row],[הוספת דקות]],),-TIME(,טבלה1[[#This Row],[הפחתת דקות]],)), SUM(טבלה1[[#This Row],[סיום]]-טבלה1[[#This Row],[התחלה]]+(טבלה1[[#This Row],[סיום]]<טבלה1[[#This Row],[התחלה]]),TIME(,טבלה1[[#This Row],[הוספת דקות]],),-TIME(,טבלה1[[#This Row],[הפחתת דקות]],))))<=0,"", IF(AND(טבלה1[[#This Row],[התחלה]]="",טבלה1[[#This Row],[סיום]]<>""),"",IF(AND(טבלה1[[#This Row],[התחלה]]<>"",טבלה1[[#This Row],[סיום]]=""), SUM(MOD(NOW(),1)-טבלה1[[#This Row],[התחלה]]+(MOD(NOW(),1)<טבלה1[[#This Row],[התחלה]]),TIME(,טבלה1[[#This Row],[הוספת דקות]],),-TIME(,טבלה1[[#This Row],[הפחתת דקות]],)), SUM(טבלה1[[#This Row],[סיום]]-טבלה1[[#This Row],[התחלה]]+(טבלה1[[#This Row],[סיום]]<טבלה1[[#This Row],[התחלה]]),TIME(,טבלה1[[#This Row],[הוספת דקות]],),-TIME(,טבלה1[[#This Row],[הפחתת דקות]],))))) ->  | K60: =IF('טיימר עבודות'!$J60="","", IFERROR(IF(IF(VLOOKUP('טיימר עבודות'!$F60,טבלה2[],3,FALSE)="$", VLOOKUP(טבלה1[[#This Row],[שם העבודה]],טבלה2[#All],2,FALSE)*טבלה1[[#This Row],[שעות]]*24*שער, VLOOKUP(טבלה1[[#This Row],[שם העבודה]],טבלה2[#All],2,FALSE)*טבלה1[[#This Row],[שעות]]*24)=0,"", IF(VLOOKUP('טיימר עבודות'!$F60,טבלה2[],3,FALSE)="$", VLOOKUP(טבלה1[[#This Row],[שם העבודה]],טבלה2[#All],2,FALSE)*טבלה1[[#This Row],[שעות]]*24*שער, VLOOKUP(טבלה1[[#This Row],[שם העבודה]],טבלה2[#All],2,FALSE)*טבלה1[[#This Row],[שעות]]*24)),"")) ->  | L60: =IF(טבלה1[[#This Row],[תאריך]]="","",טבלה1[[#This Row],[תאריך]]+טבלה1[[#This Row],[התחלה]]) ->  | T60: =IF(OR(טבלה12[[#This Row],[תווים]]="",טבלה12[[#This Row],[שכר לתווים]]=""),"", IF(טבלה12[[#This Row],[תווים שהוקלדו]]/טבלה12[[#This Row],[תווים]]*טבלה12[[#This Row],[שכר לתווים]]=0,"", טבלה12[[#This Row],[תווים שהוקלדו]]/טבלה12[[#This Row],[תווים]]*טבלה12[[#This Row],[שכר לתווים]])) ->  | U60: =IF(OR(טבלה12[[#This Row],[שכר]]="",טבלה12[[#This Row],[יעד]]=""),"", IF(טבלה12[[#This Row],[שכר]]>=טבלה12[[#This Row],[יעד]],"הגעת ליעד!", טבלה12[[#This Row],[שכר]]/טבלה12[[#This Row],[יעד]])) ->  | AM60: 05:00:00 | AN60: 2060
B61: =IF(AND(טבלה1[[#This Row],[תאריך]]="",טבלה1[[#This Row],[התחלה]]="",טבלה1[[#This Row],[שם העבודה]]=""),"",ROW()-10) ->  | C61: =IF(טבלה1[[#This Row],[תאריך]]="","",IF(TEXT(טבלה1[[#This Row],[תאריך]],"DDD")="שבת","מוצ""ש",TEXT(טבלה1[[#This Row],[תאריך]],"DDD"))) ->  | J61: =IF(IF(AND(טבלה1[[#This Row],[התחלה]]="",טבלה1[[#This Row],[סיום]]<>""),"",IF(AND(טבלה1[[#This Row],[התחלה]]<>"",טבלה1[[#This Row],[סיום]]=""), SUM(MOD(NOW(),1)-טבלה1[[#This Row],[התחלה]]+(MOD(NOW(),1)<טבלה1[[#This Row],[התחלה]]),TIME(,טבלה1[[#This Row],[הוספת דקות]],),-TIME(,טבלה1[[#This Row],[הפחתת דקות]],)), SUM(טבלה1[[#This Row],[סיום]]-טבלה1[[#This Row],[התחלה]]+(טבלה1[[#This Row],[סיום]]<טבלה1[[#This Row],[התחלה]]),TIME(,טבלה1[[#This Row],[הוספת דקות]],),-TIME(,טבלה1[[#This Row],[הפחתת דקות]],))))<=0,"", IF(AND(טבלה1[[#This Row],[התחלה]]="",טבלה1[[#This Row],[סיום]]<>""),"",IF(AND(טבלה1[[#This Row],[התחלה]]<>"",טבלה1[[#This Row],[סיום]]=""), SUM(MOD(NOW(),1)-טבלה1[[#This Row],[התחלה]]+(MOD(NOW(),1)<טבלה1[[#This Row],[התחלה]]),TIME(,טבלה1[[#This Row],[הוספת דקות]],),-TIME(,טבלה1[[#This Row],[הפחתת דקות]],)), SUM(טבלה1[[#This Row],[סיום]]-טבלה1[[#This Row],[התחלה]]+(טבלה1[[#This Row],[סיום]]<טבלה1[[#This Row],[התחלה]]),TIME(,טבלה1[[#This Row],[הוספת דקות]],),-TIME(,טבלה1[[#This Row],[הפחתת דקות]],))))) ->  | K61: =IF('טיימר עבודות'!$J61="","", IFERROR(IF(IF(VLOOKUP('טיימר עבודות'!$F61,טבלה2[],3,FALSE)="$", VLOOKUP(טבלה1[[#This Row],[שם העבודה]],טבלה2[#All],2,FALSE)*טבלה1[[#This Row],[שעות]]*24*שער, VLOOKUP(טבלה1[[#This Row],[שם העבודה]],טבלה2[#All],2,FALSE)*טבלה1[[#This Row],[שעות]]*24)=0,"", IF(VLOOKUP('טיימר עבודות'!$F61,טבלה2[],3,FALSE)="$", VLOOKUP(טבלה1[[#This Row],[שם העבודה]],טבלה2[#All],2,FALSE)*טבלה1[[#This Row],[שעות]]*24*שער, VLOOKUP(טבלה1[[#This Row],[שם העבודה]],טבלה2[#All],2,FALSE)*טבלה1[[#This Row],[שעות]]*24)),"")) ->  | L61: =IF(טבלה1[[#This Row],[תאריך]]="","",טבלה1[[#This Row],[תאריך]]+טבלה1[[#This Row],[התחלה]]) ->  | T61: =IF(OR(טבלה12[[#This Row],[תווים]]="",טבלה12[[#This Row],[שכר לתווים]]=""),"", IF(טבלה12[[#This Row],[תווים שהוקלדו]]/טבלה12[[#This Row],[תווים]]*טבלה12[[#This Row],[שכר לתווים]]=0,"", טבלה12[[#This Row],[תווים שהוקלדו]]/טבלה12[[#This Row],[תווים]]*טבלה12[[#This Row],[שכר לתווים]])) ->  | U61: =IF(OR(טבלה12[[#This Row],[שכר]]="",טבלה12[[#This Row],[יעד]]=""),"", IF(טבלה12[[#This Row],[שכר]]>=טבלה12[[#This Row],[יעד]],"הגעת ליעד!", טבלה12[[#This Row],[שכר]]/טבלה12[[#This Row],[יעד]])) ->  | AM61: 05:30:00 | AN61: 2061
B62: =IF(AND(טבלה1[[#This Row],[תאריך]]="",טבלה1[[#This Row],[התחלה]]="",טבלה1[[#This Row],[שם העבודה]]=""),"",ROW()-10) ->  | C62: =IF(טבלה1[[#This Row],[תאריך]]="","",IF(TEXT(טבלה1[[#This Row],[תאריך]],"DDD")="שבת","מוצ""ש",TEXT(טבלה1[[#This Row],[תאריך]],"DDD"))) ->  | J62: =IF(IF(AND(טבלה1[[#This Row],[התחלה]]="",טבלה1[[#This Row],[סיום]]<>""),"",IF(AND(טבלה1[[#This Row],[התחלה]]<>"",טבלה1[[#This Row],[סיום]]=""), SUM(MOD(NOW(),1)-טבלה1[[#This Row],[התחלה]]+(MOD(NOW(),1)<טבלה1[[#This Row],[התחלה]]),TIME(,טבלה1[[#This Row],[הוספת דקות]],),-TIME(,טבלה1[[#This Row],[הפחתת דקות]],)), SUM(טבלה1[[#This Row],[סיום]]-טבלה1[[#This Row],[התחלה]]+(טבלה1[[#This Row],[סיום]]<טבלה1[[#This Row],[התחלה]]),TIME(,טבלה1[[#This Row],[הוספת דקות]],),-TIME(,טבלה1[[#This Row],[הפחתת דקות]],))))<=0,"", IF(AND(טבלה1[[#This Row],[התחלה]]="",טבלה1[[#This Row],[סיום]]<>""),"",IF(AND(טבלה1[[#This Row],[התחלה]]<>"",טבלה1[[#This Row],[סיום]]=""), SUM(MOD(NOW(),1)-טבלה1[[#This Row],[התחלה]]+(MOD(NOW(),1)<טבלה1[[#This Row],[התחלה]]),TIME(,טבלה1[[#This Row],[הוספת דקות]],),-TIME(,טבלה1[[#This Row],[הפחתת דקות]],)), SUM(טבלה1[[#This Row],[סיום]]-טבלה1[[#This Row],[התחלה]]+(טבלה1[[#This Row],[סיום]]<טבלה1[[#This Row],[התחלה]]),TIME(,טבלה1[[#This Row],[הוספת דקות]],),-TIME(,טבלה1[[#This Row],[הפחתת דקות]],))))) ->  | K62: =IF('טיימר עבודות'!$J62="","", IFERROR(IF(IF(VLOOKUP('טיימר עבודות'!$F62,טבלה2[],3,FALSE)="$", VLOOKUP(טבלה1[[#This Row],[שם העבודה]],טבלה2[#All],2,FALSE)*טבלה1[[#This Row],[שעות]]*24*שער, VLOOKUP(טבלה1[[#This Row],[שם העבודה]],טבלה2[#All],2,FALSE)*טבלה1[[#This Row],[שעות]]*24)=0,"", IF(VLOOKUP('טיימר עבודות'!$F62,טבלה2[],3,FALSE)="$", VLOOKUP(טבלה1[[#This Row],[שם העבודה]],טבלה2[#All],2,FALSE)*טבלה1[[#This Row],[שעות]]*24*שער, VLOOKUP(טבלה1[[#This Row],[שם העבודה]],טבלה2[#All],2,FALSE)*טבלה1[[#This Row],[שעות]]*24)),"")) ->  | L62: =IF(טבלה1[[#This Row],[תאריך]]="","",טבלה1[[#This Row],[תאריך]]+טבלה1[[#This Row],[התחלה]]) ->  | T62: =IF(OR(טבלה12[[#This Row],[תווים]]="",טבלה12[[#This Row],[שכר לתווים]]=""),"", IF(טבלה12[[#This Row],[תווים שהוקלדו]]/טבלה12[[#This Row],[תווים]]*טבלה12[[#This Row],[שכר לתווים]]=0,"", טבלה12[[#This Row],[תווים שהוקלדו]]/טבלה12[[#This Row],[תווים]]*טבלה12[[#This Row],[שכר לתווים]])) ->  | U62: =IF(OR(טבלה12[[#This Row],[שכר]]="",טבלה12[[#This Row],[יעד]]=""),"", IF(טבלה12[[#This Row],[שכר]]>=טבלה12[[#This Row],[יעד]],"הגעת ליעד!", טבלה12[[#This Row],[שכר]]/טבלה12[[#This Row],[יעד]])) ->  | AM62: 06:00:00 | AN62: 2062
B63: =IF(AND(טבלה1[[#This Row],[תאריך]]="",טבלה1[[#This Row],[התחלה]]="",טבלה1[[#This Row],[שם העבודה]]=""),"",ROW()-10) ->  | C63: =IF(טבלה1[[#This Row],[תאריך]]="","",IF(TEXT(טבלה1[[#This Row],[תאריך]],"DDD")="שבת","מוצ""ש",TEXT(טבלה1[[#This Row],[תאריך]],"DDD"))) ->  | J63: =IF(IF(AND(טבלה1[[#This Row],[התחלה]]="",טבלה1[[#This Row],[סיום]]<>""),"",IF(AND(טבלה1[[#This Row],[התחלה]]<>"",טבלה1[[#This Row],[סיום]]=""), SUM(MOD(NOW(),1)-טבלה1[[#This Row],[התחלה]]+(MOD(NOW(),1)<טבלה1[[#This Row],[התחלה]]),TIME(,טבלה1[[#This Row],[הוספת דקות]],),-TIME(,טבלה1[[#This Row],[הפחתת דקות]],)), SUM(טבלה1[[#This Row],[סיום]]-טבלה1[[#This Row],[התחלה]]+(טבלה1[[#This Row],[סיום]]<טבלה1[[#This Row],[התחלה]]),TIME(,טבלה1[[#This Row],[הוספת דקות]],),-TIME(,טבלה1[[#This Row],[הפחתת דקות]],))))<=0,"", IF(AND(טבלה1[[#This Row],[התחלה]]="",טבלה1[[#This Row],[סיום]]<>""),"",IF(AND(טבלה1[[#This Row],[התחלה]]<>"",טבלה1[[#This Row],[סיום]]=""), SUM(MOD(NOW(),1)-טבלה1[[#This Row],[התחלה]]+(MOD(NOW(),1)<טבלה1[[#This Row],[התחלה]]),TIME(,טבלה1[[#This Row],[הוספת דקות]],),-TIME(,טבלה1[[#This Row],[הפחתת דקות]],)), SUM(טבלה1[[#This Row],[סיום]]-טבלה1[[#This Row],[התחלה]]+(טבלה1[[#This Row],[סיום]]<טבלה1[[#This Row],[התחלה]]),TIME(,טבלה1[[#This Row],[הוספת דקות]],),-TIME(,טבלה1[[#This Row],[הפחתת דקות]],))))) ->  | K63: =IF('טיימר עבודות'!$J63="","", IFERROR(IF(IF(VLOOKUP('טיימר עבודות'!$F63,טבלה2[],3,FALSE)="$", VLOOKUP(טבלה1[[#This Row],[שם העבודה]],טבלה2[#All],2,FALSE)*טבלה1[[#This Row],[שעות]]*24*שער, VLOOKUP(טבלה1[[#This Row],[שם העבודה]],טבלה2[#All],2,FALSE)*טבלה1[[#This Row],[שעות]]*24)=0,"", IF(VLOOKUP('טיימר עבודות'!$F63,טבלה2[],3,FALSE)="$", VLOOKUP(טבלה1[[#This Row],[שם העבודה]],טבלה2[#All],2,FALSE)*טבלה1[[#This Row],[שעות]]*24*שער, VLOOKUP(טבלה1[[#This Row],[שם העבודה]],טבלה2[#All],2,FALSE)*טבלה1[[#This Row],[שעות]]*24)),"")) ->  | L63: =IF(טבלה1[[#This Row],[תאריך]]="","",טבלה1[[#This Row],[תאריך]]+טבלה1[[#This Row],[התחלה]]) ->  | T63: =IF(OR(טבלה12[[#This Row],[תווים]]="",טבלה12[[#This Row],[שכר לתווים]]=""),"", IF(טבלה12[[#This Row],[תווים שהוקלדו]]/טבלה12[[#This Row],[תווים]]*טבלה12[[#This Row],[שכר לתווים]]=0,"", טבלה12[[#This Row],[תווים שהוקלדו]]/טבלה12[[#This Row],[תווים]]*טבלה12[[#This Row],[שכר לתווים]])) ->  | U63: =IF(OR(טבלה12[[#This Row],[שכר]]="",טבלה12[[#This Row],[יעד]]=""),"", IF(טבלה12[[#This Row],[שכר]]>=טבלה12[[#This Row],[יעד]],"הגעת ליעד!", טבלה12[[#This Row],[שכר]]/טבלה12[[#This Row],[יעד]])) ->  | AM63: 06:30:00 | AN63: 2063
B64: =IF(AND(טבלה1[[#This Row],[תאריך]]="",טבלה1[[#This Row],[התחלה]]="",טבלה1[[#This Row],[שם העבודה]]=""),"",ROW()-10) ->  | C64: =IF(טבלה1[[#This Row],[תאריך]]="","",IF(TEXT(טבלה1[[#This Row],[תאריך]],"DDD")="שבת","מוצ""ש",TEXT(טבלה1[[#This Row],[תאריך]],"DDD"))) ->  | J64: =IF(IF(AND(טבלה1[[#This Row],[התחלה]]="",טבלה1[[#This Row],[סיום]]<>""),"",IF(AND(טבלה1[[#This Row],[התחלה]]<>"",טבלה1[[#This Row],[סיום]]=""), SUM(MOD(NOW(),1)-טבלה1[[#This Row],[התחלה]]+(MOD(NOW(),1)<טבלה1[[#This Row],[התחלה]]),TIME(,טבלה1[[#This Row],[הוספת דקות]],),-TIME(,טבלה1[[#This Row],[הפחתת דקות]],)), SUM(טבלה1[[#This Row],[סיום]]-טבלה1[[#This Row],[התחלה]]+(טבלה1[[#This Row],[סיום]]<טבלה1[[#This Row],[התחלה]]),TIME(,טבלה1[[#This Row],[הוספת דקות]],),-TIME(,טבלה1[[#This Row],[הפחתת דקות]],))))<=0,"", IF(AND(טבלה1[[#This Row],[התחלה]]="",טבלה1[[#This Row],[סיום]]<>""),"",IF(AND(טבלה1[[#This Row],[התחלה]]<>"",טבלה1[[#This Row],[סיום]]=""), SUM(MOD(NOW(),1)-טבלה1[[#This Row],[התחלה]]+(MOD(NOW(),1)<טבלה1[[#This Row],[התחלה]]),TIME(,טבלה1[[#This Row],[הוספת דקות]],),-TIME(,טבלה1[[#This Row],[הפחתת דקות]],)), SUM(טבלה1[[#This Row],[סיום]]-טבלה1[[#This Row],[התחלה]]+(טבלה1[[#This Row],[סיום]]<טבלה1[[#This Row],[התחלה]]),TIME(,טבלה1[[#This Row],[הוספת דקות]],),-TIME(,טבלה1[[#This Row],[הפחתת דקות]],))))) ->  | K64: =IF('טיימר עבודות'!$J64="","", IFERROR(IF(IF(VLOOKUP('טיימר עבודות'!$F64,טבלה2[],3,FALSE)="$", VLOOKUP(טבלה1[[#This Row],[שם העבודה]],טבלה2[#All],2,FALSE)*טבלה1[[#This Row],[שעות]]*24*שער, VLOOKUP(טבלה1[[#This Row],[שם העבודה]],טבלה2[#All],2,FALSE)*טבלה1[[#This Row],[שעות]]*24)=0,"", IF(VLOOKUP('טיימר עבודות'!$F64,טבלה2[],3,FALSE)="$", VLOOKUP(טבלה1[[#This Row],[שם העבודה]],טבלה2[#All],2,FALSE)*טבלה1[[#This Row],[שעות]]*24*שער, VLOOKUP(טבלה1[[#This Row],[שם העבודה]],טבלה2[#All],2,FALSE)*טבלה1[[#This Row],[שעות]]*24)),"")) ->  | L64: =IF(טבלה1[[#This Row],[תאריך]]="","",טבלה1[[#This Row],[תאריך]]+טבלה1[[#This Row],[התחלה]]) ->  | T64: =IF(OR(טבלה12[[#This Row],[תווים]]="",טבלה12[[#This Row],[שכר לתווים]]=""),"", IF(טבלה12[[#This Row],[תווים שהוקלדו]]/טבלה12[[#This Row],[תווים]]*טבלה12[[#This Row],[שכר לתווים]]=0,"", טבלה12[[#This Row],[תווים שהוקלדו]]/טבלה12[[#This Row],[תווים]]*טבלה12[[#This Row],[שכר לתווים]])) ->  | U64: =IF(OR(טבלה12[[#This Row],[שכר]]="",טבלה12[[#This Row],[יעד]]=""),"", IF(טבלה12[[#This Row],[שכר]]>=טבלה12[[#This Row],[יעד]],"הגעת ליעד!", טבלה12[[#This Row],[שכר]]/טבלה12[[#This Row],[יעד]])) ->  | AM64: 07:00:00 | AN64: 2064
B65: =IF(AND(טבלה1[[#This Row],[תאריך]]="",טבלה1[[#This Row],[התחלה]]="",טבלה1[[#This Row],[שם העבודה]]=""),"",ROW()-10) ->  | C65: =IF(טבלה1[[#This Row],[תאריך]]="","",IF(TEXT(טבלה1[[#This Row],[תאריך]],"DDD")="שבת","מוצ""ש",TEXT(טבלה1[[#This Row],[תאריך]],"DDD"))) ->  | J65: =IF(IF(AND(טבלה1[[#This Row],[התחלה]]="",טבלה1[[#This Row],[סיום]]<>""),"",IF(AND(טבלה1[[#This Row],[התחלה]]<>"",טבלה1[[#This Row],[סיום]]=""), SUM(MOD(NOW(),1)-טבלה1[[#This Row],[התחלה]]+(MOD(NOW(),1)<טבלה1[[#This Row],[התחלה]]),TIME(,טבלה1[[#This Row],[הוספת דקות]],),-TIME(,טבלה1[[#This Row],[הפחתת דקות]],)), SUM(טבלה1[[#This Row],[סיום]]-טבלה1[[#This Row],[התחלה]]+(טבלה1[[#This Row],[סיום]]<טבלה1[[#This Row],[התחלה]]),TIME(,טבלה1[[#This Row],[הוספת דקות]],),-TIME(,טבלה1[[#This Row],[הפחתת דקות]],))))<=0,"", IF(AND(טבלה1[[#This Row],[התחלה]]="",טבלה1[[#This Row],[סיום]]<>""),"",IF(AND(טבלה1[[#This Row],[התחלה]]<>"",טבלה1[[#This Row],[סיום]]=""), SUM(MOD(NOW(),1)-טבלה1[[#This Row],[התחלה]]+(MOD(NOW(),1)<טבלה1[[#This Row],[התחלה]]),TIME(,טבלה1[[#This Row],[הוספת דקות]],),-TIME(,טבלה1[[#This Row],[הפחתת דקות]],)), SUM(טבלה1[[#This Row],[סיום]]-טבלה1[[#This Row],[התחלה]]+(טבלה1[[#This Row],[סיום]]<טבלה1[[#This Row],[התחלה]]),TIME(,טבלה1[[#This Row],[הוספת דקות]],),-TIME(,טבלה1[[#This Row],[הפחתת דקות]],))))) ->  | K65: =IF('טיימר עבודות'!$J65="","", IFERROR(IF(IF(VLOOKUP('טיימר עבודות'!$F65,טבלה2[],3,FALSE)="$", VLOOKUP(טבלה1[[#This Row],[שם העבודה]],טבלה2[#All],2,FALSE)*טבלה1[[#This Row],[שעות]]*24*שער, VLOOKUP(טבלה1[[#This Row],[שם העבודה]],טבלה2[#All],2,FALSE)*טבלה1[[#This Row],[שעות]]*24)=0,"", IF(VLOOKUP('טיימר עבודות'!$F65,טבלה2[],3,FALSE)="$", VLOOKUP(טבלה1[[#This Row],[שם העבודה]],טבלה2[#All],2,FALSE)*טבלה1[[#This Row],[שעות]]*24*שער, VLOOKUP(טבלה1[[#This Row],[שם העבודה]],טבלה2[#All],2,FALSE)*טבלה1[[#This Row],[שעות]]*24)),"")) ->  | L65: =IF(טבלה1[[#This Row],[תאריך]]="","",טבלה1[[#This Row],[תאריך]]+טבלה1[[#This Row],[התחלה]]) ->  | T65: =IF(OR(טבלה12[[#This Row],[תווים]]="",טבלה12[[#This Row],[שכר לתווים]]=""),"", IF(טבלה12[[#This Row],[תווים שהוקלדו]]/טבלה12[[#This Row],[תווים]]*טבלה12[[#This Row],[שכר לתווים]]=0,"", טבלה12[[#This Row],[תווים שהוקלדו]]/טבלה12[[#This Row],[תווים]]*טבלה12[[#This Row],[שכר לתווים]])) ->  | U65: =IF(OR(טבלה12[[#This Row],[שכר]]="",טבלה12[[#This Row],[יעד]]=""),"", IF(טבלה12[[#This Row],[שכר]]>=טבלה12[[#This Row],[יעד]],"הגעת ליעד!", טבלה12[[#This Row],[שכר]]/טבלה12[[#This Row],[יעד]])) ->  | AM65: 07:30:00 | AN65: 2065
B66: =IF(AND(טבלה1[[#This Row],[תאריך]]="",טבלה1[[#This Row],[התחלה]]="",טבלה1[[#This Row],[שם העבודה]]=""),"",ROW()-10) ->  | C66: =IF(טבלה1[[#This Row],[תאריך]]="","",IF(TEXT(טבלה1[[#This Row],[תאריך]],"DDD")="שבת","מוצ""ש",TEXT(טבלה1[[#This Row],[תאריך]],"DDD"))) ->  | J66: =IF(IF(AND(טבלה1[[#This Row],[התחלה]]="",טבלה1[[#This Row],[סיום]]<>""),"",IF(AND(טבלה1[[#This Row],[התחלה]]<>"",טבלה1[[#This Row],[סיום]]=""), SUM(MOD(NOW(),1)-טבלה1[[#This Row],[התחלה]]+(MOD(NOW(),1)<טבלה1[[#This Row],[התחלה]]),TIME(,טבלה1[[#This Row],[הוספת דקות]],),-TIME(,טבלה1[[#This Row],[הפחתת דקות]],)), SUM(טבלה1[[#This Row],[סיום]]-טבלה1[[#This Row],[התחלה]]+(טבלה1[[#This Row],[סיום]]<טבלה1[[#This Row],[התחלה]]),TIME(,טבלה1[[#This Row],[הוספת דקות]],),-TIME(,טבלה1[[#This Row],[הפחתת דקות]],))))<=0,"", IF(AND(טבלה1[[#This Row],[התחלה]]="",טבלה1[[#This Row],[סיום]]<>""),"",IF(AND(טבלה1[[#This Row],[התחלה]]<>"",טבלה1[[#This Row],[סיום]]=""), SUM(MOD(NOW(),1)-טבלה1[[#This Row],[התחלה]]+(MOD(NOW(),1)<טבלה1[[#This Row],[התחלה]]),TIME(,טבלה1[[#This Row],[הוספת דקות]],),-TIME(,טבלה1[[#This Row],[הפחתת דקות]],)), SUM(טבלה1[[#This Row],[סיום]]-טבלה1[[#This Row],[התחלה]]+(טבלה1[[#This Row],[סיום]]<טבלה1[[#This Row],[התחלה]]),TIME(,טבלה1[[#This Row],[הוספת דקות]],),-TIME(,טבלה1[[#This Row],[הפחתת דקות]],))))) ->  | K66: =IF('טיימר עבודות'!$J66="","", IFERROR(IF(IF(VLOOKUP('טיימר עבודות'!$F66,טבלה2[],3,FALSE)="$", VLOOKUP(טבלה1[[#This Row],[שם העבודה]],טבלה2[#All],2,FALSE)*טבלה1[[#This Row],[שעות]]*24*שער, VLOOKUP(טבלה1[[#This Row],[שם העבודה]],טבלה2[#All],2,FALSE)*טבלה1[[#This Row],[שעות]]*24)=0,"", IF(VLOOKUP('טיימר עבודות'!$F66,טבלה2[],3,FALSE)="$", VLOOKUP(טבלה1[[#This Row],[שם העבודה]],טבלה2[#All],2,FALSE)*טבלה1[[#This Row],[שעות]]*24*שער, VLOOKUP(טבלה1[[#This Row],[שם העבודה]],טבלה2[#All],2,FALSE)*טבלה1[[#This Row],[שעות]]*24)),"")) ->  | L66: =IF(טבלה1[[#This Row],[תאריך]]="","",טבלה1[[#This Row],[תאריך]]+טבלה1[[#This Row],[התחלה]]) ->  | T66: =IF(OR(טבלה12[[#This Row],[תווים]]="",טבלה12[[#This Row],[שכר לתווים]]=""),"", IF(טבלה12[[#This Row],[תווים שהוקלדו]]/טבלה12[[#This Row],[תווים]]*טבלה12[[#This Row],[שכר לתווים]]=0,"", טבלה12[[#This Row],[תווים שהוקלדו]]/טבלה12[[#This Row],[תווים]]*טבלה12[[#This Row],[שכר לתווים]])) ->  | U66: =IF(OR(טבלה12[[#This Row],[שכר]]="",טבלה12[[#This Row],[יעד]]=""),"", IF(טבלה12[[#This Row],[שכר]]>=טבלה12[[#This Row],[יעד]],"הגעת ליעד!", טבלה12[[#This Row],[שכר]]/טבלה12[[#This Row],[יעד]])) ->  | AM66: 08:00:00 | AN66: 2066
B67: =IF(AND(טבלה1[[#This Row],[תאריך]]="",טבלה1[[#This Row],[התחלה]]="",טבלה1[[#This Row],[שם העבודה]]=""),"",ROW()-10) ->  | C67: =IF(טבלה1[[#This Row],[תאריך]]="","",IF(TEXT(טבלה1[[#This Row],[תאריך]],"DDD")="שבת","מוצ""ש",TEXT(טבלה1[[#This Row],[תאריך]],"DDD"))) ->  | J67: =IF(IF(AND(טבלה1[[#This Row],[התחלה]]="",טבלה1[[#This Row],[סיום]]<>""),"",IF(AND(טבלה1[[#This Row],[התחלה]]<>"",טבלה1[[#This Row],[סיום]]=""), SUM(MOD(NOW(),1)-טבלה1[[#This Row],[התחלה]]+(MOD(NOW(),1)<טבלה1[[#This Row],[התחלה]]),TIME(,טבלה1[[#This Row],[הוספת דקות]],),-TIME(,טבלה1[[#This Row],[הפחתת דקות]],)), SUM(טבלה1[[#This Row],[סיום]]-טבלה1[[#This Row],[התחלה]]+(טבלה1[[#This Row],[סיום]]<טבלה1[[#This Row],[התחלה]]),TIME(,טבלה1[[#This Row],[הוספת דקות]],),-TIME(,טבלה1[[#This Row],[הפחתת דקות]],))))<=0,"", IF(AND(טבלה1[[#This Row],[התחלה]]="",טבלה1[[#This Row],[סיום]]<>""),"",IF(AND(טבלה1[[#This Row],[התחלה]]<>"",טבלה1[[#This Row],[סיום]]=""), SUM(MOD(NOW(),1)-טבלה1[[#This Row],[התחלה]]+(MOD(NOW(),1)<טבלה1[[#This Row],[התחלה]]),TIME(,טבלה1[[#This Row],[הוספת דקות]],),-TIME(,טבלה1[[#This Row],[הפחתת דקות]],)), SUM(טבלה1[[#This Row],[סיום]]-טבלה1[[#This Row],[התחלה]]+(טבלה1[[#This Row],[סיום]]<טבלה1[[#This Row],[התחלה]]),TIME(,טבלה1[[#This Row],[הוספת דקות]],),-TIME(,טבלה1[[#This Row],[הפחתת דקות]],))))) ->  | K67: =IF('טיימר עבודות'!$J67="","", IFERROR(IF(IF(VLOOKUP('טיימר עבודות'!$F67,טבלה2[],3,FALSE)="$", VLOOKUP(טבלה1[[#This Row],[שם העבודה]],טבלה2[#All],2,FALSE)*טבלה1[[#This Row],[שעות]]*24*שער, VLOOKUP(טבלה1[[#This Row],[שם העבודה]],טבלה2[#All],2,FALSE)*טבלה1[[#This Row],[שעות]]*24)=0,"", IF(VLOOKUP('טיימר עבודות'!$F67,טבלה2[],3,FALSE)="$", VLOOKUP(טבלה1[[#This Row],[שם העבודה]],טבלה2[#All],2,FALSE)*טבלה1[[#This Row],[שעות]]*24*שער, VLOOKUP(טבלה1[[#This Row],[שם העבודה]],טבלה2[#All],2,FALSE)*טבלה1[[#This Row],[שעות]]*24)),"")) ->  | L67: =IF(טבלה1[[#This Row],[תאריך]]="","",טבלה1[[#This Row],[תאריך]]+טבלה1[[#This Row],[התחלה]]) ->  | T67: =IF(OR(טבלה12[[#This Row],[תווים]]="",טבלה12[[#This Row],[שכר לתווים]]=""),"", IF(טבלה12[[#This Row],[תווים שהוקלדו]]/טבלה12[[#This Row],[תווים]]*טבלה12[[#This Row],[שכר לתווים]]=0,"", טבלה12[[#This Row],[תווים שהוקלדו]]/טבלה12[[#This Row],[תווים]]*טבלה12[[#This Row],[שכר לתווים]])) ->  | U67: =IF(OR(טבלה12[[#This Row],[שכר]]="",טבלה12[[#This Row],[יעד]]=""),"", IF(טבלה12[[#This Row],[שכר]]>=טבלה12[[#This Row],[יעד]],"הגעת ליעד!", טבלה12[[#This Row],[שכר]]/טבלה12[[#This Row],[יעד]])) ->  | AM67: 08:30:00 | AN67: 2067
B68: =IF(AND(טבלה1[[#This Row],[תאריך]]="",טבלה1[[#This Row],[התחלה]]="",טבלה1[[#This Row],[שם העבודה]]=""),"",ROW()-10) ->  | C68: =IF(טבלה1[[#This Row],[תאריך]]="","",IF(TEXT(טבלה1[[#This Row],[תאריך]],"DDD")="שבת","מוצ""ש",TEXT(טבלה1[[#This Row],[תאריך]],"DDD"))) ->  | J68: =IF(IF(AND(טבלה1[[#This Row],[התחלה]]="",טבלה1[[#This Row],[סיום]]<>""),"",IF(AND(טבלה1[[#This Row],[התחלה]]<>"",טבלה1[[#This Row],[סיום]]=""), SUM(MOD(NOW(),1)-טבלה1[[#This Row],[התחלה]]+(MOD(NOW(),1)<טבלה1[[#This Row],[התחלה]]),TIME(,טבלה1[[#This Row],[הוספת דקות]],),-TIME(,טבלה1[[#This Row],[הפחתת דקות]],)), SUM(טבלה1[[#This Row],[סיום]]-טבלה1[[#This Row],[התחלה]]+(טבלה1[[#This Row],[סיום]]<טבלה1[[#This Row],[התחלה]]),TIME(,טבלה1[[#This Row],[הוספת דקות]],),-TIME(,טבלה1[[#This Row],[הפחתת דקות]],))))<=0,"", IF(AND(טבלה1[[#This Row],[התחלה]]="",טבלה1[[#This Row],[סיום]]<>""),"",IF(AND(טבלה1[[#This Row],[התחלה]]<>"",טבלה1[[#This Row],[סיום]]=""), SUM(MOD(NOW(),1)-טבלה1[[#This Row],[התחלה]]+(MOD(NOW(),1)<טבלה1[[#This Row],[התחלה]]),TIME(,טבלה1[[#This Row],[הוספת דקות]],),-TIME(,טבלה1[[#This Row],[הפחתת דקות]],)), SUM(טבלה1[[#This Row],[סיום]]-טבלה1[[#This Row],[התחלה]]+(טבלה1[[#This Row],[סיום]]<טבלה1[[#This Row],[התחלה]]),TIME(,טבלה1[[#This Row],[הוספת דקות]],),-TIME(,טבלה1[[#This Row],[הפחתת דקות]],))))) ->  | K68: =IF('טיימר עבודות'!$J68="","", IFERROR(IF(IF(VLOOKUP('טיימר עבודות'!$F68,טבלה2[],3,FALSE)="$", VLOOKUP(טבלה1[[#This Row],[שם העבודה]],טבלה2[#All],2,FALSE)*טבלה1[[#This Row],[שעות]]*24*שער, VLOOKUP(טבלה1[[#This Row],[שם העבודה]],טבלה2[#All],2,FALSE)*טבלה1[[#This Row],[שעות]]*24)=0,"", IF(VLOOKUP('טיימר עבודות'!$F68,טבלה2[],3,FALSE)="$", VLOOKUP(טבלה1[[#This Row],[שם העבודה]],טבלה2[#All],2,FALSE)*טבלה1[[#This Row],[שעות]]*24*שער, VLOOKUP(טבלה1[[#This Row],[שם העבודה]],טבלה2[#All],2,FALSE)*טבלה1[[#This Row],[שעות]]*24)),"")) ->  | L68: =IF(טבלה1[[#This Row],[תאריך]]="","",טבלה1[[#This Row],[תאריך]]+טבלה1[[#This Row],[התחלה]]) ->  | T68: =IF(OR(טבלה12[[#This Row],[תווים]]="",טבלה12[[#This Row],[שכר לתווים]]=""),"", IF(טבלה12[[#This Row],[תווים שהוקלדו]]/טבלה12[[#This Row],[תווים]]*טבלה12[[#This Row],[שכר לתווים]]=0,"", טבלה12[[#This Row],[תווים שהוקלדו]]/טבלה12[[#This Row],[תווים]]*טבלה12[[#This Row],[שכר לתווים]])) ->  | U68: =IF(OR(טבלה12[[#This Row],[שכר]]="",טבלה12[[#This Row],[יעד]]=""),"", IF(טבלה12[[#This Row],[שכר]]>=טבלה12[[#This Row],[יעד]],"הגעת ליעד!", טבלה12[[#This Row],[שכר]]/טבלה12[[#This Row],[יעד]])) ->  | AM68: 09:00:00 | AN68: 2068
B69: =IF(AND(טבלה1[[#This Row],[תאריך]]="",טבלה1[[#This Row],[התחלה]]="",טבלה1[[#This Row],[שם העבודה]]=""),"",ROW()-10) ->  | C69: =IF(טבלה1[[#This Row],[תאריך]]="","",IF(TEXT(טבלה1[[#This Row],[תאריך]],"DDD")="שבת","מוצ""ש",TEXT(טבלה1[[#This Row],[תאריך]],"DDD"))) ->  | J69: =IF(IF(AND(טבלה1[[#This Row],[התחלה]]="",טבלה1[[#This Row],[סיום]]<>""),"",IF(AND(טבלה1[[#This Row],[התחלה]]<>"",טבלה1[[#This Row],[סיום]]=""), SUM(MOD(NOW(),1)-טבלה1[[#This Row],[התחלה]]+(MOD(NOW(),1)<טבלה1[[#This Row],[התחלה]]),TIME(,טבלה1[[#This Row],[הוספת דקות]],),-TIME(,טבלה1[[#This Row],[הפחתת דקות]],)), SUM(טבלה1[[#This Row],[סיום]]-טבלה1[[#This Row],[התחלה]]+(טבלה1[[#This Row],[סיום]]<טבלה1[[#This Row],[התחלה]]),TIME(,טבלה1[[#This Row],[הוספת דקות]],),-TIME(,טבלה1[[#This Row],[הפחתת דקות]],))))<=0,"", IF(AND(טבלה1[[#This Row],[התחלה]]="",טבלה1[[#This Row],[סיום]]<>""),"",IF(AND(טבלה1[[#This Row],[התחלה]]<>"",טבלה1[[#This Row],[סיום]]=""), SUM(MOD(NOW(),1)-טבלה1[[#This Row],[התחלה]]+(MOD(NOW(),1)<טבלה1[[#This Row],[התחלה]]),TIME(,טבלה1[[#This Row],[הוספת דקות]],),-TIME(,טבלה1[[#This Row],[הפחתת דקות]],)), SUM(טבלה1[[#This Row],[סיום]]-טבלה1[[#This Row],[התחלה]]+(טבלה1[[#This Row],[סיום]]<טבלה1[[#This Row],[התחלה]]),TIME(,טבלה1[[#This Row],[הוספת דקות]],),-TIME(,טבלה1[[#This Row],[הפחתת דקות]],))))) ->  | K69: =IF('טיימר עבודות'!$J69="","", IFERROR(IF(IF(VLOOKUP('טיימר עבודות'!$F69,טבלה2[],3,FALSE)="$", VLOOKUP(טבלה1[[#This Row],[שם העבודה]],טבלה2[#All],2,FALSE)*טבלה1[[#This Row],[שעות]]*24*שער, VLOOKUP(טבלה1[[#This Row],[שם העבודה]],טבלה2[#All],2,FALSE)*טבלה1[[#This Row],[שעות]]*24)=0,"", IF(VLOOKUP('טיימר עבודות'!$F69,טבלה2[],3,FALSE)="$", VLOOKUP(טבלה1[[#This Row],[שם העבודה]],טבלה2[#All],2,FALSE)*טבלה1[[#This Row],[שעות]]*24*שער, VLOOKUP(טבלה1[[#This Row],[שם העבודה]],טבלה2[#All],2,FALSE)*טבלה1[[#This Row],[שעות]]*24)),"")) ->  | L69: =IF(טבלה1[[#This Row],[תאריך]]="","",טבלה1[[#This Row],[תאריך]]+טבלה1[[#This Row],[התחלה]]) ->  | T69: =IF(OR(טבלה12[[#This Row],[תווים]]="",טבלה12[[#This Row],[שכר לתווים]]=""),"", IF(טבלה12[[#This Row],[תווים שהוקלדו]]/טבלה12[[#This Row],[תווים]]*טבלה12[[#This Row],[שכר לתווים]]=0,"", טבלה12[[#This Row],[תווים שהוקלדו]]/טבלה12[[#This Row],[תווים]]*טבלה12[[#This Row],[שכר לתווים]])) ->  | U69: =IF(OR(טבלה12[[#This Row],[שכר]]="",טבלה12[[#This Row],[יעד]]=""),"", IF(טבלה12[[#This Row],[שכר]]>=טבלה12[[#This Row],[יעד]],"הגעת ליעד!", טבלה12[[#This Row],[שכר]]/טבלה12[[#This Row],[יעד]])) ->  | AM69: 09:30:00 | AN69: 2069
B70: =IF(AND(טבלה1[[#This Row],[תאריך]]="",טבלה1[[#This Row],[התחלה]]="",טבלה1[[#This Row],[שם העבודה]]=""),"",ROW()-10) ->  | C70: =IF(טבלה1[[#This Row],[תאריך]]="","",IF(TEXT(טבלה1[[#This Row],[תאריך]],"DDD")="שבת","מוצ""ש",TEXT(טבלה1[[#This Row],[תאריך]],"DDD"))) ->  | J70: =IF(IF(AND(טבלה1[[#This Row],[התחלה]]="",טבלה1[[#This Row],[סיום]]<>""),"",IF(AND(טבלה1[[#This Row],[התחלה]]<>"",טבלה1[[#This Row],[סיום]]=""), SUM(MOD(NOW(),1)-טבלה1[[#This Row],[התחלה]]+(MOD(NOW(),1)<טבלה1[[#This Row],[התחלה]]),TIME(,טבלה1[[#This Row],[הוספת דקות]],),-TIME(,טבלה1[[#This Row],[הפחתת דקות]],)), SUM(טבלה1[[#This Row],[סיום]]-טבלה1[[#This Row],[התחלה]]+(טבלה1[[#This Row],[סיום]]<טבלה1[[#This Row],[התחלה]]),TIME(,טבלה1[[#This Row],[הוספת דקות]],),-TIME(,טבלה1[[#This Row],[הפחתת דקות]],))))<=0,"", IF(AND(טבלה1[[#This Row],[התחלה]]="",טבלה1[[#This Row],[סיום]]<>""),"",IF(AND(טבלה1[[#This Row],[התחלה]]<>"",טבלה1[[#This Row],[סיום]]=""), SUM(MOD(NOW(),1)-טבלה1[[#This Row],[התחלה]]+(MOD(NOW(),1)<טבלה1[[#This Row],[התחלה]]),TIME(,טבלה1[[#This Row],[הוספת דקות]],),-TIME(,טבלה1[[#This Row],[הפחתת דקות]],)), SUM(טבלה1[[#This Row],[סיום]]-טבלה1[[#This Row],[התחלה]]+(טבלה1[[#This Row],[סיום]]<טבלה1[[#This Row],[התחלה]]),TIME(,טבלה1[[#This Row],[הוספת דקות]],),-TIME(,טבלה1[[#This Row],[הפחתת דקות]],))))) ->  | K70: =IF('טיימר עבודות'!$J70="","", IFERROR(IF(IF(VLOOKUP('טיימר עבודות'!$F70,טבלה2[],3,FALSE)="$", VLOOKUP(טבלה1[[#This Row],[שם העבודה]],טבלה2[#All],2,FALSE)*טבלה1[[#This Row],[שעות]]*24*שער, VLOOKUP(טבלה1[[#This Row],[שם העבודה]],טבלה2[#All],2,FALSE)*טבלה1[[#This Row],[שעות]]*24)=0,"", IF(VLOOKUP('טיימר עבודות'!$F70,טבלה2[],3,FALSE)="$", VLOOKUP(טבלה1[[#This Row],[שם העבודה]],טבלה2[#All],2,FALSE)*טבלה1[[#This Row],[שעות]]*24*שער, VLOOKUP(טבלה1[[#This Row],[שם העבודה]],טבלה2[#All],2,FALSE)*טבלה1[[#This Row],[שעות]]*24)),"")) ->  | L70: =IF(טבלה1[[#This Row],[תאריך]]="","",טבלה1[[#This Row],[תאריך]]+טבלה1[[#This Row],[התחלה]]) ->  | T70: =IF(OR(טבלה12[[#This Row],[תווים]]="",טבלה12[[#This Row],[שכר לתווים]]=""),"", IF(טבלה12[[#This Row],[תווים שהוקלדו]]/טבלה12[[#This Row],[תווים]]*טבלה12[[#This Row],[שכר לתווים]]=0,"", טבלה12[[#This Row],[תווים שהוקלדו]]/טבלה12[[#This Row],[תווים]]*טבלה12[[#This Row],[שכר לתווים]])) ->  | U70: =IF(OR(טבלה12[[#This Row],[שכר]]="",טבלה12[[#This Row],[יעד]]=""),"", IF(טבלה12[[#This Row],[שכר]]>=טבלה12[[#This Row],[יעד]],"הגעת ליעד!", טבלה12[[#This Row],[שכר]]/טבלה12[[#This Row],[יעד]])) ->  | AM70: 10:00:00 | AN70: 2070
B71: =IF(AND(טבלה1[[#This Row],[תאריך]]="",טבלה1[[#This Row],[התחלה]]="",טבלה1[[#This Row],[שם העבודה]]=""),"",ROW()-10) ->  | C71: =IF(טבלה1[[#This Row],[תאריך]]="","",IF(TEXT(טבלה1[[#This Row],[תאריך]],"DDD")="שבת","מוצ""ש",TEXT(טבלה1[[#This Row],[תאריך]],"DDD"))) ->  | J71: =IF(IF(AND(טבלה1[[#This Row],[התחלה]]="",טבלה1[[#This Row],[סיום]]<>""),"",IF(AND(טבלה1[[#This Row],[התחלה]]<>"",טבלה1[[#This Row],[סיום]]=""), SUM(MOD(NOW(),1)-טבלה1[[#This Row],[התחלה]]+(MOD(NOW(),1)<טבלה1[[#This Row],[התחלה]]),TIME(,טבלה1[[#This Row],[הוספת דקות]],),-TIME(,טבלה1[[#This Row],[הפחתת דקות]],)), SUM(טבלה1[[#This Row],[סיום]]-טבלה1[[#This Row],[התחלה]]+(טבלה1[[#This Row],[סיום]]<טבלה1[[#This Row],[התחלה]]),TIME(,טבלה1[[#This Row],[הוספת דקות]],),-TIME(,טבלה1[[#This Row],[הפחתת דקות]],))))<=0,"", IF(AND(טבלה1[[#This Row],[התחלה]]="",טבלה1[[#This Row],[סיום]]<>""),"",IF(AND(טבלה1[[#This Row],[התחלה]]<>"",טבלה1[[#This Row],[סיום]]=""), SUM(MOD(NOW(),1)-טבלה1[[#This Row],[התחלה]]+(MOD(NOW(),1)<טבלה1[[#This Row],[התחלה]]),TIME(,טבלה1[[#This Row],[הוספת דקות]],),-TIME(,טבלה1[[#This Row],[הפחתת דקות]],)), SUM(טבלה1[[#This Row],[סיום]]-טבלה1[[#This Row],[התחלה]]+(טבלה1[[#This Row],[סיום]]<טבלה1[[#This Row],[התחלה]]),TIME(,טבלה1[[#This Row],[הוספת דקות]],),-TIME(,טבלה1[[#This Row],[הפחתת דקות]],))))) ->  | K71: =IF('טיימר עבודות'!$J71="","", IFERROR(IF(IF(VLOOKUP('טיימר עבודות'!$F71,טבלה2[],3,FALSE)="$", VLOOKUP(טבלה1[[#This Row],[שם העבודה]],טבלה2[#All],2,FALSE)*טבלה1[[#This Row],[שעות]]*24*שער, VLOOKUP(טבלה1[[#This Row],[שם העבודה]],טבלה2[#All],2,FALSE)*טבלה1[[#This Row],[שעות]]*24)=0,"", IF(VLOOKUP('טיימר עבודות'!$F71,טבלה2[],3,FALSE)="$", VLOOKUP(טבלה1[[#This Row],[שם העבודה]],טבלה2[#All],2,FALSE)*טבלה1[[#This Row],[שעות]]*24*שער, VLOOKUP(טבלה1[[#This Row],[שם העבודה]],טבלה2[#All],2,FALSE)*טבלה1[[#This Row],[שעות]]*24)),"")) ->  | L71: =IF(טבלה1[[#This Row],[תאריך]]="","",טבלה1[[#This Row],[תאריך]]+טבלה1[[#This Row],[התחלה]]) ->  | T71: =IF(OR(טבלה12[[#This Row],[תווים]]="",טבלה12[[#This Row],[שכר לתווים]]=""),"", IF(טבלה12[[#This Row],[תווים שהוקלדו]]/טבלה12[[#This Row],[תווים]]*טבלה12[[#This Row],[שכר לתווים]]=0,"", טבלה12[[#This Row],[תווים שהוקלדו]]/טבלה12[[#This Row],[תווים]]*טבלה12[[#This Row],[שכר לתווים]])) ->  | U71: =IF(OR(טבלה12[[#This Row],[שכר]]="",טבלה12[[#This Row],[יעד]]=""),"", IF(טבלה12[[#This Row],[שכר]]>=טבלה12[[#This Row],[יעד]],"הגעת ליעד!", טבלה12[[#This Row],[שכר]]/טבלה12[[#This Row],[יעד]])) ->  | AM71: 10:30:00 | AN71: 2071
B72: =IF(AND(טבלה1[[#This Row],[תאריך]]="",טבלה1[[#This Row],[התחלה]]="",טבלה1[[#This Row],[שם העבודה]]=""),"",ROW()-10) ->  | C72: =IF(טבלה1[[#This Row],[תאריך]]="","",IF(TEXT(טבלה1[[#This Row],[תאריך]],"DDD")="שבת","מוצ""ש",TEXT(טבלה1[[#This Row],[תאריך]],"DDD"))) ->  | J72: =IF(IF(AND(טבלה1[[#This Row],[התחלה]]="",טבלה1[[#This Row],[סיום]]<>""),"",IF(AND(טבלה1[[#This Row],[התחלה]]<>"",טבלה1[[#This Row],[סיום]]=""), SUM(MOD(NOW(),1)-טבלה1[[#This Row],[התחלה]]+(MOD(NOW(),1)<טבלה1[[#This Row],[התחלה]]),TIME(,טבלה1[[#This Row],[הוספת דקות]],),-TIME(,טבלה1[[#This Row],[הפחתת דקות]],)), SUM(טבלה1[[#This Row],[סיום]]-טבלה1[[#This Row],[התחלה]]+(טבלה1[[#This Row],[סיום]]<טבלה1[[#This Row],[התחלה]]),TIME(,טבלה1[[#This Row],[הוספת דקות]],),-TIME(,טבלה1[[#This Row],[הפחתת דקות]],))))<=0,"", IF(AND(טבלה1[[#This Row],[התחלה]]="",טבלה1[[#This Row],[סיום]]<>""),"",IF(AND(טבלה1[[#This Row],[התחלה]]<>"",טבלה1[[#This Row],[סיום]]=""), SUM(MOD(NOW(),1)-טבלה1[[#This Row],[התחלה]]+(MOD(NOW(),1)<טבלה1[[#This Row],[התחלה]]),TIME(,טבלה1[[#This Row],[הוספת דקות]],),-TIME(,טבלה1[[#This Row],[הפחתת דקות]],)), SUM(טבלה1[[#This Row],[סיום]]-טבלה1[[#This Row],[התחלה]]+(טבלה1[[#This Row],[סיום]]<טבלה1[[#This Row],[התחלה]]),TIME(,טבלה1[[#This Row],[הוספת דקות]],),-TIME(,טבלה1[[#This Row],[הפחתת דקות]],))))) ->  | K72: =IF('טיימר עבודות'!$J72="","", IFERROR(IF(IF(VLOOKUP('טיימר עבודות'!$F72,טבלה2[],3,FALSE)="$", VLOOKUP(טבלה1[[#This Row],[שם העבודה]],טבלה2[#All],2,FALSE)*טבלה1[[#This Row],[שעות]]*24*שער, VLOOKUP(טבלה1[[#This Row],[שם העבודה]],טבלה2[#All],2,FALSE)*טבלה1[[#This Row],[שעות]]*24)=0,"", IF(VLOOKUP('טיימר עבודות'!$F72,טבלה2[],3,FALSE)="$", VLOOKUP(טבלה1[[#This Row],[שם העבודה]],טבלה2[#All],2,FALSE)*טבלה1[[#This Row],[שעות]]*24*שער, VLOOKUP(טבלה1[[#This Row],[שם העבודה]],טבלה2[#All],2,FALSE)*טבלה1[[#This Row],[שעות]]*24)),"")) ->  | L72: =IF(טבלה1[[#This Row],[תאריך]]="","",טבלה1[[#This Row],[תאריך]]+טבלה1[[#This Row],[התחלה]]) ->  | T72: =IF(OR(טבלה12[[#This Row],[תווים]]="",טבלה12[[#This Row],[שכר לתווים]]=""),"", IF(טבלה12[[#This Row],[תווים שהוקלדו]]/טבלה12[[#This Row],[תווים]]*טבלה12[[#This Row],[שכר לתווים]]=0,"", טבלה12[[#This Row],[תווים שהוקלדו]]/טבלה12[[#This Row],[תווים]]*טבלה12[[#This Row],[שכר לתווים]])) ->  | U72: =IF(OR(טבלה12[[#This Row],[שכר]]="",טבלה12[[#This Row],[יעד]]=""),"", IF(טבלה12[[#This Row],[שכר]]>=טבלה12[[#This Row],[יעד]],"הגעת ליעד!", טבלה12[[#This Row],[שכר]]/טבלה12[[#This Row],[יעד]])) ->  | AM72: 11:00:00 | AN72: 2072
B73: =IF(AND(טבלה1[[#This Row],[תאריך]]="",טבלה1[[#This Row],[התחלה]]="",טבלה1[[#This Row],[שם העבודה]]=""),"",ROW()-10) ->  | C73: =IF(טבלה1[[#This Row],[תאריך]]="","",IF(TEXT(טבלה1[[#This Row],[תאריך]],"DDD")="שבת","מוצ""ש",TEXT(טבלה1[[#This Row],[תאריך]],"DDD"))) ->  | J73: =IF(IF(AND(טבלה1[[#This Row],[התחלה]]="",טבלה1[[#This Row],[סיום]]<>""),"",IF(AND(טבלה1[[#This Row],[התחלה]]<>"",טבלה1[[#This Row],[סיום]]=""), SUM(MOD(NOW(),1)-טבלה1[[#This Row],[התחלה]]+(MOD(NOW(),1)<טבלה1[[#This Row],[התחלה]]),TIME(,טבלה1[[#This Row],[הוספת דקות]],),-TIME(,טבלה1[[#This Row],[הפחתת דקות]],)), SUM(טבלה1[[#This Row],[סיום]]-טבלה1[[#This Row],[התחלה]]+(טבלה1[[#This Row],[סיום]]<טבלה1[[#This Row],[התחלה]]),TIME(,טבלה1[[#This Row],[הוספת דקות]],),-TIME(,טבלה1[[#This Row],[הפחתת דקות]],))))<=0,"", IF(AND(טבלה1[[#This Row],[התחלה]]="",טבלה1[[#This Row],[סיום]]<>""),"",IF(AND(טבלה1[[#This Row],[התחלה]]<>"",טבלה1[[#This Row],[סיום]]=""), SUM(MOD(NOW(),1)-טבלה1[[#This Row],[התחלה]]+(MOD(NOW(),1)<טבלה1[[#This Row],[התחלה]]),TIME(,טבלה1[[#This Row],[הוספת דקות]],),-TIME(,טבלה1[[#This Row],[הפחתת דקות]],)), SUM(טבלה1[[#This Row],[סיום]]-טבלה1[[#This Row],[התחלה]]+(טבלה1[[#This Row],[סיום]]<טבלה1[[#This Row],[התחלה]]),TIME(,טבלה1[[#This Row],[הוספת דקות]],),-TIME(,טבלה1[[#This Row],[הפחתת דקות]],))))) ->  | K73: =IF('טיימר עבודות'!$J73="","", IFERROR(IF(IF(VLOOKUP('טיימר עבודות'!$F73,טבלה2[],3,FALSE)="$", VLOOKUP(טבלה1[[#This Row],[שם העבודה]],טבלה2[#All],2,FALSE)*טבלה1[[#This Row],[שעות]]*24*שער, VLOOKUP(טבלה1[[#This Row],[שם העבודה]],טבלה2[#All],2,FALSE)*טבלה1[[#This Row],[שעות]]*24)=0,"", IF(VLOOKUP('טיימר עבודות'!$F73,טבלה2[],3,FALSE)="$", VLOOKUP(טבלה1[[#This Row],[שם העבודה]],טבלה2[#All],2,FALSE)*טבלה1[[#This Row],[שעות]]*24*שער, VLOOKUP(טבלה1[[#This Row],[שם העבודה]],טבלה2[#All],2,FALSE)*טבלה1[[#This Row],[שעות]]*24)),"")) ->  | L73: =IF(טבלה1[[#This Row],[תאריך]]="","",טבלה1[[#This Row],[תאריך]]+טבלה1[[#This Row],[התחלה]]) ->  | T73: =IF(OR(טבלה12[[#This Row],[תווים]]="",טבלה12[[#This Row],[שכר לתווים]]=""),"", IF(טבלה12[[#This Row],[תווים שהוקלדו]]/טבלה12[[#This Row],[תווים]]*טבלה12[[#This Row],[שכר לתווים]]=0,"", טבלה12[[#This Row],[תווים שהוקלדו]]/טבלה12[[#This Row],[תווים]]*טבלה12[[#This Row],[שכר לתווים]])) ->  | U73: =IF(OR(טבלה12[[#This Row],[שכר]]="",טבלה12[[#This Row],[יעד]]=""),"", IF(טבלה12[[#This Row],[שכר]]>=טבלה12[[#This Row],[יעד]],"הגעת ליעד!", טבלה12[[#This Row],[שכר]]/טבלה12[[#This Row],[יעד]])) ->  | AM73: 11:30:00 | AN73: 2073
B74: =IF(AND(טבלה1[[#This Row],[תאריך]]="",טבלה1[[#This Row],[התחלה]]="",טבלה1[[#This Row],[שם העבודה]]=""),"",ROW()-10) ->  | C74: =IF(טבלה1[[#This Row],[תאריך]]="","",IF(TEXT(טבלה1[[#This Row],[תאריך]],"DDD")="שבת","מוצ""ש",TEXT(טבלה1[[#This Row],[תאריך]],"DDD"))) ->  | J74: =IF(IF(AND(טבלה1[[#This Row],[התחלה]]="",טבלה1[[#This Row],[סיום]]<>""),"",IF(AND(טבלה1[[#This Row],[התחלה]]<>"",טבלה1[[#This Row],[סיום]]=""), SUM(MOD(NOW(),1)-טבלה1[[#This Row],[התחלה]]+(MOD(NOW(),1)<טבלה1[[#This Row],[התחלה]]),TIME(,טבלה1[[#This Row],[הוספת דקות]],),-TIME(,טבלה1[[#This Row],[הפחתת דקות]],)), SUM(טבלה1[[#This Row],[סיום]]-טבלה1[[#This Row],[התחלה]]+(טבלה1[[#This Row],[סיום]]<טבלה1[[#This Row],[התחלה]]),TIME(,טבלה1[[#This Row],[הוספת דקות]],),-TIME(,טבלה1[[#This Row],[הפחתת דקות]],))))<=0,"", IF(AND(טבלה1[[#This Row],[התחלה]]="",טבלה1[[#This Row],[סיום]]<>""),"",IF(AND(טבלה1[[#This Row],[התחלה]]<>"",טבלה1[[#This Row],[סיום]]=""), SUM(MOD(NOW(),1)-טבלה1[[#This Row],[התחלה]]+(MOD(NOW(),1)<טבלה1[[#This Row],[התחלה]]),TIME(,טבלה1[[#This Row],[הוספת דקות]],),-TIME(,טבלה1[[#This Row],[הפחתת דקות]],)), SUM(טבלה1[[#This Row],[סיום]]-טבלה1[[#This Row],[התחלה]]+(טבלה1[[#This Row],[סיום]]<טבלה1[[#This Row],[התחלה]]),TIME(,טבלה1[[#This Row],[הוספת דקות]],),-TIME(,טבלה1[[#This Row],[הפחתת דקות]],))))) ->  | K74: =IF('טיימר עבודות'!$J74="","", IFERROR(IF(IF(VLOOKUP('טיימר עבודות'!$F74,טבלה2[],3,FALSE)="$", VLOOKUP(טבלה1[[#This Row],[שם העבודה]],טבלה2[#All],2,FALSE)*טבלה1[[#This Row],[שעות]]*24*שער, VLOOKUP(טבלה1[[#This Row],[שם העבודה]],טבלה2[#All],2,FALSE)*טבלה1[[#This Row],[שעות]]*24)=0,"", IF(VLOOKUP('טיימר עבודות'!$F74,טבלה2[],3,FALSE)="$", VLOOKUP(טבלה1[[#This Row],[שם העבודה]],טבלה2[#All],2,FALSE)*טבלה1[[#This Row],[שעות]]*24*שער, VLOOKUP(טבלה1[[#This Row],[שם העבודה]],טבלה2[#All],2,FALSE)*טבלה1[[#This Row],[שעות]]*24)),"")) ->  | L74: =IF(טבלה1[[#This Row],[תאריך]]="","",טבלה1[[#This Row],[תאריך]]+טבלה1[[#This Row],[התחלה]]) ->  | T74: =IF(OR(טבלה12[[#This Row],[תווים]]="",טבלה12[[#This Row],[שכר לתווים]]=""),"", IF(טבלה12[[#This Row],[תווים שהוקלדו]]/טבלה12[[#This Row],[תווים]]*טבלה12[[#This Row],[שכר לתווים]]=0,"", טבלה12[[#This Row],[תווים שהוקלדו]]/טבלה12[[#This Row],[תווים]]*טבלה12[[#This Row],[שכר לתווים]])) ->  | U74: =IF(OR(טבלה12[[#This Row],[שכר]]="",טבלה12[[#This Row],[יעד]]=""),"", IF(טבלה12[[#This Row],[שכר]]>=טבלה12[[#This Row],[יעד]],"הגעת ליעד!", טבלה12[[#This Row],[שכר]]/טבלה12[[#This Row],[יעד]])) ->  | AM74: 12:00:00 | AN74: 2074
B75: =IF(AND(טבלה1[[#This Row],[תאריך]]="",טבלה1[[#This Row],[התחלה]]="",טבלה1[[#This Row],[שם העבודה]]=""),"",ROW()-10) ->  | C75: =IF(טבלה1[[#This Row],[תאריך]]="","",IF(TEXT(טבלה1[[#This Row],[תאריך]],"DDD")="שבת","מוצ""ש",TEXT(טבלה1[[#This Row],[תאריך]],"DDD"))) ->  | J75: =IF(IF(AND(טבלה1[[#This Row],[התחלה]]="",טבלה1[[#This Row],[סיום]]<>""),"",IF(AND(טבלה1[[#This Row],[התחלה]]<>"",טבלה1[[#This Row],[סיום]]=""), SUM(MOD(NOW(),1)-טבלה1[[#This Row],[התחלה]]+(MOD(NOW(),1)<טבלה1[[#This Row],[התחלה]]),TIME(,טבלה1[[#This Row],[הוספת דקות]],),-TIME(,טבלה1[[#This Row],[הפחתת דקות]],)), SUM(טבלה1[[#This Row],[סיום]]-טבלה1[[#This Row],[התחלה]]+(טבלה1[[#This Row],[סיום]]<טבלה1[[#This Row],[התחלה]]),TIME(,טבלה1[[#This Row],[הוספת דקות]],),-TIME(,טבלה1[[#This Row],[הפחתת דקות]],))))<=0,"", IF(AND(טבלה1[[#This Row],[התחלה]]="",טבלה1[[#This Row],[סיום]]<>""),"",IF(AND(טבלה1[[#This Row],[התחלה]]<>"",טבלה1[[#This Row],[סיום]]=""), SUM(MOD(NOW(),1)-טבלה1[[#This Row],[התחלה]]+(MOD(NOW(),1)<טבלה1[[#This Row],[התחלה]]),TIME(,טבלה1[[#This Row],[הוספת דקות]],),-TIME(,טבלה1[[#This Row],[הפחתת דקות]],)), SUM(טבלה1[[#This Row],[סיום]]-טבלה1[[#This Row],[התחלה]]+(טבלה1[[#This Row],[סיום]]<טבלה1[[#This Row],[התחלה]]),TIME(,טבלה1[[#This Row],[הוספת דקות]],),-TIME(,טבלה1[[#This Row],[הפחתת דקות]],))))) ->  | K75: =IF('טיימר עבודות'!$J75="","", IFERROR(IF(IF(VLOOKUP('טיימר עבודות'!$F75,טבלה2[],3,FALSE)="$", VLOOKUP(טבלה1[[#This Row],[שם העבודה]],טבלה2[#All],2,FALSE)*טבלה1[[#This Row],[שעות]]*24*שער, VLOOKUP(טבלה1[[#This Row],[שם העבודה]],טבלה2[#All],2,FALSE)*טבלה1[[#This Row],[שעות]]*24)=0,"", IF(VLOOKUP('טיימר עבודות'!$F75,טבלה2[],3,FALSE)="$", VLOOKUP(טבלה1[[#This Row],[שם העבודה]],טבלה2[#All],2,FALSE)*טבלה1[[#This Row],[שעות]]*24*שער, VLOOKUP(טבלה1[[#This Row],[שם העבודה]],טבלה2[#All],2,FALSE)*טבלה1[[#This Row],[שעות]]*24)),"")) ->  | L75: =IF(טבלה1[[#This Row],[תאריך]]="","",טבלה1[[#This Row],[תאריך]]+טבלה1[[#This Row],[התחלה]]) ->  | T75: =IF(OR(טבלה12[[#This Row],[תווים]]="",טבלה12[[#This Row],[שכר לתווים]]=""),"", IF(טבלה12[[#This Row],[תווים שהוקלדו]]/טבלה12[[#This Row],[תווים]]*טבלה12[[#This Row],[שכר לתווים]]=0,"", טבלה12[[#This Row],[תווים שהוקלדו]]/טבלה12[[#This Row],[תווים]]*טבלה12[[#This Row],[שכר לתווים]])) ->  | U75: =IF(OR(טבלה12[[#This Row],[שכר]]="",טבלה12[[#This Row],[יעד]]=""),"", IF(טבלה12[[#This Row],[שכר]]>=טבלה12[[#This Row],[יעד]],"הגעת ליעד!", טבלה12[[#This Row],[שכר]]/טבלה12[[#This Row],[יעד]])) ->  | AM75: 12:30:00 | AN75: 2075
B76: =IF(AND(טבלה1[[#This Row],[תאריך]]="",טבלה1[[#This Row],[התחלה]]="",טבלה1[[#This Row],[שם העבודה]]=""),"",ROW()-10) ->  | C76: =IF(טבלה1[[#This Row],[תאריך]]="","",IF(TEXT(טבלה1[[#This Row],[תאריך]],"DDD")="שבת","מוצ""ש",TEXT(טבלה1[[#This Row],[תאריך]],"DDD"))) ->  | J76: =IF(IF(AND(טבלה1[[#This Row],[התחלה]]="",טבלה1[[#This Row],[סיום]]<>""),"",IF(AND(טבלה1[[#This Row],[התחלה]]<>"",טבלה1[[#This Row],[סיום]]=""), SUM(MOD(NOW(),1)-טבלה1[[#This Row],[התחלה]]+(MOD(NOW(),1)<טבלה1[[#This Row],[התחלה]]),TIME(,טבלה1[[#This Row],[הוספת דקות]],),-TIME(,טבלה1[[#This Row],[הפחתת דקות]],)), SUM(טבלה1[[#This Row],[סיום]]-טבלה1[[#This Row],[התחלה]]+(טבלה1[[#This Row],[סיום]]<טבלה1[[#This Row],[התחלה]]),TIME(,טבלה1[[#This Row],[הוספת דקות]],),-TIME(,טבלה1[[#This Row],[הפחתת דקות]],))))<=0,"", IF(AND(טבלה1[[#This Row],[התחלה]]="",טבלה1[[#This Row],[סיום]]<>""),"",IF(AND(טבלה1[[#This Row],[התחלה]]<>"",טבלה1[[#This Row],[סיום]]=""), SUM(MOD(NOW(),1)-טבלה1[[#This Row],[התחלה]]+(MOD(NOW(),1)<טבלה1[[#This Row],[התחלה]]),TIME(,טבלה1[[#This Row],[הוספת דקות]],),-TIME(,טבלה1[[#This Row],[הפחתת דקות]],)), SUM(טבלה1[[#This Row],[סיום]]-טבלה1[[#This Row],[התחלה]]+(טבלה1[[#This Row],[סיום]]<טבלה1[[#This Row],[התחלה]]),TIME(,טבלה1[[#This Row],[הוספת דקות]],),-TIME(,טבלה1[[#This Row],[הפחתת דקות]],))))) ->  | K76: =IF('טיימר עבודות'!$J76="","", IFERROR(IF(IF(VLOOKUP('טיימר עבודות'!$F76,טבלה2[],3,FALSE)="$", VLOOKUP(טבלה1[[#This Row],[שם העבודה]],טבלה2[#All],2,FALSE)*טבלה1[[#This Row],[שעות]]*24*שער, VLOOKUP(טבלה1[[#This Row],[שם העבודה]],טבלה2[#All],2,FALSE)*טבלה1[[#This Row],[שעות]]*24)=0,"", IF(VLOOKUP('טיימר עבודות'!$F76,טבלה2[],3,FALSE)="$", VLOOKUP(טבלה1[[#This Row],[שם העבודה]],טבלה2[#All],2,FALSE)*טבלה1[[#This Row],[שעות]]*24*שער, VLOOKUP(טבלה1[[#This Row],[שם העבודה]],טבלה2[#All],2,FALSE)*טבלה1[[#This Row],[שעות]]*24)),"")) ->  | L76: =IF(טבלה1[[#This Row],[תאריך]]="","",טבלה1[[#This Row],[תאריך]]+טבלה1[[#This Row],[התחלה]]) ->  | AM76: 13:00:00 | AN76: 2076
B77: =IF(AND(טבלה1[[#This Row],[תאריך]]="",טבלה1[[#This Row],[התחלה]]="",טבלה1[[#This Row],[שם העבודה]]=""),"",ROW()-10) ->  | C77: =IF(טבלה1[[#This Row],[תאריך]]="","",IF(TEXT(טבלה1[[#This Row],[תאריך]],"DDD")="שבת","מוצ""ש",TEXT(טבלה1[[#This Row],[תאריך]],"DDD"))) ->  | J77: =IF(IF(AND(טבלה1[[#This Row],[התחלה]]="",טבלה1[[#This Row],[סיום]]<>""),"",IF(AND(טבלה1[[#This Row],[התחלה]]<>"",טבלה1[[#This Row],[סיום]]=""), SUM(MOD(NOW(),1)-טבלה1[[#This Row],[התחלה]]+(MOD(NOW(),1)<טבלה1[[#This Row],[התחלה]]),TIME(,טבלה1[[#This Row],[הוספת דקות]],),-TIME(,טבלה1[[#This Row],[הפחתת דקות]],)), SUM(טבלה1[[#This Row],[סיום]]-טבלה1[[#This Row],[התחלה]]+(טבלה1[[#This Row],[סיום]]<טבלה1[[#This Row],[התחלה]]),TIME(,טבלה1[[#This Row],[הוספת דקות]],),-TIME(,טבלה1[[#This Row],[הפחתת דקות]],))))<=0,"", IF(AND(טבלה1[[#This Row],[התחלה]]="",טבלה1[[#This Row],[סיום]]<>""),"",IF(AND(טבלה1[[#This Row],[התחלה]]<>"",טבלה1[[#This Row],[סיום]]=""), SUM(MOD(NOW(),1)-טבלה1[[#This Row],[התחלה]]+(MOD(NOW(),1)<טבלה1[[#This Row],[התחלה]]),TIME(,טבלה1[[#This Row],[הוספת דקות]],),-TIME(,טבלה1[[#This Row],[הפחתת דקות]],)), SUM(טבלה1[[#This Row],[סיום]]-טבלה1[[#This Row],[התחלה]]+(טבלה1[[#This Row],[סיום]]<טבלה1[[#This Row],[התחלה]]),TIME(,טבלה1[[#This Row],[הוספת דקות]],),-TIME(,טבלה1[[#This Row],[הפחתת דקות]],))))) ->  | K77: =IF('טיימר עבודות'!$J77="","", IFERROR(IF(IF(VLOOKUP('טיימר עבודות'!$F77,טבלה2[],3,FALSE)="$", VLOOKUP(טבלה1[[#This Row],[שם העבודה]],טבלה2[#All],2,FALSE)*טבלה1[[#This Row],[שעות]]*24*שער, VLOOKUP(טבלה1[[#This Row],[שם העבודה]],טבלה2[#All],2,FALSE)*טבלה1[[#This Row],[שעות]]*24)=0,"", IF(VLOOKUP('טיימר עבודות'!$F77,טבלה2[],3,FALSE)="$", VLOOKUP(טבלה1[[#This Row],[שם העבודה]],טבלה2[#All],2,FALSE)*טבלה1[[#This Row],[שעות]]*24*שער, VLOOKUP(טבלה1[[#This Row],[שם העבודה]],טבלה2[#All],2,FALSE)*טבלה1[[#This Row],[שעות]]*24)),"")) ->  | L77: =IF(טבלה1[[#This Row],[תאריך]]="","",טבלה1[[#This Row],[תאריך]]+טבלה1[[#This Row],[התחלה]]) ->  | AM77: 13:30:00 | AN77: 2077
B78: =IF(AND(טבלה1[[#This Row],[תאריך]]="",טבלה1[[#This Row],[התחלה]]="",טבלה1[[#This Row],[שם העבודה]]=""),"",ROW()-10) ->  | C78: =IF(טבלה1[[#This Row],[תאריך]]="","",IF(TEXT(טבלה1[[#This Row],[תאריך]],"DDD")="שבת","מוצ""ש",TEXT(טבלה1[[#This Row],[תאריך]],"DDD"))) ->  | J78: =IF(IF(AND(טבלה1[[#This Row],[התחלה]]="",טבלה1[[#This Row],[סיום]]<>""),"",IF(AND(טבלה1[[#This Row],[התחלה]]<>"",טבלה1[[#This Row],[סיום]]=""), SUM(MOD(NOW(),1)-טבלה1[[#This Row],[התחלה]]+(MOD(NOW(),1)<טבלה1[[#This Row],[התחלה]]),TIME(,טבלה1[[#This Row],[הוספת דקות]],),-TIME(,טבלה1[[#This Row],[הפחתת דקות]],)), SUM(טבלה1[[#This Row],[סיום]]-טבלה1[[#This Row],[התחלה]]+(טבלה1[[#This Row],[סיום]]<טבלה1[[#This Row],[התחלה]]),TIME(,טבלה1[[#This Row],[הוספת דקות]],),-TIME(,טבלה1[[#This Row],[הפחתת דקות]],))))<=0,"", IF(AND(טבלה1[[#This Row],[התחלה]]="",טבלה1[[#This Row],[סיום]]<>""),"",IF(AND(טבלה1[[#This Row],[התחלה]]<>"",טבלה1[[#This Row],[סיום]]=""), SUM(MOD(NOW(),1)-טבלה1[[#This Row],[התחלה]]+(MOD(NOW(),1)<טבלה1[[#This Row],[התחלה]]),TIME(,טבלה1[[#This Row],[הוספת דקות]],),-TIME(,טבלה1[[#This Row],[הפחתת דקות]],)), SUM(טבלה1[[#This Row],[סיום]]-טבלה1[[#This Row],[התחלה]]+(טבלה1[[#This Row],[סיום]]<טבלה1[[#This Row],[התחלה]]),TIME(,טבלה1[[#This Row],[הוספת דקות]],),-TIME(,טבלה1[[#This Row],[הפחתת דקות]],))))) ->  | K78: =IF('טיימר עבודות'!$J78="","", IFERROR(IF(IF(VLOOKUP('טיימר עבודות'!$F78,טבלה2[],3,FALSE)="$", VLOOKUP(טבלה1[[#This Row],[שם העבודה]],טבלה2[#All],2,FALSE)*טבלה1[[#This Row],[שעות]]*24*שער, VLOOKUP(טבלה1[[#This Row],[שם העבודה]],טבלה2[#All],2,FALSE)*טבלה1[[#This Row],[שעות]]*24)=0,"", IF(VLOOKUP('טיימר עבודות'!$F78,טבלה2[],3,FALSE)="$", VLOOKUP(טבלה1[[#This Row],[שם העבודה]],טבלה2[#All],2,FALSE)*טבלה1[[#This Row],[שעות]]*24*שער, VLOOKUP(טבלה1[[#This Row],[שם העבודה]],טבלה2[#All],2,FALSE)*טבלה1[[#This Row],[שעות]]*24)),"")) ->  | L78: =IF(טבלה1[[#This Row],[תאריך]]="","",טבלה1[[#This Row],[תאריך]]+טבלה1[[#This Row],[התחלה]]) ->  | R78: במצב מקוון הפקד שולף את הנתונים מאתר בנק ישראל | U78: שער הדולר בשקלים- | V78: 3.663 | AM78: 14:00:00 | AN78: 2078
B79: =IF(AND(טבלה1[[#This Row],[תאריך]]="",טבלה1[[#This Row],[התחלה]]="",טבלה1[[#This Row],[שם העבודה]]=""),"",ROW()-10) ->  | C79: =IF(טבלה1[[#This Row],[תאריך]]="","",IF(TEXT(טבלה1[[#This Row],[תאריך]],"DDD")="שבת","מוצ""ש",TEXT(טבלה1[[#This Row],[תאריך]],"DDD"))) ->  | J79: =IF(IF(AND(טבלה1[[#This Row],[התחלה]]="",טבלה1[[#This Row],[סיום]]<>""),"",IF(AND(טבלה1[[#This Row],[התחלה]]<>"",טבלה1[[#This Row],[סיום]]=""), SUM(MOD(NOW(),1)-טבלה1[[#This Row],[התחלה]]+(MOD(NOW(),1)<טבלה1[[#This Row],[התחלה]]),TIME(,טבלה1[[#This Row],[הוספת דקות]],),-TIME(,טבלה1[[#This Row],[הפחתת דקות]],)), SUM(טבלה1[[#This Row],[סיום]]-טבלה1[[#This Row],[התחלה]]+(טבלה1[[#This Row],[סיום]]<טבלה1[[#This Row],[התחלה]]),TIME(,טבלה1[[#This Row],[הוספת דקות]],),-TIME(,טבלה1[[#This Row],[הפחתת דקות]],))))<=0,"", IF(AND(טבלה1[[#This Row],[התחלה]]="",טבלה1[[#This Row],[סיום]]<>""),"",IF(AND(טבלה1[[#This Row],[התחלה]]<>"",טבלה1[[#This Row],[סיום]]=""), SUM(MOD(NOW(),1)-טבלה1[[#This Row],[התחלה]]+(MOD(NOW(),1)<טבלה1[[#This Row],[התחלה]]),TIME(,טבלה1[[#This Row],[הוספת דקות]],),-TIME(,טבלה1[[#This Row],[הפחתת דקות]],)), SUM(טבלה1[[#This Row],[סיום]]-טבלה1[[#This Row],[התחלה]]+(טבלה1[[#This Row],[סיום]]<טבלה1[[#This Row],[התחלה]]),TIME(,טבלה1[[#This Row],[הוספת דקות]],),-TIME(,טבלה1[[#This Row],[הפחתת דקות]],))))) ->  | K79: =IF('טיימר עבודות'!$J79="","", IFERROR(IF(IF(VLOOKUP('טיימר עבודות'!$F79,טבלה2[],3,FALSE)="$", VLOOKUP(טבלה1[[#This Row],[שם העבודה]],טבלה2[#All],2,FALSE)*טבלה1[[#This Row],[שעות]]*24*שער, VLOOKUP(טבלה1[[#This Row],[שם העבודה]],טבלה2[#All],2,FALSE)*טבלה1[[#This Row],[שעות]]*24)=0,"", IF(VLOOKUP('טיימר עבודות'!$F79,טבלה2[],3,FALSE)="$", VLOOKUP(טבלה1[[#This Row],[שם העבודה]],טבלה2[#All],2,FALSE)*טבלה1[[#This Row],[שעות]]*24*שער, VLOOKUP(טבלה1[[#This Row],[שם העבודה]],טבלה2[#All],2,FALSE)*טבלה1[[#This Row],[שעות]]*24)),"")) ->  | L79: =IF(טבלה1[[#This Row],[תאריך]]="","",טבלה1[[#This Row],[תאריך]]+טבלה1[[#This Row],[התחלה]]) ->  | AM79: 14:30:00 | AN79: 2079
B80: =IF(AND(טבלה1[[#This Row],[תאריך]]="",טבלה1[[#This Row],[התחלה]]="",טבלה1[[#This Row],[שם העבודה]]=""),"",ROW()-10) ->  | C80: =IF(טבלה1[[#This Row],[תאריך]]="","",IF(TEXT(טבלה1[[#This Row],[תאריך]],"DDD")="שבת","מוצ""ש",TEXT(טבלה1[[#This Row],[תאריך]],"DDD"))) ->  | J80: =IF(IF(AND(טבלה1[[#This Row],[התחלה]]="",טבלה1[[#This Row],[סיום]]<>""),"",IF(AND(טבלה1[[#This Row],[התחלה]]<>"",טבלה1[[#This Row],[סיום]]=""), SUM(MOD(NOW(),1)-טבלה1[[#This Row],[התחלה]]+(MOD(NOW(),1)<טבלה1[[#This Row],[התחלה]]),TIME(,טבלה1[[#This Row],[הוספת דקות]],),-TIME(,טבלה1[[#This Row],[הפחתת דקות]],)), SUM(טבלה1[[#This Row],[סיום]]-טבלה1[[#This Row],[התחלה]]+(טבלה1[[#This Row],[סיום]]<טבלה1[[#This Row],[התחלה]]),TIME(,טבלה1[[#This Row],[הוספת דקות]],),-TIME(,טבלה1[[#This Row],[הפחתת דקות]],))))<=0,"", IF(AND(טבלה1[[#This Row],[התחלה]]="",טבלה1[[#This Row],[סיום]]<>""),"",IF(AND(טבלה1[[#This Row],[התחלה]]<>"",טבלה1[[#This Row],[סיום]]=""), SUM(MOD(NOW(),1)-טבלה1[[#This Row],[התחלה]]+(MOD(NOW(),1)<טבלה1[[#This Row],[התחלה]]),TIME(,טבלה1[[#This Row],[הוספת דקות]],),-TIME(,טבלה1[[#This Row],[הפחתת דקות]],)), SUM(טבלה1[[#This Row],[סיום]]-טבלה1[[#This Row],[התחלה]]+(טבלה1[[#This Row],[סיום]]<טבלה1[[#This Row],[התחלה]]),TIME(,טבלה1[[#This Row],[הוספת דקות]],),-TIME(,טבלה1[[#This Row],[הפחתת דקות]],))))) ->  | K80: =IF('טיימר עבודות'!$J80="","", IFERROR(IF(IF(VLOOKUP('טיימר עבודות'!$F80,טבלה2[],3,FALSE)="$", VLOOKUP(טבלה1[[#This Row],[שם העבודה]],טבלה2[#All],2,FALSE)*טבלה1[[#This Row],[שעות]]*24*שער, VLOOKUP(טבלה1[[#This Row],[שם העבודה]],טבלה2[#All],2,FALSE)*טבלה1[[#This Row],[שעות]]*24)=0,"", IF(VLOOKUP('טיימר עבודות'!$F80,טבלה2[],3,FALSE)="$", VLOOKUP(טבלה1[[#This Row],[שם העבודה]],טבלה2[#All],2,FALSE)*טבלה1[[#This Row],[שעות]]*24*שער, VLOOKUP(טבלה1[[#This Row],[שם העבודה]],טבלה2[#All],2,FALSE)*טבלה1[[#This Row],[שעות]]*24)),"")) ->  | L80: =IF(טבלה1[[#This Row],[תאריך]]="","",טבלה1[[#This Row],[תאריך]]+טבלה1[[#This Row],[התחלה]]) ->  | U80: תאריך שינוי אחרון- | V80: 2024-04-01T12:22:04.407 | AM80: 15:00:00 | AN80: 2080
B81: =IF(AND(טבלה1[[#This Row],[תאריך]]="",טבלה1[[#This Row],[התחלה]]="",טבלה1[[#This Row],[שם העבודה]]=""),"",ROW()-10) ->  | C81: =IF(טבלה1[[#This Row],[תאריך]]="","",IF(TEXT(טבלה1[[#This Row],[תאריך]],"DDD")="שבת","מוצ""ש",TEXT(טבלה1[[#This Row],[תאריך]],"DDD"))) ->  | J81: =IF(IF(AND(טבלה1[[#This Row],[התחלה]]="",טבלה1[[#This Row],[סיום]]<>""),"",IF(AND(טבלה1[[#This Row],[התחלה]]<>"",טבלה1[[#This Row],[סיום]]=""), SUM(MOD(NOW(),1)-טבלה1[[#This Row],[התחלה]]+(MOD(NOW(),1)<טבלה1[[#This Row],[התחלה]]),TIME(,טבלה1[[#This Row],[הוספת דקות]],),-TIME(,טבלה1[[#This Row],[הפחתת דקות]],)), SUM(טבלה1[[#This Row],[סיום]]-טבלה1[[#This Row],[התחלה]]+(טבלה1[[#This Row],[סיום]]<טבלה1[[#This Row],[התחלה]]),TIME(,טבלה1[[#This Row],[הוספת דקות]],),-TIME(,טבלה1[[#This Row],[הפחתת דקות]],))))<=0,"", IF(AND(טבלה1[[#This Row],[התחלה]]="",טבלה1[[#This Row],[סיום]]<>""),"",IF(AND(טבלה1[[#This Row],[התחלה]]<>"",טבלה1[[#This Row],[סיום]]=""), SUM(MOD(NOW(),1)-טבלה1[[#This Row],[התחלה]]+(MOD(NOW(),1)<טבלה1[[#This Row],[התחלה]]),TIME(,טבלה1[[#This Row],[הוספת דקות]],),-TIME(,טבלה1[[#This Row],[הפחתת דקות]],)), SUM(טבלה1[[#This Row],[סיום]]-טבלה1[[#This Row],[התחלה]]+(טבלה1[[#This Row],[סיום]]<טבלה1[[#This Row],[התחלה]]),TIME(,טבלה1[[#This Row],[הוספת דקות]],),-TIME(,טבלה1[[#This Row],[הפחתת דקות]],))))) ->  | K81: =IF('טיימר עבודות'!$J81="","", IFERROR(IF(IF(VLOOKUP('טיימר עבודות'!$F81,טבלה2[],3,FALSE)="$", VLOOKUP(טבלה1[[#This Row],[שם העבודה]],טבלה2[#All],2,FALSE)*טבלה1[[#This Row],[שעות]]*24*שער, VLOOKUP(טבלה1[[#This Row],[שם העבודה]],טבלה2[#All],2,FALSE)*טבלה1[[#This Row],[שעות]]*24)=0,"", IF(VLOOKUP('טיימר עבודות'!$F81,טבלה2[],3,FALSE)="$", VLOOKUP(טבלה1[[#This Row],[שם העבודה]],טבלה2[#All],2,FALSE)*טבלה1[[#This Row],[שעות]]*24*שער, VLOOKUP(טבלה1[[#This Row],[שם העבודה]],טבלה2[#All],2,FALSE)*טבלה1[[#This Row],[שעות]]*24)),"")) ->  | L81: =IF(טבלה1[[#This Row],[תאריך]]="","",טבלה1[[#This Row],[תאריך]]+טבלה1[[#This Row],[התחלה]]) ->  | AM81: 15:30:00 | AN81: 2081
B82: =IF(AND(טבלה1[[#This Row],[תאריך]]="",טבלה1[[#This Row],[התחלה]]="",טבלה1[[#This Row],[שם העבודה]]=""),"",ROW()-10) ->  | C82: =IF(טבלה1[[#This Row],[תאריך]]="","",IF(TEXT(טבלה1[[#This Row],[תאריך]],"DDD")="שבת","מוצ""ש",TEXT(טבלה1[[#This Row],[תאריך]],"DDD"))) ->  | J82: =IF(IF(AND(טבלה1[[#This Row],[התחלה]]="",טבלה1[[#This Row],[סיום]]<>""),"",IF(AND(טבלה1[[#This Row],[התחלה]]<>"",טבלה1[[#This Row],[סיום]]=""), SUM(MOD(NOW(),1)-טבלה1[[#This Row],[התחלה]]+(MOD(NOW(),1)<טבלה1[[#This Row],[התחלה]]),TIME(,טבלה1[[#This Row],[הוספת דקות]],),-TIME(,טבלה1[[#This Row],[הפחתת דקות]],)), SUM(טבלה1[[#This Row],[סיום]]-טבלה1[[#This Row],[התחלה]]+(טבלה1[[#This Row],[סיום]]<טבלה1[[#This Row],[התחלה]]),TIME(,טבלה1[[#This Row],[הוספת דקות]],),-TIME(,טבלה1[[#This Row],[הפחתת דקות]],))))<=0,"", IF(AND(טבלה1[[#This Row],[התחלה]]="",טבלה1[[#This Row],[סיום]]<>""),"",IF(AND(טבלה1[[#This Row],[התחלה]]<>"",טבלה1[[#This Row],[סיום]]=""), SUM(MOD(NOW(),1)-טבלה1[[#This Row],[התחלה]]+(MOD(NOW(),1)<טבלה1[[#This Row],[התחלה]]),TIME(,טבלה1[[#This Row],[הוספת דקות]],),-TIME(,טבלה1[[#This Row],[הפחתת דקות]],)), SUM(טבלה1[[#This Row],[סיום]]-טבלה1[[#This Row],[התחלה]]+(טבלה1[[#This Row],[סיום]]<טבלה1[[#This Row],[התחלה]]),TIME(,טבלה1[[#This Row],[הוספת דקות]],),-TIME(,טבלה1[[#This Row],[הפחתת דקות]],))))) ->  | K82: =IF('טיימר עבודות'!$J82="","", IFERROR(IF(IF(VLOOKUP('טיימר עבודות'!$F82,טבלה2[],3,FALSE)="$", VLOOKUP(טבלה1[[#This Row],[שם העבודה]],טבלה2[#All],2,FALSE)*טבלה1[[#This Row],[שעות]]*24*שער, VLOOKUP(טבלה1[[#This Row],[שם העבודה]],טבלה2[#All],2,FALSE)*טבלה1[[#This Row],[שעות]]*24)=0,"", IF(VLOOKUP('טיימר עבודות'!$F82,טבלה2[],3,FALSE)="$", VLOOKUP(טבלה1[[#This Row],[שם העבודה]],טבלה2[#All],2,FALSE)*טבלה1[[#This Row],[שעות]]*24*שער, VLOOKUP(טבלה1[[#This Row],[שם העבודה]],טבלה2[#All],2,FALSE)*טבלה1[[#This Row],[שעות]]*24)),"")) ->  | L82: =IF(טבלה1[[#This Row],[תאריך]]="","",טבלה1[[#This Row],[תאריך]]+טבלה1[[#This Row],[התחלה]]) ->  | AM82: 16:00:00 | AN82: 2082
B83: =IF(AND(טבלה1[[#This Row],[תאריך]]="",טבלה1[[#This Row],[התחלה]]="",טבלה1[[#This Row],[שם העבודה]]=""),"",ROW()-10) ->  | C83: =IF(טבלה1[[#This Row],[תאריך]]="","",IF(TEXT(טבלה1[[#This Row],[תאריך]],"DDD")="שבת","מוצ""ש",TEXT(טבלה1[[#This Row],[תאריך]],"DDD"))) ->  | J83: =IF(IF(AND(טבלה1[[#This Row],[התחלה]]="",טבלה1[[#This Row],[סיום]]<>""),"",IF(AND(טבלה1[[#This Row],[התחלה]]<>"",טבלה1[[#This Row],[סיום]]=""), SUM(MOD(NOW(),1)-טבלה1[[#This Row],[התחלה]]+(MOD(NOW(),1)<טבלה1[[#This Row],[התחלה]]),TIME(,טבלה1[[#This Row],[הוספת דקות]],),-TIME(,טבלה1[[#This Row],[הפחתת דקות]],)), SUM(טבלה1[[#This Row],[סיום]]-טבלה1[[#This Row],[התחלה]]+(טבלה1[[#This Row],[סיום]]<טבלה1[[#This Row],[התחלה]]),TIME(,טבלה1[[#This Row],[הוספת דקות]],),-TIME(,טבלה1[[#This Row],[הפחתת דקות]],))))<=0,"", IF(AND(טבלה1[[#This Row],[התחלה]]="",טבלה1[[#This Row],[סיום]]<>""),"",IF(AND(טבלה1[[#This Row],[התחלה]]<>"",טבלה1[[#This Row],[סיום]]=""), SUM(MOD(NOW(),1)-טבלה1[[#This Row],[התחלה]]+(MOD(NOW(),1)<טבלה1[[#This Row],[התחלה]]),TIME(,טבלה1[[#This Row],[הוספת דקות]],),-TIME(,טבלה1[[#This Row],[הפחתת דקות]],)), SUM(טבלה1[[#This Row],[סיום]]-טבלה1[[#This Row],[התחלה]]+(טבלה1[[#This Row],[סיום]]<טבלה1[[#This Row],[התחלה]]),TIME(,טבלה1[[#This Row],[הוספת דקות]],),-TIME(,טבלה1[[#This Row],[הפחתת דקות]],))))) ->  | K83: =IF('טיימר עבודות'!$J83="","", IFERROR(IF(IF(VLOOKUP('טיימר עבודות'!$F83,טבלה2[],3,FALSE)="$", VLOOKUP(טבלה1[[#This Row],[שם העבודה]],טבלה2[#All],2,FALSE)*טבלה1[[#This Row],[שעות]]*24*שער, VLOOKUP(טבלה1[[#This Row],[שם העבודה]],טבלה2[#All],2,FALSE)*טבלה1[[#This Row],[שעות]]*24)=0,"", IF(VLOOKUP('טיימר עבודות'!$F83,טבלה2[],3,FALSE)="$", VLOOKUP(טבלה1[[#This Row],[שם העבודה]],טבלה2[#All],2,FALSE)*טבלה1[[#This Row],[שעות]]*24*שער, VLOOKUP(טבלה1[[#This Row],[שם העבודה]],טבלה2[#All],2,FALSE)*טבלה1[[#This Row],[שעות]]*24)),"")) ->  | L83: =IF(טבלה1[[#This Row],[תאריך]]="","",טבלה1[[#This Row],[תאריך]]+טבלה1[[#This Row],[התחלה]]) ->  | AM83: 16:30:00 | AN83: 2083
B84: =IF(AND(טבלה1[[#This Row],[תאריך]]="",טבלה1[[#This Row],[התחלה]]="",טבלה1[[#This Row],[שם העבודה]]=""),"",ROW()-10) ->  | C84: =IF(טבלה1[[#This Row],[תאריך]]="","",IF(TEXT(טבלה1[[#This Row],[תאריך]],"DDD")="שבת","מוצ""ש",TEXT(טבלה1[[#This Row],[תאריך]],"DDD"))) ->  | J84: =IF(IF(AND(טבלה1[[#This Row],[התחלה]]="",טבלה1[[#This Row],[סיום]]<>""),"",IF(AND(טבלה1[[#This Row],[התחלה]]<>"",טבלה1[[#This Row],[סיום]]=""), SUM(MOD(NOW(),1)-טבלה1[[#This Row],[התחלה]]+(MOD(NOW(),1)<טבלה1[[#This Row],[התחלה]]),TIME(,טבלה1[[#This Row],[הוספת דקות]],),-TIME(,טבלה1[[#This Row],[הפחתת דקות]],)), SUM(טבלה1[[#This Row],[סיום]]-טבלה1[[#This Row],[התחלה]]+(טבלה1[[#This Row],[סיום]]<טבלה1[[#This Row],[התחלה]]),TIME(,טבלה1[[#This Row],[הוספת דקות]],),-TIME(,טבלה1[[#This Row],[הפחתת דקות]],))))<=0,"", IF(AND(טבלה1[[#This Row],[התחלה]]="",טבלה1[[#This Row],[סיום]]<>""),"",IF(AND(טבלה1[[#This Row],[התחלה]]<>"",טבלה1[[#This Row],[סיום]]=""), SUM(MOD(NOW(),1)-טבלה1[[#This Row],[התחלה]]+(MOD(NOW(),1)<טבלה1[[#This Row],[התחלה]]),TIME(,טבלה1[[#This Row],[הוספת דקות]],),-TIME(,טבלה1[[#This Row],[הפחתת דקות]],)), SUM(טבלה1[[#This Row],[סיום]]-טבלה1[[#This Row],[התחלה]]+(טבלה1[[#This Row],[סיום]]<טבלה1[[#This Row],[התחלה]]),TIME(,טבלה1[[#This Row],[הוספת דקות]],),-TIME(,טבלה1[[#This Row],[הפחתת דקות]],))))) ->  | K84: =IF('טיימר עבודות'!$J84="","", IFERROR(IF(IF(VLOOKUP('טיימר עבודות'!$F84,טבלה2[],3,FALSE)="$", VLOOKUP(טבלה1[[#This Row],[שם העבודה]],טבלה2[#All],2,FALSE)*טבלה1[[#This Row],[שעות]]*24*שער, VLOOKUP(טבלה1[[#This Row],[שם העבודה]],טבלה2[#All],2,FALSE)*טבלה1[[#This Row],[שעות]]*24)=0,"", IF(VLOOKUP('טיימר עבודות'!$F84,טבלה2[],3,FALSE)="$", VLOOKUP(טבלה1[[#This Row],[שם העבודה]],טבלה2[#All],2,FALSE)*טבלה1[[#This Row],[שעות]]*24*שער, VLOOKUP(טבלה1[[#This Row],[שם העבודה]],טבלה2[#All],2,FALSE)*טבלה1[[#This Row],[שעות]]*24)),"")) ->  | L84: =IF(טבלה1[[#This Row],[תאריך]]="","",טבלה1[[#This Row],[תאריך]]+טבלה1[[#This Row],[התחלה]]) ->  | AM84: 17:00:00 | AN84: 2084
B85: =IF(AND(טבלה1[[#This Row],[תאריך]]="",טבלה1[[#This Row],[התחלה]]="",טבלה1[[#This Row],[שם העבודה]]=""),"",ROW()-10) ->  | C85: =IF(טבלה1[[#This Row],[תאריך]]="","",IF(TEXT(טבלה1[[#This Row],[תאריך]],"DDD")="שבת","מוצ""ש",TEXT(טבלה1[[#This Row],[תאריך]],"DDD"))) ->  | J85: =IF(IF(AND(טבלה1[[#This Row],[התחלה]]="",טבלה1[[#This Row],[סיום]]<>""),"",IF(AND(טבלה1[[#This Row],[התחלה]]<>"",טבלה1[[#This Row],[סיום]]=""), SUM(MOD(NOW(),1)-טבלה1[[#This Row],[התחלה]]+(MOD(NOW(),1)<טבלה1[[#This Row],[התחלה]]),TIME(,טבלה1[[#This Row],[הוספת דקות]],),-TIME(,טבלה1[[#This Row],[הפחתת דקות]],)), SUM(טבלה1[[#This Row],[סיום]]-טבלה1[[#This Row],[התחלה]]+(טבלה1[[#This Row],[סיום]]<טבלה1[[#This Row],[התחלה]]),TIME(,טבלה1[[#This Row],[הוספת דקות]],),-TIME(,טבלה1[[#This Row],[הפחתת דקות]],))))<=0,"", IF(AND(טבלה1[[#This Row],[התחלה]]="",טבלה1[[#This Row],[סיום]]<>""),"",IF(AND(טבלה1[[#This Row],[התחלה]]<>"",טבלה1[[#This Row],[סיום]]=""), SUM(MOD(NOW(),1)-טבלה1[[#This Row],[התחלה]]+(MOD(NOW(),1)<טבלה1[[#This Row],[התחלה]]),TIME(,טבלה1[[#This Row],[הוספת דקות]],),-TIME(,טבלה1[[#This Row],[הפחתת דקות]],)), SUM(טבלה1[[#This Row],[סיום]]-טבלה1[[#This Row],[התחלה]]+(טבלה1[[#This Row],[סיום]]<טבלה1[[#This Row],[התחלה]]),TIME(,טבלה1[[#This Row],[הוספת דקות]],),-TIME(,טבלה1[[#This Row],[הפחתת דקות]],))))) ->  | K85: =IF('טיימר עבודות'!$J85="","", IFERROR(IF(IF(VLOOKUP('טיימר עבודות'!$F85,טבלה2[],3,FALSE)="$", VLOOKUP(טבלה1[[#This Row],[שם העבודה]],טבלה2[#All],2,FALSE)*טבלה1[[#This Row],[שעות]]*24*שער, VLOOKUP(טבלה1[[#This Row],[שם העבודה]],טבלה2[#All],2,FALSE)*טבלה1[[#This Row],[שעות]]*24)=0,"", IF(VLOOKUP('טיימר עבודות'!$F85,טבלה2[],3,FALSE)="$", VLOOKUP(טבלה1[[#This Row],[שם העבודה]],טבלה2[#All],2,FALSE)*טבלה1[[#This Row],[שעות]]*24*שער, VLOOKUP(טבלה1[[#This Row],[שם העבודה]],טבלה2[#All],2,FALSE)*טבלה1[[#This Row],[שעות]]*24)),"")) ->  | L85: =IF(טבלה1[[#This Row],[תאריך]]="","",טבלה1[[#This Row],[תאריך]]+טבלה1[[#This Row],[התחלה]]) ->  | AM85: 17:30:00 | AN85: 2085
B86: =IF(AND(טבלה1[[#This Row],[תאריך]]="",טבלה1[[#This Row],[התחלה]]="",טבלה1[[#This Row],[שם העבודה]]=""),"",ROW()-10) ->  | C86: =IF(טבלה1[[#This Row],[תאריך]]="","",IF(TEXT(טבלה1[[#This Row],[תאריך]],"DDD")="שבת","מוצ""ש",TEXT(טבלה1[[#This Row],[תאריך]],"DDD"))) ->  | J86: =IF(IF(AND(טבלה1[[#This Row],[התחלה]]="",טבלה1[[#This Row],[סיום]]<>""),"",IF(AND(טבלה1[[#This Row],[התחלה]]<>"",טבלה1[[#This Row],[סיום]]=""), SUM(MOD(NOW(),1)-טבלה1[[#This Row],[התחלה]]+(MOD(NOW(),1)<טבלה1[[#This Row],[התחלה]]),TIME(,טבלה1[[#This Row],[הוספת דקות]],),-TIME(,טבלה1[[#This Row],[הפחתת דקות]],)), SUM(טבלה1[[#This Row],[סיום]]-טבלה1[[#This Row],[התחלה]]+(טבלה1[[#This Row],[סיום]]<טבלה1[[#This Row],[התחלה]]),TIME(,טבלה1[[#This Row],[הוספת דקות]],),-TIME(,טבלה1[[#This Row],[הפחתת דקות]],))))<=0,"", IF(AND(טבלה1[[#This Row],[התחלה]]="",טבלה1[[#This Row],[סיום]]<>""),"",IF(AND(טבלה1[[#This Row],[התחלה]]<>"",טבלה1[[#This Row],[סיום]]=""), SUM(MOD(NOW(),1)-טבלה1[[#This Row],[התחלה]]+(MOD(NOW(),1)<טבלה1[[#This Row],[התחלה]]),TIME(,טבלה1[[#This Row],[הוספת דקות]],),-TIME(,טבלה1[[#This Row],[הפחתת דקות]],)), SUM(טבלה1[[#This Row],[סיום]]-טבלה1[[#This Row],[התחלה]]+(טבלה1[[#This Row],[סיום]]<טבלה1[[#This Row],[התחלה]]),TIME(,טבלה1[[#This Row],[הוספת דקות]],),-TIME(,טבלה1[[#This Row],[הפחתת דקות]],))))) ->  | K86: =IF('טיימר עבודות'!$J86="","", IFERROR(IF(IF(VLOOKUP('טיימר עבודות'!$F86,טבלה2[],3,FALSE)="$", VLOOKUP(טבלה1[[#This Row],[שם העבודה]],טבלה2[#All],2,FALSE)*טבלה1[[#This Row],[שעות]]*24*שער, VLOOKUP(טבלה1[[#This Row],[שם העבודה]],טבלה2[#All],2,FALSE)*טבלה1[[#This Row],[שעות]]*24)=0,"", IF(VLOOKUP('טיימר עבודות'!$F86,טבלה2[],3,FALSE)="$", VLOOKUP(טבלה1[[#This Row],[שם העבודה]],טבלה2[#All],2,FALSE)*טבלה1[[#This Row],[שעות]]*24*שער, VLOOKUP(טבלה1[[#This Row],[שם העבודה]],טבלה2[#All],2,FALSE)*טבלה1[[#This Row],[שעות]]*24)),"")) ->  | L86: =IF(טבלה1[[#This Row],[תאריך]]="","",טבלה1[[#This Row],[תאריך]]+טבלה1[[#This Row],[התחלה]]) ->  | AM86: 18:00:00 | AN86: 2086
B87: =IF(AND(טבלה1[[#This Row],[תאריך]]="",טבלה1[[#This Row],[התחלה]]="",טבלה1[[#This Row],[שם העבודה]]=""),"",ROW()-10) ->  | C87: =IF(טבלה1[[#This Row],[תאריך]]="","",IF(TEXT(טבלה1[[#This Row],[תאריך]],"DDD")="שבת","מוצ""ש",TEXT(טבלה1[[#This Row],[תאריך]],"DDD"))) ->  | J87: =IF(IF(AND(טבלה1[[#This Row],[התחלה]]="",טבלה1[[#This Row],[סיום]]<>""),"",IF(AND(טבלה1[[#This Row],[התחלה]]<>"",טבלה1[[#This Row],[סיום]]=""), SUM(MOD(NOW(),1)-טבלה1[[#This Row],[התחלה]]+(MOD(NOW(),1)<טבלה1[[#This Row],[התחלה]]),TIME(,טבלה1[[#This Row],[הוספת דקות]],),-TIME(,טבלה1[[#This Row],[הפחתת דקות]],)), SUM(טבלה1[[#This Row],[סיום]]-טבלה1[[#This Row],[התחלה]]+(טבלה1[[#This Row],[סיום]]<טבלה1[[#This Row],[התחלה]]),TIME(,טבלה1[[#This Row],[הוספת דקות]],),-TIME(,טבלה1[[#This Row],[הפחתת דקות]],))))<=0,"", IF(AND(טבלה1[[#This Row],[התחלה]]="",טבלה1[[#This Row],[סיום]]<>""),"",IF(AND(טבלה1[[#This Row],[התחלה]]<>"",טבלה1[[#This Row],[סיום]]=""), SUM(MOD(NOW(),1)-טבלה1[[#This Row],[התחלה]]+(MOD(NOW(),1)<טבלה1[[#This Row],[התחלה]]),TIME(,טבלה1[[#This Row],[הוספת דקות]],),-TIME(,טבלה1[[#This Row],[הפחתת דקות]],)), SUM(טבלה1[[#This Row],[סיום]]-טבלה1[[#This Row],[התחלה]]+(טבלה1[[#This Row],[סיום]]<טבלה1[[#This Row],[התחלה]]),TIME(,טבלה1[[#This Row],[הוספת דקות]],),-TIME(,טבלה1[[#This Row],[הפחתת דקות]],))))) ->  | K87: =IF('טיימר עבודות'!$J87="","", IFERROR(IF(IF(VLOOKUP('טיימר עבודות'!$F87,טבלה2[],3,FALSE)="$", VLOOKUP(טבלה1[[#This Row],[שם העבודה]],טבלה2[#All],2,FALSE)*טבלה1[[#This Row],[שעות]]*24*שער, VLOOKUP(טבלה1[[#This Row],[שם העבודה]],טבלה2[#All],2,FALSE)*טבלה1[[#This Row],[שעות]]*24)=0,"", IF(VLOOKUP('טיימר עבודות'!$F87,טבלה2[],3,FALSE)="$", VLOOKUP(טבלה1[[#This Row],[שם העבודה]],טבלה2[#All],2,FALSE)*טבלה1[[#This Row],[שעות]]*24*שער, VLOOKUP(טבלה1[[#This Row],[שם העבודה]],טבלה2[#All],2,FALSE)*טבלה1[[#This Row],[שעות]]*24)),"")) ->  | L87: =IF(טבלה1[[#This Row],[תאריך]]="","",טבלה1[[#This Row],[תאריך]]+טבלה1[[#This Row],[התחלה]]) ->  | AM87: 18:30:00 | AN87: 2087
B88: =IF(AND(טבלה1[[#This Row],[תאריך]]="",טבלה1[[#This Row],[התחלה]]="",טבלה1[[#This Row],[שם העבודה]]=""),"",ROW()-10) ->  | C88: =IF(טבלה1[[#This Row],[תאריך]]="","",IF(TEXT(טבלה1[[#This Row],[תאריך]],"DDD")="שבת","מוצ""ש",TEXT(טבלה1[[#This Row],[תאריך]],"DDD"))) ->  | J88: =IF(IF(AND(טבלה1[[#This Row],[התחלה]]="",טבלה1[[#This Row],[סיום]]<>""),"",IF(AND(טבלה1[[#This Row],[התחלה]]<>"",טבלה1[[#This Row],[סיום]]=""), SUM(MOD(NOW(),1)-טבלה1[[#This Row],[התחלה]]+(MOD(NOW(),1)<טבלה1[[#This Row],[התחלה]]),TIME(,טבלה1[[#This Row],[הוספת דקות]],),-TIME(,טבלה1[[#This Row],[הפחתת דקות]],)), SUM(טבלה1[[#This Row],[סיום]]-טבלה1[[#This Row],[התחלה]]+(טבלה1[[#This Row],[סיום]]<טבלה1[[#This Row],[התחלה]]),TIME(,טבלה1[[#This Row],[הוספת דקות]],),-TIME(,טבלה1[[#This Row],[הפחתת דקות]],))))<=0,"", IF(AND(טבלה1[[#This Row],[התחלה]]="",טבלה1[[#This Row],[סיום]]<>""),"",IF(AND(טבלה1[[#This Row],[התחלה]]<>"",טבלה1[[#This Row],[סיום]]=""), SUM(MOD(NOW(),1)-טבלה1[[#This Row],[התחלה]]+(MOD(NOW(),1)<טבלה1[[#This Row],[התחלה]]),TIME(,טבלה1[[#This Row],[הוספת דקות]],),-TIME(,טבלה1[[#This Row],[הפחתת דקות]],)), SUM(טבלה1[[#This Row],[סיום]]-טבלה1[[#This Row],[התחלה]]+(טבלה1[[#This Row],[סיום]]<טבלה1[[#This Row],[התחלה]]),TIME(,טבלה1[[#This Row],[הוספת דקות]],),-TIME(,טבלה1[[#This Row],[הפחתת דקות]],))))) ->  | K88: =IF('טיימר עבודות'!$J88="","", IFERROR(IF(IF(VLOOKUP('טיימר עבודות'!$F88,טבלה2[],3,FALSE)="$", VLOOKUP(טבלה1[[#This Row],[שם העבודה]],טבלה2[#All],2,FALSE)*טבלה1[[#This Row],[שעות]]*24*שער, VLOOKUP(טבלה1[[#This Row],[שם העבודה]],טבלה2[#All],2,FALSE)*טבלה1[[#This Row],[שעות]]*24)=0,"", IF(VLOOKUP('טיימר עבודות'!$F88,טבלה2[],3,FALSE)="$", VLOOKUP(טבלה1[[#This Row],[שם העבודה]],טבלה2[#All],2,FALSE)*טבלה1[[#This Row],[שעות]]*24*שער, VLOOKUP(טבלה1[[#This Row],[שם העבודה]],טבלה2[#All],2,FALSE)*טבלה1[[#This Row],[שעות]]*24)),"")) ->  | L88: =IF(טבלה1[[#This Row],[תאריך]]="","",טבלה1[[#This Row],[תאריך]]+טבלה1[[#This Row],[התחלה]]) ->  | AM88: 19:00:00 | AN88: 2088
B89: =IF(AND(טבלה1[[#This Row],[תאריך]]="",טבלה1[[#This Row],[התחלה]]="",טבלה1[[#This Row],[שם העבודה]]=""),"",ROW()-10) ->  | C89: =IF(טבלה1[[#This Row],[תאריך]]="","",IF(TEXT(טבלה1[[#This Row],[תאריך]],"DDD")="שבת","מוצ""ש",TEXT(טבלה1[[#This Row],[תאריך]],"DDD"))) ->  | J89: =IF(IF(AND(טבלה1[[#This Row],[התחלה]]="",טבלה1[[#This Row],[סיום]]<>""),"",IF(AND(טבלה1[[#This Row],[התחלה]]<>"",טבלה1[[#This Row],[סיום]]=""), SUM(MOD(NOW(),1)-טבלה1[[#This Row],[התחלה]]+(MOD(NOW(),1)<טבלה1[[#This Row],[התחלה]]),TIME(,טבלה1[[#This Row],[הוספת דקות]],),-TIME(,טבלה1[[#This Row],[הפחתת דקות]],)), SUM(טבלה1[[#This Row],[סיום]]-טבלה1[[#This Row],[התחלה]]+(טבלה1[[#This Row],[סיום]]<טבלה1[[#This Row],[התחלה]]),TIME(,טבלה1[[#This Row],[הוספת דקות]],),-TIME(,טבלה1[[#This Row],[הפחתת דקות]],))))<=0,"", IF(AND(טבלה1[[#This Row],[התחלה]]="",טבלה1[[#This Row],[סיום]]<>""),"",IF(AND(טבלה1[[#This Row],[התחלה]]<>"",טבלה1[[#This Row],[סיום]]=""), SUM(MOD(NOW(),1)-טבלה1[[#This Row],[התחלה]]+(MOD(NOW(),1)<טבלה1[[#This Row],[התחלה]]),TIME(,טבלה1[[#This Row],[הוספת דקות]],),-TIME(,טבלה1[[#This Row],[הפחתת דקות]],)), SUM(טבלה1[[#This Row],[סיום]]-טבלה1[[#This Row],[התחלה]]+(טבלה1[[#This Row],[סיום]]<טבלה1[[#This Row],[התחלה]]),TIME(,טבלה1[[#This Row],[הוספת דקות]],),-TIME(,טבלה1[[#This Row],[הפחתת דקות]],))))) ->  | K89: =IF('טיימר עבודות'!$J89="","", IFERROR(IF(IF(VLOOKUP('טיימר עבודות'!$F89,טבלה2[],3,FALSE)="$", VLOOKUP(טבלה1[[#This Row],[שם העבודה]],טבלה2[#All],2,FALSE)*טבלה1[[#This Row],[שעות]]*24*שער, VLOOKUP(טבלה1[[#This Row],[שם העבודה]],טבלה2[#All],2,FALSE)*טבלה1[[#This Row],[שעות]]*24)=0,"", IF(VLOOKUP('טיימר עבודות'!$F89,טבלה2[],3,FALSE)="$", VLOOKUP(טבלה1[[#This Row],[שם העבודה]],טבלה2[#All],2,FALSE)*טבלה1[[#This Row],[שעות]]*24*שער, VLOOKUP(טבלה1[[#This Row],[שם העבודה]],טבלה2[#All],2,FALSE)*טבלה1[[#This Row],[שעות]]*24)),"")) ->  | L89: =IF(טבלה1[[#This Row],[תאריך]]="","",טבלה1[[#This Row],[תאריך]]+טבלה1[[#This Row],[התחלה]]) ->  | AM89: 19:30:00 | AN89: 2089
B90: =IF(AND(טבלה1[[#This Row],[תאריך]]="",טבלה1[[#This Row],[התחלה]]="",טבלה1[[#This Row],[שם העבודה]]=""),"",ROW()-10) ->  | C90: =IF(טבלה1[[#This Row],[תאריך]]="","",IF(TEXT(טבלה1[[#This Row],[תאריך]],"DDD")="שבת","מוצ""ש",TEXT(טבלה1[[#This Row],[תאריך]],"DDD"))) ->  | J90: =IF(IF(AND(טבלה1[[#This Row],[התחלה]]="",טבלה1[[#This Row],[סיום]]<>""),"",IF(AND(טבלה1[[#This Row],[התחלה]]<>"",טבלה1[[#This Row],[סיום]]=""), SUM(MOD(NOW(),1)-טבלה1[[#This Row],[התחלה]]+(MOD(NOW(),1)<טבלה1[[#This Row],[התחלה]]),TIME(,טבלה1[[#This Row],[הוספת דקות]],),-TIME(,טבלה1[[#This Row],[הפחתת דקות]],)), SUM(טבלה1[[#This Row],[סיום]]-טבלה1[[#This Row],[התחלה]]+(טבלה1[[#This Row],[סיום]]<טבלה1[[#This Row],[התחלה]]),TIME(,טבלה1[[#This Row],[הוספת דקות]],),-TIME(,טבלה1[[#This Row],[הפחתת דקות]],))))<=0,"", IF(AND(טבלה1[[#This Row],[התחלה]]="",טבלה1[[#This Row],[סיום]]<>""),"",IF(AND(טבלה1[[#This Row],[התחלה]]<>"",טבלה1[[#This Row],[סיום]]=""), SUM(MOD(NOW(),1)-טבלה1[[#This Row],[התחלה]]+(MOD(NOW(),1)<טבלה1[[#This Row],[התחלה]]),TIME(,טבלה1[[#This Row],[הוספת דקות]],),-TIME(,טבלה1[[#This Row],[הפחתת דקות]],)), SUM(טבלה1[[#This Row],[סיום]]-טבלה1[[#This Row],[התחלה]]+(טבלה1[[#This Row],[סיום]]<טבלה1[[#This Row],[התחלה]]),TIME(,טבלה1[[#This Row],[הוספת דקות]],),-TIME(,טבלה1[[#This Row],[הפחתת דקות]],))))) ->  | K90: =IF('טיימר עבודות'!$J90="","", IFERROR(IF(IF(VLOOKUP('טיימר עבודות'!$F90,טבלה2[],3,FALSE)="$", VLOOKUP(טבלה1[[#This Row],[שם העבודה]],טבלה2[#All],2,FALSE)*טבלה1[[#This Row],[שעות]]*24*שער, VLOOKUP(טבלה1[[#This Row],[שם העבודה]],טבלה2[#All],2,FALSE)*טבלה1[[#This Row],[שעות]]*24)=0,"", IF(VLOOKUP('טיימר עבודות'!$F90,טבלה2[],3,FALSE)="$", VLOOKUP(טבלה1[[#This Row],[שם העבודה]],טבלה2[#All],2,FALSE)*טבלה1[[#This Row],[שעות]]*24*שער, VLOOKUP(טבלה1[[#This Row],[שם העבודה]],טבלה2[#All],2,FALSE)*טבלה1[[#This Row],[שעות]]*24)),"")) ->  | L90: =IF(טבלה1[[#This Row],[תאריך]]="","",טבלה1[[#This Row],[תאריך]]+טבלה1[[#This Row],[התחלה]]) ->  | AM90: 20:00:00 | AN90: 2090
B91: =IF(AND(טבלה1[[#This Row],[תאריך]]="",טבלה1[[#This Row],[התחלה]]="",טבלה1[[#This Row],[שם העבודה]]=""),"",ROW()-10) ->  | C91: =IF(טבלה1[[#This Row],[תאריך]]="","",IF(TEXT(טבלה1[[#This Row],[תאריך]],"DDD")="שבת","מוצ""ש",TEXT(טבלה1[[#This Row],[תאריך]],"DDD"))) ->  | J91: =IF(IF(AND(טבלה1[[#This Row],[התחלה]]="",טבלה1[[#This Row],[סיום]]<>""),"",IF(AND(טבלה1[[#This Row],[התחלה]]<>"",טבלה1[[#This Row],[סיום]]=""), SUM(MOD(NOW(),1)-טבלה1[[#This Row],[התחלה]]+(MOD(NOW(),1)<טבלה1[[#This Row],[התחלה]]),TIME(,טבלה1[[#This Row],[הוספת דקות]],),-TIME(,טבלה1[[#This Row],[הפחתת דקות]],)), SUM(טבלה1[[#This Row],[סיום]]-טבלה1[[#This Row],[התחלה]]+(טבלה1[[#This Row],[סיום]]<טבלה1[[#This Row],[התחלה]]),TIME(,טבלה1[[#This Row],[הוספת דקות]],),-TIME(,טבלה1[[#This Row],[הפחתת דקות]],))))<=0,"", IF(AND(טבלה1[[#This Row],[התחלה]]="",טבלה1[[#This Row],[סיום]]<>""),"",IF(AND(טבלה1[[#This Row],[התחלה]]<>"",טבלה1[[#This Row],[סיום]]=""), SUM(MOD(NOW(),1)-טבלה1[[#This Row],[התחלה]]+(MOD(NOW(),1)<טבלה1[[#This Row],[התחלה]]),TIME(,טבלה1[[#This Row],[הוספת דקות]],),-TIME(,טבלה1[[#This Row],[הפחתת דקות]],)), SUM(טבלה1[[#This Row],[סיום]]-טבלה1[[#This Row],[התחלה]]+(טבלה1[[#This Row],[סיום]]<טבלה1[[#This Row],[התחלה]]),TIME(,טבלה1[[#This Row],[הוספת דקות]],),-TIME(,טבלה1[[#This Row],[הפחתת דקות]],))))) ->  | K91: =IF('טיימר עבודות'!$J91="","", IFERROR(IF(IF(VLOOKUP('טיימר עבודות'!$F91,טבלה2[],3,FALSE)="$", VLOOKUP(טבלה1[[#This Row],[שם העבודה]],טבלה2[#All],2,FALSE)*טבלה1[[#This Row],[שעות]]*24*שער, VLOOKUP(טבלה1[[#This Row],[שם העבודה]],טבלה2[#All],2,FALSE)*טבלה1[[#This Row],[שעות]]*24)=0,"", IF(VLOOKUP('טיימר עבודות'!$F91,טבלה2[],3,FALSE)="$", VLOOKUP(טבלה1[[#This Row],[שם העבודה]],טבלה2[#All],2,FALSE)*טבלה1[[#This Row],[שעות]]*24*שער, VLOOKUP(טבלה1[[#This Row],[שם העבודה]],טבלה2[#All],2,FALSE)*טבלה1[[#This Row],[שעות]]*24)),"")) ->  | L91: =IF(טבלה1[[#This Row],[תאריך]]="","",טבלה1[[#This Row],[תאריך]]+טבלה1[[#This Row],[התחלה]]) ->  | AM91: 20:30:00 | AN91: 2091
B92: =IF(AND(טבלה1[[#This Row],[תאריך]]="",טבלה1[[#This Row],[התחלה]]="",טבלה1[[#This Row],[שם העבודה]]=""),"",ROW()-10) ->  | C92: =IF(טבלה1[[#This Row],[תאריך]]="","",IF(TEXT(טבלה1[[#This Row],[תאריך]],"DDD")="שבת","מוצ""ש",TEXT(טבלה1[[#This Row],[תאריך]],"DDD"))) ->  | J92: =IF(IF(AND(טבלה1[[#This Row],[התחלה]]="",טבלה1[[#This Row],[סיום]]<>""),"",IF(AND(טבלה1[[#This Row],[התחלה]]<>"",טבלה1[[#This Row],[סיום]]=""), SUM(MOD(NOW(),1)-טבלה1[[#This Row],[התחלה]]+(MOD(NOW(),1)<טבלה1[[#This Row],[התחלה]]),TIME(,טבלה1[[#This Row],[הוספת דקות]],),-TIME(,טבלה1[[#This Row],[הפחתת דקות]],)), SUM(טבלה1[[#This Row],[סיום]]-טבלה1[[#This Row],[התחלה]]+(טבלה1[[#This Row],[סיום]]<טבלה1[[#This Row],[התחלה]]),TIME(,טבלה1[[#This Row],[הוספת דקות]],),-TIME(,טבלה1[[#This Row],[הפחתת דקות]],))))<=0,"", IF(AND(טבלה1[[#This Row],[התחלה]]="",טבלה1[[#This Row],[סיום]]<>""),"",IF(AND(טבלה1[[#This Row],[התחלה]]<>"",טבלה1[[#This Row],[סיום]]=""), SUM(MOD(NOW(),1)-טבלה1[[#This Row],[התחלה]]+(MOD(NOW(),1)<טבלה1[[#This Row],[התחלה]]),TIME(,טבלה1[[#This Row],[הוספת דקות]],),-TIME(,טבלה1[[#This Row],[הפחתת דקות]],)), SUM(טבלה1[[#This Row],[סיום]]-טבלה1[[#This Row],[התחלה]]+(טבלה1[[#This Row],[סיום]]<טבלה1[[#This Row],[התחלה]]),TIME(,טבלה1[[#This Row],[הוספת דקות]],),-TIME(,טבלה1[[#This Row],[הפחתת דקות]],))))) ->  | K92: =IF('טיימר עבודות'!$J92="","", IFERROR(IF(IF(VLOOKUP('טיימר עבודות'!$F92,טבלה2[],3,FALSE)="$", VLOOKUP(טבלה1[[#This Row],[שם העבודה]],טבלה2[#All],2,FALSE)*טבלה1[[#This Row],[שעות]]*24*שער, VLOOKUP(טבלה1[[#This Row],[שם העבודה]],טבלה2[#All],2,FALSE)*טבלה1[[#This Row],[שעות]]*24)=0,"", IF(VLOOKUP('טיימר עבודות'!$F92,טבלה2[],3,FALSE)="$", VLOOKUP(טבלה1[[#This Row],[שם העבודה]],טבלה2[#All],2,FALSE)*טבלה1[[#This Row],[שעות]]*24*שער, VLOOKUP(טבלה1[[#This Row],[שם העבודה]],טבלה2[#All],2,FALSE)*טבלה1[[#This Row],[שעות]]*24)),"")) ->  | L92: =IF(טבלה1[[#This Row],[תאריך]]="","",טבלה1[[#This Row],[תאריך]]+טבלה1[[#This Row],[התחלה]]) ->  | AM92: 21:00:00 | AN92: 2092
B93: =IF(AND(טבלה1[[#This Row],[תאריך]]="",טבלה1[[#This Row],[התחלה]]="",טבלה1[[#This Row],[שם העבודה]]=""),"",ROW()-10) ->  | C93: =IF(טבלה1[[#This Row],[תאריך]]="","",IF(TEXT(טבלה1[[#This Row],[תאריך]],"DDD")="שבת","מוצ""ש",TEXT(טבלה1[[#This Row],[תאריך]],"DDD"))) ->  | J93: =IF(IF(AND(טבלה1[[#This Row],[התחלה]]="",טבלה1[[#This Row],[סיום]]<>""),"",IF(AND(טבלה1[[#This Row],[התחלה]]<>"",טבלה1[[#This Row],[סיום]]=""), SUM(MOD(NOW(),1)-טבלה1[[#This Row],[התחלה]]+(MOD(NOW(),1)<טבלה1[[#This Row],[התחלה]]),TIME(,טבלה1[[#This Row],[הוספת דקות]],),-TIME(,טבלה1[[#This Row],[הפחתת דקות]],)), SUM(טבלה1[[#This Row],[סיום]]-טבלה1[[#This Row],[התחלה]]+(טבלה1[[#This Row],[סיום]]<טבלה1[[#This Row],[התחלה]]),TIME(,טבלה1[[#This Row],[הוספת דקות]],),-TIME(,טבלה1[[#This Row],[הפחתת דקות]],))))<=0,"", IF(AND(טבלה1[[#This Row],[התחלה]]="",טבלה1[[#This Row],[סיום]]<>""),"",IF(AND(טבלה1[[#This Row],[התחלה]]<>"",טבלה1[[#This Row],[סיום]]=""), SUM(MOD(NOW(),1)-טבלה1[[#This Row],[התחלה]]+(MOD(NOW(),1)<טבלה1[[#This Row],[התחלה]]),TIME(,טבלה1[[#This Row],[הוספת דקות]],),-TIME(,טבלה1[[#This Row],[הפחתת דקות]],)), SUM(טבלה1[[#This Row],[סיום]]-טבלה1[[#This Row],[התחלה]]+(טבלה1[[#This Row],[סיום]]<טבלה1[[#This Row],[התחלה]]),TIME(,טבלה1[[#This Row],[הוספת דקות]],),-TIME(,טבלה1[[#This Row],[הפחתת דקות]],))))) ->  | K93: =IF('טיימר עבודות'!$J93="","", IFERROR(IF(IF(VLOOKUP('טיימר עבודות'!$F93,טבלה2[],3,FALSE)="$", VLOOKUP(טבלה1[[#This Row],[שם העבודה]],טבלה2[#All],2,FALSE)*טבלה1[[#This Row],[שעות]]*24*שער, VLOOKUP(טבלה1[[#This Row],[שם העבודה]],טבלה2[#All],2,FALSE)*טבלה1[[#This Row],[שעות]]*24)=0,"", IF(VLOOKUP('טיימר עבודות'!$F93,טבלה2[],3,FALSE)="$", VLOOKUP(טבלה1[[#This Row],[שם העבודה]],טבלה2[#All],2,FALSE)*טבלה1[[#This Row],[שעות]]*24*שער, VLOOKUP(טבלה1[[#This Row],[שם העבודה]],טבלה2[#All],2,FALSE)*טבלה1[[#This Row],[שעות]]*24)),"")) ->  | L93: =IF(טבלה1[[#This Row],[תאריך]]="","",טבלה1[[#This Row],[תאריך]]+טבלה1[[#This Row],[התחלה]]) ->  | AM93: 21:30:00 | AN93: 2093
B94: =IF(AND(טבלה1[[#This Row],[תאריך]]="",טבלה1[[#This Row],[התחלה]]="",טבלה1[[#This Row],[שם העבודה]]=""),"",ROW()-10) ->  | C94: =IF(טבלה1[[#This Row],[תאריך]]="","",IF(TEXT(טבלה1[[#This Row],[תאריך]],"DDD")="שבת","מוצ""ש",TEXT(טבלה1[[#This Row],[תאריך]],"DDD"))) ->  | J94: =IF(IF(AND(טבלה1[[#This Row],[התחלה]]="",טבלה1[[#This Row],[סיום]]<>""),"",IF(AND(טבלה1[[#This Row],[התחלה]]<>"",טבלה1[[#This Row],[סיום]]=""), SUM(MOD(NOW(),1)-טבלה1[[#This Row],[התחלה]]+(MOD(NOW(),1)<טבלה1[[#This Row],[התחלה]]),TIME(,טבלה1[[#This Row],[הוספת דקות]],),-TIME(,טבלה1[[#This Row],[הפחתת דקות]],)), SUM(טבלה1[[#This Row],[סיום]]-טבלה1[[#This Row],[התחלה]]+(טבלה1[[#This Row],[סיום]]<טבלה1[[#This Row],[התחלה]]),TIME(,טבלה1[[#This Row],[הוספת דקות]],),-TIME(,טבלה1[[#This Row],[הפחתת דקות]],))))<=0,"", IF(AND(טבלה1[[#This Row],[התחלה]]="",טבלה1[[#This Row],[סיום]]<>""),"",IF(AND(טבלה1[[#This Row],[התחלה]]<>"",טבלה1[[#This Row],[סיום]]=""), SUM(MOD(NOW(),1)-טבלה1[[#This Row],[התחלה]]+(MOD(NOW(),1)<טבלה1[[#This Row],[התחלה]]),TIME(,טבלה1[[#This Row],[הוספת דקות]],),-TIME(,טבלה1[[#This Row],[הפחתת דקות]],)), SUM(טבלה1[[#This Row],[סיום]]-טבלה1[[#This Row],[התחלה]]+(טבלה1[[#This Row],[סיום]]<טבלה1[[#This Row],[התחלה]]),TIME(,טבלה1[[#This Row],[הוספת דקות]],),-TIME(,טבלה1[[#This Row],[הפחתת דקות]],))))) ->  | K94: =IF('טיימר עבודות'!$J94="","", IFERROR(IF(IF(VLOOKUP('טיימר עבודות'!$F94,טבלה2[],3,FALSE)="$", VLOOKUP(טבלה1[[#This Row],[שם העבודה]],טבלה2[#All],2,FALSE)*טבלה1[[#This Row],[שעות]]*24*שער, VLOOKUP(טבלה1[[#This Row],[שם העבודה]],טבלה2[#All],2,FALSE)*טבלה1[[#This Row],[שעות]]*24)=0,"", IF(VLOOKUP('טיימר עבודות'!$F94,טבלה2[],3,FALSE)="$", VLOOKUP(טבלה1[[#This Row],[שם העבודה]],טבלה2[#All],2,FALSE)*טבלה1[[#This Row],[שעות]]*24*שער, VLOOKUP(טבלה1[[#This Row],[שם העבודה]],טבלה2[#All],2,FALSE)*טבלה1[[#This Row],[שעות]]*24)),"")) ->  | L94: =IF(טבלה1[[#This Row],[תאריך]]="","",טבלה1[[#This Row],[תאריך]]+טבלה1[[#This Row],[התחלה]]) ->  | AM94: 22:00:00 | AN94: 2094
B95: =IF(AND(טבלה1[[#This Row],[תאריך]]="",טבלה1[[#This Row],[התחלה]]="",טבלה1[[#This Row],[שם העבודה]]=""),"",ROW()-10) ->  | C95: =IF(טבלה1[[#This Row],[תאריך]]="","",IF(TEXT(טבלה1[[#This Row],[תאריך]],"DDD")="שבת","מוצ""ש",TEXT(טבלה1[[#This Row],[תאריך]],"DDD"))) ->  | J95: =IF(IF(AND(טבלה1[[#This Row],[התחלה]]="",טבלה1[[#This Row],[סיום]]<>""),"",IF(AND(טבלה1[[#This Row],[התחלה]]<>"",טבלה1[[#This Row],[סיום]]=""), SUM(MOD(NOW(),1)-טבלה1[[#This Row],[התחלה]]+(MOD(NOW(),1)<טבלה1[[#This Row],[התחלה]]),TIME(,טבלה1[[#This Row],[הוספת דקות]],),-TIME(,טבלה1[[#This Row],[הפחתת דקות]],)), SUM(טבלה1[[#This Row],[סיום]]-טבלה1[[#This Row],[התחלה]]+(טבלה1[[#This Row],[סיום]]<טבלה1[[#This Row],[התחלה]]),TIME(,טבלה1[[#This Row],[הוספת דקות]],),-TIME(,טבלה1[[#This Row],[הפחתת דקות]],))))<=0,"", IF(AND(טבלה1[[#This Row],[התחלה]]="",טבלה1[[#This Row],[סיום]]<>""),"",IF(AND(טבלה1[[#This Row],[התחלה]]<>"",טבלה1[[#This Row],[סיום]]=""), SUM(MOD(NOW(),1)-טבלה1[[#This Row],[התחלה]]+(MOD(NOW(),1)<טבלה1[[#This Row],[התחלה]]),TIME(,טבלה1[[#This Row],[הוספת דקות]],),-TIME(,טבלה1[[#This Row],[הפחתת דקות]],)), SUM(טבלה1[[#This Row],[סיום]]-טבלה1[[#This Row],[התחלה]]+(טבלה1[[#This Row],[סיום]]<טבלה1[[#This Row],[התחלה]]),TIME(,טבלה1[[#This Row],[הוספת דקות]],),-TIME(,טבלה1[[#This Row],[הפחתת דקות]],))))) ->  | K95: =IF('טיימר עבודות'!$J95="","", IFERROR(IF(IF(VLOOKUP('טיימר עבודות'!$F95,טבלה2[],3,FALSE)="$", VLOOKUP(טבלה1[[#This Row],[שם העבודה]],טבלה2[#All],2,FALSE)*טבלה1[[#This Row],[שעות]]*24*שער, VLOOKUP(טבלה1[[#This Row],[שם העבודה]],טבלה2[#All],2,FALSE)*טבלה1[[#This Row],[שעות]]*24)=0,"", IF(VLOOKUP('טיימר עבודות'!$F95,טבלה2[],3,FALSE)="$", VLOOKUP(טבלה1[[#This Row],[שם העבודה]],טבלה2[#All],2,FALSE)*טבלה1[[#This Row],[שעות]]*24*שער, VLOOKUP(טבלה1[[#This Row],[שם העבודה]],טבלה2[#All],2,FALSE)*טבלה1[[#This Row],[שעות]]*24)),"")) ->  | L95: =IF(טבלה1[[#This Row],[תאריך]]="","",טבלה1[[#This Row],[תאריך]]+טבלה1[[#This Row],[התחלה]]) ->  | AM95: 22:30:00 | AN95: 2095
B96: =IF(AND(טבלה1[[#This Row],[תאריך]]="",טבלה1[[#This Row],[התחלה]]="",טבלה1[[#This Row],[שם העבודה]]=""),"",ROW()-10) ->  | C96: =IF(טבלה1[[#This Row],[תאריך]]="","",IF(TEXT(טבלה1[[#This Row],[תאריך]],"DDD")="שבת","מוצ""ש",TEXT(טבלה1[[#This Row],[תאריך]],"DDD"))) ->  | J96: =IF(IF(AND(טבלה1[[#This Row],[התחלה]]="",טבלה1[[#This Row],[סיום]]<>""),"",IF(AND(טבלה1[[#This Row],[התחלה]]<>"",טבלה1[[#This Row],[סיום]]=""), SUM(MOD(NOW(),1)-טבלה1[[#This Row],[התחלה]]+(MOD(NOW(),1)<טבלה1[[#This Row],[התחלה]]),TIME(,טבלה1[[#This Row],[הוספת דקות]],),-TIME(,טבלה1[[#This Row],[הפחתת דקות]],)), SUM(טבלה1[[#This Row],[סיום]]-טבלה1[[#This Row],[התחלה]]+(טבלה1[[#This Row],[סיום]]<טבלה1[[#This Row],[התחלה]]),TIME(,טבלה1[[#This Row],[הוספת דקות]],),-TIME(,טבלה1[[#This Row],[הפחתת דקות]],))))<=0,"", IF(AND(טבלה1[[#This Row],[התחלה]]="",טבלה1[[#This Row],[סיום]]<>""),"",IF(AND(טבלה1[[#This Row],[התחלה]]<>"",טבלה1[[#This Row],[סיום]]=""), SUM(MOD(NOW(),1)-טבלה1[[#This Row],[התחלה]]+(MOD(NOW(),1)<טבלה1[[#This Row],[התחלה]]),TIME(,טבלה1[[#This Row],[הוספת דקות]],),-TIME(,טבלה1[[#This Row],[הפחתת דקות]],)), SUM(טבלה1[[#This Row],[סיום]]-טבלה1[[#This Row],[התחלה]]+(טבלה1[[#This Row],[סיום]]<טבלה1[[#This Row],[התחלה]]),TIME(,טבלה1[[#This Row],[הוספת דקות]],),-TIME(,טבלה1[[#This Row],[הפחתת דקות]],))))) ->  | K96: =IF('טיימר עבודות'!$J96="","", IFERROR(IF(IF(VLOOKUP('טיימר עבודות'!$F96,טבלה2[],3,FALSE)="$", VLOOKUP(טבלה1[[#This Row],[שם העבודה]],טבלה2[#All],2,FALSE)*טבלה1[[#This Row],[שעות]]*24*שער, VLOOKUP(טבלה1[[#This Row],[שם העבודה]],טבלה2[#All],2,FALSE)*טבלה1[[#This Row],[שעות]]*24)=0,"", IF(VLOOKUP('טיימר עבודות'!$F96,טבלה2[],3,FALSE)="$", VLOOKUP(טבלה1[[#This Row],[שם העבודה]],טבלה2[#All],2,FALSE)*טבלה1[[#This Row],[שעות]]*24*שער, VLOOKUP(טבלה1[[#This Row],[שם העבודה]],טבלה2[#All],2,FALSE)*טבלה1[[#This Row],[שעות]]*24)),"")) ->  | L96: =IF(טבלה1[[#This Row],[תאריך]]="","",טבלה1[[#This Row],[תאריך]]+טבלה1[[#This Row],[התחלה]]) ->  | AM96: 23:00:00 | AN96: 2096
B97: =IF(AND(טבלה1[[#This Row],[תאריך]]="",טבלה1[[#This Row],[התחלה]]="",טבלה1[[#This Row],[שם העבודה]]=""),"",ROW()-10) ->  | C97: =IF(טבלה1[[#This Row],[תאריך]]="","",IF(TEXT(טבלה1[[#This Row],[תאריך]],"DDD")="שבת","מוצ""ש",TEXT(טבלה1[[#This Row],[תאריך]],"DDD"))) ->  | J97: =IF(IF(AND(טבלה1[[#This Row],[התחלה]]="",טבלה1[[#This Row],[סיום]]<>""),"",IF(AND(טבלה1[[#This Row],[התחלה]]<>"",טבלה1[[#This Row],[סיום]]=""), SUM(MOD(NOW(),1)-טבלה1[[#This Row],[התחלה]]+(MOD(NOW(),1)<טבלה1[[#This Row],[התחלה]]),TIME(,טבלה1[[#This Row],[הוספת דקות]],),-TIME(,טבלה1[[#This Row],[הפחתת דקות]],)), SUM(טבלה1[[#This Row],[סיום]]-טבלה1[[#This Row],[התחלה]]+(טבלה1[[#This Row],[סיום]]<טבלה1[[#This Row],[התחלה]]),TIME(,טבלה1[[#This Row],[הוספת דקות]],),-TIME(,טבלה1[[#This Row],[הפחתת דקות]],))))<=0,"", IF(AND(טבלה1[[#This Row],[התחלה]]="",טבלה1[[#This Row],[סיום]]<>""),"",IF(AND(טבלה1[[#This Row],[התחלה]]<>"",טבלה1[[#This Row],[סיום]]=""), SUM(MOD(NOW(),1)-טבלה1[[#This Row],[התחלה]]+(MOD(NOW(),1)<טבלה1[[#This Row],[התחלה]]),TIME(,טבלה1[[#This Row],[הוספת דקות]],),-TIME(,טבלה1[[#This Row],[הפחתת דקות]],)), SUM(טבלה1[[#This Row],[סיום]]-טבלה1[[#This Row],[התחלה]]+(טבלה1[[#This Row],[סיום]]<טבלה1[[#This Row],[התחלה]]),TIME(,טבלה1[[#This Row],[הוספת דקות]],),-TIME(,טבלה1[[#This Row],[הפחתת דקות]],))))) ->  | K97: =IF('טיימר עבודות'!$J97="","", IFERROR(IF(IF(VLOOKUP('טיימר עבודות'!$F97,טבלה2[],3,FALSE)="$", VLOOKUP(טבלה1[[#This Row],[שם העבודה]],טבלה2[#All],2,FALSE)*טבלה1[[#This Row],[שעות]]*24*שער, VLOOKUP(טבלה1[[#This Row],[שם העבודה]],טבלה2[#All],2,FALSE)*טבלה1[[#This Row],[שעות]]*24)=0,"", IF(VLOOKUP('טיימר עבודות'!$F97,טבלה2[],3,FALSE)="$", VLOOKUP(טבלה1[[#This Row],[שם העבודה]],טבלה2[#All],2,FALSE)*טבלה1[[#This Row],[שעות]]*24*שער, VLOOKUP(טבלה1[[#This Row],[שם העבודה]],טבלה2[#All],2,FALSE)*טבלה1[[#This Row],[שעות]]*24)),"")) ->  | L97: =IF(טבלה1[[#This Row],[תאריך]]="","",טבלה1[[#This Row],[תאריך]]+טבלה1[[#This Row],[התחלה]]) ->  | AM97: 23:30:00 | AN97: 2097
B98: =IF(AND(טבלה1[[#This Row],[תאריך]]="",טבלה1[[#This Row],[התחלה]]="",טבלה1[[#This Row],[שם העבודה]]=""),"",ROW()-10) ->  | C98: =IF(טבלה1[[#This Row],[תאריך]]="","",IF(TEXT(טבלה1[[#This Row],[תאריך]],"DDD")="שבת","מוצ""ש",TEXT(טבלה1[[#This Row],[תאריך]],"DDD"))) ->  | J98: =IF(IF(AND(טבלה1[[#This Row],[התחלה]]="",טבלה1[[#This Row],[סיום]]<>""),"",IF(AND(טבלה1[[#This Row],[התחלה]]<>"",טבלה1[[#This Row],[סיום]]=""), SUM(MOD(NOW(),1)-טבלה1[[#This Row],[התחלה]]+(MOD(NOW(),1)<טבלה1[[#This Row],[התחלה]]),TIME(,טבלה1[[#This Row],[הוספת דקות]],),-TIME(,טבלה1[[#This Row],[הפחתת דקות]],)), SUM(טבלה1[[#This Row],[סיום]]-טבלה1[[#This Row],[התחלה]]+(טבלה1[[#This Row],[סיום]]<טבלה1[[#This Row],[התחלה]]),TIME(,טבלה1[[#This Row],[הוספת דקות]],),-TIME(,טבלה1[[#This Row],[הפחתת דקות]],))))<=0,"", IF(AND(טבלה1[[#This Row],[התחלה]]="",טבלה1[[#This Row],[סיום]]<>""),"",IF(AND(טבלה1[[#This Row],[התחלה]]<>"",טבלה1[[#This Row],[סיום]]=""), SUM(MOD(NOW(),1)-טבלה1[[#This Row],[התחלה]]+(MOD(NOW(),1)<טבלה1[[#This Row],[התחלה]]),TIME(,טבלה1[[#This Row],[הוספת דקות]],),-TIME(,טבלה1[[#This Row],[הפחתת דקות]],)), SUM(טבלה1[[#This Row],[סיום]]-טבלה1[[#This Row],[התחלה]]+(טבלה1[[#This Row],[סיום]]<טבלה1[[#This Row],[התחלה]]),TIME(,טבלה1[[#This Row],[הוספת דקות]],),-TIME(,טבלה1[[#This Row],[הפחתת דקות]],))))) ->  | K98: =IF('טיימר עבודות'!$J98="","", IFERROR(IF(IF(VLOOKUP('טיימר עבודות'!$F98,טבלה2[],3,FALSE)="$", VLOOKUP(טבלה1[[#This Row],[שם העבודה]],טבלה2[#All],2,FALSE)*טבלה1[[#This Row],[שעות]]*24*שער, VLOOKUP(טבלה1[[#This Row],[שם העבודה]],טבלה2[#All],2,FALSE)*טבלה1[[#This Row],[שעות]]*24)=0,"", IF(VLOOKUP('טיימר עבודות'!$F98,טבלה2[],3,FALSE)="$", VLOOKUP(טבלה1[[#This Row],[שם העבודה]],טבלה2[#All],2,FALSE)*טבלה1[[#This Row],[שעות]]*24*שער, VLOOKUP(טבלה1[[#This Row],[שם העבודה]],טבלה2[#All],2,FALSE)*טבלה1[[#This Row],[שעות]]*24)),"")) ->  | L98: =IF(טבלה1[[#This Row],[תאריך]]="","",טבלה1[[#This Row],[תאריך]]+טבלה1[[#This Row],[התחלה]]) ->  | AN98: 2098
B99: =IF(AND(טבלה1[[#This Row],[תאריך]]="",טבלה1[[#This Row],[התחלה]]="",טבלה1[[#This Row],[שם העבודה]]=""),"",ROW()-10) ->  | C99: =IF(טבלה1[[#This Row],[תאריך]]="","",IF(TEXT(טבלה1[[#This Row],[תאריך]],"DDD")="שבת","מוצ""ש",TEXT(טבלה1[[#This Row],[תאריך]],"DDD"))) ->  | J99: =IF(IF(AND(טבלה1[[#This Row],[התחלה]]="",טבלה1[[#This Row],[סיום]]<>""),"",IF(AND(טבלה1[[#This Row],[התחלה]]<>"",טבלה1[[#This Row],[סיום]]=""), SUM(MOD(NOW(),1)-טבלה1[[#This Row],[התחלה]]+(MOD(NOW(),1)<טבלה1[[#This Row],[התחלה]]),TIME(,טבלה1[[#This Row],[הוספת דקות]],),-TIME(,טבלה1[[#This Row],[הפחתת דקות]],)), SUM(טבלה1[[#This Row],[סיום]]-טבלה1[[#This Row],[התחלה]]+(טבלה1[[#This Row],[סיום]]<טבלה1[[#This Row],[התחלה]]),TIME(,טבלה1[[#This Row],[הוספת דקות]],),-TIME(,טבלה1[[#This Row],[הפחתת דקות]],))))<=0,"", IF(AND(טבלה1[[#This Row],[התחלה]]="",טבלה1[[#This Row],[סיום]]<>""),"",IF(AND(טבלה1[[#This Row],[התחלה]]<>"",טבלה1[[#This Row],[סיום]]=""), SUM(MOD(NOW(),1)-טבלה1[[#This Row],[התחלה]]+(MOD(NOW(),1)<טבלה1[[#This Row],[התחלה]]),TIME(,טבלה1[[#This Row],[הוספת דקות]],),-TIME(,טבלה1[[#This Row],[הפחתת דקות]],)), SUM(טבלה1[[#This Row],[סיום]]-טבלה1[[#This Row],[התחלה]]+(טבלה1[[#This Row],[סיום]]<טבלה1[[#This Row],[התחלה]]),TIME(,טבלה1[[#This Row],[הוספת דקות]],),-TIME(,טבלה1[[#This Row],[הפחתת דקות]],))))) ->  | K99: =IF('טיימר עבודות'!$J99="","", IFERROR(IF(IF(VLOOKUP('טיימר עבודות'!$F99,טבלה2[],3,FALSE)="$", VLOOKUP(טבלה1[[#This Row],[שם העבודה]],טבלה2[#All],2,FALSE)*טבלה1[[#This Row],[שעות]]*24*שער, VLOOKUP(טבלה1[[#This Row],[שם העבודה]],טבלה2[#All],2,FALSE)*טבלה1[[#This Row],[שעות]]*24)=0,"", IF(VLOOKUP('טיימר עבודות'!$F99,טבלה2[],3,FALSE)="$", VLOOKUP(טבלה1[[#This Row],[שם העבודה]],טבלה2[#All],2,FALSE)*טבלה1[[#This Row],[שעות]]*24*שער, VLOOKUP(טבלה1[[#This Row],[שם העבודה]],טבלה2[#All],2,FALSE)*טבלה1[[#This Row],[שעות]]*24)),"")) ->  | L99: =IF(טבלה1[[#This Row],[תאריך]]="","",טבלה1[[#This Row],[תאריך]]+טבלה1[[#This Row],[התחלה]]) ->  | AN99: 2099
B100: =IF(AND(טבלה1[[#This Row],[תאריך]]="",טבלה1[[#This Row],[התחלה]]="",טבלה1[[#This Row],[שם העבודה]]=""),"",ROW()-10) ->  | C100: =IF(טבלה1[[#This Row],[תאריך]]="","",IF(TEXT(טבלה1[[#This Row],[תאריך]],"DDD")="שבת","מוצ""ש",TEXT(טבלה1[[#This Row],[תאריך]],"DDD"))) ->  | J100: =IF(IF(AND(טבלה1[[#This Row],[התחלה]]="",טבלה1[[#This Row],[סיום]]<>""),"",IF(AND(טבלה1[[#This Row],[התחלה]]<>"",טבלה1[[#This Row],[סיום]]=""), SUM(MOD(NOW(),1)-טבלה1[[#This Row],[התחלה]]+(MOD(NOW(),1)<טבלה1[[#This Row],[התחלה]]),TIME(,טבלה1[[#This Row],[הוספת דקות]],),-TIME(,טבלה1[[#This Row],[הפחתת דקות]],)), SUM(טבלה1[[#This Row],[סיום]]-טבלה1[[#This Row],[התחלה]]+(טבלה1[[#This Row],[סיום]]<טבלה1[[#This Row],[התחלה]]),TIME(,טבלה1[[#This Row],[הוספת דקות]],),-TIME(,טבלה1[[#This Row],[הפחתת דקות]],))))<=0,"", IF(AND(טבלה1[[#This Row],[התחלה]]="",טבלה1[[#This Row],[סיום]]<>""),"",IF(AND(טבלה1[[#This Row],[התחלה]]<>"",טבלה1[[#This Row],[סיום]]=""), SUM(MOD(NOW(),1)-טבלה1[[#This Row],[התחלה]]+(MOD(NOW(),1)<טבלה1[[#This Row],[התחלה]]),TIME(,טבלה1[[#This Row],[הוספת דקות]],),-TIME(,טבלה1[[#This Row],[הפחתת דקות]],)), SUM(טבלה1[[#This Row],[סיום]]-טבלה1[[#This Row],[התחלה]]+(טבלה1[[#This Row],[סיום]]<טבלה1[[#This Row],[התחלה]]),TIME(,טבלה1[[#This Row],[הוספת דקות]],),-TIME(,טבלה1[[#This Row],[הפחתת דקות]],))))) ->  | K100: =IF('טיימר עבודות'!$J100="","", IFERROR(IF(IF(VLOOKUP('טיימר עבודות'!$F100,טבלה2[],3,FALSE)="$", VLOOKUP(טבלה1[[#This Row],[שם העבודה]],טבלה2[#All],2,FALSE)*טבלה1[[#This Row],[שעות]]*24*שער, VLOOKUP(טבלה1[[#This Row],[שם העבודה]],טבלה2[#All],2,FALSE)*טבלה1[[#This Row],[שעות]]*24)=0,"", IF(VLOOKUP('טיימר עבודות'!$F100,טבלה2[],3,FALSE)="$", VLOOKUP(טבלה1[[#This Row],[שם העבודה]],טבלה2[#All],2,FALSE)*טבלה1[[#This Row],[שעות]]*24*שער, VLOOKUP(טבלה1[[#This Row],[שם העבודה]],טבלה2[#All],2,FALSE)*טבלה1[[#This Row],[שעות]]*24)),"")) ->  | L100: =IF(טבלה1[[#This Row],[תאריך]]="","",טבלה1[[#This Row],[תאריך]]+טבלה1[[#This Row],[התחלה]]) ->  | AN100: 2100
B101: =IF(AND(טבלה1[[#This Row],[תאריך]]="",טבלה1[[#This Row],[התחלה]]="",טבלה1[[#This Row],[שם העבודה]]=""),"",ROW()-10) ->  | C101: =IF(טבלה1[[#This Row],[תאריך]]="","",IF(TEXT(טבלה1[[#This Row],[תאריך]],"DDD")="שבת","מוצ""ש",TEXT(טבלה1[[#This Row],[תאריך]],"DDD"))) ->  | J101: =IF(IF(AND(טבלה1[[#This Row],[התחלה]]="",טבלה1[[#This Row],[סיום]]<>""),"",IF(AND(טבלה1[[#This Row],[התחלה]]<>"",טבלה1[[#This Row],[סיום]]=""), SUM(MOD(NOW(),1)-טבלה1[[#This Row],[התחלה]]+(MOD(NOW(),1)<טבלה1[[#This Row],[התחלה]]),TIME(,טבלה1[[#This Row],[הוספת דקות]],),-TIME(,טבלה1[[#This Row],[הפחתת דקות]],)), SUM(טבלה1[[#This Row],[סיום]]-טבלה1[[#This Row],[התחלה]]+(טבלה1[[#This Row],[סיום]]<טבלה1[[#This Row],[התחלה]]),TIME(,טבלה1[[#This Row],[הוספת דקות]],),-TIME(,טבלה1[[#This Row],[הפחתת דקות]],))))<=0,"", IF(AND(טבלה1[[#This Row],[התחלה]]="",טבלה1[[#This Row],[סיום]]<>""),"",IF(AND(טבלה1[[#This Row],[התחלה]]<>"",טבלה1[[#This Row],[סיום]]=""), SUM(MOD(NOW(),1)-טבלה1[[#This Row],[התחלה]]+(MOD(NOW(),1)<טבלה1[[#This Row],[התחלה]]),TIME(,טבלה1[[#This Row],[הוספת דקות]],),-TIME(,טבלה1[[#This Row],[הפחתת דקות]],)), SUM(טבלה1[[#This Row],[סיום]]-טבלה1[[#This Row],[התחלה]]+(טבלה1[[#This Row],[סיום]]<טבלה1[[#This Row],[התחלה]]),TIME(,טבלה1[[#This Row],[הוספת דקות]],),-TIME(,טבלה1[[#This Row],[הפחתת דקות]],))))) ->  | K101: =IF('טיימר עבודות'!$J101="","", IFERROR(IF(IF(VLOOKUP('טיימר עבודות'!$F101,טבלה2[],3,FALSE)="$", VLOOKUP(טבלה1[[#This Row],[שם העבודה]],טבלה2[#All],2,FALSE)*טבלה1[[#This Row],[שעות]]*24*שער, VLOOKUP(טבלה1[[#This Row],[שם העבודה]],טבלה2[#All],2,FALSE)*טבלה1[[#This Row],[שעות]]*24)=0,"", IF(VLOOKUP('טיימר עבודות'!$F101,טבלה2[],3,FALSE)="$", VLOOKUP(טבלה1[[#This Row],[שם העבודה]],טבלה2[#All],2,FALSE)*טבלה1[[#This Row],[שעות]]*24*שער, VLOOKUP(טבלה1[[#This Row],[שם העבודה]],טבלה2[#All],2,FALSE)*טבלה1[[#This Row],[שעות]]*24)),"")) ->  | L101: =IF(טבלה1[[#This Row],[תאריך]]="","",טבלה1[[#This Row],[תאריך]]+טבלה1[[#This Row],[התחלה]]) -> 
B102: =IF(AND(טבלה1[[#This Row],[תאריך]]="",טבלה1[[#This Row],[התחלה]]="",טבלה1[[#This Row],[שם העבודה]]=""),"",ROW()-10) ->  | C102: =IF(טבלה1[[#This Row],[תאריך]]="","",IF(TEXT(טבלה1[[#This Row],[תאריך]],"DDD")="שבת","מוצ""ש",TEXT(טבלה1[[#This Row],[תאריך]],"DDD"))) ->  | J102: =IF(IF(AND(טבלה1[[#This Row],[התחלה]]="",טבלה1[[#This Row],[סיום]]<>""),"",IF(AND(טבלה1[[#This Row],[התחלה]]<>"",טבלה1[[#This Row],[סיום]]=""), SUM(MOD(NOW(),1)-טבלה1[[#This Row],[התחלה]]+(MOD(NOW(),1)<טבלה1[[#This Row],[התחלה]]),TIME(,טבלה1[[#This Row],[הוספת דקות]],),-TIME(,טבלה1[[#This Row],[הפחתת דקות]],)), SUM(טבלה1[[#This Row],[סיום]]-טבלה1[[#This Row],[התחלה]]+(טבלה1[[#This Row],[סיום]]<טבלה1[[#This Row],[התחלה]]),TIME(,טבלה1[[#This Row],[הוספת דקות]],),-TIME(,טבלה1[[#This Row],[הפחתת דקות]],))))<=0,"", IF(AND(טבלה1[[#This Row],[התחלה]]="",טבלה1[[#This Row],[סיום]]<>""),"",IF(AND(טבלה1[[#This Row],[התחלה]]<>"",טבלה1[[#This Row],[סיום]]=""), SUM(MOD(NOW(),1)-טבלה1[[#This Row],[התחלה]]+(MOD(NOW(),1)<טבלה1[[#This Row],[התחלה]]),TIME(,טבלה1[[#This Row],[הוספת דקות]],),-TIME(,טבלה1[[#This Row],[הפחתת דקות]],)), SUM(טבלה1[[#This Row],[סיום]]-טבלה1[[#This Row],[התחלה]]+(טבלה1[[#This Row],[סיום]]<טבלה1[[#This Row],[התחלה]]),TIME(,טבלה1[[#This Row],[הוספת דקות]],),-TIME(,טבלה1[[#This Row],[הפחתת דקות]],))))) ->  | K102: =IF('טיימר עבודות'!$J102="","", IFERROR(IF(IF(VLOOKUP('טיימר עבודות'!$F102,טבלה2[],3,FALSE)="$", VLOOKUP(טבלה1[[#This Row],[שם העבודה]],טבלה2[#All],2,FALSE)*טבלה1[[#This Row],[שעות]]*24*שער, VLOOKUP(טבלה1[[#This Row],[שם העבודה]],טבלה2[#All],2,FALSE)*טבלה1[[#This Row],[שעות]]*24)=0,"", IF(VLOOKUP('טיימר עבודות'!$F102,טבלה2[],3,FALSE)="$", VLOOKUP(טבלה1[[#This Row],[שם העבודה]],טבלה2[#All],2,FALSE)*טבלה1[[#This Row],[שעות]]*24*שער, VLOOKUP(טבלה1[[#This Row],[שם העבודה]],טבלה2[#All],2,FALSE)*טבלה1[[#This Row],[שעות]]*24)),"")) ->  | L102: =IF(טבלה1[[#This Row],[תאריך]]="","",טבלה1[[#This Row],[תאריך]]+טבלה1[[#This Row],[התחלה]]) -> 
B103: =IF(AND(טבלה1[[#This Row],[תאריך]]="",טבלה1[[#This Row],[התחלה]]="",טבלה1[[#This Row],[שם העבודה]]=""),"",ROW()-10) ->  | C103: =IF(טבלה1[[#This Row],[תאריך]]="","",IF(TEXT(טבלה1[[#This Row],[תאריך]],"DDD")="שבת","מוצ""ש",TEXT(טבלה1[[#This Row],[תאריך]],"DDD"))) ->  | J103: =IF(IF(AND(טבלה1[[#This Row],[התחלה]]="",טבלה1[[#This Row],[סיום]]<>""),"",IF(AND(טבלה1[[#This Row],[התחלה]]<>"",טבלה1[[#This Row],[סיום]]=""), SUM(MOD(NOW(),1)-טבלה1[[#This Row],[התחלה]]+(MOD(NOW(),1)<טבלה1[[#This Row],[התחלה]]),TIME(,טבלה1[[#This Row],[הוספת דקות]],),-TIME(,טבלה1[[#This Row],[הפחתת דקות]],)), SUM(טבלה1[[#This Row],[סיום]]-טבלה1[[#This Row],[התחלה]]+(טבלה1[[#This Row],[סיום]]<טבלה1[[#This Row],[התחלה]]),TIME(,טבלה1[[#This Row],[הוספת דקות]],),-TIME(,טבלה1[[#This Row],[הפחתת דקות]],))))<=0,"", IF(AND(טבלה1[[#This Row],[התחלה]]="",טבלה1[[#This Row],[סיום]]<>""),"",IF(AND(טבלה1[[#This Row],[התחלה]]<>"",טבלה1[[#This Row],[סיום]]=""), SUM(MOD(NOW(),1)-טבלה1[[#This Row],[התחלה]]+(MOD(NOW(),1)<טבלה1[[#This Row],[התחלה]]),TIME(,טבלה1[[#This Row],[הוספת דקות]],),-TIME(,טבלה1[[#This Row],[הפחתת דקות]],)), SUM(טבלה1[[#This Row],[סיום]]-טבלה1[[#This Row],[התחלה]]+(טבלה1[[#This Row],[סיום]]<טבלה1[[#This Row],[התחלה]]),TIME(,טבלה1[[#This Row],[הוספת דקות]],),-TIME(,טבלה1[[#This Row],[הפחתת דקות]],))))) ->  | K103: =IF('טיימר עבודות'!$J103="","", IFERROR(IF(IF(VLOOKUP('טיימר עבודות'!$F103,טבלה2[],3,FALSE)="$", VLOOKUP(טבלה1[[#This Row],[שם העבודה]],טבלה2[#All],2,FALSE)*טבלה1[[#This Row],[שעות]]*24*שער, VLOOKUP(טבלה1[[#This Row],[שם העבודה]],טבלה2[#All],2,FALSE)*טבלה1[[#This Row],[שעות]]*24)=0,"", IF(VLOOKUP('טיימר עבודות'!$F103,טבלה2[],3,FALSE)="$", VLOOKUP(טבלה1[[#This Row],[שם העבודה]],טבלה2[#All],2,FALSE)*טבלה1[[#This Row],[שעות]]*24*שער, VLOOKUP(טבלה1[[#This Row],[שם העבודה]],טבלה2[#All],2,FALSE)*טבלה1[[#This Row],[שעות]]*24)),"")) ->  | L103: =IF(טבלה1[[#This Row],[תאריך]]="","",טבלה1[[#This Row],[תאריך]]+טבלה1[[#This Row],[התחלה]]) -> 
B104: =IF(AND(טבלה1[[#This Row],[תאריך]]="",טבלה1[[#This Row],[התחלה]]="",טבלה1[[#This Row],[שם העבודה]]=""),"",ROW()-10) ->  | C104: =IF(טבלה1[[#This Row],[תאריך]]="","",IF(TEXT(טבלה1[[#This Row],[תאריך]],"DDD")="שבת","מוצ""ש",TEXT(טבלה1[[#This Row],[תאריך]],"DDD"))) ->  | J104: =IF(IF(AND(טבלה1[[#This Row],[התחלה]]="",טבלה1[[#This Row],[סיום]]<>""),"",IF(AND(טבלה1[[#This Row],[התחלה]]<>"",טבלה1[[#This Row],[סיום]]=""), SUM(MOD(NOW(),1)-טבלה1[[#This Row],[התחלה]]+(MOD(NOW(),1)<טבלה1[[#This Row],[התחלה]]),TIME(,טבלה1[[#This Row],[הוספת דקות]],),-TIME(,טבלה1[[#This Row],[הפחתת דקות]],)), SUM(טבלה1[[#This Row],[סיום]]-טבלה1[[#This Row],[התחלה]]+(טבלה1[[#This Row],[סיום]]<טבלה1[[#This Row],[התחלה]]),TIME(,טבלה1[[#This Row],[הוספת דקות]],),-TIME(,טבלה1[[#This Row],[הפחתת דקות]],))))<=0,"", IF(AND(טבלה1[[#This Row],[התחלה]]="",טבלה1[[#This Row],[סיום]]<>""),"",IF(AND(טבלה1[[#This Row],[התחלה]]<>"",טבלה1[[#This Row],[סיום]]=""), SUM(MOD(NOW(),1)-טבלה1[[#This Row],[התחלה]]+(MOD(NOW(),1)<טבלה1[[#This Row],[התחלה]]),TIME(,טבלה1[[#This Row],[הוספת דקות]],),-TIME(,טבלה1[[#This Row],[הפחתת דקות]],)), SUM(טבלה1[[#This Row],[סיום]]-טבלה1[[#This Row],[התחלה]]+(טבלה1[[#This Row],[סיום]]<טבלה1[[#This Row],[התחלה]]),TIME(,טבלה1[[#This Row],[הוספת דקות]],),-TIME(,טבלה1[[#This Row],[הפחתת דקות]],))))) ->  | K104: =IF('טיימר עבודות'!$J104="","", IFERROR(IF(IF(VLOOKUP('טיימר עבודות'!$F104,טבלה2[],3,FALSE)="$", VLOOKUP(טבלה1[[#This Row],[שם העבודה]],טבלה2[#All],2,FALSE)*טבלה1[[#This Row],[שעות]]*24*שער, VLOOKUP(טבלה1[[#This Row],[שם העבודה]],טבלה2[#All],2,FALSE)*טבלה1[[#This Row],[שעות]]*24)=0,"", IF(VLOOKUP('טיימר עבודות'!$F104,טבלה2[],3,FALSE)="$", VLOOKUP(טבלה1[[#This Row],[שם העבודה]],טבלה2[#All],2,FALSE)*טבלה1[[#This Row],[שעות]]*24*שער, VLOOKUP(טבלה1[[#This Row],[שם העבודה]],טבלה2[#All],2,FALSE)*טבלה1[[#This Row],[שעות]]*24)),"")) ->  | L104: =IF(טבלה1[[#This Row],[תאריך]]="","",טבלה1[[#This Row],[תאריך]]+טבלה1[[#This Row],[התחלה]]) -> 
B105: =IF(AND(טבלה1[[#This Row],[תאריך]]="",טבלה1[[#This Row],[התחלה]]="",טבלה1[[#This Row],[שם העבודה]]=""),"",ROW()-10) ->  | C105: =IF(טבלה1[[#This Row],[תאריך]]="","",IF(TEXT(טבלה1[[#This Row],[תאריך]],"DDD")="שבת","מוצ""ש",TEXT(טבלה1[[#This Row],[תאריך]],"DDD"))) ->  | J105: =IF(IF(AND(טבלה1[[#This Row],[התחלה]]="",טבלה1[[#This Row],[סיום]]<>""),"",IF(AND(טבלה1[[#This Row],[התחלה]]<>"",טבלה1[[#This Row],[סיום]]=""), SUM(MOD(NOW(),1)-טבלה1[[#This Row],[התחלה]]+(MOD(NOW(),1)<טבלה1[[#This Row],[התחלה]]),TIME(,טבלה1[[#This Row],[הוספת דקות]],),-TIME(,טבלה1[[#This Row],[הפחתת דקות]],)), SUM(טבלה1[[#This Row],[סיום]]-טבלה1[[#This Row],[התחלה]]+(טבלה1[[#This Row],[סיום]]<טבלה1[[#This Row],[התחלה]]),TIME(,טבלה1[[#This Row],[הוספת דקות]],),-TIME(,טבלה1[[#This Row],[הפחתת דקות]],))))<=0,"", IF(AND(טבלה1[[#This Row],[התחלה]]="",טבלה1[[#This Row],[סיום]]<>""),"",IF(AND(טבלה1[[#This Row],[התחלה]]<>"",טבלה1[[#This Row],[סיום]]=""), SUM(MOD(NOW(),1)-טבלה1[[#This Row],[התחלה]]+(MOD(NOW(),1)<טבלה1[[#This Row],[התחלה]]),TIME(,טבלה1[[#This Row],[הוספת דקות]],),-TIME(,טבלה1[[#This Row],[הפחתת דקות]],)), SUM(טבלה1[[#This Row],[סיום]]-טבלה1[[#This Row],[התחלה]]+(טבלה1[[#This Row],[סיום]]<טבלה1[[#This Row],[התחלה]]),TIME(,טבלה1[[#This Row],[הוספת דקות]],),-TIME(,טבלה1[[#This Row],[הפחתת דקות]],))))) ->  | K105: =IF('טיימר עבודות'!$J105="","", IFERROR(IF(IF(VLOOKUP('טיימר עבודות'!$F105,טבלה2[],3,FALSE)="$", VLOOKUP(טבלה1[[#This Row],[שם העבודה]],טבלה2[#All],2,FALSE)*טבלה1[[#This Row],[שעות]]*24*שער, VLOOKUP(טבלה1[[#This Row],[שם העבודה]],טבלה2[#All],2,FALSE)*טבלה1[[#This Row],[שעות]]*24)=0,"", IF(VLOOKUP('טיימר עבודות'!$F105,טבלה2[],3,FALSE)="$", VLOOKUP(טבלה1[[#This Row],[שם העבודה]],טבלה2[#All],2,FALSE)*טבלה1[[#This Row],[שעות]]*24*שער, VLOOKUP(טבלה1[[#This Row],[שם העבודה]],טבלה2[#All],2,FALSE)*טבלה1[[#This Row],[שעות]]*24)),"")) ->  | L105: =IF(טבלה1[[#This Row],[תאריך]]="","",טבלה1[[#This Row],[תאריך]]+טבלה1[[#This Row],[התחלה]]) -> 
B106: =IF(AND(טבלה1[[#This Row],[תאריך]]="",טבלה1[[#This Row],[התחלה]]="",טבלה1[[#This Row],[שם העבודה]]=""),"",ROW()-10) ->  | C106: =IF(טבלה1[[#This Row],[תאריך]]="","",IF(TEXT(טבלה1[[#This Row],[תאריך]],"DDD")="שבת","מוצ""ש",TEXT(טבלה1[[#This Row],[תאריך]],"DDD"))) ->  | J106: =IF(IF(AND(טבלה1[[#This Row],[התחלה]]="",טבלה1[[#This Row],[סיום]]<>""),"",IF(AND(טבלה1[[#This Row],[התחלה]]<>"",טבלה1[[#This Row],[סיום]]=""), SUM(MOD(NOW(),1)-טבלה1[[#This Row],[התחלה]]+(MOD(NOW(),1)<טבלה1[[#This Row],[התחלה]]),TIME(,טבלה1[[#This Row],[הוספת דקות]],),-TIME(,טבלה1[[#This Row],[הפחתת דקות]],)), SUM(טבלה1[[#This Row],[סיום]]-טבלה1[[#This Row],[התחלה]]+(טבלה1[[#This Row],[סיום]]<טבלה1[[#This Row],[התחלה]]),TIME(,טבלה1[[#This Row],[הוספת דקות]],),-TIME(,טבלה1[[#This Row],[הפחתת דקות]],))))<=0,"", IF(AND(טבלה1[[#This Row],[התחלה]]="",טבלה1[[#This Row],[סיום]]<>""),"",IF(AND(טבלה1[[#This Row],[התחלה]]<>"",טבלה1[[#This Row],[סיום]]=""), SUM(MOD(NOW(),1)-טבלה1[[#This Row],[התחלה]]+(MOD(NOW(),1)<טבלה1[[#This Row],[התחלה]]),TIME(,טבלה1[[#This Row],[הוספת דקות]],),-TIME(,טבלה1[[#This Row],[הפחתת דקות]],)), SUM(טבלה1[[#This Row],[סיום]]-טבלה1[[#This Row],[התחלה]]+(טבלה1[[#This Row],[סיום]]<טבלה1[[#This Row],[התחלה]]),TIME(,טבלה1[[#This Row],[הוספת דקות]],),-TIME(,טבלה1[[#This Row],[הפחתת דקות]],))))) ->  | K106: =IF('טיימר עבודות'!$J106="","", IFERROR(IF(IF(VLOOKUP('טיימר עבודות'!$F106,טבלה2[],3,FALSE)="$", VLOOKUP(טבלה1[[#This Row],[שם העבודה]],טבלה2[#All],2,FALSE)*טבלה1[[#This Row],[שעות]]*24*שער, VLOOKUP(טבלה1[[#This Row],[שם העבודה]],טבלה2[#All],2,FALSE)*טבלה1[[#This Row],[שעות]]*24)=0,"", IF(VLOOKUP('טיימר עבודות'!$F106,טבלה2[],3,FALSE)="$", VLOOKUP(טבלה1[[#This Row],[שם העבודה]],טבלה2[#All],2,FALSE)*טבלה1[[#This Row],[שעות]]*24*שער, VLOOKUP(טבלה1[[#This Row],[שם העבודה]],טבלה2[#All],2,FALSE)*טבלה1[[#This Row],[שעות]]*24)),"")) ->  | L106: =IF(טבלה1[[#This Row],[תאריך]]="","",טבלה1[[#This Row],[תאריך]]+טבלה1[[#This Row],[התחלה]]) -> 
B107: =IF(AND(טבלה1[[#This Row],[תאריך]]="",טבלה1[[#This Row],[התחלה]]="",טבלה1[[#This Row],[שם העבודה]]=""),"",ROW()-10) ->  | C107: =IF(טבלה1[[#This Row],[תאריך]]="","",IF(TEXT(טבלה1[[#This Row],[תאריך]],"DDD")="שבת","מוצ""ש",TEXT(טבלה1[[#This Row],[תאריך]],"DDD"))) ->  | J107: =IF(IF(AND(טבלה1[[#This Row],[התחלה]]="",טבלה1[[#This Row],[סיום]]<>""),"",IF(AND(טבלה1[[#This Row],[התחלה]]<>"",טבלה1[[#This Row],[סיום]]=""), SUM(MOD(NOW(),1)-טבלה1[[#This Row],[התחלה]]+(MOD(NOW(),1)<טבלה1[[#This Row],[התחלה]]),TIME(,טבלה1[[#This Row],[הוספת דקות]],),-TIME(,טבלה1[[#This Row],[הפחתת דקות]],)), SUM(טבלה1[[#This Row],[סיום]]-טבלה1[[#This Row],[התחלה]]+(טבלה1[[#This Row],[סיום]]<טבלה1[[#This Row],[התחלה]]),TIME(,טבלה1[[#This Row],[הוספת דקות]],),-TIME(,טבלה1[[#This Row],[הפחתת דקות]],))))<=0,"", IF(AND(טבלה1[[#This Row],[התחלה]]="",טבלה1[[#This Row],[סיום]]<>""),"",IF(AND(טבלה1[[#This Row],[התחלה]]<>"",טבלה1[[#This Row],[סיום]]=""), SUM(MOD(NOW(),1)-טבלה1[[#This Row],[התחלה]]+(MOD(NOW(),1)<טבלה1[[#This Row],[התחלה]]),TIME(,טבלה1[[#This Row],[הוספת דקות]],),-TIME(,טבלה1[[#This Row],[הפחתת דקות]],)), SUM(טבלה1[[#This Row],[סיום]]-טבלה1[[#This Row],[התחלה]]+(טבלה1[[#This Row],[סיום]]<טבלה1[[#This Row],[התחלה]]),TIME(,טבלה1[[#This Row],[הוספת דקות]],),-TIME(,טבלה1[[#This Row],[הפחתת דקות]],))))) ->  | K107: =IF('טיימר עבודות'!$J107="","", IFERROR(IF(IF(VLOOKUP('טיימר עבודות'!$F107,טבלה2[],3,FALSE)="$", VLOOKUP(טבלה1[[#This Row],[שם העבודה]],טבלה2[#All],2,FALSE)*טבלה1[[#This Row],[שעות]]*24*שער, VLOOKUP(טבלה1[[#This Row],[שם העבודה]],טבלה2[#All],2,FALSE)*טבלה1[[#This Row],[שעות]]*24)=0,"", IF(VLOOKUP('טיימר עבודות'!$F107,טבלה2[],3,FALSE)="$", VLOOKUP(טבלה1[[#This Row],[שם העבודה]],טבלה2[#All],2,FALSE)*טבלה1[[#This Row],[שעות]]*24*שער, VLOOKUP(טבלה1[[#This Row],[שם העבודה]],טבלה2[#All],2,FALSE)*טבלה1[[#This Row],[שעות]]*24)),"")) ->  | L107: =IF(טבלה1[[#This Row],[תאריך]]="","",טבלה1[[#This Row],[תאריך]]+טבלה1[[#This Row],[התחלה]]) -> 
B108: =IF(AND(טבלה1[[#This Row],[תאריך]]="",טבלה1[[#This Row],[התחלה]]="",טבלה1[[#This Row],[שם העבודה]]=""),"",ROW()-10) ->  | C108: =IF(טבלה1[[#This Row],[תאריך]]="","",IF(TEXT(טבלה1[[#This Row],[תאריך]],"DDD")="שבת","מוצ""ש",TEXT(טבלה1[[#This Row],[תאריך]],"DDD"))) ->  | J108: =IF(IF(AND(טבלה1[[#This Row],[התחלה]]="",טבלה1[[#This Row],[סיום]]<>""),"",IF(AND(טבלה1[[#This Row],[התחלה]]<>"",טבלה1[[#This Row],[סיום]]=""), SUM(MOD(NOW(),1)-טבלה1[[#This Row],[התחלה]]+(MOD(NOW(),1)<טבלה1[[#This Row],[התחלה]]),TIME(,טבלה1[[#This Row],[הוספת דקות]],),-TIME(,טבלה1[[#This Row],[הפחתת דקות]],)), SUM(טבלה1[[#This Row],[סיום]]-טבלה1[[#This Row],[התחלה]]+(טבלה1[[#This Row],[סיום]]<טבלה1[[#This Row],[התחלה]]),TIME(,טבלה1[[#This Row],[הוספת דקות]],),-TIME(,טבלה1[[#This Row],[הפחתת דקות]],))))<=0,"", IF(AND(טבלה1[[#This Row],[התחלה]]="",טבלה1[[#This Row],[סיום]]<>""),"",IF(AND(טבלה1[[#This Row],[התחלה]]<>"",טבלה1[[#This Row],[סיום]]=""), SUM(MOD(NOW(),1)-טבלה1[[#This Row],[התחלה]]+(MOD(NOW(),1)<טבלה1[[#This Row],[התחלה]]),TIME(,טבלה1[[#This Row],[הוספת דקות]],),-TIME(,טבלה1[[#This Row],[הפחתת דקות]],)), SUM(טבלה1[[#This Row],[סיום]]-טבלה1[[#This Row],[התחלה]]+(טבלה1[[#This Row],[סיום]]<טבלה1[[#This Row],[התחלה]]),TIME(,טבלה1[[#This Row],[הוספת דקות]],),-TIME(,טבלה1[[#This Row],[הפחתת דקות]],))))) ->  | K108: =IF('טיימר עבודות'!$J108="","", IFERROR(IF(IF(VLOOKUP('טיימר עבודות'!$F108,טבלה2[],3,FALSE)="$", VLOOKUP(טבלה1[[#This Row],[שם העבודה]],טבלה2[#All],2,FALSE)*טבלה1[[#This Row],[שעות]]*24*שער, VLOOKUP(טבלה1[[#This Row],[שם העבודה]],טבלה2[#All],2,FALSE)*טבלה1[[#This Row],[שעות]]*24)=0,"", IF(VLOOKUP('טיימר עבודות'!$F108,טבלה2[],3,FALSE)="$", VLOOKUP(טבלה1[[#This Row],[שם העבודה]],טבלה2[#All],2,FALSE)*טבלה1[[#This Row],[שעות]]*24*שער, VLOOKUP(טבלה1[[#This Row],[שם העבודה]],טבלה2[#All],2,FALSE)*טבלה1[[#This Row],[שעות]]*24)),"")) ->  | L108: =IF(טבלה1[[#This Row],[תאריך]]="","",טבלה1[[#This Row],[תאריך]]+טבלה1[[#This Row],[התחלה]]) -> 
B109: =IF(AND(טבלה1[[#This Row],[תאריך]]="",טבלה1[[#This Row],[התחלה]]="",טבלה1[[#This Row],[שם העבודה]]=""),"",ROW()-10) ->  | C109: =IF(טבלה1[[#This Row],[תאריך]]="","",IF(TEXT(טבלה1[[#This Row],[תאריך]],"DDD")="שבת","מוצ""ש",TEXT(טבלה1[[#This Row],[תאריך]],"DDD"))) ->  | J109: =IF(IF(AND(טבלה1[[#This Row],[התחלה]]="",טבלה1[[#This Row],[סיום]]<>""),"",IF(AND(טבלה1[[#This Row],[התחלה]]<>"",טבלה1[[#This Row],[סיום]]=""), SUM(MOD(NOW(),1)-טבלה1[[#This Row],[התחלה]]+(MOD(NOW(),1)<טבלה1[[#This Row],[התחלה]]),TIME(,טבלה1[[#This Row],[הוספת דקות]],),-TIME(,טבלה1[[#This Row],[הפחתת דקות]],)), SUM(טבלה1[[#This Row],[סיום]]-טבלה1[[#This Row],[התחלה]]+(טבלה1[[#This Row],[סיום]]<טבלה1[[#This Row],[התחלה]]),TIME(,טבלה1[[#This Row],[הוספת דקות]],),-TIME(,טבלה1[[#This Row],[הפחתת דקות]],))))<=0,"", IF(AND(טבלה1[[#This Row],[התחלה]]="",טבלה1[[#This Row],[סיום]]<>""),"",IF(AND(טבלה1[[#This Row],[התחלה]]<>"",טבלה1[[#This Row],[סיום]]=""), SUM(MOD(NOW(),1)-טבלה1[[#This Row],[התחלה]]+(MOD(NOW(),1)<טבלה1[[#This Row],[התחלה]]),TIME(,טבלה1[[#This Row],[הוספת דקות]],),-TIME(,טבלה1[[#This Row],[הפחתת דקות]],)), SUM(טבלה1[[#This Row],[סיום]]-טבלה1[[#This Row],[התחלה]]+(טבלה1[[#This Row],[סיום]]<טבלה1[[#This Row],[התחלה]]),TIME(,טבלה1[[#This Row],[הוספת דקות]],),-TIME(,טבלה1[[#This Row],[הפחתת דקות]],))))) ->  | K109: =IF('טיימר עבודות'!$J109="","", IFERROR(IF(IF(VLOOKUP('טיימר עבודות'!$F109,טבלה2[],3,FALSE)="$", VLOOKUP(טבלה1[[#This Row],[שם העבודה]],טבלה2[#All],2,FALSE)*טבלה1[[#This Row],[שעות]]*24*שער, VLOOKUP(טבלה1[[#This Row],[שם העבודה]],טבלה2[#All],2,FALSE)*טבלה1[[#This Row],[שעות]]*24)=0,"", IF(VLOOKUP('טיימר עבודות'!$F109,טבלה2[],3,FALSE)="$", VLOOKUP(טבלה1[[#This Row],[שם העבודה]],טבלה2[#All],2,FALSE)*טבלה1[[#This Row],[שעות]]*24*שער, VLOOKUP(טבלה1[[#This Row],[שם העבודה]],טבלה2[#All],2,FALSE)*טבלה1[[#This Row],[שעות]]*24)),"")) ->  | L109: =IF(טבלה1[[#This Row],[תאריך]]="","",טבלה1[[#This Row],[תאריך]]+טבלה1[[#This Row],[התחלה]]) -> 
B110: =IF(AND(טבלה1[[#This Row],[תאריך]]="",טבלה1[[#This Row],[התחלה]]="",טבלה1[[#This Row],[שם העבודה]]=""),"",ROW()-10) ->  | C110: =IF(טבלה1[[#This Row],[תאריך]]="","",IF(TEXT(טבלה1[[#This Row],[תאריך]],"DDD")="שבת","מוצ""ש",TEXT(טבלה1[[#This Row],[תאריך]],"DDD"))) ->  | J110: =IF(IF(AND(טבלה1[[#This Row],[התחלה]]="",טבלה1[[#This Row],[סיום]]<>""),"",IF(AND(טבלה1[[#This Row],[התחלה]]<>"",טבלה1[[#This Row],[סיום]]=""), SUM(MOD(NOW(),1)-טבלה1[[#This Row],[התחלה]]+(MOD(NOW(),1)<טבלה1[[#This Row],[התחלה]]),TIME(,טבלה1[[#This Row],[הוספת דקות]],),-TIME(,טבלה1[[#This Row],[הפחתת דקות]],)), SUM(טבלה1[[#This Row],[סיום]]-טבלה1[[#This Row],[התחלה]]+(טבלה1[[#This Row],[סיום]]<טבלה1[[#This Row],[התחלה]]),TIME(,טבלה1[[#This Row],[הוספת דקות]],),-TIME(,טבלה1[[#This Row],[הפחתת דקות]],))))<=0,"", IF(AND(טבלה1[[#This Row],[התחלה]]="",טבלה1[[#This Row],[סיום]]<>""),"",IF(AND(טבלה1[[#This Row],[התחלה]]<>"",טבלה1[[#This Row],[סיום]]=""), SUM(MOD(NOW(),1)-טבלה1[[#This Row],[התחלה]]+(MOD(NOW(),1)<טבלה1[[#This Row],[התחלה]]),TIME(,טבלה1[[#This Row],[הוספת דקות]],),-TIME(,טבלה1[[#This Row],[הפחתת דקות]],)), SUM(טבלה1[[#This Row],[סיום]]-טבלה1[[#This Row],[התחלה]]+(טבלה1[[#This Row],[סיום]]<טבלה1[[#This Row],[התחלה]]),TIME(,טבלה1[[#This Row],[הוספת דקות]],),-TIME(,טבלה1[[#This Row],[הפחתת דקות]],))))) ->  | K110: =IF('טיימר עבודות'!$J110="","", IFERROR(IF(IF(VLOOKUP('טיימר עבודות'!$F110,טבלה2[],3,FALSE)="$", VLOOKUP(טבלה1[[#This Row],[שם העבודה]],טבלה2[#All],2,FALSE)*טבלה1[[#This Row],[שעות]]*24*שער, VLOOKUP(טבלה1[[#This Row],[שם העבודה]],טבלה2[#All],2,FALSE)*טבלה1[[#This Row],[שעות]]*24)=0,"", IF(VLOOKUP('טיימר עבודות'!$F110,טבלה2[],3,FALSE)="$", VLOOKUP(טבלה1[[#This Row],[שם העבודה]],טבלה2[#All],2,FALSE)*טבלה1[[#This Row],[שעות]]*24*שער, VLOOKUP(טבלה1[[#This Row],[שם העבודה]],טבלה2[#All],2,FALSE)*טבלה1[[#This Row],[שעות]]*24)),"")) ->  | L110: =IF(טבלה1[[#This Row],[תאריך]]="","",טבלה1[[#This Row],[תאריך]]+טבלה1[[#This Row],[התחלה]]) -> 
B111: =IF(AND(טבלה1[[#This Row],[תאריך]]="",טבלה1[[#This Row],[התחלה]]="",טבלה1[[#This Row],[שם העבודה]]=""),"",ROW()-10) ->  | C111: =IF(טבלה1[[#This Row],[תאריך]]="","",IF(TEXT(טבלה1[[#This Row],[תאריך]],"DDD")="שבת","מוצ""ש",TEXT(טבלה1[[#This Row],[תאריך]],"DDD"))) ->  | J111: =IF(IF(AND(טבלה1[[#This Row],[התחלה]]="",טבלה1[[#This Row],[סיום]]<>""),"",IF(AND(טבלה1[[#This Row],[התחלה]]<>"",טבלה1[[#This Row],[סיום]]=""), SUM(MOD(NOW(),1)-טבלה1[[#This Row],[התחלה]]+(MOD(NOW(),1)<טבלה1[[#This Row],[התחלה]]),TIME(,טבלה1[[#This Row],[הוספת דקות]],),-TIME(,טבלה1[[#This Row],[הפחתת דקות]],)), SUM(טבלה1[[#This Row],[סיום]]-טבלה1[[#This Row],[התחלה]]+(טבלה1[[#This Row],[סיום]]<טבלה1[[#This Row],[התחלה]]),TIME(,טבלה1[[#This Row],[הוספת דקות]],),-TIME(,טבלה1[[#This Row],[הפחתת דקות]],))))<=0,"", IF(AND(טבלה1[[#This Row],[התחלה]]="",טבלה1[[#This Row],[סיום]]<>""),"",IF(AND(טבלה1[[#This Row],[התחלה]]<>"",טבלה1[[#This Row],[סיום]]=""), SUM(MOD(NOW(),1)-טבלה1[[#This Row],[התחלה]]+(MOD(NOW(),1)<טבלה1[[#This Row],[התחלה]]),TIME(,טבלה1[[#This Row],[הוספת דקות]],),-TIME(,טבלה1[[#This Row],[הפחתת דקות]],)), SUM(טבלה1[[#This Row],[סיום]]-טבלה1[[#This Row],[התחלה]]+(טבלה1[[#This Row],[סיום]]<טבלה1[[#This Row],[התחלה]]),TIME(,טבלה1[[#This Row],[הוספת דקות]],),-TIME(,טבלה1[[#This Row],[הפחתת דקות]],))))) ->  | K111: =IF('טיימר עבודות'!$J111="","", IFERROR(IF(IF(VLOOKUP('טיימר עבודות'!$F111,טבלה2[],3,FALSE)="$", VLOOKUP(טבלה1[[#This Row],[שם העבודה]],טבלה2[#All],2,FALSE)*טבלה1[[#This Row],[שעות]]*24*שער, VLOOKUP(טבלה1[[#This Row],[שם העבודה]],טבלה2[#All],2,FALSE)*טבלה1[[#This Row],[שעות]]*24)=0,"", IF(VLOOKUP('טיימר עבודות'!$F111,טבלה2[],3,FALSE)="$", VLOOKUP(טבלה1[[#This Row],[שם העבודה]],טבלה2[#All],2,FALSE)*טבלה1[[#This Row],[שעות]]*24*שער, VLOOKUP(טבלה1[[#This Row],[שם העבודה]],טבלה2[#All],2,FALSE)*טבלה1[[#This Row],[שעות]]*24)),"")) ->  | L111: =IF(טבלה1[[#This Row],[תאריך]]="","",טבלה1[[#This Row],[תאריך]]+טבלה1[[#This Row],[התחלה]]) -> 
B112: =IF(AND(טבלה1[[#This Row],[תאריך]]="",טבלה1[[#This Row],[התחלה]]="",טבלה1[[#This Row],[שם העבודה]]=""),"",ROW()-10) ->  | C112: =IF(טבלה1[[#This Row],[תאריך]]="","",IF(TEXT(טבלה1[[#This Row],[תאריך]],"DDD")="שבת","מוצ""ש",TEXT(טבלה1[[#This Row],[תאריך]],"DDD"))) ->  | J112: =IF(IF(AND(טבלה1[[#This Row],[התחלה]]="",טבלה1[[#This Row],[סיום]]<>""),"",IF(AND(טבלה1[[#This Row],[התחלה]]<>"",טבלה1[[#This Row],[סיום]]=""), SUM(MOD(NOW(),1)-טבלה1[[#This Row],[התחלה]]+(MOD(NOW(),1)<טבלה1[[#This Row],[התחלה]]),TIME(,טבלה1[[#This Row],[הוספת דקות]],),-TIME(,טבלה1[[#This Row],[הפחתת דקות]],)), SUM(טבלה1[[#This Row],[סיום]]-טבלה1[[#This Row],[התחלה]]+(טבלה1[[#This Row],[סיום]]<טבלה1[[#This Row],[התחלה]]),TIME(,טבלה1[[#This Row],[הוספת דקות]],),-TIME(,טבלה1[[#This Row],[הפחתת דקות]],))))<=0,"", IF(AND(טבלה1[[#This Row],[התחלה]]="",טבלה1[[#This Row],[סיום]]<>""),"",IF(AND(טבלה1[[#This Row],[התחלה]]<>"",טבלה1[[#This Row],[סיום]]=""), SUM(MOD(NOW(),1)-טבלה1[[#This Row],[התחלה]]+(MOD(NOW(),1)<טבלה1[[#This Row],[התחלה]]),TIME(,טבלה1[[#This Row],[הוספת דקות]],),-TIME(,טבלה1[[#This Row],[הפחתת דקות]],)), SUM(טבלה1[[#This Row],[סיום]]-טבלה1[[#This Row],[התחלה]]+(טבלה1[[#This Row],[סיום]]<טבלה1[[#This Row],[התחלה]]),TIME(,טבלה1[[#This Row],[הוספת דקות]],),-TIME(,טבלה1[[#This Row],[הפחתת דקות]],))))) ->  | K112: =IF('טיימר עבודות'!$J112="","", IFERROR(IF(IF(VLOOKUP('טיימר עבודות'!$F112,טבלה2[],3,FALSE)="$", VLOOKUP(טבלה1[[#This Row],[שם העבודה]],טבלה2[#All],2,FALSE)*טבלה1[[#This Row],[שעות]]*24*שער, VLOOKUP(טבלה1[[#This Row],[שם העבודה]],טבלה2[#All],2,FALSE)*טבלה1[[#This Row],[שעות]]*24)=0,"", IF(VLOOKUP('טיימר עבודות'!$F112,טבלה2[],3,FALSE)="$", VLOOKUP(טבלה1[[#This Row],[שם העבודה]],טבלה2[#All],2,FALSE)*טבלה1[[#This Row],[שעות]]*24*שער, VLOOKUP(טבלה1[[#This Row],[שם העבודה]],טבלה2[#All],2,FALSE)*טבלה1[[#This Row],[שעות]]*24)),"")) ->  | L112: =IF(טבלה1[[#This Row],[תאריך]]="","",טבלה1[[#This Row],[תאריך]]+טבלה1[[#This Row],[התחלה]]) -> 
B113: =IF(AND(טבלה1[[#This Row],[תאריך]]="",טבלה1[[#This Row],[התחלה]]="",טבלה1[[#This Row],[שם העבודה]]=""),"",ROW()-10) ->  | C113: =IF(טבלה1[[#This Row],[תאריך]]="","",IF(TEXT(טבלה1[[#This Row],[תאריך]],"DDD")="שבת","מוצ""ש",TEXT(טבלה1[[#This Row],[תאריך]],"DDD"))) ->  | J113: =IF(IF(AND(טבלה1[[#This Row],[התחלה]]="",טבלה1[[#This Row],[סיום]]<>""),"",IF(AND(טבלה1[[#This Row],[התחלה]]<>"",טבלה1[[#This Row],[סיום]]=""), SUM(MOD(NOW(),1)-טבלה1[[#This Row],[התחלה]]+(MOD(NOW(),1)<טבלה1[[#This Row],[התחלה]]),TIME(,טבלה1[[#This Row],[הוספת דקות]],),-TIME(,טבלה1[[#This Row],[הפחתת דקות]],)), SUM(טבלה1[[#This Row],[סיום]]-טבלה1[[#This Row],[התחלה]]+(טבלה1[[#This Row],[סיום]]<טבלה1[[#This Row],[התחלה]]),TIME(,טבלה1[[#This Row],[הוספת דקות]],),-TIME(,טבלה1[[#This Row],[הפחתת דקות]],))))<=0,"", IF(AND(טבלה1[[#This Row],[התחלה]]="",טבלה1[[#This Row],[סיום]]<>""),"",IF(AND(טבלה1[[#This Row],[התחלה]]<>"",טבלה1[[#This Row],[סיום]]=""), SUM(MOD(NOW(),1)-טבלה1[[#This Row],[התחלה]]+(MOD(NOW(),1)<טבלה1[[#This Row],[התחלה]]),TIME(,טבלה1[[#This Row],[הוספת דקות]],),-TIME(,טבלה1[[#This Row],[הפחתת דקות]],)), SUM(טבלה1[[#This Row],[סיום]]-טבלה1[[#This Row],[התחלה]]+(טבלה1[[#This Row],[סיום]]<טבלה1[[#This Row],[התחלה]]),TIME(,טבלה1[[#This Row],[הוספת דקות]],),-TIME(,טבלה1[[#This Row],[הפחתת דקות]],))))) ->  | K113: =IF('טיימר עבודות'!$J113="","", IFERROR(IF(IF(VLOOKUP('טיימר עבודות'!$F113,טבלה2[],3,FALSE)="$", VLOOKUP(טבלה1[[#This Row],[שם העבודה]],טבלה2[#All],2,FALSE)*טבלה1[[#This Row],[שעות]]*24*שער, VLOOKUP(טבלה1[[#This Row],[שם העבודה]],טבלה2[#All],2,FALSE)*טבלה1[[#This Row],[שעות]]*24)=0,"", IF(VLOOKUP('טיימר עבודות'!$F113,טבלה2[],3,FALSE)="$", VLOOKUP(טבלה1[[#This Row],[שם העבודה]],טבלה2[#All],2,FALSE)*טבלה1[[#This Row],[שעות]]*24*שער, VLOOKUP(טבלה1[[#This Row],[שם העבודה]],טבלה2[#All],2,FALSE)*טבלה1[[#This Row],[שעות]]*24)),"")) ->  | L113: =IF(טבלה1[[#This Row],[תאריך]]="","",טבלה1[[#This Row],[תאריך]]+טבלה1[[#This Row],[התחלה]]) -> 
B114: =IF(AND(טבלה1[[#This Row],[תאריך]]="",טבלה1[[#This Row],[התחלה]]="",טבלה1[[#This Row],[שם העבודה]]=""),"",ROW()-10) ->  | C114: =IF(טבלה1[[#This Row],[תאריך]]="","",IF(TEXT(טבלה1[[#This Row],[תאריך]],"DDD")="שבת","מוצ""ש",TEXT(טבלה1[[#This Row],[תאריך]],"DDD"))) ->  | J114: =IF(IF(AND(טבלה1[[#This Row],[התחלה]]="",טבלה1[[#This Row],[סיום]]<>""),"",IF(AND(טבלה1[[#This Row],[התחלה]]<>"",טבלה1[[#This Row],[סיום]]=""), SUM(MOD(NOW(),1)-טבלה1[[#This Row],[התחלה]]+(MOD(NOW(),1)<טבלה1[[#This Row],[התחלה]]),TIME(,טבלה1[[#This Row],[הוספת דקות]],),-TIME(,טבלה1[[#This Row],[הפחתת דקות]],)), SUM(טבלה1[[#This Row],[סיום]]-טבלה1[[#This Row],[התחלה]]+(טבלה1[[#This Row],[סיום]]<טבלה1[[#This Row],[התחלה]]),TIME(,טבלה1[[#This Row],[הוספת דקות]],),-TIME(,טבלה1[[#This Row],[הפחתת דקות]],))))<=0,"", IF(AND(טבלה1[[#This Row],[התחלה]]="",טבלה1[[#This Row],[סיום]]<>""),"",IF(AND(טבלה1[[#This Row],[התחלה]]<>"",טבלה1[[#This Row],[סיום]]=""), SUM(MOD(NOW(),1)-טבלה1[[#This Row],[התחלה]]+(MOD(NOW(),1)<טבלה1[[#This Row],[התחלה]]),TIME(,טבלה1[[#This Row],[הוספת דקות]],),-TIME(,טבלה1[[#This Row],[הפחתת דקות]],)), SUM(טבלה1[[#This Row],[סיום]]-טבלה1[[#This Row],[התחלה]]+(טבלה1[[#This Row],[סיום]]<טבלה1[[#This Row],[התחלה]]),TIME(,טבלה1[[#This Row],[הוספת דקות]],),-TIME(,טבלה1[[#This Row],[הפחתת דקות]],))))) ->  | K114: =IF('טיימר עבודות'!$J114="","", IFERROR(IF(IF(VLOOKUP('טיימר עבודות'!$F114,טבלה2[],3,FALSE)="$", VLOOKUP(טבלה1[[#This Row],[שם העבודה]],טבלה2[#All],2,FALSE)*טבלה1[[#This Row],[שעות]]*24*שער, VLOOKUP(טבלה1[[#This Row],[שם העבודה]],טבלה2[#All],2,FALSE)*טבלה1[[#This Row],[שעות]]*24)=0,"", IF(VLOOKUP('טיימר עבודות'!$F114,טבלה2[],3,FALSE)="$", VLOOKUP(טבלה1[[#This Row],[שם העבודה]],טבלה2[#All],2,FALSE)*טבלה1[[#This Row],[שעות]]*24*שער, VLOOKUP(טבלה1[[#This Row],[שם העבודה]],טבלה2[#All],2,FALSE)*טבלה1[[#This Row],[שעות]]*24)),"")) ->  | L114: =IF(טבלה1[[#This Row],[תאריך]]="","",טבלה1[[#This Row],[תאריך]]+טבלה1[[#This Row],[התחלה]]) -> 
B115: =IF(AND(טבלה1[[#This Row],[תאריך]]="",טבלה1[[#This Row],[התחלה]]="",טבלה1[[#This Row],[שם העבודה]]=""),"",ROW()-10) ->  | C115: =IF(טבלה1[[#This Row],[תאריך]]="","",IF(TEXT(טבלה1[[#This Row],[תאריך]],"DDD")="שבת","מוצ""ש",TEXT(טבלה1[[#This Row],[תאריך]],"DDD"))) ->  | J115: =IF(IF(AND(טבלה1[[#This Row],[התחלה]]="",טבלה1[[#This Row],[סיום]]<>""),"",IF(AND(טבלה1[[#This Row],[התחלה]]<>"",טבלה1[[#This Row],[סיום]]=""), SUM(MOD(NOW(),1)-טבלה1[[#This Row],[התחלה]]+(MOD(NOW(),1)<טבלה1[[#This Row],[התחלה]]),TIME(,טבלה1[[#This Row],[הוספת דקות]],),-TIME(,טבלה1[[#This Row],[הפחתת דקות]],)), SUM(טבלה1[[#This Row],[סיום]]-טבלה1[[#This Row],[התחלה]]+(טבלה1[[#This Row],[סיום]]<טבלה1[[#This Row],[התחלה]]),TIME(,טבלה1[[#This Row],[הוספת דקות]],),-TIME(,טבלה1[[#This Row],[הפחתת דקות]],))))<=0,"", IF(AND(טבלה1[[#This Row],[התחלה]]="",טבלה1[[#This Row],[סיום]]<>""),"",IF(AND(טבלה1[[#This Row],[התחלה]]<>"",טבלה1[[#This Row],[סיום]]=""), SUM(MOD(NOW(),1)-טבלה1[[#This Row],[התחלה]]+(MOD(NOW(),1)<טבלה1[[#This Row],[התחלה]]),TIME(,טבלה1[[#This Row],[הוספת דקות]],),-TIME(,טבלה1[[#This Row],[הפחתת דקות]],)), SUM(טבלה1[[#This Row],[סיום]]-טבלה1[[#This Row],[התחלה]]+(טבלה1[[#This Row],[סיום]]<טבלה1[[#This Row],[התחלה]]),TIME(,טבלה1[[#This Row],[הוספת דקות]],),-TIME(,טבלה1[[#This Row],[הפחתת דקות]],))))) ->  | K115: =IF('טיימר עבודות'!$J115="","", IFERROR(IF(IF(VLOOKUP('טיימר עבודות'!$F115,טבלה2[],3,FALSE)="$", VLOOKUP(טבלה1[[#This Row],[שם העבודה]],טבלה2[#All],2,FALSE)*טבלה1[[#This Row],[שעות]]*24*שער, VLOOKUP(טבלה1[[#This Row],[שם העבודה]],טבלה2[#All],2,FALSE)*טבלה1[[#This Row],[שעות]]*24)=0,"", IF(VLOOKUP('טיימר עבודות'!$F115,טבלה2[],3,FALSE)="$", VLOOKUP(טבלה1[[#This Row],[שם העבודה]],טבלה2[#All],2,FALSE)*טבלה1[[#This Row],[שעות]]*24*שער, VLOOKUP(טבלה1[[#This Row],[שם העבודה]],טבלה2[#All],2,FALSE)*טבלה1[[#This Row],[שעות]]*24)),"")) ->  | L115: =IF(טבלה1[[#This Row],[תאריך]]="","",טבלה1[[#This Row],[תאריך]]+טבלה1[[#This Row],[התחלה]]) -> 
B116: =IF(AND(טבלה1[[#This Row],[תאריך]]="",טבלה1[[#This Row],[התחלה]]="",טבלה1[[#This Row],[שם העבודה]]=""),"",ROW()-10) ->  | C116: =IF(טבלה1[[#This Row],[תאריך]]="","",IF(TEXT(טבלה1[[#This Row],[תאריך]],"DDD")="שבת","מוצ""ש",TEXT(טבלה1[[#This Row],[תאריך]],"DDD"))) ->  | J116: =IF(IF(AND(טבלה1[[#This Row],[התחלה]]="",טבלה1[[#This Row],[סיום]]<>""),"",IF(AND(טבלה1[[#This Row],[התחלה]]<>"",טבלה1[[#This Row],[סיום]]=""), SUM(MOD(NOW(),1)-טבלה1[[#This Row],[התחלה]]+(MOD(NOW(),1)<טבלה1[[#This Row],[התחלה]]),TIME(,טבלה1[[#This Row],[הוספת דקות]],),-TIME(,טבלה1[[#This Row],[הפחתת דקות]],)), SUM(טבלה1[[#This Row],[סיום]]-טבלה1[[#This Row],[התחלה]]+(טבלה1[[#This Row],[סיום]]<טבלה1[[#This Row],[התחלה]]),TIME(,טבלה1[[#This Row],[הוספת דקות]],),-TIME(,טבלה1[[#This Row],[הפחתת דקות]],))))<=0,"", IF(AND(טבלה1[[#This Row],[התחלה]]="",טבלה1[[#This Row],[סיום]]<>""),"",IF(AND(טבלה1[[#This Row],[התחלה]]<>"",טבלה1[[#This Row],[סיום]]=""), SUM(MOD(NOW(),1)-טבלה1[[#This Row],[התחלה]]+(MOD(NOW(),1)<טבלה1[[#This Row],[התחלה]]),TIME(,טבלה1[[#This Row],[הוספת דקות]],),-TIME(,טבלה1[[#This Row],[הפחתת דקות]],)), SUM(טבלה1[[#This Row],[סיום]]-טבלה1[[#This Row],[התחלה]]+(טבלה1[[#This Row],[סיום]]<טבלה1[[#This Row],[התחלה]]),TIME(,טבלה1[[#This Row],[הוספת דקות]],),-TIME(,טבלה1[[#This Row],[הפחתת דקות]],))))) ->  | K116: =IF('טיימר עבודות'!$J116="","", IFERROR(IF(IF(VLOOKUP('טיימר עבודות'!$F116,טבלה2[],3,FALSE)="$", VLOOKUP(טבלה1[[#This Row],[שם העבודה]],טבלה2[#All],2,FALSE)*טבלה1[[#This Row],[שעות]]*24*שער, VLOOKUP(טבלה1[[#This Row],[שם העבודה]],טבלה2[#All],2,FALSE)*טבלה1[[#This Row],[שעות]]*24)=0,"", IF(VLOOKUP('טיימר עבודות'!$F116,טבלה2[],3,FALSE)="$", VLOOKUP(טבלה1[[#This Row],[שם העבודה]],טבלה2[#All],2,FALSE)*טבלה1[[#This Row],[שעות]]*24*שער, VLOOKUP(טבלה1[[#This Row],[שם העבודה]],טבלה2[#All],2,FALSE)*טבלה1[[#This Row],[שעות]]*24)),"")) ->  | L116: =IF(טבלה1[[#This Row],[תאריך]]="","",טבלה1[[#This Row],[תאריך]]+טבלה1[[#This Row],[התחלה]]) -> 
B117: =IF(AND(טבלה1[[#This Row],[תאריך]]="",טבלה1[[#This Row],[התחלה]]="",טבלה1[[#This Row],[שם העבודה]]=""),"",ROW()-10) ->  | C117: =IF(טבלה1[[#This Row],[תאריך]]="","",IF(TEXT(טבלה1[[#This Row],[תאריך]],"DDD")="שבת","מוצ""ש",TEXT(טבלה1[[#This Row],[תאריך]],"DDD"))) ->  | J117: =IF(IF(AND(טבלה1[[#This Row],[התחלה]]="",טבלה1[[#This Row],[סיום]]<>""),"",IF(AND(טבלה1[[#This Row],[התחלה]]<>"",טבלה1[[#This Row],[סיום]]=""), SUM(MOD(NOW(),1)-טבלה1[[#This Row],[התחלה]]+(MOD(NOW(),1)<טבלה1[[#This Row],[התחלה]]),TIME(,טבלה1[[#This Row],[הוספת דקות]],),-TIME(,טבלה1[[#This Row],[הפחתת דקות]],)), SUM(טבלה1[[#This Row],[סיום]]-טבלה1[[#This Row],[התחלה]]+(טבלה1[[#This Row],[סיום]]<טבלה1[[#This Row],[התחלה]]),TIME(,טבלה1[[#This Row],[הוספת דקות]],),-TIME(,טבלה1[[#This Row],[הפחתת דקות]],))))<=0,"", IF(AND(טבלה1[[#This Row],[התחלה]]="",טבלה1[[#This Row],[סיום]]<>""),"",IF(AND(טבלה1[[#This Row],[התחלה]]<>"",טבלה1[[#This Row],[סיום]]=""), SUM(MOD(NOW(),1)-טבלה1[[#This Row],[התחלה]]+(MOD(NOW(),1)<טבלה1[[#This Row],[התחלה]]),TIME(,טבלה1[[#This Row],[הוספת דקות]],),-TIME(,טבלה1[[#This Row],[הפחתת דקות]],)), SUM(טבלה1[[#This Row],[סיום]]-טבלה1[[#This Row],[התחלה]]+(טבלה1[[#This Row],[סיום]]<טבלה1[[#This Row],[התחלה]]),TIME(,טבלה1[[#This Row],[הוספת דקות]],),-TIME(,טבלה1[[#This Row],[הפחתת דקות]],))))) ->  | K117: =IF('טיימר עבודות'!$J117="","", IFERROR(IF(IF(VLOOKUP('טיימר עבודות'!$F117,טבלה2[],3,FALSE)="$", VLOOKUP(טבלה1[[#This Row],[שם העבודה]],טבלה2[#All],2,FALSE)*טבלה1[[#This Row],[שעות]]*24*שער, VLOOKUP(טבלה1[[#This Row],[שם העבודה]],טבלה2[#All],2,FALSE)*טבלה1[[#This Row],[שעות]]*24)=0,"", IF(VLOOKUP('טיימר עבודות'!$F117,טבלה2[],3,FALSE)="$", VLOOKUP(טבלה1[[#This Row],[שם העבודה]],טבלה2[#All],2,FALSE)*טבלה1[[#This Row],[שעות]]*24*שער, VLOOKUP(טבלה1[[#This Row],[שם העבודה]],טבלה2[#All],2,FALSE)*טבלה1[[#This Row],[שעות]]*24)),"")) ->  | L117: =IF(טבלה1[[#This Row],[תאריך]]="","",טבלה1[[#This Row],[תאריך]]+טבלה1[[#This Row],[התחלה]]) -> 
B118: =IF(AND(טבלה1[[#This Row],[תאריך]]="",טבלה1[[#This Row],[התחלה]]="",טבלה1[[#This Row],[שם העבודה]]=""),"",ROW()-10) ->  | C118: =IF(טבלה1[[#This Row],[תאריך]]="","",IF(TEXT(טבלה1[[#This Row],[תאריך]],"DDD")="שבת","מוצ""ש",TEXT(טבלה1[[#This Row],[תאריך]],"DDD"))) ->  | J118: =IF(IF(AND(טבלה1[[#This Row],[התחלה]]="",טבלה1[[#This Row],[סיום]]<>""),"",IF(AND(טבלה1[[#This Row],[התחלה]]<>"",טבלה1[[#This Row],[סיום]]=""), SUM(MOD(NOW(),1)-טבלה1[[#This Row],[התחלה]]+(MOD(NOW(),1)<טבלה1[[#This Row],[התחלה]]),TIME(,טבלה1[[#This Row],[הוספת דקות]],),-TIME(,טבלה1[[#This Row],[הפחתת דקות]],)), SUM(טבלה1[[#This Row],[סיום]]-טבלה1[[#This Row],[התחלה]]+(טבלה1[[#This Row],[סיום]]<טבלה1[[#This Row],[התחלה]]),TIME(,טבלה1[[#This Row],[הוספת דקות]],),-TIME(,טבלה1[[#This Row],[הפחתת דקות]],))))<=0,"", IF(AND(טבלה1[[#This Row],[התחלה]]="",טבלה1[[#This Row],[סיום]]<>""),"",IF(AND(טבלה1[[#This Row],[התחלה]]<>"",טבלה1[[#This Row],[סיום]]=""), SUM(MOD(NOW(),1)-טבלה1[[#This Row],[התחלה]]+(MOD(NOW(),1)<טבלה1[[#This Row],[התחלה]]),TIME(,טבלה1[[#This Row],[הוספת דקות]],),-TIME(,טבלה1[[#This Row],[הפחתת דקות]],)), SUM(טבלה1[[#This Row],[סיום]]-טבלה1[[#This Row],[התחלה]]+(טבלה1[[#This Row],[סיום]]<טבלה1[[#This Row],[התחלה]]),TIME(,טבלה1[[#This Row],[הוספת דקות]],),-TIME(,טבלה1[[#This Row],[הפחתת דקות]],))))) ->  | K118: =IF('טיימר עבודות'!$J118="","", IFERROR(IF(IF(VLOOKUP('טיימר עבודות'!$F118,טבלה2[],3,FALSE)="$", VLOOKUP(טבלה1[[#This Row],[שם העבודה]],טבלה2[#All],2,FALSE)*טבלה1[[#This Row],[שעות]]*24*שער, VLOOKUP(טבלה1[[#This Row],[שם העבודה]],טבלה2[#All],2,FALSE)*טבלה1[[#This Row],[שעות]]*24)=0,"", IF(VLOOKUP('טיימר עבודות'!$F118,טבלה2[],3,FALSE)="$", VLOOKUP(טבלה1[[#This Row],[שם העבודה]],טבלה2[#All],2,FALSE)*טבלה1[[#This Row],[שעות]]*24*שער, VLOOKUP(טבלה1[[#This Row],[שם העבודה]],טבלה2[#All],2,FALSE)*טבלה1[[#This Row],[שעות]]*24)),"")) ->  | L118: =IF(טבלה1[[#This Row],[תאריך]]="","",טבלה1[[#This Row],[תאריך]]+טבלה1[[#This Row],[התחלה]]) -> 
B119: =IF(AND(טבלה1[[#This Row],[תאריך]]="",טבלה1[[#This Row],[התחלה]]="",טבלה1[[#This Row],[שם העבודה]]=""),"",ROW()-10) ->  | C119: =IF(טבלה1[[#This Row],[תאריך]]="","",IF(TEXT(טבלה1[[#This Row],[תאריך]],"DDD")="שבת","מוצ""ש",TEXT(טבלה1[[#This Row],[תאריך]],"DDD"))) ->  | J119: =IF(IF(AND(טבלה1[[#This Row],[התחלה]]="",טבלה1[[#This Row],[סיום]]<>""),"",IF(AND(טבלה1[[#This Row],[התחלה]]<>"",טבלה1[[#This Row],[סיום]]=""), SUM(MOD(NOW(),1)-טבלה1[[#This Row],[התחלה]]+(MOD(NOW(),1)<טבלה1[[#This Row],[התחלה]]),TIME(,טבלה1[[#This Row],[הוספת דקות]],),-TIME(,טבלה1[[#This Row],[הפחתת דקות]],)), SUM(טבלה1[[#This Row],[סיום]]-טבלה1[[#This Row],[התחלה]]+(טבלה1[[#This Row],[סיום]]<טבלה1[[#This Row],[התחלה]]),TIME(,טבלה1[[#This Row],[הוספת דקות]],),-TIME(,טבלה1[[#This Row],[הפחתת דקות]],))))<=0,"", IF(AND(טבלה1[[#This Row],[התחלה]]="",טבלה1[[#This Row],[סיום]]<>""),"",IF(AND(טבלה1[[#This Row],[התחלה]]<>"",טבלה1[[#This Row],[סיום]]=""), SUM(MOD(NOW(),1)-טבלה1[[#This Row],[התחלה]]+(MOD(NOW(),1)<טבלה1[[#This Row],[התחלה]]),TIME(,טבלה1[[#This Row],[הוספת דקות]],),-TIME(,טבלה1[[#This Row],[הפחתת דקות]],)), SUM(טבלה1[[#This Row],[סיום]]-טבלה1[[#This Row],[התחלה]]+(טבלה1[[#This Row],[סיום]]<טבלה1[[#This Row],[התחלה]]),TIME(,טבלה1[[#This Row],[הוספת דקות]],),-TIME(,טבלה1[[#This Row],[הפחתת דקות]],))))) ->  | K119: =IF('טיימר עבודות'!$J119="","", IFERROR(IF(IF(VLOOKUP('טיימר עבודות'!$F119,טבלה2[],3,FALSE)="$", VLOOKUP(טבלה1[[#This Row],[שם העבודה]],טבלה2[#All],2,FALSE)*טבלה1[[#This Row],[שעות]]*24*שער, VLOOKUP(טבלה1[[#This Row],[שם העבודה]],טבלה2[#All],2,FALSE)*טבלה1[[#This Row],[שעות]]*24)=0,"", IF(VLOOKUP('טיימר עבודות'!$F119,טבלה2[],3,FALSE)="$", VLOOKUP(טבלה1[[#This Row],[שם העבודה]],טבלה2[#All],2,FALSE)*טבלה1[[#This Row],[שעות]]*24*שער, VLOOKUP(טבלה1[[#This Row],[שם העבודה]],טבלה2[#All],2,FALSE)*טבלה1[[#This Row],[שעות]]*24)),"")) ->  | L119: =IF(טבלה1[[#This Row],[תאריך]]="","",טבלה1[[#This Row],[תאריך]]+טבלה1[[#This Row],[התחלה]]) -> 
B120: =IF(AND(טבלה1[[#This Row],[תאריך]]="",טבלה1[[#This Row],[התחלה]]="",טבלה1[[#This Row],[שם העבודה]]=""),"",ROW()-10) ->  | C120: =IF(טבלה1[[#This Row],[תאריך]]="","",IF(TEXT(טבלה1[[#This Row],[תאריך]],"DDD")="שבת","מוצ""ש",TEXT(טבלה1[[#This Row],[תאריך]],"DDD"))) ->  | J120: =IF(IF(AND(טבלה1[[#This Row],[התחלה]]="",טבלה1[[#This Row],[סיום]]<>""),"",IF(AND(טבלה1[[#This Row],[התחלה]]<>"",טבלה1[[#This Row],[סיום]]=""), SUM(MOD(NOW(),1)-טבלה1[[#This Row],[התחלה]]+(MOD(NOW(),1)<טבלה1[[#This Row],[התחלה]]),TIME(,טבלה1[[#This Row],[הוספת דקות]],),-TIME(,טבלה1[[#This Row],[הפחתת דקות]],)), SUM(טבלה1[[#This Row],[סיום]]-טבלה1[[#This Row],[התחלה]]+(טבלה1[[#This Row],[סיום]]<טבלה1[[#This Row],[התחלה]]),TIME(,טבלה1[[#This Row],[הוספת דקות]],),-TIME(,טבלה1[[#This Row],[הפחתת דקות]],))))<=0,"", IF(AND(טבלה1[[#This Row],[התחלה]]="",טבלה1[[#This Row],[סיום]]<>""),"",IF(AND(טבלה1[[#This Row],[התחלה]]<>"",טבלה1[[#This Row],[סיום]]=""), SUM(MOD(NOW(),1)-טבלה1[[#This Row],[התחלה]]+(MOD(NOW(),1)<טבלה1[[#This Row],[התחלה]]),TIME(,טבלה1[[#This Row],[הוספת דקות]],),-TIME(,טבלה1[[#This Row],[הפחתת דקות]],)), SUM(טבלה1[[#This Row],[סיום]]-טבלה1[[#This Row],[התחלה]]+(טבלה1[[#This Row],[סיום]]<טבלה1[[#This Row],[התחלה]]),TIME(,טבלה1[[#This Row],[הוספת דקות]],),-TIME(,טבלה1[[#This Row],[הפחתת דקות]],))))) ->  | K120: =IF('טיימר עבודות'!$J120="","", IFERROR(IF(IF(VLOOKUP('טיימר עבודות'!$F120,טבלה2[],3,FALSE)="$", VLOOKUP(טבלה1[[#This Row],[שם העבודה]],טבלה2[#All],2,FALSE)*טבלה1[[#This Row],[שעות]]*24*שער, VLOOKUP(טבלה1[[#This Row],[שם העבודה]],טבלה2[#All],2,FALSE)*טבלה1[[#This Row],[שעות]]*24)=0,"", IF(VLOOKUP('טיימר עבודות'!$F120,טבלה2[],3,FALSE)="$", VLOOKUP(טבלה1[[#This Row],[שם העבודה]],טבלה2[#All],2,FALSE)*טבלה1[[#This Row],[שעות]]*24*שער, VLOOKUP(טבלה1[[#This Row],[שם העבודה]],טבלה2[#All],2,FALSE)*טבלה1[[#This Row],[שעות]]*24)),"")) ->  | L120: =IF(טבלה1[[#This Row],[תאריך]]="","",טבלה1[[#This Row],[תאריך]]+טבלה1[[#This Row],[התחלה]]) -> 
B121: =IF(AND(טבלה1[[#This Row],[תאריך]]="",טבלה1[[#This Row],[התחלה]]="",טבלה1[[#This Row],[שם העבודה]]=""),"",ROW()-10) ->  | C121: =IF(טבלה1[[#This Row],[תאריך]]="","",IF(TEXT(טבלה1[[#This Row],[תאריך]],"DDD")="שבת","מוצ""ש",TEXT(טבלה1[[#This Row],[תאריך]],"DDD"))) ->  | J121: =IF(IF(AND(טבלה1[[#This Row],[התחלה]]="",טבלה1[[#This Row],[סיום]]<>""),"",IF(AND(טבלה1[[#This Row],[התחלה]]<>"",טבלה1[[#This Row],[סיום]]=""), SUM(MOD(NOW(),1)-טבלה1[[#This Row],[התחלה]]+(MOD(NOW(),1)<טבלה1[[#This Row],[התחלה]]),TIME(,טבלה1[[#This Row],[הוספת דקות]],),-TIME(,טבלה1[[#This Row],[הפחתת דקות]],)), SUM(טבלה1[[#This Row],[סיום]]-טבלה1[[#This Row],[התחלה]]+(טבלה1[[#This Row],[סיום]]<טבלה1[[#This Row],[התחלה]]),TIME(,טבלה1[[#This Row],[הוספת דקות]],),-TIME(,טבלה1[[#This Row],[הפחתת דקות]],))))<=0,"", IF(AND(טבלה1[[#This Row],[התחלה]]="",טבלה1[[#This Row],[סיום]]<>""),"",IF(AND(טבלה1[[#This Row],[התחלה]]<>"",טבלה1[[#This Row],[סיום]]=""), SUM(MOD(NOW(),1)-טבלה1[[#This Row],[התחלה]]+(MOD(NOW(),1)<טבלה1[[#This Row],[התחלה]]),TIME(,טבלה1[[#This Row],[הוספת דקות]],),-TIME(,טבלה1[[#This Row],[הפחתת דקות]],)), SUM(טבלה1[[#This Row],[סיום]]-טבלה1[[#This Row],[התחלה]]+(טבלה1[[#This Row],[סיום]]<טבלה1[[#This Row],[התחלה]]),TIME(,טבלה1[[#This Row],[הוספת דקות]],),-TIME(,טבלה1[[#This Row],[הפחתת דקות]],))))) ->  | K121: =IF('טיימר עבודות'!$J121="","", IFERROR(IF(IF(VLOOKUP('טיימר עבודות'!$F121,טבלה2[],3,FALSE)="$", VLOOKUP(טבלה1[[#This Row],[שם העבודה]],טבלה2[#All],2,FALSE)*טבלה1[[#This Row],[שעות]]*24*שער, VLOOKUP(טבלה1[[#This Row],[שם העבודה]],טבלה2[#All],2,FALSE)*טבלה1[[#This Row],[שעות]]*24)=0,"", IF(VLOOKUP('טיימר עבודות'!$F121,טבלה2[],3,FALSE)="$", VLOOKUP(טבלה1[[#This Row],[שם העבודה]],טבלה2[#All],2,FALSE)*טבלה1[[#This Row],[שעות]]*24*שער, VLOOKUP(טבלה1[[#This Row],[שם העבודה]],טבלה2[#All],2,FALSE)*טבלה1[[#This Row],[שעות]]*24)),"")) ->  | L121: =IF(טבלה1[[#This Row],[תאריך]]="","",טבלה1[[#This Row],[תאריך]]+טבלה1[[#This Row],[התחלה]]) -> 
B122: =IF(AND(טבלה1[[#This Row],[תאריך]]="",טבלה1[[#This Row],[התחלה]]="",טבלה1[[#This Row],[שם העבודה]]=""),"",ROW()-10) ->  | C122: =IF(טבלה1[[#This Row],[תאריך]]="","",IF(TEXT(טבלה1[[#This Row],[תאריך]],"DDD")="שבת","מוצ""ש",TEXT(טבלה1[[#This Row],[תאריך]],"DDD"))) ->  | J122: =IF(IF(AND(טבלה1[[#This Row],[התחלה]]="",טבלה1[[#This Row],[סיום]]<>""),"",IF(AND(טבלה1[[#This Row],[התחלה]]<>"",טבלה1[[#This Row],[סיום]]=""), SUM(MOD(NOW(),1)-טבלה1[[#This Row],[התחלה]]+(MOD(NOW(),1)<טבלה1[[#This Row],[התחלה]]),TIME(,טבלה1[[#This Row],[הוספת דקות]],),-TIME(,טבלה1[[#This Row],[הפחתת דקות]],)), SUM(טבלה1[[#This Row],[סיום]]-טבלה1[[#This Row],[התחלה]]+(טבלה1[[#This Row],[סיום]]<טבלה1[[#This Row],[התחלה]]),TIME(,טבלה1[[#This Row],[הוספת דקות]],),-TIME(,טבלה1[[#This Row],[הפחתת דקות]],))))<=0,"", IF(AND(טבלה1[[#This Row],[התחלה]]="",טבלה1[[#This Row],[סיום]]<>""),"",IF(AND(טבלה1[[#This Row],[התחלה]]<>"",טבלה1[[#This Row],[סיום]]=""), SUM(MOD(NOW(),1)-טבלה1[[#This Row],[התחלה]]+(MOD(NOW(),1)<טבלה1[[#This Row],[התחלה]]),TIME(,טבלה1[[#This Row],[הוספת דקות]],),-TIME(,טבלה1[[#This Row],[הפחתת דקות]],)), SUM(טבלה1[[#This Row],[סיום]]-טבלה1[[#This Row],[התחלה]]+(טבלה1[[#This Row],[סיום]]<טבלה1[[#This Row],[התחלה]]),TIME(,טבלה1[[#This Row],[הוספת דקות]],),-TIME(,טבלה1[[#This Row],[הפחתת דקות]],))))) ->  | K122: =IF('טיימר עבודות'!$J122="","", IFERROR(IF(IF(VLOOKUP('טיימר עבודות'!$F122,טבלה2[],3,FALSE)="$", VLOOKUP(טבלה1[[#This Row],[שם העבודה]],טבלה2[#All],2,FALSE)*טבלה1[[#This Row],[שעות]]*24*שער, VLOOKUP(טבלה1[[#This Row],[שם העבודה]],טבלה2[#All],2,FALSE)*טבלה1[[#This Row],[שעות]]*24)=0,"", IF(VLOOKUP('טיימר עבודות'!$F122,טבלה2[],3,FALSE)="$", VLOOKUP(טבלה1[[#This Row],[שם העבודה]],טבלה2[#All],2,FALSE)*טבלה1[[#This Row],[שעות]]*24*שער, VLOOKUP(טבלה1[[#This Row],[שם העבודה]],טבלה2[#All],2,FALSE)*טבלה1[[#This Row],[שעות]]*24)),"")) ->  | L122: =IF(טבלה1[[#This Row],[תאריך]]="","",טבלה1[[#This Row],[תאריך]]+טבלה1[[#This Row],[התחלה]]) -> 
B123: =IF(AND(טבלה1[[#This Row],[תאריך]]="",טבלה1[[#This Row],[התחלה]]="",טבלה1[[#This Row],[שם העבודה]]=""),"",ROW()-10) ->  | C123: =IF(טבלה1[[#This Row],[תאריך]]="","",IF(TEXT(טבלה1[[#This Row],[תאריך]],"DDD")="שבת","מוצ""ש",TEXT(טבלה1[[#This Row],[תאריך]],"DDD"))) ->  | J123: =IF(IF(AND(טבלה1[[#This Row],[התחלה]]="",טבלה1[[#This Row],[סיום]]<>""),"",IF(AND(טבלה1[[#This Row],[התחלה]]<>"",טבלה1[[#This Row],[סיום]]=""), SUM(MOD(NOW(),1)-טבלה1[[#This Row],[התחלה]]+(MOD(NOW(),1)<טבלה1[[#This Row],[התחלה]]),TIME(,טבלה1[[#This Row],[הוספת דקות]],),-TIME(,טבלה1[[#This Row],[הפחתת דקות]],)), SUM(טבלה1[[#This Row],[סיום]]-טבלה1[[#This Row],[התחלה]]+(טבלה1[[#This Row],[סיום]]<טבלה1[[#This Row],[התחלה]]),TIME(,טבלה1[[#This Row],[הוספת דקות]],),-TIME(,טבלה1[[#This Row],[הפחתת דקות]],))))<=0,"", IF(AND(טבלה1[[#This Row],[התחלה]]="",טבלה1[[#This Row],[סיום]]<>""),"",IF(AND(טבלה1[[#This Row],[התחלה]]<>"",טבלה1[[#This Row],[סיום]]=""), SUM(MOD(NOW(),1)-טבלה1[[#This Row],[התחלה]]+(MOD(NOW(),1)<טבלה1[[#This Row],[התחלה]]),TIME(,טבלה1[[#This Row],[הוספת דקות]],),-TIME(,טבלה1[[#This Row],[הפחתת דקות]],)), SUM(טבלה1[[#This Row],[סיום]]-טבלה1[[#This Row],[התחלה]]+(טבלה1[[#This Row],[סיום]]<טבלה1[[#This Row],[התחלה]]),TIME(,טבלה1[[#This Row],[הוספת דקות]],),-TIME(,טבלה1[[#This Row],[הפחתת דקות]],))))) ->  | K123: =IF('טיימר עבודות'!$J123="","", IFERROR(IF(IF(VLOOKUP('טיימר עבודות'!$F123,טבלה2[],3,FALSE)="$", VLOOKUP(טבלה1[[#This Row],[שם העבודה]],טבלה2[#All],2,FALSE)*טבלה1[[#This Row],[שעות]]*24*שער, VLOOKUP(טבלה1[[#This Row],[שם העבודה]],טבלה2[#All],2,FALSE)*טבלה1[[#This Row],[שעות]]*24)=0,"", IF(VLOOKUP('טיימר עבודות'!$F123,טבלה2[],3,FALSE)="$", VLOOKUP(טבלה1[[#This Row],[שם העבודה]],טבלה2[#All],2,FALSE)*טבלה1[[#This Row],[שעות]]*24*שער, VLOOKUP(טבלה1[[#This Row],[שם העבודה]],טבלה2[#All],2,FALSE)*טבלה1[[#This Row],[שעות]]*24)),"")) ->  | L123: =IF(טבלה1[[#This Row],[תאריך]]="","",טבלה1[[#This Row],[תאריך]]+טבלה1[[#This Row],[התחלה]]) -> 
B124: =IF(AND(טבלה1[[#This Row],[תאריך]]="",טבלה1[[#This Row],[התחלה]]="",טבלה1[[#This Row],[שם העבודה]]=""),"",ROW()-10) ->  | C124: =IF(טבלה1[[#This Row],[תאריך]]="","",IF(TEXT(טבלה1[[#This Row],[תאריך]],"DDD")="שבת","מוצ""ש",TEXT(טבלה1[[#This Row],[תאריך]],"DDD"))) ->  | J124: =IF(IF(AND(טבלה1[[#This Row],[התחלה]]="",טבלה1[[#This Row],[סיום]]<>""),"",IF(AND(טבלה1[[#This Row],[התחלה]]<>"",טבלה1[[#This Row],[סיום]]=""), SUM(MOD(NOW(),1)-טבלה1[[#This Row],[התחלה]]+(MOD(NOW(),1)<טבלה1[[#This Row],[התחלה]]),TIME(,טבלה1[[#This Row],[הוספת דקות]],),-TIME(,טבלה1[[#This Row],[הפחתת דקות]],)), SUM(טבלה1[[#This Row],[סיום]]-טבלה1[[#This Row],[התחלה]]+(טבלה1[[#This Row],[סיום]]<טבלה1[[#This Row],[התחלה]]),TIME(,טבלה1[[#This Row],[הוספת דקות]],),-TIME(,טבלה1[[#This Row],[הפחתת דקות]],))))<=0,"", IF(AND(טבלה1[[#This Row],[התחלה]]="",טבלה1[[#This Row],[סיום]]<>""),"",IF(AND(טבלה1[[#This Row],[התחלה]]<>"",טבלה1[[#This Row],[סיום]]=""), SUM(MOD(NOW(),1)-טבלה1[[#This Row],[התחלה]]+(MOD(NOW(),1)<טבלה1[[#This Row],[התחלה]]),TIME(,טבלה1[[#This Row],[הוספת דקות]],),-TIME(,טבלה1[[#This Row],[הפחתת דקות]],)), SUM(טבלה1[[#This Row],[סיום]]-טבלה1[[#This Row],[התחלה]]+(טבלה1[[#This Row],[סיום]]<טבלה1[[#This Row],[התחלה]]),TIME(,טבלה1[[#This Row],[הוספת דקות]],),-TIME(,טבלה1[[#This Row],[הפחתת דקות]],))))) ->  | K124: =IF('טיימר עבודות'!$J124="","", IFERROR(IF(IF(VLOOKUP('טיימר עבודות'!$F124,טבלה2[],3,FALSE)="$", VLOOKUP(טבלה1[[#This Row],[שם העבודה]],טבלה2[#All],2,FALSE)*טבלה1[[#This Row],[שעות]]*24*שער, VLOOKUP(טבלה1[[#This Row],[שם העבודה]],טבלה2[#All],2,FALSE)*טבלה1[[#This Row],[שעות]]*24)=0,"", IF(VLOOKUP('טיימר עבודות'!$F124,טבלה2[],3,FALSE)="$", VLOOKUP(טבלה1[[#This Row],[שם העבודה]],טבלה2[#All],2,FALSE)*טבלה1[[#This Row],[שעות]]*24*שער, VLOOKUP(טבלה1[[#This Row],[שם העבודה]],טבלה2[#All],2,FALSE)*טבלה1[[#This Row],[שעות]]*24)),"")) ->  | L124: =IF(טבלה1[[#This Row],[תאריך]]="","",טבלה1[[#This Row],[תאריך]]+טבלה1[[#This Row],[התחלה]]) -> 
B125: =IF(AND(טבלה1[[#This Row],[תאריך]]="",טבלה1[[#This Row],[התחלה]]="",טבלה1[[#This Row],[שם העבודה]]=""),"",ROW()-10) ->  | C125: =IF(טבלה1[[#This Row],[תאריך]]="","",IF(TEXT(טבלה1[[#This Row],[תאריך]],"DDD")="שבת","מוצ""ש",TEXT(טבלה1[[#This Row],[תאריך]],"DDD"))) ->  | J125: =IF(IF(AND(טבלה1[[#This Row],[התחלה]]="",טבלה1[[#This Row],[סיום]]<>""),"",IF(AND(טבלה1[[#This Row],[התחלה]]<>"",טבלה1[[#This Row],[סיום]]=""), SUM(MOD(NOW(),1)-טבלה1[[#This Row],[התחלה]]+(MOD(NOW(),1)<טבלה1[[#This Row],[התחלה]]),TIME(,טבלה1[[#This Row],[הוספת דקות]],),-TIME(,טבלה1[[#This Row],[הפחתת דקות]],)), SUM(טבלה1[[#This Row],[סיום]]-טבלה1[[#This Row],[התחלה]]+(טבלה1[[#This Row],[סיום]]<טבלה1[[#This Row],[התחלה]]),TIME(,טבלה1[[#This Row],[הוספת דקות]],),-TIME(,טבלה1[[#This Row],[הפחתת דקות]],))))<=0,"", IF(AND(טבלה1[[#This Row],[התחלה]]="",טבלה1[[#This Row],[סיום]]<>""),"",IF(AND(טבלה1[[#This Row],[התחלה]]<>"",טבלה1[[#This Row],[סיום]]=""), SUM(MOD(NOW(),1)-טבלה1[[#This Row],[התחלה]]+(MOD(NOW(),1)<טבלה1[[#This Row],[התחלה]]),TIME(,טבלה1[[#This Row],[הוספת דקות]],),-TIME(,טבלה1[[#This Row],[הפחתת דקות]],)), SUM(טבלה1[[#This Row],[סיום]]-טבלה1[[#This Row],[התחלה]]+(טבלה1[[#This Row],[סיום]]<טבלה1[[#This Row],[התחלה]]),TIME(,טבלה1[[#This Row],[הוספת דקות]],),-TIME(,טבלה1[[#This Row],[הפחתת דקות]],))))) ->  | K125: =IF('טיימר עבודות'!$J125="","", IFERROR(IF(IF(VLOOKUP('טיימר עבודות'!$F125,טבלה2[],3,FALSE)="$", VLOOKUP(טבלה1[[#This Row],[שם העבודה]],טבלה2[#All],2,FALSE)*טבלה1[[#This Row],[שעות]]*24*שער, VLOOKUP(טבלה1[[#This Row],[שם העבודה]],טבלה2[#All],2,FALSE)*טבלה1[[#This Row],[שעות]]*24)=0,"", IF(VLOOKUP('טיימר עבודות'!$F125,טבלה2[],3,FALSE)="$", VLOOKUP(טבלה1[[#This Row],[שם העבודה]],טבלה2[#All],2,FALSE)*טבלה1[[#This Row],[שעות]]*24*שער, VLOOKUP(טבלה1[[#This Row],[שם העבודה]],טבלה2[#All],2,FALSE)*טבלה1[[#This Row],[שעות]]*24)),"")) ->  | L125: =IF(טבלה1[[#This Row],[תאריך]]="","",טבלה1[[#This Row],[תאריך]]+טבלה1[[#This Row],[התחלה]]) -> 
